Workbook

Sheet Sheet7

Sheet Sheet2

Sheet Sheet1
A1: 2010 | D1: Greg Childers | E1: PCLN Analysis
A2: 2011 | E2: Business Services Industry
A3: 2012 | B3: The Goldman Sachs Group, Inc.
A4: 2013 | B4: 5 | C4: 1 | D4: =CONCATENATE("201",C4) -> 2011 | M4: =D4 -> 2011 | O4: The Priceline Group Inc. | P4: 2011 | Q4: The Goldman Sachs Group, Inc.
A5: 2014 | E5: 2010 | F5: Assets | G5: Liabilities | H5: Cash | I5: Net Income | J5: ROA | K5: ROE | L5: Total Expenses | M5: Financial Statements are in: | N5: Z Score
A6: 2015 | E6: The Priceline Group Inc. | F6: 2905953 | G6: 1046828 | H6: 358967 | I6: 528142 | J6: =I6/F6 -> 0.1817448527 | K6: =IF(I6>0,I6/(F6-G6),I6/(F6-G6)*-1) -> 0.2840809521 | L6: 1122174 | M6: Thousands | N6: =(1.2*((1957464-471168)/F6)+(1.4*(69110/F6))+(3.3*(746283/F6))+(0.6*(1813336/G6))+(3084905/F6)) -> 3.5954461
E7: Barclays Bank PLC | F7: =1.3384*1489645000 -> 1993740868 | G7: =1.3384*1427383000 -> 1910409407 | H7: =97630000*1.3384 -> 130667992 | I7: =(3564000*1.3384) -> 4770057.6 | J7: =I7/F7 -> 0.002392516338 | K7: =IF(I7>0,I7/(F7-G7),I7/(F7-G7)*-1) -> 0.05724197745 | L7: =(7512000*1.3384)+(1497000*1.3384)+(5672000*1.3384)+(19971000*1.3384) -> 46378236.8 | M7: =(20035000*1.3384)+(10368000*1.384)+(8078000*1.3384)+(1477000*1.3384)+(1137*1.3384)+(118000*1.3384) -> 54112020.96
E8: The Bank of New York Mellon Corporation | F8: 247259000 | G8: 214102000 | H8: =3675000+18549000 -> 22224000 | I8: 2581000 | J8: =I8/F8 -> 0.01043844713 | K8: =IF(I8>0,I8/(F8-G8),I8/(F8-G8)*-1) -> 0.07784178303 | L8: =545000+9582000 -> 10127000 | M8: =10724000+3470000 -> 14194000
A9: The Priceline Group Inc. | E9: Societe Generale Group | F9: 1515165165 | G9: 1446940225 | H9: 18846010.4 | I9: 5757796.8 | J9: 0.003800111654 | K9: 0.08439431094 | L9: =(1.3384*16324000)+(1.3384*2553000)+(1.3384*18391000)+(1.3384*9559000)+(1.3384*6053000)+(1.3384*933000)+(1.3384*4160000) -> 77591063.2 | M9: Thousands
A10: Barclays Bank PLC | E10: JPMorgan Chase & Co. | F10: 2117605000 | G10: 1941499000 | H10: 27567000 | I10: 17370000 | J10: 0.008202662914 | K10: 0.09863377738 | L10: =61196000+7489000 -> 68685000 | M10: Thousands
A11: The Bank of New York Mellon Corporation | E11: The Goldman Sachs Group, Inc. | F11: 911332000 | G11: 833976000 | H11: =39788000+53731000 -> 93519000 | I11: 7713000 | J11: 0.008463435938 | K11: 0.09970784425 | L11: =26269000+4538000 -> 30807000 | M11: Thousands
A12: Societe Generale Group | E12: Deutsche Bank AG | F12: 2550495192 | G12: 2483082661 | H12: 22962928.8 | I12: 3118472 | J12: 0.001222692758 | K12: 0.04625952986 | L12: =(1.3384*13196000)+(1.3384*1274000)+(1.3384*2004000)+(1.3384*23318000)+(1.3384*1645000) -> 55459280.8 | M12: Thousands
A13: JPMorgan Chase & Co. | E13: Groupon, Inc. | F13: 381570 | G13: 372040 | H13: 118833 | I13: -413386 | J13: -1.083381817 | K13: 43.37733473 | L13: 690389 | M13: Thousands
A14: The Goldman Sachs Group, Inc. | E14: Apple, Inc. | F14: 75183000 | G14: 27392000 | H14: =11261000+14359000 -> 25620000 | I14: 14013000 | J14: 0.1863852201 | K14: 0.2932142035 | L14: 7299000 | M14: Thousands
A15: Deutsche Bank AG | E15: Netflix, Inc. | F15: 982067 | G15: 691903 | H15: =194499 -> 194499 | I15: 160853 | J15: 0.1637902506 | K15: 0.5543520216 | L15: 521629 | M15: Thousands
A16: Groupon, Inc. | E16: Oracle Corporation | F16: 61578000 | G16: =61578000-31199000 -> 30379000 | H16: =9914000+8555000 -> 18469000 | I16: 6135000 | J16: 0.09962973789 | K16: 0.196640918 | L16: 17758000 | M16: Thousands
A17: Apple, Inc. | E17: Tesla Motors, Inc. | F17: 386082 | G17: 179034 | H17: =99558+73597 -> 173155 | I17: -55740 | J17: -0.1443734751 | K17: 0.2692129361 | L17: 177569 | M17: Thousands
A18: Netflix, Inc. | E18: Microsoft Corporation | F18: 86113000 | G18: 39938000 | H18: =5505000+31283000 -> 36788000 | I18: 18760000 | J18: 0.2178532858 | K18: 0.4062804548 | L18: =62484000-24098000 -> 38386000 | M18: Thousands
A19: Oracle Corporation | E19: Google Inc. | F19: 57851000 | G19: =57851000-46241000 -> 11610000 | H19: =13630000+21345000 -> 34975000 | I19: 8505000 | J19: 0.1470156091 | K19: 0.1839276832 | L19: 15164000 | M19: Thousands
A20: Tesla Motors, Inc. | E20: Salesforce.com, Inc. | F20: 2460201 | G20: 1403535 | H20: =1011306+230659 -> 1241965 | I20: 80719 | J20: 0.03280992082 | K20: 0.07639026902 | L20: 257925 | M20: Thousands
A21: Microsoft Corporation | E21: 2011 | F21: Assets | G21: Liabilities | H21: Cash | I21: Net Income | J21: ROA | K21: ROE | L21: Total Expenses | M21: Financial Statements are in:
A22: Google Inc. | E22: The Priceline Group Inc. | F22: 3970671 | G22: 1191971 | H22: 632836 | I22: 1059131 | J22: =I22/F22 -> 0.2667385437 | K22: =IF(I22>0,I22/(F22-G22),-I22/(F22-G22)*-1) -> 0.3811606147 | L22: 1680958 | M22: Thousands | N22: =(1.2*((3066844-1105798)/F22)+(1.4*(1033738/F22))+(3.3*(1367794/F22))+(0.6*(2574295/1191971))+(2339253/F22)) -> 3.978855706
A23: Salesforce.com, Inc. | E23: Barclays Bank PLC | F23: =1563527000*1.2952 -> 2025080170 | G23: =1498331*1.2952 -> 1940638.311 | H23: =106894000*1.2952 -> 138449108.8 | I23: =3951000*1.2952 -> 5117335.2 | J23: =I23/F23 -> 0.002526979067 | K23: =IF(I23>0,I23/(F23-G23),-I23/(F23-G23)*-1) -> 0.002529402999 | L23: =(8388000*1.2952)+(1558000*1.2952)+(3802000*1.2952)+(1800000*1.2952)+(20777000*1.2952) -> 47048140 | M23: =(20589000*1.2952)+(10208000*1.2952)+(7660000*1.2952)+(2305000*1.2952)+(1076000*1.2952)+(1130000*1.2952)+(39000*(1.2952)) -> 55702666.4
E24: The Bank of New York Mellon Corporation | F24: 325266000 | G24: 291065000 | H24: =4175000+90243000 -> 94418000 | I24: 2569000 | J24: =I24/F24 -> 0.007898151052 | K24: =IF(I24>0,I24/(F24-G24),-I24/(F24-G24)*-1) -> 0.07511476273 | L24: =604000+11112000 -> 11716000 | M24: =11498000+3588000 -> 15086000
E25: Societe Generale Group | F25: 1530113014 | G25: 1463912752 | H25: 56940877.6 | I25: 2945284.8 | J25: 0.001924880563 | K25: 0.0444905306 | L25: =(1.2952*20182000)+(1.2952*2719000)+(1.2952*22277000)+(1.2952*9666000)+(1.2952*6449000)+(1.2952*921000)+(1.2952*4330000) -> 86187788.8 | M25: Thousands
E26: JPMorgan Chase & Co. | F26: 2265792000 | G26: 2082219000 | H26: 59602000 | I26: 18976000 | J26: 0.008374996469 | K26: 0.1033703213 | L26: =62911000+7773000 -> 70684000 | M26: Thousands
E27: The Goldman Sachs Group, Inc. | F27: 923225000 | G27: 852846000 | H27: =56008000+64264000 -> 120272000 | I27: 2510000 | J27: 0.002718730537 | K27: 0.03566404751 | L27: =22642000+1727000 -> 24369000 | M27: Thousands
E28: Deutsche Bank AG | F28: 2164103000 | G28: 2109443000 | H28: 15928000 | I28: 4326000 | J28: 0.00199898064 | K28: 0.07914379802 | L28: =(1.2952*17433000)+(1.2952*1839000)+(1.2952*264000)+(1.2952*1064000) -> 26681120 | M28: Thousands
E29: Groupon, Inc. | F29: 1774476 | G29: 1073356 | H29: 1122935 | I29: -297762 | J29: -0.1678027767 | K29: -0.4246947741 | L29: 1584937 | M29: Thousands
E30: Apple, Inc. | F30: 116371000 | G30: 39756000 | H30: =9815000+16137000 -> 25952000 | I30: 25922000 | J30: 0.2227530914 | K30: 0.3383410559 | L30: 10028000 | M30: Thousands
E31: Netflix, Inc. | F31: 3069196 | G31: 2426386 | H31: =508053+289758 -> 797811 | I31: 226126 | J31: 0.07367597247 | K31: 0.3517773526 | L31: =3204577-376068 -> 2828509 | M31: Thousands
E32: Oracle Corporation | F32: 73535000 | G32: =73535000-40245000 -> 33290000 | H32: =16163000+12685000 -> 28848000 | I32: 8547000 | J32: 0.1162303665 | K32: 0.212374208 | L32: 23589000 | M32: Thousands
E33: Tesla Motors, Inc. | F33: 713448 | G33: 489403 | H33: =255266+25061 -> 280327 | I33: -254411 | J33: -0.356593613 | K33: -1.135535272 | L33: 313083 | M33: Thousands
E34: Microsoft Corporation | F34: 108704000 | G34: 51621000 | H34: =9610000+43162000 -> 52772000 | I34: 23150000 | J34: 0.2129636444 | K34: 0.4055498134 | L34: =69943000-27161000 -> 42782000 | M34: Thousands
E35: Google Inc. | F35: 72574000 | G35: =72574000-58145000 -> 14429000 | H35: =9983000+34643000 -> 44626000 | I35: 8505000 | J35: 0.1171907295 | K35: 0.1462722504 | L35: 18940000 | M35: Thousands
E36: Salesforce.com, Inc. | F36: 3091165 | G36: 1814674 | H36: =424292+72678 -> 496970 | I36: 64474 | J36: 0.02085750842 | K36: 0.05050877758 | L36: 1235829 | M36: Thousands
E37: 2012 | F37: Assets | G37: Liabilities | H37: Cash | I37: Net Income | J37: ROA | K37: ROE | L37: Total Expenses | M37: Financial Statements are in:
E38: The Priceline Group Inc. | F38: 6569742 | G38: 2457825 | H38: 1536349 | I38: 1424037 | J38: =I38/F38 -> 0.2167569137 | K38: =IF(I38>0,I38/(F38-G38),-I38/(F38-G38)*-1) -> 0.3463194904 | L38: 2253888 | M38: Thousands | N38: =(1.2*(5682375-1461726)/F38)+(1.4*(2368611/F38))+(3.3*(1761869/F38))+(0.6*(3896975/2457825))+(1*(5260956/F38)) -> 3.912772124
E39: Barclays Bank PLC | F39: =1490321000*1.3199 -> 1967074688 | G39: =1427364*1.3199 -> 1883977.744 | H39: =86175000*1.3199 -> 113742382.5 | I39: =-236000*1.3199 -> -311496.4 | J39: =I39/F39 -> -0.0001583551463 | K39: =IF(I39>0,I39/(F39-G39),-I39/(F39-G39)*-1) -> -0.0001585069573 | L39: =(7560000*1.3199)+(1634000*1.3199)+(3596000*1.3199)+(20989000*1.3199) -> 44584902.1 | M39: =(19199000*1.3199)+(10216000*1.3199)+(3025000*1.3199)+(817000*1.3199)+(896000*1.3199)+(227000*1.3199)+(105000*1.3199) -> 45516751.5
E40: The Bank of New York Mellon Corporation | F40: 358990000 | G40: 321548000 | H40: =4727000+90110000 -> 94837000 | I40: 2523000 | J40: =I40/F40 -> 0.007028050921 | K40: =IF(I40>0,I40/(F40-G40),-I40/(F40-G40)*-1) -> 0.06738422093 | L40: =534000+11333000 -> 11867000 | M40: =11393000+3507000 -> 14900000
E41: Societe Generale Group | F41: 1650793650 | G41: 1579391020 | H41: 89213360.9 | I41: 3628405.1 | J41: 0.002197976167 | K41: 0.05081612659 | L41: =(1.3199*18592000)+(1.3199*2538000)+(1.3199*37514000)+(1.3199*9513000)+(1.3199*6000)+(1.3199*925000)+(1.3199*3935000) -> 96383057.7 | M41: Thousands
E42: JPMorgan Chase & Co. | F42: 2359141000 | G42: 2155072000 | H42: 53723000 | I42: 21284000 | J42: 0.009021927897 | K42: 0.104298056 | L42: =64729000+7633000 -> 72362000 | M42: Thousands
E43: The Goldman Sachs Group, Inc. | F43: 938555000 | G43: 862839000 | H43: =72669000+49671000 -> 122340000 | I43: 7292000 | J43: 0.00776939018 | K43: 0.09630725342 | L43: =22956000+3732000 -> 26688000 | M43: Thousands
E44: Deutsche Bank AG | F44: 2802946206 | G44: 2732150574 | H44: 20629945.6 | I44: 5603035.2 | J44: 0.00199898064 | K44: 0.07914379802 | L44: =(1.3199*16351000)+(1.3199*1721000)+(1.3199*15016000)+(1.3199*493000) -> 44323561.9 | M44: Thousands
E45: Groupon, Inc. | F45: 2031474 | G45: 1289373 | H45: 1073356 | I45: -54773 | J45: -0.02696219592 | K45: -0.07380801266 | L45: 1516831 | M45: Thousands
E46: Apple, Inc. | F46: 176064000 | G46: 57854000 | H46: =10746000+18383000 -> 29129000 | I46: 41733000 | J46: 0.2370331243 | K46: 0.3530411979 | L46: 13421000 | M46: Thousands
E47: Netflix, Inc. | F47: 3967890 | G47: 3223217 | H47: =290291+457787 -> 748078 | I47: 112403 | J47: 0.02832815426 | K47: 0.1509427628 | L47: =3609282-49992 -> 3559290 | M47: Thousands
E48: Oracle Corporation | F48: 78327000 | G48: =78327000-44087000 -> 34240000 | H48: =14955000+15721000 -> 30676000 | I48: 9981000 | J48: 0.1274273239 | K48: 0.2263932679 | L48: =23415000 -> 23415000 | M48: Thousands
E49: Tesla Motors, Inc. | F49: 1114190 | G49: 989490 | H49: =201890+19094 -> 220984 | I49: -396077 | J49: -0.3554842531 | K49: -3.176238974 | L49: 424350 | M49: Thousands
E50: Microsoft Corporation | F50: 121271000 | G50: 54908000 | H50: =6938000+56102000 -> 63040000 | I50: =16978000 -> 16978000 | J50: 0.1400004948 | K50: 0.2558353299 | L50: =73723000-21763000 -> 51960000 | M50: Thousands
E51: Google Inc. | F51: 93798000 | G51: =93798000-71715000 -> 22083000 | H51: =14778000+33310000 -> 48088000 | I51: 10737000 | J51: 0.1144693917 | K51: 0.1497176323 | L51: 37415000 | M51: Thousands
E52: Salesforce.com, Inc. | F52: 4164154 | G52: 2498053 | H52: =607284+170582 -> 777866 | I52: -11572 | J52: -0.002778955822 | K52: -0.006945557322 | L52: 1812738 | M52: Thousands
E53: 2013 | F53: Assets | G53: Liabilities | H53: Cash | I53: Net Income | J53: ROA | K53: ROE | L53: Total Expenses | M53: Financial Statements are in:
E54: The Priceline Group Inc. | F54: 10444460 | G54: 3526198 | H54: 1289994 | I54: 1892798 | J54: =I54/F54 -> 0.1812250705 | K54: =IF(I54>0,I54/(F54-G54),-I54/(F54-G54)*-1) -> 0.2735944374 | L54: 3303472 | M54: Thousands | N54: =(1.2*((7480941/1381745)/10444460))+(1.4*(4218752/10444460))+(3.3*(-115877/10444460))+(0.6*(6909729/3526198))+(1*(5260956/10444460)) -> 2.208312231
E55: Barclays Bank PLC | F55: =(1343628000*1.3776) -> 1850981933 | G55: =1279679000*1.3776 -> 1762885790 | H55: =45687000*1.3776 -> 62938411.2 | I55: =1297000*1.3776 -> 1786747.2 | J55: =I55/F55 -> 0.0009652969423 | K55: =IF(I55>0,I55/(F55-G55),-I55/(F55-G55)*-1) -> 0.02028178705 | L55: =(6715000*1.3776)+(1748000*1.3776)+(3071000*1.3776)+(21972000*1.3776) -> 46157865.6 | M55: =(18315000*1.3776)+(10479000*1.3776)+(6553000*1.3776)+(680000*1.3776)+(732000*1.3776)+(148000*1.3776) -> 50843083.2
E56: The Bank of New York Mellon Corporation | F56: 374516000 | G56: 336006000 | H56: =6460000+104359000 -> 110819000 | I56: 2185000 | J56: =I56/F56 -> 0.00583419667 | K56: =IF(I56>0,I56/(F56-G56),-I56/(F56-G56)*-1) -> 0.05673850948 | L56: =343000+11306000 -> 11649000 | M56: =11715000+3352000 -> 15067000
E57: Societe Generale Group | F57: 1672672277 | G57: 1598323205 | H57: 91745404.8 | I57: 3297974.4 | J57: 0.001971679955 | K57: 0.04435797665 | L57: =(1.3776*16996000)+(1.3776*2107000)+(1.3776*56478000)+(1.3776*9019000)+(1.3776*6121000)+(1.3776*906000)+(1.3776*4050000) -> 131804635.2 | M57: Thousands
E58: JPMorgan Chase & Co. | F58: 2415689000 | G58: 2204511000 | H58: 39771 | I58: 17923000 | J58: 0.00741941533 | K58: 0.08487153018 | L58: =70467000+7991000 -> 78458000 | M58: Thousands
E59: The Goldman Sachs Group, Inc. | F59: 911507000 | G59: 833040000 | H59: =61133000+49671000 -> 110804000 | I59: 7726000 | J59: 0.00847607314 | K59: 0.09846177374 | L59: =22469000+3697000 -> 26166000 | M59: Thousands
E60: Deutsche Bank AG | F60: 2219864640 | G60: 2144143478 | H60: 23632728 | I60: 1067640 | J60: 0.0004809482438 | K60: 0.01409962522 | L60: =(1.3776*10768000)+(1.3776*2065000)+(1.3776*15126000)+(1.3776*775000) -> 39583958.4 | M60: Thousands
E61: Groupon, Inc. | F61: 2042010 | G61: 1330328 | H61: 1240472 | I61: -95393 | J61: -0.04671524625 | K61: -0.1340387982 | L61: 1425779 | M61: Thousands
E62: Apple, Inc. | F62: 207000000 | G62: 83451000 | H62: =14259000+26287000 -> 40546000 | I62: 37037000 | J62: 0.1789227053 | K62: 0.2997757975 | L62: 15305000 | M62: Thousands
E63: Netflix, Inc. | F63: 5412563 | G63: 4079902 | H63: =604965+595440 -> 1200405 | I63: 112403 | J63: 0.0207670562 | K63: 0.08434478086 | L63: =4374562-228347 -> 4146215 | M63: Thousands
E64: Oracle Corporation | F64: 81812000 | G64: =81812000-45145000 -> 36667000 | H64: =14613000+17603000 -> 32216000 | I64: 10925000 | J64: 0.1335378673 | K64: 0.2419980064 | L64: =22496000 -> 22496000 | M64: Thousands
E65: Tesla Motors, Inc. | F65: 2416930 | G65: 1749810 | H65: =845889+3012 -> 848901 | I65: -74014 | J65: -0.03062314589 | K65: -0.110945557 | L65: 517545 | M65: Thousands
E66: Microsoft Corporation | F66: 142431000 | G66: 63487000 | H66: =3804000+73218000 -> 77022000 | I66: 21863000 | J66: 0.1534988872 | K66: 0.2769431496 | L66: =77849000-26764000 -> 51085000 | M66: Thousands
E67: Google Inc. | F67: 110920000 | G67: =110920000-87309000 -> 23611000 | H67: =18898000+39819000 -> 58717000 | I67: 12920000 | J67: 0.1164803462 | K67: 0.1479801624 | L67: 40116000 | M67: Thousands
E68: Salesforce.com, Inc. | F68: 5528956 | G68: 3157711 | H68: =747245+120376 -> 867621 | I68: -270445 | J68: -0.04891429774 | K68: -0.114051901 | L68: 2477326 | M68: Thousands
E69: 2014 | F69: Assets | G69: Liabilities | H69: Cash | I69: Net Income | J69: ROA | K69: ROE | L69: Total Expenses | M69: Financial statements are in:
E70: The Priceline Group Inc. | F70: 14940563 | G70: 6373540 | H70: 3148651 | I70: 2421753 | J70: 0.1620924861 | K70: =IF(I70>0,I70/(F70-G70),-I70/(F70-G70)*-1) -> 0.2826831444 | L70: 4510818 | M70: Thousands | N70: =((1.2*((5267374-1379991)/F70))+(1.4*(6640505/F70))+(3.3*(2989448/F70))+(0.6*(8566694/6373540))+(8441971/F70)) -> 2.96626767
E71: Barclays Bank PLC | F71: =1.21036*1357906000 -> 1643555106 | G71: =1.21036*1291948000 -> 1563722181 | H71: =1.21036*39695000 -> 48045240.2 | I71: =845000*1.21036 -> 1022754.2 | J71: 0.0006222816601 | K71: =IF(I71>0,I71/(F71-G71),-I71/(F71-G71)*-1) -> 0.01281118287 | L71: =(52830000*1.21036)+(1662000*1.21036)+(2.168*1.21036)+(20429000*1.21036) -> 90681384.18 | M71: =(17363000*1.21036)+(9836000*1.21036)+(3331000*1.21036)+(1328*1.21036)+(669000*1.21036)+(186000*1.21036) -> 37988755.96
E72: The Bank of New York Mellon Corporation | F72: 385303000 | G72: 346600000 | H72: =6970000+96682000 -> 103652000 | I72: 2651000 | J72: 0.006880299401 | K72: =IF(I72>0,I72/(F72-G72),-I72/(F72-G72)*-1) -> 0.06849598222 | L72: =12177000+354000 -> 12531000 | M72: =12649000+3234000 -> 15883000
E73: Societe Generale Group | F73: 1583356641 | G73: 1512171739 | H73: 69069193.4 | I73: 3620186.76 | J73: =I73/F73 -> 0.002286400086 | K73: 0.05085610324 | L73: =(1.21036*14533000)+(1.21036*2684000)+(1.21036*48351000)+(1.21036*9049000)+(1.21036*6060000)+(1.21036*2967000)+(907000*1.21036) -> 102337148.4 | M73: Thousands
E74: JPMorgan Chase & Co. | F74: 2573126000 | G74: 2341061000 | H74: 27831000 | I74: 21762000 | J74: 0.008457417165 | K74: 0.09377545084 | L74: =61274000+8030000 -> 69304000 | M74: Thousands | N74: =(1.2*(N68(2328689000-2064225000)/2573126000)+(1/4*(130315000/2573126000))+(3.3*(29792000/2573126000))+(0.6*(232065000/2341061000))+(94205000/2573126000)) -> 
E75: The Goldman Sachs Group, Inc. | F75: 856240000 | G75: 773443000 | H75: =57600000+51716000 -> 109316000 | I75: 8077000 | J75: 0.009433102868 | K75: 0.09755184367 | L75: =22171000+3880000 -> 26051000 | M75: Thousands
E76: Deutsche Bank AG | F76: 2068145763 | G76: 1979520783 | H76: 24273769.8 | I76: 2046718.76 | J76: 0.0009896395102 | K76: 0.02309415203 | L76: =(1.21036*10729000)+(1.21036*1134000)+(1.21036*14654000)+(1.21036*1425000) -> 33819879.12 | M76: Thousands
E77: Groupon, Inc. | F77: 2227597 | G77: 1462653 | H77: 1071913 | I77: -73090 | J77: -0.03281114133 | K77: =IF(I77>0,I77/(F77-G77),-I77/(F77-G77)*-1) -> -0.09554947813 | L77: 1564028 | M77: Thousands
A78: Assets | E78: Apple, Inc. | F78: 231839000 | G78: 120922000 | H78: =13844000+11233000 -> 25077000 | I78: 39510000 | J78: 0.1704199897 | K78: 0.3562123029 | L78: 18034000 | M78: Thousands
A79: Liabilities | E79: Netflix, Inc. | F79: 7056651 | G79: 5198943 | H79: =1113608+494888 -> 1608496 | I79: 266799 | J79: 0.03780816141 | K79: 0.1436172962 | L79: =5504656-402648 -> 5102008 | M79: Thousands
A80: Cash | E80: Oracle Corporation | F80: 90266000 | G80: =90266000-47447000 -> 42819000 | H80: =27769000+21050000 -> 48819000 | I80: 10955000 | J80: 0.1213635256 | K80: 0.2308892027 | L80: =23516000 -> 23516000 | M80: Thousands
A81: \Net Income | E81: Tesla Motors, Inc. | F81: 5849251 | G81: 4879345 | H81: =1905713+17947 -> 1923660 | I81: -294040 | J81: -0.0502696841 | K81: -0.3031633993 | L81: 1068360 | M81: Thousands
A82: ROA | E82: Microsoft Corporation | F82: 172384000 | G82: 82600000 | H82: =8669000+77040000 -> 85709000 | I82: 22074000 | J82: 0.1280513273 | K82: 0.2458567228 | L82: =86833000-27759000 -> 59074000 | M82: Thousands
A83: ROE | E83: Google Inc. | F83: 131133000 | G83: =131133000-104500000 -> 26633000 | H83: =18347000+46048000 -> 64395000 | I83: 14444000 | J83: 0.1101477126 | K83: 0.1382200957 | L83: 49505000 | M83: Thousands
A84: Total Cost | D84: =IF(namme="Apple, Inc.","$ in Millions on chart","$ in Millions on chart") -> $ in Millions on chart | E84: Salesforce.com, Inc. | F84: 9155930 | G84: 6087715 | H84: =781635+57139 -> 838774 | I84: -232175 | J84: -0.02535788281 | K84: -0.07567103348 | L84: 968428 | M84: Thousands
A85: Employees | D85: =D86 -> 2011 | E85: 2015
B86: =Value2 -> 923225000 | C86: =F102 -> 923225000 | D86: =D4 -> 2011 | F86: 11111
B87: =G102 -> 852846000
B88: =H102 -> 120272000
B89: =I102 -> 2510000
B90: =J102 -> 0.002718730537
B91: =K102 -> 0.03566404751
B92: =L102 -> 24369000
B93: =M102 -> Thousands
E101: =E102 -> The Goldman Sachs Group, Inc. | F101: Assets | G101: Liabilities | H101: Cash | I101: Net Income | J101: ROA | K101: ROE | L101: Total Expenses | M101: Financial Statements are in:
E102: =INDEX(oyyo,YO*16+2+B4,1) -> The Goldman Sachs Group, Inc. | F102: =INDEX(oyyo,YO*16+2+B4,2) -> 923225000 | G102: =INDEX(oyyo,YO*16+2+B4,3) -> 852846000 | H102: =INDEX(oyyo,YO*16+2+B4,4) -> 120272000 | I102: =INDEX(oyyo,YO*16+2+B4,5) -> 2510000 | J102: =INDEX(oyyo,YO*16+2+B4,6) -> 0.002718730537 | K102: =INDEX(oyyo,YO*16+2+B4,7) -> 0.03566404751 | L102: =INDEX(oyyo,YO*16+2+B4,8) -> 24369000 | M102: =INDEX(oyyo,YO*16+2+B4,9) -> Thousands

Sheet Microsoft Corporation
A1: Date | B1: Open | C1: High | D1: Low | E1: Close | F1: Volume | G1: Adj Close | H1: Cumulative Return | I1: Daily Return
A2: 2010-01-04 | B2: 30.620001 | C2: 31.1 | D2: 30.59 | E2: 30.950001 | F2: 38409100 | G2: 26.769336
A3: 2010-01-05 | B3: 30.85 | C3: 31.1 | D3: 30.639999 | E3: 30.959999 | F3: 49749600 | G3: 26.777984 | H3: =(B3-B2)/B2 -> 0.007511397534 | I3: =(B3-B2)/B2 -> 0.007511397534
A4: 2010-01-06 | B4: 30.879999 | C4: 31.08 | D4: 30.52 | E4: 30.77 | F4: 58182400 | G4: 26.61365 | H4: =((B4-B3)/B3)+H3 -> 0.008483812445 | I4: =(B4-B3)/B3 -> 0.0009724149109
A5: 2010-01-07 | B5: 30.629999 | C5: 30.700001 | D5: 30.190001 | E5: 30.450001 | F5: 50559700 | G5: 26.336875 | H5: =((B5-B4)/B4)+H4 -> 0.0003879572603 | I5: -0.008095855184
A6: 2010-01-08 | B6: 30.280001 | C6: 30.879999 | D6: 30.24 | E6: 30.66 | F6: 51197400 | G6: 26.518508 | H6: -0.01103868366 | I6: -0.01142664092
A7: 2010-01-11 | B7: 30.709999 | C7: 30.76 | D7: 30.120001 | E7: 30.27 | F7: 68754700 | G7: 26.181189 | H7: 0.003162042422 | I7: 0.01420072608
A8: 2010-01-12 | B8: 30.15 | C8: 30.4 | D8: 29.91 | E8: 30.07 | F8: 65912100 | G8: 26.008204 | H8: -0.01507302818 | I8: -0.0182350706
A9: 2010-01-13 | B9: 30.26 | C9: 30.52 | D9: 30.01 | E9: 30.35 | F9: 51863500 | G9: 26.250383 | H9: -0.01142460364 | I9: 0.003648424544
A10: 2010-01-14 | B10: 30.309999 | C10: 31.1 | D10: 30.26 | E10: 30.959999 | F10: 63228100 | G10: 26.777984 | H10: -0.009772290353 | I10: 0.001652313285
A11: 2010-01-15 | B11: 31.08 | C11: 31.24 | D11: 30.709999 | E11: 30.860001 | F11: 79913200 | G11: 26.691493 | H11: 0.01563190052 | I11: 0.02540419087
A12: 2010-01-19 | B12: 30.75 | C12: 31.24 | D12: 30.68 | E12: 31.1 | F12: 46575700 | G12: 26.899074 | H12: 0.005014139904 | I12: -0.01061776062
A13: 2010-01-20 | B13: 30.809999 | C13: 30.940001 | D13: 30.309999 | E13: 30.59 | F13: 54849500 | G13: 26.457964 | H13: 0.006965326896 | I13: 0.001951186992
A14: 2010-01-21 | B14: 30.610001 | C14: 30.719999 | D14: 30 | E14: 30.01 | F14: 73086700 | G14: 25.956309 | H14: 0.0004739927026 | I14: -0.006491334193
A15: 2010-01-22 | B15: 30 | C15: 30.200001 | D15: 28.84 | E15: 28.959999 | F15: 102004600 | G15: 25.04814 | H15: -0.01945416738 | I15: -0.01992816008
A16: 2010-01-25 | B16: 29.24 | C16: 29.66 | D16: 29.1 | E16: 29.32 | F16: 63373000 | G16: 25.359512 | H16: -0.04478750071 | I16: -0.02533333333
A17: 2010-01-26 | B17: 29.200001 | C17: 29.85 | D17: 29.09 | E17: 29.5 | F17: 66639900 | G17: 25.515199 | H17: -0.04615545557 | I17: -0.001367954856
A18: 2010-01-27 | B18: 29.35 | C18: 29.82 | D18: 29.02 | E18: 29.67 | F18: 63949500 | G18: 25.662235 | H18: -0.04101850369 | I18: 0.005136951879
A19: 2010-01-28 | B19: 29.84 | C19: 29.870001 | D19: 28.889999 | E19: 29.16 | F19: 117513700 | G19: 25.221125 | H19: -0.02432344406 | I19: 0.01669505963
A20: 2010-01-29 | B20: 29.9 | C20: 29.92 | D20: 27.66 | E20: 28.18 | F20: 193888500 | G20: 24.373502 | H20: -0.0223127202 | I20: 0.002010723861
A21: 2010-02-01 | B21: 28.389999 | C21: 28.48 | D21: 27.92 | E21: 28.41 | F21: 85931100 | G21: 24.572434 | H21: -0.07281442589 | I21: -0.05050170569
A22: 2010-02-02 | B22: 28.370001 | C22: 28.5 | D22: 28.139999 | E22: 28.459999 | F22: 54413700 | G22: 24.615679 | H22: -0.07351882887 | I22: -0.0007044029836
A23: 2010-02-03 | B23: 28.26 | C23: 28.790001 | D23: 28.120001 | E23: 28.629999 | F23: 61397900 | G23: 24.762716 | H23: -0.0773961992 | I23: -0.003877370325
A24: 2010-02-04 | B24: 28.379999 | C24: 28.5 | D24: 27.809999 | E24: 27.84 | F24: 77850000 | G24: 24.079428 | H24: -0.07314995008 | I24: 0.004246249115
A25: 2010-02-05 | B25: 28 | C25: 28.280001 | D25: 27.57 | E25: 28.02 | F25: 80960100 | G25: 24.235114 | H25: -0.08653962638 | I25: -0.0133896763
A26: 2010-02-08 | B26: 28.01 | C26: 28.08 | D26: 27.57 | E26: 27.719999 | F26: 52820600 | G26: 23.975637 | H26: -0.08618248352 | I26: 0.0003571428571
A27: 2010-02-09 | B27: 27.969999 | C27: 28.34 | D27: 27.75 | E27: 28.01 | F27: 59195800 | G27: 24.226465 | H27: -0.08761058063 | I27: -0.001428097108
A28: 2010-02-10 | B28: 28.030001 | C28: 28.24 | D28: 27.84 | E28: 27.99 | F28: 48591300 | G28: 24.209166 | H28: -0.08546535353 | I28: 0.002145227106
A29: 2010-02-11 | B29: 27.93 | C29: 28.4 | D29: 27.700001 | E29: 28.120001 | F29: 65993700 | G29: 24.321607 | H29: -0.08903299521 | I29: -0.003567641685
A30: 2010-02-12 | B30: 27.809999 | C30: 28.059999 | D30: 27.58 | E30: 27.93 | F30: 81117200 | G30: 24.157271 | H30: -0.09332948644 | I30: -0.004296491228
A31: 2010-02-16 | B31: 28.129999 | C31: 28.370001 | D31: 28.02 | E31: 28.35 | F31: 51935600 | G31: 24.635203 | H31: -0.08182283374 | I31: 0.0115066527
A32: 2010-02-17 | B32: 28.530001 | C32: 28.65 | D32: 28.360001 | E32: 28.59 | F32: 45882900 | G32: 24.843755 | H32: -0.06760306786 | I32: 0.01421976588
A33: 2010-02-18 | B33: 28.59 | C33: 29.030001 | D33: 28.51 | E33: 28.969999 | F33: 42856500 | G33: 25.173961 | H33: -0.06550005357 | I33: 0.002103014297
A34: 2010-02-19 | B34: 28.790001 | C34: 28.92 | D34: 28.690001 | E34: 28.77 | F34: 44451800 | G34: 25.000169 | H34: -0.05850456563 | I34: 0.006995487933
A35: 2010-02-22 | B35: 28.84 | C35: 28.940001 | D35: 28.65 | E35: 28.73 | F35: 36707100 | G35: 24.965409 | H35: -0.05676788629 | I35: 0.001736679342
A36: 2010-02-23 | B36: 28.68 | C36: 28.83 | D36: 28.09 | E36: 28.33 | F36: 52266200 | G36: 24.617823 | H36: -0.0623157365 | I36: -0.005547850208
A37: 2010-02-24 | B37: 28.52 | C37: 28.790001 | D37: 28.379999 | E37: 28.629999 | F37: 43165900 | G37: 24.878512 | H37: -0.06789453706 | I37: -0.005578800558
A38: 2010-02-25 | B38: 28.27 | C38: 28.65 | D38: 28.02 | E38: 28.6 | F38: 48735300 | G38: 24.852445 | H38: -0.07666031546 | I38: -0.008765778401
A39: 2010-02-26 | B39: 28.65 | C39: 28.85 | D39: 28.51 | E39: 28.67 | F39: 40370600 | G39: 24.913272 | H39: -0.06321850435 | I39: 0.01344181111
A40: 2010-03-01 | B40: 28.77 | C40: 29.049999 | D40: 28.530001 | E40: 29.02 | F40: 43805400 | G40: 25.217411 | H40: -0.05903002268 | I40: 0.004188481675
A41: 2010-03-02 | B41: 29.08 | C41: 29.299999 | D41: 28.24 | E41: 28.459999 | F41: 93123900 | G41: 24.730788 | H41: -0.04825490971 | I41: 0.01077511296
A42: 2010-03-03 | B42: 28.51 | C42: 28.610001 | D42: 28.35 | E42: 28.459999 | F42: 48442100 | G42: 24.730788 | H42: -0.06785601012 | I42: -0.01960110041
A43: 2010-03-04 | B43: 28.459999 | C43: 28.65 | D43: 28.27 | E43: 28.629999 | F43: 42890600 | G43: 24.878512 | H43: -0.06960981581 | I43: -0.001753805682
A44: 2010-03-05 | B44: 28.66 | C44: 28.68 | D44: 28.42 | E44: 28.59 | F44: 56001800 | G44: 24.843755 | H44: -0.06258237353 | I44: 0.007027442271
A45: 2010-03-08 | B45: 28.52 | C45: 28.93 | D45: 28.5 | E45: 28.629999 | F45: 39414500 | G45: 24.878512 | H45: -0.06746723048 | I45: -0.004884856943
A46: 2010-03-09 | B46: 28.559999 | C46: 29.110001 | D46: 28.549999 | E46: 28.799999 | F46: 50271600 | G46: 25.026237 | H46: -0.066064741 | I46: 0.001402489481
A47: 2010-03-10 | B47: 28.860001 | C47: 29.110001 | D47: 28.799999 | E47: 28.969999 | F47: 44891400 | G47: 25.173961 | H47: -0.05556046892 | I47: 0.01050427208
A48: 2010-03-11 | B48: 28.889999 | C48: 29.190001 | D48: 28.85 | E48: 29.18 | F48: 35349700 | G48: 25.356445 | H48: -0.05452103722 | I48: 0.001039431703
A49: 2010-03-12 | B49: 29.32 | C49: 29.379999 | D49: 29.040001 | E49: 29.27 | F49: 31700200 | G49: 25.434652 | H49: -0.03963695917 | I49: 0.01488407805
A50: 2010-03-15 | B50: 29.18 | C50: 29.370001 | D50: 29.01 | E50: 29.290001 | F50: 37512000 | G50: 25.452032 | H50: -0.04441185685 | I50: -0.004774897681
A51: 2010-03-16 | B51: 29.42 | C51: 29.49 | D51: 29.200001 | E51: 29.370001 | F51: 36723500 | G51: 25.521549 | H51: -0.03618704533 | I51: 0.008224811515
A52: 2010-03-17 | B52: 29.5 | C52: 29.870001 | D52: 29.4 | E52: 29.629999 | F52: 50385700 | G52: 25.747479 | H52: -0.03346780672 | I52: 0.002719238613
A53: 2010-03-18 | B53: 29.629999 | C53: 29.719999 | D53: 29.5 | E53: 29.610001 | F53: 43845200 | G53: 25.730101 | H53: -0.02906106096 | I53: 0.004406745763
A54: 2010-03-19 | B54: 29.76 | C54: 29.9 | D54: 29.35 | E54: 29.59 | F54: 81332100 | G54: 25.712721 | H54: -0.0246735819 | I54: 0.004387479055
A55: 2010-03-22 | B55: 29.5 | C55: 29.700001 | D55: 29.389999 | E55: 29.6 | F55: 37718200 | G55: 25.721411 | H55: -0.03341014104 | I55: -0.00873655914
A56: 2010-03-23 | B56: 29.59 | C56: 29.9 | D56: 29.41 | E56: 29.879999 | F56: 42026600 | G56: 25.964721 | H56: -0.03035929358 | I56: 0.003050847458
A57: 2010-03-24 | B57: 29.719999 | C57: 29.85 | D57: 29.6 | E57: 29.65 | F57: 33987700 | G57: 25.764859 | H57: -0.02596595124 | I57: 0.004393342345
A58: 2010-03-25 | B58: 29.83 | C58: 30.57 | D58: 29.799999 | E58: 30.01 | F58: 73168700 | G58: 26.077687 | H58: -0.02226470616 | I58: 0.003701245077
A59: 2010-03-26 | B59: 30.09 | C59: 30.200001 | D59: 29.59 | E59: 29.66 | F59: 55595500 | G59: 25.773549 | H59: -0.0135486485 | I59: 0.00871605766
A60: 2010-03-29 | B60: 29.709999 | C60: 29.82 | D60: 29.549999 | E60: 29.59 | F60: 33336000 | G60: 25.712721 | H60: -0.02617746206 | I60: -0.01262881356
A61: 2010-03-30 | B61: 29.629999 | C61: 29.860001 | D61: 29.5 | E61: 29.77 | F61: 34954800 | G61: 25.869135 | H61: -0.02887015821 | I61: -0.002692696153
A62: 2010-03-31 | B62: 29.639999 | C62: 29.719999 | D62: 29.17 | E62: 29.290001 | F62: 63760000 | G62: 25.452032 | H62: -0.02853266242 | I62: 0.0003374957927
A63: 2010-04-01 | B63: 29.35 | C63: 29.540001 | D63: 28.620001 | E63: 29.16 | F63: 74768100 | G63: 25.339065 | H63: -0.03831670459 | I63: -0.009784042165
A64: 2010-04-05 | B64: 29.129999 | C64: 29.43 | D64: 29.030001 | E64: 29.27 | F64: 34331200 | G64: 25.434652 | H64: -0.04581247971 | I64: -0.007495775128
A65: 2010-04-06 | B65: 29.15 | C65: 29.58 | D65: 28.98 | E65: 29.32 | F65: 47366800 | G65: 25.4781 | H65: -0.04512586795 | I65: 0.000686611764
A66: 2010-04-07 | B66: 29.16 | C66: 29.559999 | D66: 29.139999 | E66: 29.35 | F66: 58318800 | G66: 25.504169 | H66: -0.04478281478 | I66: 0.0003430531732
A67: 2010-04-08 | B67: 29.32 | C67: 29.98 | D67: 29.299999 | E67: 29.92 | F67: 63713800 | G67: 25.99948 | H67: -0.03929584633 | I67: 0.00548696845
A68: 2010-04-09 | B68: 29.950001 | C68: 30.41 | D68: 29.9 | E68: 30.34 | F68: 54752500 | G68: 26.364446 | H68: -0.01780877266 | I68: =(B68-B67)/B67 -> 0.02148707367
A69: 2010-04-12 | B69: 30.25 | C69: 30.49 | D69: 30.209999 | E69: 30.32 | F69: 37068800 | G69: 26.347066 | H69: =((B69-B68)/B68)+H68 -> -0.007792111889 | I69: 0.01001666077
A70: 2010-04-13 | B70: 30.15 | C70: 30.5 | D70: 30.129999 | E70: 30.450001 | F70: 41374600 | G70: 26.460033 | H70: -0.01109789701 | I70: -0.003305785124
A71: 2010-04-14 | B71: 30.790001 | C71: 31 | D71: 30.66 | E71: 30.82 | F71: 68941200 | G71: 26.78155 | H71: 0.0101293335 | I71: 0.02122723051
A72: 2010-04-15 | B72: 30.82 | C72: 30.950001 | D72: 30.709999 | E72: 30.870001 | F72: 52745400 | G72: 26.824999 | H72: 0.01110364331 | I72: 0.0009743098092
A73: 2010-04-16 | B73: 30.790001 | C73: 30.98 | D73: 30.6 | E73: 30.67 | F73: 88703100 | G73: 26.651205 | H73: 0.01013028186 | I73: -0.0009733614536
A74: 2010-04-19 | B74: 30.77 | C74: 31.25 | D74: 30.76 | E74: 31.040001 | F74: 64970300 | G74: 26.972723 | H74: 0.009480687854 | I74: -0.0006495940029
A75: 2010-04-20 | B75: 31.219999 | C75: 31.440001 | D75: 31.129999 | E75: 31.360001 | F75: 52199500 | G75: 27.250792 | H75: 0.02410528974 | I75: 0.01462460188
A76: 2010-04-21 | B76: 31.33 | C76: 31.5 | D76: 31.23 | E76: 31.33 | F76: 55343100 | G76: 27.224723 | H76: 0.02762870433 | I76: 0.003523414591
A77: 2010-04-22 | B77: 31.040001 | C77: 31.530001 | D77: 30.9 | E77: 31.389999 | F77: 84847600 | G77: 27.27686 | H77: 0.01837243239 | I77: -0.009256271944
A78: 2010-04-23 | B78: 31.120001 | C78: 31.58 | D78: 30.65 | E78: 30.959999 | F78: 126766600 | G78: 26.903205 | H78: 0.02094975189 | I78: 0.002577319505
A79: 2010-04-26 | B79: 31 | C79: 31.280001 | D79: 30.860001 | E79: 31.110001 | F79: 63649300 | G79: 27.033551 | H79: 0.01709367875 | I79: -0.003856073141
A80: 2010-04-27 | B80: 30.950001 | C80: 31.25 | D80: 30.75 | E80: 30.85 | F80: 68730900 | G80: 26.807619 | H80: 0.01548080778 | I80: -0.001612870968
A81: 2010-04-28 | B81: 30.92 | C81: 31 | D81: 30.620001 | E81: 30.91 | F81: 64557900 | G81: 26.859757 | H81: 0.01451147017 | I81: -0.00096933761
A82: 2010-04-29 | B82: 30.93 | C82: 31.43 | D82: 30.67 | E82: 31 | F82: 52665200 | G82: 26.937964 | H82: 0.01483488544 | I82: 0.0003234152652
A83: 2010-04-30 | B83: 31.07 | C83: 31.08 | D83: 30.52 | E83: 30.540001 | F83: 63214800 | G83: 26.53824 | H83: 0.01936123526 | I83: 0.004526349822
A84: 2010-05-03 | B84: 30.67 | C84: 31.059999 | D84: 30.58 | E84: 30.860001 | F84: 43989500 | G84: 26.816309 | H84: 0.006487080126 | I84: -0.01287415513
A85: 2010-05-04 | B85: 30.52 | C85: 30.549999 | D85: 29.75 | E85: 30.129999 | F85: 82085600 | G85: 26.181962 | H85: 0.001596307384 | I85: -0.004890772742
A86: 2010-05-05 | B86: 29.77 | C86: 30.09 | D86: 29.690001 | E86: 29.85 | F86: 66833800 | G86: 25.938653 | H86: -0.02297774242 | I86: -0.0245740498
A87: 2010-05-06 | B87: 29.59 | C87: 29.879999 | D87: 27.91 | E87: 28.98 | F87: 128613000 | G87: 25.182651 | H87: -0.02902409781 | I87: -0.006046355391
A88: 2010-05-07 | B88: 28.93 | C88: 28.950001 | D88: 27.32 | E88: 28.209999 | F88: 173718100 | G88: 24.513546 | H88: -0.05132893052 | I88: -0.02230483271
A89: 2010-05-10 | B89: 29.01 | C89: 29.48 | D89: 28.709999 | E89: 28.940001 | F89: 86653300 | G89: 25.147893 | H89: -0.04856363498 | I89: 0.002765295541
A90: 2010-05-11 | B90: 28.68 | C90: 29.65 | D90: 28.57 | E90: 28.879999 | F90: 63789400 | G90: 25.095754 | H90: -0.05993902278 | I90: -0.0113753878
A91: 2010-05-12 | B91: 28.98 | C91: 29.58 | D91: 28.92 | E91: 29.440001 | F91: 47146800 | G91: 25.582377 | H91: -0.04947877174 | I91: 0.01046025105
A92: 2010-05-13 | B92: 29.26 | C92: 29.73 | D92: 29.18 | E92: 29.24 | F92: 45188800 | G92: 25.408583 | H92: -0.03981693599 | I92: 0.009661835749
A93: 2010-05-14 | B93: 29.200001 | C93: 29.209999 | D93: 28.639999 | E93: 28.93 | F93: 63334000 | G93: 25.139203 | H93: -0.04186748281 | I93: -0.002050546822
A94: 2010-05-17 | B94: 29.120001 | C94: 29.23 | D94: 28.450001 | E94: 28.940001 | F94: 46053300 | G94: 25.147893 | H94: -0.04460720874 | I94: -0.002739725934
A95: 2010-05-18 | B95: 28.870001 | C95: 29 | D95: 28.4 | E95: 28.6 | F95: 52690600 | G95: 24.964586 | H95: -0.05319237328 | I95: -0.00858516454
A96: 2010-05-19 | B96: 28.52 | C96: 28.690001 | D96: 27.790001 | E96: 28.24 | F96: 61746700 | G96: 24.650346 | H96: -0.0653157189 | I96: -0.01212334561
A97: 2010-05-20 | B97: 27.65 | C97: 27.84 | D97: 27.040001 | E97: 27.110001 | F97: 87991100 | G97: 23.663984 | H97: -0.09582062773 | I97: -0.03050490884
A98: 2010-05-21 | B98: 26.629999 | C98: 27.110001 | D98: 26.440001 | E98: 26.84 | F98: 117596300 | G98: 23.428304 | H98: -0.1327103565 | I98: -0.03688972875
A99: 2010-05-24 | B99: 26.85 | C99: 26.860001 | D99: 26.26 | E99: 26.27 | F99: 73711700 | G99: 22.930758 | H99: -0.1244489593 | I99: 0.008261397231
A100: 2010-05-25 | B100: 25.65 | C100: 26.33 | D100: 25.379999 | E100: 26.07 | F100: 98373600 | G100: 22.75618 | H100: -0.1691416967 | I100: -0.04469273743
A101: 2010-05-26 | B101: 26.23 | C101: 26.610001 | D101: 24.559999 | E101: 25.01 | F101: 176684100 | G101: 21.830919 | H101: -0.1465296109 | I101: 0.02261208577
A102: 2010-05-27 | B102: 25.73 | C102: 26.360001 | D102: 25.73 | E102: 26 | F102: 136433600 | G102: 22.695078 | H102: -0.1655917535 | I102: -0.01906214258
A103: 2010-05-28 | B103: 25.84 | C103: 26.120001 | D103: 25.66 | E103: 25.799999 | F103: 67496900 | G103: 22.5205 | H103: -0.1613165883 | I103: 0.004275165177
A104: 2010-06-01 | B104: 25.530001 | C104: 26.309999 | D104: 25.52 | E104: 25.889999 | F104: 76152400 | G104: 22.59906 | H104: -0.1733134536 | I104: -0.01199686533
A105: 2010-06-02 | B105: 26.059999 | C105: 26.48 | D105: 25.73 | E105: 26.459999 | F105: 65718800 | G105: 23.096605 | H105: -0.1525536425 | I105: 0.02075981117
A106: 2010-06-03 | B106: 26.549999 | C106: 26.93 | D106: 26.41 | E106: 26.860001 | F106: 67837000 | G106: 23.445762 | H106: -0.1337508789 | I106: 0.01880276358
A107: 2010-06-04 | B107: 26.1 | C107: 26.57 | D107: 25.620001 | E107: 25.790001 | F107: 89832200 | G107: 22.511772 | H107: -0.1506999944 | I107: -0.01694911552
A108: 2010-06-07 | B108: 25.82 | C108: 25.83 | D108: 25.24 | E108: 25.290001 | F108: 80456200 | G108: 22.075328 | H108: -0.1614279638 | I108: -0.01072796935
A109: 2010-06-08 | B109: 25.25 | C109: 25.26 | D109: 24.65 | E109: 25.110001 | F109: 87355000 | G109: 21.918208 | H109: -0.1835038739 | I109: -0.02207591015
A110: 2010-06-09 | B110: 25.219999 | C110: 25.52 | D110: 24.75 | E110: 24.790001 | F110: 87794000 | G110: 21.638885 | H110: -0.1846920323 | I110: -0.001188158416
A111: 2010-06-10 | B111: 25.129999 | C111: 25.15 | D111: 24.780001 | E111: 25 | F111: 78930900 | G111: 21.82219 | H111: -0.1882606288 | I111: -0.003568596494
A112: 2010-06-11 | B112: 25.040001 | C112: 25.719999 | D112: 24.77 | E112: 25.66 | F112: 68057700 | G112: 22.398296 | H112: -0.1918419262 | I112: -0.003581297397
A113: 2010-06-14 | B113: 25.860001 | C113: 25.959999 | D113: 25.469999 | E113: 25.5 | F113: 50972400 | G113: 22.258634 | H113: -0.1590943237 | I113: 0.03274760253
A114: 2010-06-15 | B114: 25.75 | C114: 26.65 | D114: 25.74 | E114: 26.58 | F114: 81641500 | G114: 23.201353 | H114: -0.1633480358 | I114: -0.004253712132
A115: 2010-06-16 | B115: 26.469999 | C115: 26.58 | D115: 26.23 | E115: 26.32 | F115: 48698000 | G115: 22.974402 | H115: -0.1353869096 | I115: 0.02796112621
A116: 2010-06-17 | B116: 26.559999 | C116: 26.67 | D116: 26.040001 | E116: 26.370001 | F116: 47995500 | G116: 23.018047 | H116: -0.1319868339 | I116: 0.003400075686
A117: 2010-06-18 | B117: 26.370001 | C117: 26.530001 | D117: 26.17 | E117: 26.440001 | F117: 52075600 | G117: 23.079149 | H117: -0.1391403733 | I117: -0.007153539426
A118: 2010-06-21 | B118: 26.780001 | C118: 26.889999 | D118: 25.889999 | E118: 25.950001 | F118: 54625300 | G118: 22.651434 | H118: -0.1235924028 | I118: 0.01554797059
A119: 2010-06-22 | B119: 26.16 | C119: 26.450001 | D119: 25.76 | E119: 25.77 | F119: 55985400 | G119: 22.494314 | H119: -0.1467440449 | I119: -0.02315164215
A120: 2010-06-23 | B120: 25.780001 | C120: 25.780001 | D120: 25.219999 | E120: 25.309999 | F120: 61466200 | G120: 22.092785 | H120: -0.1612700006 | I120: -0.01452595566
A121: 2010-06-24 | B121: 25.459999 | C121: 25.719999 | D121: 24.93 | E121: 25 | F121: 85243400 | G121: 21.82219 | H121: -0.1736828007 | I121: -0.01241280014
A122: 2010-06-25 | B122: 25.049999 | C122: 25.110001 | D122: 24.309999 | E122: 24.530001 | F122: 156256700 | G122: 21.411934 | H122: -0.1897864934 | I122: -0.0161036927
A123: 2010-06-28 | B123: 24.51 | C123: 24.610001 | D123: 24.120001 | E123: 24.309999 | F123: 73784800 | G123: 21.219897 | H123: -0.2113433406 | I123: -0.02155684717
A124: 2010-06-29 | B124: 24.129999 | C124: 24.200001 | D124: 23.110001 | E124: 23.309999 | F124: 119882100 | G124: 20.34701 | H124: -0.2268472573 | I124: -0.01550391677
A125: 2010-06-30 | B125: 23.299999 | C125: 23.68 | D125: 22.950001 | E125: 23.01 | F125: 81050500 | G125: 20.085144 | H125: -0.2612442749 | I125: -0.03439701759
A126: 2010-07-01 | B126: 23.09 | C126: 23.32 | D126: 22.73 | E126: 23.16 | F126: 92239400 | G126: 20.216077 | H126: -0.2702571079 | I126: -0.009012833005
A127: 2010-07-02 | B127: 23.360001 | C127: 23.48 | D127: 23.049999 | E127: 23.27 | F127: 62485100 | G127: 20.312095 | H127: -0.2585636909 | I127: 0.01169341706
A128: 2010-07-06 | B128: 23.700001 | C128: 24.09 | D128: 23.58 | E128: 23.82 | F128: 73592000 | G128: 20.792183 | H128: -0.244008897 | I128: 0.0145547939
A129: 2010-07-07 | B129: 23.82 | C129: 24.32 | D129: 23.610001 | E129: 24.299999 | F129: 79965300 | G129: 21.211168 | H129: -0.2389456482 | I129: 0.005063248732
A130: 2010-07-08 | B130: 24.6 | C130: 24.620001 | D130: 23.969999 | E130: 24.41 | F130: 50758100 | G130: 21.307186 | H130: -0.2062000563 | I130: 0.03274559194
A131: 2010-07-09 | B131: 24.33 | C131: 24.41 | D131: 24.15 | E131: 24.27 | F131: 53806100 | G131: 21.184983 | H131: -0.2171756661 | I131: -0.01097560976
A132: 2010-07-12 | B132: 24.43 | C132: 24.889999 | D132: 24.42 | E132: 24.83 | F132: 49854200 | G132: 21.673799 | H132: -0.213065514 | I132: =(B132-B131)/B131 -> 0.004110152076
A133: 2010-07-13 | B133: 25.139999 | C133: 25.299999 | D133: 24.9 | E133: 25.129999 | F133: 61928700 | G133: 21.935665 | H133: =((B133-B132)/B132)+H132 -> -0.184002927 | I133: 0.02906258698
A134: 2010-07-14 | B134: 25.5 | C134: 25.610001 | D134: 25.120001 | E134: 25.440001 | F134: 72808100 | G134: 22.206261 | H134: -0.1696830776 | I134: 0.01431984942
A135: 2010-07-15 | B135: 25.5 | C135: 25.59 | D135: 24.98 | E135: 25.51 | F135: 56934700 | G135: 22.267363 | H135: -0.1696830776 | I135: 0
A136: 2010-07-16 | B136: 25.51 | C136: 25.639999 | D136: 24.879999 | E136: 24.889999 | F136: 65064800 | G136: 21.726172 | H136: -0.1692909207 | I136: 0.0003921568627
A137: 2010-07-19 | B137: 24.959999 | C137: 25.299999 | D137: 24.91 | E137: 25.23 | F137: 38181800 | G137: 22.022954 | H137: -0.1908511324 | I137: -0.02156021168
A138: 2010-07-20 | B138: 24.860001 | C138: 25.48 | D138: 24.700001 | E138: 25.48 | F138: 45530700 | G138: 22.241176 | H138: -0.1948574627 | I138: -0.004006330289
A139: 2010-07-21 | B139: 25.6 | C139: 25.65 | D139: 24.98 | E139: 25.120001 | F139: 73297300 | G139: 21.926938 | H139: -0.1650908106 | I139: 0.02976665206
A140: 2010-07-22 | B140: 25.51 | C140: 25.99 | D140: 25.469999 | E140: 25.84 | F140: 73016400 | G140: 22.555416 | H140: -0.1686064356 | I140: -0.003515625
A141: 2010-07-23 | B141: 25.84 | C141: 26.02 | D141: 25.25 | E141: 25.809999 | F141: 108520100 | G141: 22.529229 | H141: -0.1556703321 | I141: 0.01293610349
A142: 2010-07-26 | B142: 25.860001 | C142: 26.200001 | D142: 25.799999 | E142: 26.1 | F142: 67249900 | G142: 22.782367 | H142: -0.1548962996 | I142: 0.0007740325077
A143: 2010-07-27 | B143: 26.139999 | C143: 26.24 | D143: 25.959999 | E143: 26.16 | F143: 60672100 | G143: 22.83474 | H143: -0.1440688445 | I143: 0.01082745511
A144: 2010-07-28 | B144: 26.07 | C144: 26.190001 | D144: 25.83 | E144: 25.950001 | F144: 69704800 | G144: 22.651434 | H144: -0.1467466947 | I144: -0.002677850141
A145: 2010-07-29 | B145: 26.129999 | C145: 26.41 | D145: 25.6 | E145: 26.030001 | F145: 69446200 | G145: 22.721265 | H145: -0.1444452371 | I145: 0.002301457614
A146: 2010-07-30 | B146: 25.75 | C146: 25.84 | D146: 25.35 | E146: 25.809999 | F146: 83534800 | G146: 22.529229 | H146: -0.1589878706 | I146: -0.01454263355
A147: 2010-08-02 | B147: 25.99 | C147: 26.379999 | D147: 25.75 | E147: 26.33 | F147: 55044600 | G147: 22.983131 | H147: -0.1496674822 | I147: 0.00932038835
A148: 2010-08-03 | B148: 26.200001 | C148: 26.35 | D148: 25.969999 | E148: 26.16 | F148: 56877700 | G148: 22.83474 | H148: -0.141587413 | I148: 0.008080069257
A149: 2010-08-04 | B149: 26.15 | C149: 26.24 | D149: 25.440001 | E149: 25.73 | F149: 78531900 | G149: 22.459398 | H149: -0.143495848 | I149: -0.001908435042
A150: 2010-08-05 | B150: 25.49 | C150: 25.58 | D150: 25.209999 | E150: 25.370001 | F150: 64922100 | G150: 22.145159 | H150: -0.1687348538 | I150: -0.02523900574
A151: 2010-08-06 | B151: 25.18 | C151: 25.559999 | D151: 25.02 | E151: 25.549999 | F151: 55982100 | G151: 22.302278 | H151: -0.1808964858 | I151: -0.01216163201
A152: 2010-08-09 | B152: 25.549999 | C152: 25.73 | D152: 25.370001 | E152: 25.610001 | F152: 57096500 | G152: 22.354652 | H152: -0.1662023237 | I152: 0.01469416203
A153: 2010-08-10 | B153: 25.33 | C153: 25.34 | D153: 24.879999 | E153: 25.07 | F153: 87257700 | G153: 21.883292 | H153: -0.1748128525 | I153: -0.008610528713
A154: 2010-08-11 | B154: 24.68 | C154: 24.9 | D154: 24.559999 | E154: 24.860001 | F154: 76746900 | G154: 21.699987 | H154: -0.2004741237 | I154: -0.02566127122
A155: 2010-08-12 | B155: 24.42 | C155: 24.68 | D155: 24.360001 | E155: 24.49 | F155: 70240500 | G155: 21.377017 | H155: -0.2110089697 | I155: -0.01053484603
A156: 2010-08-13 | B156: 24.35 | C156: 24.67 | D156: 24.24 | E156: 24.4 | F156: 45263500 | G156: 21.298457 | H156: -0.2138754726 | I156: -0.002866502867
A157: 2010-08-16 | B157: 24.360001 | C157: 24.610001 | D157: 24.299999 | E157: 24.5 | F157: 40909700 | G157: 21.385746 | H157: -0.2134647539 | I157: 0.0004107186858
A158: 2010-08-17 | B158: 24.709999 | C158: 24.959999 | D158: 24.6 | E158: 24.709999 | F158: 52912600 | G158: 21.684111 | H158: -0.1990970205 | I158: 0.0143677334
A159: 2010-08-18 | B159: 24.68 | C159: 24.950001 | D159: 24.41 | E159: 24.82 | F159: 46818900 | G159: 21.780641 | H159: -0.2003110634 | I159: -0.001214042947
A160: 2010-08-19 | B160: 24.620001 | C160: 24.74 | D160: 24.209999 | E160: 24.440001 | F160: 54064600 | G160: 21.447175 | H160: -0.2027421412 | I160: -0.002431077796
A161: 2010-08-20 | B161: 24.309999 | C161: 24.4 | D161: 24.200001 | E161: 24.23 | F161: 49560100 | G161: 21.26289 | H161: -0.2153336111 | I161: -0.01259146984
A162: 2010-08-23 | B162: 24.440001 | C162: 24.639999 | D162: 24.24 | E162: 24.280001 | F162: 51643000 | G162: 21.306769 | H162: -0.209985935 | I162: 0.005347676074
A163: 2010-08-24 | B163: 24.09 | C163: 24.35 | D163: 24 | E163: 24.040001 | F163: 66522500 | G163: 21.096158 | H163: -0.2243067609 | I163: -0.01432082593
A164: 2010-08-25 | B164: 24 | C164: 24.219999 | D164: 23.870001 | E164: 24.1 | F164: 47404800 | G164: 21.14881 | H164: -0.228042751 | I164: -0.003735990037
A165: 2010-08-26 | B165: 24.09 | C165: 24.190001 | D165: 23.790001 | E165: 23.82 | F165: 49105300 | G165: 20.903097 | H165: -0.224292751 | I165: 0.00375
A166: 2010-08-27 | B166: 23.879999 | C166: 24.02 | D166: 23.51 | E166: 23.93 | F166: 60939400 | G166: 20.999628 | H166: -0.2330101026 | I166: -0.008717351598
A167: 2010-08-30 | B167: 23.74 | C167: 23.82 | D167: 23.6 | E167: 23.639999 | F167: 45453100 | G167: 20.745139 | H167: -0.2388727075 | I167: -0.005862604936
A168: 2010-08-31 | B168: 23.6 | C168: 23.73 | D168: 23.32 | E168: 23.469999 | F168: 66074600 | G168: 20.595957 | H168: -0.2447699274 | I168: -0.005897219882
A169: 2010-09-01 | B169: 23.67 | C169: 23.950001 | D169: 23.540001 | E169: 23.9 | F169: 65235900 | G169: 20.973301 | H169: -0.2418038257 | I169: 0.002966101695
A170: 2010-09-02 | B170: 23.879999 | C170: 23.950001 | D170: 23.709999 | E170: 23.940001 | F170: 48837100 | G170: 21.008403 | H170: -0.2329318781 | I170: 0.008871947613
A171: 2010-09-03 | B171: 24.24 | C171: 24.450001 | D171: 24.200001 | E171: 24.290001 | F171: 64189100 | G171: 21.315544 | H171: -0.2178564587 | I171: 0.01507541939
A172: 2010-09-07 | B172: 24.1 | C172: 24.299999 | D172: 23.92 | E172: 23.959999 | F172: 51928700 | G172: 21.025953 | H172: -0.2236320362 | I172: -0.005775577558
A173: 2010-09-08 | B173: 24.07 | C173: 24.200001 | D173: 23.74 | E173: 23.93 | F173: 65512400 | G173: 20.999628 | H173: -0.2248768495 | I173: -0.001244813278
A174: 2010-09-09 | B174: 24.190001 | C174: 24.209999 | D174: 23.99 | E174: 24.01 | F174: 46028900 | G174: 21.069831 | H174: -0.2198913489 | I174: 0.004985500623
A175: 2010-09-10 | B175: 23.98 | C175: 24.030001 | D175: 23.790001 | E175: 23.85 | F175: 58284300 | G175: 20.929424 | H175: -0.2285726631 | I175: -0.008681314234
A176: 2010-09-13 | B176: 24.200001 | C176: 25.290001 | D176: 24.09 | E176: 25.110001 | F176: 114680400 | G176: 22.03513 | H176: -0.2193983095 | I176: 0.009174353628
A177: 2010-09-14 | B177: 25.040001 | C177: 25.35 | D177: 24.889999 | E177: 25.030001 | F177: 87160400 | G177: 21.964927 | H177: -0.1846875671 | I177: 0.03471074237
A178: 2010-09-15 | B178: 25.1 | C178: 25.219999 | D178: 24.92 | E178: 25.120001 | F178: 56201900 | G178: 22.043906 | H178: -0.182291441 | I178: 0.002396126102
A179: 2010-09-16 | B179: 25.059999 | C179: 25.370001 | D179: 25.049999 | E179: 25.33 | F179: 44548300 | G179: 22.228189 | H179: -0.1838851064 | I179: -0.001593665339
A180: 2010-09-17 | B180: 25.4 | C180: 25.530001 | D180: 25.08 | E180: 25.219999 | F180: 70341600 | G180: 22.131659 | H180: -0.1703176278 | I180: 0.01356747859
A181: 2010-09-20 | B181: 25.280001 | C181: 25.52 | D181: 25.110001 | E181: 25.43 | F181: 49838700 | G181: 22.315944 | H181: -0.1750419978 | I181: -0.004724370079
A182: 2010-09-21 | B182: 25.42 | C182: 25.42 | D182: 25.08 | E182: 25.15 | F182: 52675700 | G182: 22.070231 | H182: -0.1695040629 | I182: 0.005537934908
A183: 2010-09-22 | B183: 24.889999 | C183: 24.969999 | D183: 24.360001 | E183: 24.610001 | F183: 94299400 | G183: 21.596358 | H183: -0.1903538269 | I183: -0.02084976397
A184: 2010-09-23 | B184: 24.51 | C184: 24.59 | D184: 24.360001 | E184: 24.43 | F184: 46201800 | G184: 21.4384 | H184: -0.2056209629 | I184: -0.01526713601
A185: 2010-09-24 | B185: 24.639999 | C185: 24.799999 | D185: 24.58 | E185: 24.780001 | F185: 51948800 | G185: 21.745541 | H185: -0.2003170461 | I185: 0.005303916769
A186: 2010-09-27 | B186: 24.85 | C186: 24.99 | D186: 24.59 | E186: 24.73 | F186: 43603300 | G186: 21.701662 | H186: -0.1917942779 | I186: 0.008522768203
A187: 2010-09-28 | B187: 24.799999 | C187: 24.9 | D187: 24.35 | E187: 24.68 | F187: 56041200 | G187: 21.657786 | H187: -0.1938063906 | I187: -0.002012112676
A188: 2010-09-29 | B188: 24.629999 | C188: 24.66 | D188: 24.4 | E188: 24.5 | F188: 44318900 | G188: 21.499828 | H188: -0.2006612296 | I188: -0.006854838986
A189: 2010-09-30 | B189: 24.610001 | C189: 24.83 | D189: 24.360001 | E189: 24.49 | F189: 61262700 | G189: 21.491052 | H189: -0.2014731663 | I189: -0.0008119366956
A190: 2010-10-01 | B190: 24.77 | C190: 24.82 | D190: 24.299999 | E190: 24.379999 | F190: 62672300 | G190: 21.394522 | H190: -0.194971785 | I190: 0.006501381288
A191: 2010-10-04 | B191: 23.959999 | C191: 23.99 | D191: 23.780001 | E191: 23.91 | F191: 98143400 | G191: 20.982077 | H191: -0.2276726732 | I191: -0.03270088817
A192: 2010-10-05 | B192: 24.059999 | C192: 24.450001 | D192: 23.91 | E192: 24.35 | F192: 78152900 | G192: 21.368196 | H192: -0.2234990503 | I192: 0.004173622879
A193: 2010-10-06 | B193: 24.32 | C193: 24.540001 | D193: 24.129999 | E193: 24.43 | F193: 50489700 | G193: 21.4384 | H193: -0.2126926908 | I193: 0.01080635955
A194: 2010-10-07 | B194: 24.620001 | C194: 24.75 | D194: 24.280001 | E194: 24.530001 | F194: 50096100 | G194: 21.526155 | H194: -0.2003571233 | I194: 0.01233556743
A195: 2010-10-08 | B195: 24.620001 | C195: 24.65 | D195: 24.370001 | E195: 24.57 | F195: 41327800 | G195: 21.561255 | H195: -0.2003571233 | I195: 0
A196: 2010-10-11 | B196: 24.74 | C196: 24.74 | D196: 24.5 | E196: 24.59 | F196: 27587800 | G196: 21.578807 | H196: -0.195483078 | I196: =(B196-B195)/B195 -> 0.004874045293
A197: 2010-10-12 | B197: 24.65 | C197: 24.93 | D197: 24.43 | E197: 24.83 | F197: 50141500 | G197: 21.789417 | H197: =((B197-B196)/B196)+H196 -> -0.1991209115 | I197: -0.003637833468
A198: 2010-10-13 | B198: 25.02 | C198: 25.540001 | D198: 24.889999 | E198: 25.34 | F198: 75336500 | G198: 22.236965 | H198: -0.1841107695 | I198: 0.01501014199
A199: 2010-10-14 | B199: 25.290001 | C199: 25.34 | D199: 25 | E199: 25.23 | F199: 51949100 | G199: 22.140434 | H199: -0.1733193626 | I199: 0.01079140687
A200: 2010-10-15 | B200: 25.360001 | C200: 25.549999 | D200: 25.23 | E200: 25.540001 | F200: 68954800 | G200: 22.412474 | H200: -0.1705514703 | I200: 0.002767892338
... 1196 more rows

Sheet Orbitz
A1: Date | B1: Open | C1: High | D1: Low | E1: Close | F1: Volume | G1: Adj Close | H1: Cumulative Return | I1: Daily Return
A2: 2010-01-04 | B2: 7.48 | C2: 7.78 | D2: 7.4 | E2: 7.77 | F2: 318900 | G2: 7.77
A3: 2010-01-05 | B3: 7.73 | C3: 7.86 | D3: 7.4 | E3: 7.41 | F3: 306000 | G3: 7.41 | H3: =(B3-B2)/B2 -> 0.03342245989 | I3: =(B3-B2)/B2 -> 0.03342245989
A4: 2010-01-06 | B4: 7.45 | C4: 7.49 | D4: 7.09 | E4: 7.1 | F4: 285500 | G4: 7.1 | H4: =((B4-B3)/B3)+H3 -> -0.002800049809 | I4: =(B4-B3)/B3 -> -0.0362225097
A5: 2010-01-07 | B5: 7.16 | C5: 7.31 | D5: 6.92 | E5: 7.17 | F5: 177800 | G5: 7.17 | H5: =((B5-B4)/B4)+H4 -> -0.04172622431 | I5: -0.0389261745
A6: 2010-01-08 | B6: 7.16 | C6: 7.16 | D6: 6.98 | E6: 7.04 | F6: 260300 | G6: 7.04 | H6: -0.04172622431 | I6: 0
A7: 2010-01-11 | B7: 7.06 | C7: 7.37 | D7: 7 | E7: 7.22 | F7: 628500 | G7: 7.22 | H7: -0.05569270475 | I7: -0.01396648045
A8: 2010-01-12 | B8: 7.18 | C8: 7.56 | D8: 7.13 | E8: 7.29 | F8: 514700 | G8: 7.29 | H8: -0.03869553761 | I8: 0.01699716714
A9: 2010-01-13 | B9: 7.39 | C9: 7.65 | D9: 7.35 | E9: 7.43 | F9: 374500 | G9: 7.43 | H9: -0.009447626751 | I9: 0.02924791086
A10: 2010-01-14 | B10: 7.38 | C10: 7.43 | D10: 7.14 | E10: 7.18 | F10: 130500 | G10: 7.18 | H10: -0.01080080672 | I10: -0.001353179973
A11: 2010-01-15 | B11: 7.18 | C11: 7.24 | D11: 6.92 | E11: 6.96 | F11: 212900 | G11: 6.96 | H11: -0.03790107773 | I11: -0.027100271
A12: 2010-01-19 | B12: 7.05 | C12: 7.15 | D12: 6.94 | E12: 7.08 | F12: 331600 | G12: 7.08 | H12: -0.05600692731 | I12: -0.01810584958
A13: 2010-01-20 | B13: 6.99 | C13: 7.06 | D13: 6.61 | E13: 6.89 | F13: 301200 | G13: 6.89 | H13: -0.06451756561 | I13: -0.008510638298
A14: 2010-01-21 | B14: 6.9 | C14: 6.98 | D14: 6.14 | E14: 6.27 | F14: 612200 | G14: 6.27 | H14: -0.07739310209 | I14: -0.01287553648
A15: 2010-01-22 | B15: 6.27 | C15: 6.87 | D15: 6.13 | E15: 6.17 | F15: 668900 | G15: 6.17 | H15: -0.1686974499 | I15: -0.09130434783
A16: 2010-01-25 | B16: 6.25 | C16: 6.29 | D16: 6 | E16: 6.19 | F16: 232500 | G16: 6.19 | H16: -0.1718872426 | I16: -0.003189792663
A17: 2010-01-26 | B17: 6.16 | C17: 6.17 | D17: 5.98 | E17: 6.07 | F17: 250500 | G17: 6.07 | H17: -0.1862872426 | I17: -0.0144
A18: 2010-01-27 | B18: 6.02 | C18: 6.26 | D18: 5.95 | E18: 6.23 | F18: 250800 | G18: 6.23 | H18: -0.2090145153 | I18: -0.02272727273
A19: 2010-01-28 | B19: 6.23 | C19: 6.36 | D19: 5.94 | E19: 6.14 | F19: 332700 | G19: 6.14 | H19: -0.1741307944 | I19: 0.03488372093
A20: 2010-01-29 | B20: 6.2 | C20: 6.42 | D20: 6.02 | E20: 6.14 | F20: 377700 | G20: 6.14 | H20: -0.1789462037 | I20: -0.00481540931
A21: 2010-02-01 | B21: 6.15 | C21: 6.52 | D21: 6.1 | E21: 6.51 | F21: 319900 | G21: 6.51 | H21: -0.1870107198 | I21: -0.008064516129
A22: 2010-02-02 | B22: 6.5 | C22: 6.71 | D22: 6.47 | E22: 6.58 | F22: 252500 | G22: 6.58 | H22: -0.1301001507 | I22: 0.05691056911
A23: 2010-02-03 | B23: 6.57 | C23: 6.57 | D23: 6.28 | E23: 6.54 | F23: 137300 | G23: 6.54 | H23: -0.1193309199 | I23: 0.01076923077
A24: 2010-02-04 | B24: 6.46 | C24: 6.46 | D24: 6.04 | E24: 6.11 | F24: 285000 | G24: 6.11 | H24: -0.1360736901 | I24: -0.01674277017
A25: 2010-02-05 | B25: 6.14 | C25: 6.19 | D25: 5.85 | E25: 6.14 | F25: 238100 | G25: 6.14 | H25: -0.1856092938 | I25: -0.04953560372
A26: 2010-02-08 | B26: 6.14 | C26: 6.4 | D26: 6.07 | E26: 6.17 | F26: 156400 | G26: 6.17 | H26: -0.1856092938 | I26: 0
A27: 2010-02-09 | B27: 6.28 | C27: 6.49 | D27: 6.23 | E27: 6.37 | F27: 128500 | G27: 6.37 | H27: -0.1628079909 | I27: 0.02280130293
A28: 2010-02-10 | B28: 6.36 | C28: 6.39 | D28: 6.12 | E28: 6.32 | F28: 137700 | G28: 6.32 | H28: -0.1500691374 | I28: 0.0127388535
A29: 2010-02-11 | B29: 6.28 | C29: 6.62 | D29: 6.15 | E29: 6.62 | F29: 128700 | G29: 6.62 | H29: -0.1626477537 | I29: -0.01257861635
A30: 2010-02-12 | B30: 6.52 | C30: 6.8 | D30: 6.38 | E30: 6.71 | F30: 176800 | G30: 6.71 | H30: -0.1244311932 | I30: 0.03821656051
A31: 2010-02-16 | B31: 6.76 | C31: 6.9 | D31: 6.71 | E31: 6.83 | F31: 224000 | G31: 6.83 | H31: -0.08762137728 | I31: 0.03680981595
A32: 2010-02-17 | B32: 6.93 | C32: 6.93 | D32: 6.75 | E32: 6.82 | F32: 113800 | G32: 6.82 | H32: -0.06247344828 | I32: 0.02514792899
A33: 2010-02-18 | B33: 6.83 | C33: 6.88 | D33: 6.61 | E33: 6.85 | F33: 197700 | G33: 6.85 | H33: -0.07690346271 | I33: -0.01443001443
A34: 2010-02-19 | B34: 6.85 | C34: 7.09 | D34: 6.75 | E34: 7.08 | F34: 194500 | G34: 7.08 | H34: -0.07397520503 | I34: 0.002928257687
A35: 2010-02-22 | B35: 7.18 | C35: 7.64 | D35: 7.06 | E35: 7.17 | F35: 510100 | G35: 7.17 | H35: -0.02580002254 | I35: 0.04817518248
A36: 2010-02-23 | B36: 6.65 | C36: 6.69 | D36: 5.73 | E36: 6.05 | F36: 1120100 | G36: 6.05 | H36: -0.09961617853 | I36: -0.07381615599
A37: 2010-02-24 | B37: 6.09 | C37: 6.15 | D37: 5.8 | E37: 6.01 | F37: 440600 | G37: 6.01 | H37: -0.1838267048 | I37: -0.08421052632
A38: 2010-02-25 | B38: 5.91 | C38: 6.1 | D38: 5.91 | E38: 6.04 | F38: 472000 | G38: 6.04 | H38: -0.2133833551 | I38: -0.02955665025
A39: 2010-02-26 | B39: 6 | C39: 6.08 | D39: 5.91 | E39: 5.95 | F39: 254600 | G39: 5.95 | H39: -0.1981549287 | I39: 0.0152284264
A40: 2010-03-01 | B40: 6.01 | C40: 6.59 | D40: 5.96 | E40: 6.59 | F40: 411900 | G40: 6.59 | H40: -0.196488262 | I40: 0.001666666667
A41: 2010-03-02 | B41: 6.59 | C41: 6.8 | D41: 6.55 | E41: 6.75 | F41: 290800 | G41: 6.75 | H41: -0.09998243841 | I41: 0.09650582363
A42: 2010-03-03 | B42: 6.75 | C42: 6.85 | D42: 6.61 | E42: 6.7 | F42: 245800 | G42: 6.7 | H42: -0.07570322748 | I42: 0.02427921093
A43: 2010-03-04 | B43: 6.7 | C43: 6.77 | D43: 6.64 | E43: 6.75 | F43: 198500 | G43: 6.75 | H43: -0.08311063489 | I43: -0.007407407407
A44: 2010-03-05 | B44: 6.81 | C44: 7 | D44: 6.68 | E44: 6.73 | F44: 413300 | G44: 6.73 | H44: -0.06669272444 | I44: 0.01641791045
A45: 2010-03-08 | B45: 6.75 | C45: 6.81 | D45: 6.7 | E45: 6.75 | F45: 200700 | G45: 6.75 | H45: -0.07550329713 | I45: -0.008810572687
A46: 2010-03-09 | B46: 6.74 | C46: 6.84 | D46: 6.65 | E46: 6.71 | F46: 202600 | G46: 6.71 | H46: -0.07698477861 | I46: -0.001481481481
A47: 2010-03-10 | B47: 6.73 | C47: 6.85 | D47: 6.54 | E47: 6.58 | F47: 174800 | G47: 6.58 | H47: -0.07846845813 | I47: -0.001483679525
A48: 2010-03-11 | B48: 6.55 | C48: 6.57 | D48: 6.46 | E48: 6.51 | F48: 105600 | G48: 6.51 | H48: -0.105214372 | I48: -0.02674591382
A49: 2010-03-12 | B49: 6.56 | C49: 6.73 | D49: 6.54 | E49: 6.61 | F49: 300000 | G49: 6.61 | H49: -0.1036876544 | I49: 0.001526717557
A50: 2010-03-15 | B50: 6.59 | C50: 6.65 | D50: 6.53 | E50: 6.57 | F50: 142000 | G50: 6.57 | H50: -0.09911448366 | I50: 0.004573170732
A51: 2010-03-16 | B51: 6.55 | C51: 6.65 | D51: 6.47 | E51: 6.59 | F51: 165600 | G51: 6.59 | H51: -0.1051842864 | I51: -0.006069802731
A52: 2010-03-17 | B52: 6.59 | C52: 6.79 | D52: 6.56 | E52: 6.66 | F52: 126800 | G52: 6.66 | H52: -0.09907741617 | I52: 0.006106870229
A53: 2010-03-18 | B53: 6.66 | C53: 6.85 | D53: 6.65 | E53: 6.71 | F53: 196800 | G53: 6.71 | H53: -0.08845526139 | I53: 0.01062215478
A54: 2010-03-19 | B54: 6.6 | C54: 6.76 | D54: 6.54 | E54: 6.6 | F54: 438900 | G54: 6.6 | H54: -0.09746427039 | I54: -0.009009009009
A55: 2010-03-22 | B55: 6.57 | C55: 6.73 | D55: 6.46 | E55: 6.69 | F55: 186500 | G55: 6.69 | H55: -0.1020097249 | I55: -0.004545454545
A56: 2010-03-23 | B56: 6.66 | C56: 6.76 | D56: 6.6 | E56: 6.75 | F56: 145700 | G56: 6.75 | H56: -0.0883110948 | I56: 0.01369863014
A57: 2010-03-24 | B57: 6.72 | C57: 6.86 | D57: 6.72 | E57: 6.8 | F57: 163600 | G57: 6.8 | H57: -0.07930208579 | I57: 0.009009009009
A58: 2010-03-25 | B58: 6.87 | C58: 7.16 | D58: 6.84 | E58: 7.01 | F58: 375100 | G58: 7.01 | H58: -0.05698065722 | I58: 0.02232142857
A59: 2010-03-26 | B59: 7.04 | C59: 7.1 | D59: 6.98 | E59: 7.02 | F59: 120200 | G59: 7.02 | H59: -0.03223538794 | I59: 0.02474526929
A60: 2010-03-29 | B60: 7.11 | C60: 7.4 | D60: 7.03 | E60: 7.39 | F60: 247000 | G60: 7.39 | H60: -0.02229220612 | I60: 0.009943181818
A61: 2010-03-30 | B61: 7.45 | C61: 7.45 | D61: 7.1 | E61: 7.15 | F61: 190000 | G61: 7.15 | H61: 0.02552776575 | I61: 0.04781997187
A62: 2010-03-31 | B62: 7.1 | C62: 7.19 | D62: 7 | E62: 7.11 | F62: 224700 | G62: 7.11 | H62: -0.02145210002 | I62: -0.04697986577
A63: 2010-04-01 | B63: 7.14 | C63: 7.19 | D63: 6.96 | E63: 7 | F63: 211200 | G63: 7 | H63: -0.0158182972 | I63: 0.005633802817
A64: 2010-04-05 | B64: 7.07 | C64: 7.08 | D64: 6.97 | E64: 7.04 | F64: 251200 | G64: 7.04 | H64: -0.02562221877 | I64: -0.009803921569
A65: 2010-04-06 | B65: 7.01 | C65: 7.1 | D65: 6.91 | E65: 7.04 | F65: 129700 | G65: 7.04 | H65: -0.03410878171 | I65: -0.008486562942
A66: 2010-04-07 | B66: 7.04 | C66: 7.11 | D66: 6.97 | E66: 7 | F66: 249000 | G66: 7 | H66: -0.02982918114 | I66: 0.004279600571
A67: 2010-04-08 | B67: 6.96 | C67: 7.18 | D67: 6.95 | E67: 7.14 | F67: 93500 | G67: 7.14 | H67: -0.04119281751 | I67: -0.01136363636
A68: 2010-04-09 | B68: 7.12 | C68: 7.16 | D68: 6.97 | E68: 7 | F68: 134300 | G68: 7 | H68: -0.01820431176 | I68: =(B68-B67)/B67 -> 0.02298850575
A69: 2010-04-12 | B69: 7.04 | C69: 7.11 | D69: 6.96 | E69: 7.11 | F69: 215200 | G69: 7.11 | H69: =((B69-B68)/B68)+H68 -> -0.02944026681 | I69: -0.01123595506
A70: 2010-04-13 | B70: 7.12 | C70: 7.29 | D70: 7.07 | E70: 7.28 | F70: 123800 | G70: 7.28 | H70: -0.01807663045 | I70: 0.01136363636
A71: 2010-04-14 | B71: 7.33 | C71: 7.59 | D71: 7.27 | E71: 7.51 | F71: 231900 | G71: 7.51 | H71: 0.01141775157 | I71: 0.02949438202
A72: 2010-04-15 | B72: 7.47 | C72: 7.58 | D72: 7.42 | E72: 7.54 | F72: 118200 | G72: 7.54 | H72: 0.03051734229 | I72: 0.01909959072
A73: 2010-04-16 | B73: 7.53 | C73: 7.53 | D73: 7.14 | E73: 7.17 | F73: 161900 | G73: 7.17 | H73: 0.03854947081 | I73: 0.008032128514
A74: 2010-04-19 | B74: 7.11 | C74: 7.26 | D74: 6.83 | E74: 7.01 | F74: 109600 | G74: 7.01 | H74: -0.01722742162 | I74: -0.05577689243
A75: 2010-04-20 | B75: 7.06 | C75: 7.09 | D75: 6.9 | E75: 6.96 | F75: 91400 | G75: 6.96 | H75: -0.02425977043 | I75: -0.007032348805
A76: 2010-04-21 | B76: 7.03 | C76: 7.03 | D76: 6.92 | E76: 7.01 | F76: 67400 | G76: 7.01 | H76: -0.02850906221 | I76: -0.004249291785
A77: 2010-04-22 | B77: 6.91 | C77: 7.09 | D77: 6.74 | E77: 7.05 | F77: 172500 | G77: 7.05 | H77: -0.04557876349 | I77: -0.01706970128
A78: 2010-04-23 | B78: 7.04 | C78: 7.35 | D78: 6.98 | E78: 7 | F78: 360200 | G78: 7 | H78: -0.02676544945 | I78: 0.01881331404
A79: 2010-04-26 | B79: 7.02 | C79: 7.11 | D79: 6.97 | E79: 7 | F79: 214400 | G79: 7 | H79: -0.02960635854 | I79: -0.002840909091
A80: 2010-04-27 | B80: 6.95 | C80: 6.95 | D80: 6.72 | E80: 6.77 | F80: 178700 | G80: 6.77 | H80: -0.03957786852 | I80: -0.009971509972
A81: 2010-04-28 | B81: 6.84 | C81: 6.96 | D81: 6.73 | E81: 6.87 | F81: 105700 | G81: 6.87 | H81: -0.05540520665 | I81: -0.01582733813
A82: 2010-04-29 | B82: 6.96 | C82: 7.13 | D82: 6.86 | E82: 6.89 | F82: 438800 | G82: 6.89 | H82: -0.037861347 | I82: 0.01754385965
A83: 2010-04-30 | B83: 6.91 | C83: 6.97 | D83: 6.57 | E83: 6.59 | F83: 180600 | G83: 6.59 | H83: -0.04504525504 | I83: -0.007183908046
A84: 2010-05-03 | B84: 6.62 | C84: 6.92 | D84: 6.58 | E84: 6.8 | F84: 132300 | G84: 6.8 | H84: -0.08701341713 | I84: -0.04196816208
A85: 2010-05-04 | B85: 6.69 | C85: 6.69 | D85: 6.37 | E85: 6.5 | F85: 463700 | G85: 6.5 | H85: -0.076439399 | I85: 0.01057401813
A86: 2010-05-05 | B86: 6.14 | C86: 6.69 | D86: 6.14 | E86: 6.27 | F86: 216500 | G86: 6.27 | H86: -0.1586516561 | I86: -0.0822122571
A87: 2010-05-06 | B87: 6.21 | C87: 6.32 | D87: 5.5 | E87: 5.9 | F87: 472900 | G87: 5.9 | H87: -0.1472510046 | I87: 0.01140065147
A88: 2010-05-07 | B88: 5.88 | C88: 5.95 | D88: 5.42 | E88: 5.72 | F88: 318800 | G88: 5.72 | H88: -0.2003911013 | I88: -0.05314009662
A89: 2010-05-10 | B89: 6.13 | C89: 6.38 | D89: 6.03 | E89: 6.28 | F89: 300100 | G89: 6.28 | H89: -0.1578740944 | I89: 0.0425170068
A90: 2010-05-11 | B90: 6.17 | C90: 6.37 | D90: 6.05 | E90: 6.24 | F90: 144200 | G90: 6.24 | H90: -0.151348809 | I90: 0.006525285481
A91: 2010-05-12 | B91: 6.25 | C91: 6.36 | D91: 6.18 | E91: 6.28 | F91: 251800 | G91: 6.28 | H91: -0.1383828446 | I91: 0.01296596434
A92: 2010-05-13 | B92: 6.28 | C92: 6.37 | D92: 6.04 | E92: 6.09 | F92: 238100 | G92: 6.09 | H92: -0.1335828446 | I92: 0.0048
A93: 2010-05-14 | B93: 6.02 | C93: 6.07 | D93: 5.75 | E93: 5.89 | F93: 305000 | G93: 5.89 | H93: -0.1749841185 | I93: -0.04140127389
A94: 2010-05-17 | B94: 5.97 | C94: 6.07 | D94: 5.57 | E94: 5.85 | F94: 169700 | G94: 5.85 | H94: -0.1832897664 | I94: -0.008305647841
A95: 2010-05-18 | B95: 5.93 | C95: 5.97 | D95: 5.5 | E95: 5.58 | F95: 381300 | G95: 5.58 | H95: -0.1899899339 | I95: -0.006700167504
A96: 2010-05-19 | B96: 5.54 | C96: 5.7 | D96: 5.29 | E96: 5.47 | F96: 302600 | G96: 5.47 | H96: -0.2557572188 | I96: -0.06576728499
A97: 2010-05-20 | B97: 5.29 | C97: 5.39 | D97: 5.06 | E97: 5.08 | F97: 299400 | G97: 5.08 | H97: -0.3008835726 | I97: -0.04512635379
A98: 2010-05-21 | B98: 5.03 | C98: 5.33 | D98: 4.97 | E98: 5.3 | F98: 366100 | G98: 5.3 | H98: -0.350032911 | I98: -0.04914933837
A99: 2010-05-24 | B99: 5.29 | C99: 5.38 | D99: 5.08 | E99: 5.18 | F99: 292000 | G99: 5.18 | H99: -0.2983430502 | I99: 0.05168986083
A100: 2010-05-25 | B100: 4.98 | C100: 5.12 | D100: 4.91 | E100: 5.03 | F100: 303700 | G100: 5.03 | H100: -0.3569441844 | I100: -0.05860113422
A101: 2010-05-26 | B101: 5.07 | C101: 5.08 | D101: 4.8 | E101: 5 | F101: 1436800 | G101: 5 | H101: -0.3388718952 | I101: 0.01807228916
A102: 2010-05-27 | B102: 5.17 | C102: 5.35 | D102: 5.04 | E102: 5.32 | F102: 256000 | G102: 5.32 | H102: -0.3191480294 | I102: 0.01972386588
A103: 2010-05-28 | B103: 5.35 | C103: 5.35 | D103: 5.09 | E103: 5.3 | F103: 231500 | G103: 5.3 | H103: -0.2843317818 | I103: 0.03481624758
A104: 2010-06-01 | B104: 5.21 | C104: 5.29 | D104: 4.87 | E104: 4.88 | F104: 263700 | G104: 4.88 | H104: -0.3105000061 | I104: -0.0261682243
A105: 2010-06-02 | B105: 4.94 | C105: 5.01 | D105: 4.79 | E105: 4.97 | F105: 286000 | G105: 4.97 | H105: -0.3623234226 | I105: -0.05182341651
A106: 2010-06-03 | B106: 4.97 | C106: 5.12 | D106: 4.87 | E106: 5 | F106: 115300 | G106: 5 | H106: -0.3562505481 | I106: 0.006072874494
A107: 2010-06-04 | B107: 4.85 | C107: 4.91 | D107: 4.81 | E107: 4.83 | F107: 381500 | G107: 4.83 | H107: -0.3803954173 | I107: -0.02414486922
A108: 2010-06-07 | B108: 4.87 | C108: 4.93 | D108: 4.72 | E108: 4.73 | F108: 291600 | G108: 4.73 | H108: -0.376271706 | I108: 0.00412371134
A109: 2010-06-08 | B109: 4.74 | C109: 4.8 | D109: 4.52 | E109: 4.6 | F109: 335100 | G109: 4.6 | H109: -0.4029657511 | I109: -0.02669404517
A110: 2010-06-09 | B110: 4.68 | C110: 4.73 | D110: 4.49 | E110: 4.53 | F110: 140600 | G110: 4.53 | H110: -0.415623979 | I110: -0.01265822785
A111: 2010-06-10 | B111: 4.66 | C111: 4.89 | D111: 4.57 | E111: 4.87 | F111: 216300 | G111: 4.87 | H111: -0.4198974833 | I111: -0.004273504274
A112: 2010-06-11 | B112: 4.8 | C112: 4.84 | D112: 4.61 | E112: 4.84 | F112: 142400 | G112: 4.84 | H112: -0.3898545648 | I112: 0.03004291845
A113: 2010-06-14 | B113: 4.89 | C113: 5.05 | D113: 4.7 | E113: 4.8 | F113: 303700 | G113: 4.8 | H113: -0.3711045648 | I113: 0.01875
A114: 2010-06-15 | B114: 4.79 | C114: 5.01 | D114: 4.79 | E114: 4.97 | F114: 163300 | G114: 4.97 | H114: -0.3915544626 | I114: -0.02044989775
A115: 2010-06-16 | B115: 4.91 | C115: 4.95 | D115: 4.71 | E115: 4.88 | F115: 142000 | G115: 4.88 | H115: -0.3665022705 | I115: 0.02505219207
A116: 2010-06-17 | B116: 4.93 | C116: 4.95 | D116: 4.63 | E116: 4.71 | F116: 267200 | G116: 4.71 | H116: -0.3624289507 | I116: 0.004073319756
A117: 2010-06-18 | B117: 4.75 | C117: 4.81 | D117: 4.44 | E117: 4.5 | F117: 621700 | G117: 4.5 | H117: -0.3989401069 | I117: -0.03651115619
A118: 2010-06-21 | B118: 4.53 | C118: 4.63 | D118: 4.25 | E118: 4.33 | F118: 392400 | G118: 4.33 | H118: -0.4452558964 | I118: -0.04631578947
A119: 2010-06-22 | B119: 4.34 | C119: 4.4 | D119: 4.26 | E119: 4.3 | F119: 334800 | G119: 4.3 | H119: -0.4871985012 | I119: -0.04194260486
A120: 2010-06-23 | B120: 4.28 | C120: 4.32 | D120: 4.21 | E120: 4.25 | F120: 149400 | G120: 4.25 | H120: -0.501023386 | I120: -0.01382488479
A121: 2010-06-24 | B121: 4.18 | C121: 4.24 | D121: 4.05 | E121: 4.05 | F121: 245800 | G121: 4.05 | H121: -0.524387872 | I121: -0.02336448598
A122: 2010-06-25 | B122: 4.08 | C122: 4.15 | D122: 3.95 | E122: 4.12 | F122: 1720100 | G122: 4.12 | H122: -0.548311317 | I122: -0.02392344498
A123: 2010-06-28 | B123: 4.14 | C123: 4.28 | D123: 4.03 | E123: 4.16 | F123: 127000 | G123: 4.16 | H123: -0.5336054346 | I123: 0.01470588235
A124: 2010-06-29 | B124: 4.05 | C124: 4.1 | D124: 3.81 | E124: 3.85 | F124: 231700 | G124: 3.85 | H124: -0.5553445651 | I124: -0.02173913043
A125: 2010-06-30 | B125: 3.85 | C125: 3.94 | D125: 3.77 | E125: 3.81 | F125: 192700 | G125: 3.81 | H125: -0.6047272811 | I125: -0.04938271605
A126: 2010-07-01 | B126: 3.8 | C126: 3.94 | D126: 3.61 | E126: 3.94 | F126: 244100 | G126: 3.94 | H126: -0.6177142941 | I126: -0.01298701299
A127: 2010-07-02 | B127: 3.97 | C127: 3.97 | D127: 3.56 | E127: 3.73 | F127: 331700 | G127: 3.73 | H127: -0.572977452 | I127: 0.04473684211
A128: 2010-07-06 | B128: 3.8 | C128: 3.92 | D128: 3.69 | E128: 3.72 | F128: 191800 | G128: 3.72 | H128: -0.6157986107 | I128: -0.04282115869
A129: 2010-07-07 | B129: 3.76 | C129: 3.82 | D129: 3.62 | E129: 3.82 | F129: 208600 | G129: 3.82 | H129: -0.6263249265 | I129: -0.01052631579
A130: 2010-07-08 | B130: 3.89 | C130: 4.3 | D130: 3.88 | E130: 4.27 | F130: 380400 | G130: 4.27 | H130: -0.5917504584 | I130: 0.03457446809
A131: 2010-07-09 | B131: 4.28 | C131: 4.4 | D131: 4.17 | E131: 4.38 | F131: 509900 | G131: 4.38 | H131: -0.491493389 | I131: 0.1002570694
A132: 2010-07-12 | B132: 4.34 | C132: 4.39 | D132: 4.19 | E132: 4.36 | F132: 280800 | G132: 4.36 | H132: -0.4774746974 | I132: =(B132-B131)/B131 -> 0.01401869159
A133: 2010-07-13 | B133: 4.47 | C133: 4.62 | D133: 4.42 | E133: 4.57 | F133: 301600 | G133: 4.57 | H133: =((B133-B132)/B132)+H132 -> -0.4475207804 | I133: 0.02995391705
A134: 2010-07-14 | B134: 4.52 | C134: 4.58 | D134: 4.5 | E134: 4.55 | F134: 115700 | G134: 4.55 | H134: -0.436335098 | I134: 0.01118568233
A135: 2010-07-15 | B135: 4.54 | C135: 4.65 | D135: 4.46 | E135: 4.57 | F135: 149700 | G135: 4.57 | H135: -0.4319103193 | I135: 0.004424778761
A136: 2010-07-16 | B136: 4.51 | C136: 4.6 | D136: 4.25 | E136: 4.29 | F136: 237400 | G136: 4.29 | H136: -0.4385182488 | I136: -0.006607929515
A137: 2010-07-19 | B137: 4.26 | C137: 4.36 | D137: 4.19 | E137: 4.22 | F137: 95600 | G137: 4.22 | H137: -0.4939506213 | I137: -0.05543237251
A138: 2010-07-20 | B138: 4.13 | C138: 4.26 | D138: 4.05 | E138: 4.26 | F138: 117700 | G138: 4.26 | H138: -0.5244670532 | I138: -0.03051643192
A139: 2010-07-21 | B139: 4.32 | C139: 4.32 | D139: 4.06 | E139: 4.08 | F139: 56100 | G139: 4.08 | H139: -0.4784622106 | I139: 0.04600484262
A140: 2010-07-22 | B140: 4.18 | C140: 4.48 | D140: 4.17 | E140: 4.45 | F140: 520900 | G140: 4.45 | H140: -0.510869618 | I140: -0.03240740741
A141: 2010-07-23 | B141: 4.4 | C141: 4.5 | D141: 4.33 | E141: 4.5 | F141: 82700 | G141: 4.5 | H141: -0.4582380391 | I141: 0.05263157895
A142: 2010-07-26 | B142: 4.54 | C142: 4.88 | D142: 4.44 | E142: 4.87 | F142: 249100 | G142: 4.87 | H142: -0.4264198572 | I142: 0.03181818182
A143: 2010-07-27 | B143: 4.91 | C143: 5.43 | D143: 4.9 | E143: 5.33 | F143: 343800 | G143: 5.33 | H143: -0.3449220599 | I143: 0.08149779736
A144: 2010-07-28 | B144: 5.3 | C144: 5.34 | D144: 4.92 | E144: 5.03 | F144: 336800 | G144: 5.03 | H144: -0.2654923247 | I144: 0.07942973523
A145: 2010-07-29 | B145: 5.06 | C145: 5.17 | D145: 4.76 | E145: 4.8 | F145: 183300 | G145: 4.8 | H145: -0.3107753435 | I145: -0.04528301887
A146: 2010-07-30 | B146: 4.79 | C146: 4.79 | D146: 4.44 | E146: 4.51 | F146: 549200 | G146: 4.51 | H146: -0.3641350273 | I146: -0.05335968379
A147: 2010-08-02 | B147: 4.58 | C147: 4.73 | D147: 4.47 | E147: 4.54 | F147: 175400 | G147: 4.54 | H147: -0.4079763634 | I147: -0.04384133612
A148: 2010-08-03 | B148: 4.49 | C148: 4.7 | D148: 4.42 | E148: 4.62 | F148: 111500 | G148: 4.62 | H148: -0.4276270185 | I148: -0.01965065502
A149: 2010-08-04 | B149: 4.75 | C149: 5.26 | D149: 4.75 | E149: 5.14 | F149: 479600 | G149: 5.14 | H149: -0.3697205597 | I149: 0.0579064588
A150: 2010-08-05 | B150: 5.7 | C150: 6.04 | D150: 5.35 | E150: 5.57 | F150: 927200 | G150: 5.57 | H150: -0.1697205597 | I150: 0.2
A151: 2010-08-06 | B151: 5.57 | C151: 5.58 | D151: 5.31 | E151: 5.43 | F151: 218100 | G151: 5.43 | H151: -0.1925275772 | I151: -0.02280701754
A152: 2010-08-09 | B152: 5.52 | C152: 5.52 | D152: 5.25 | E152: 5.27 | F152: 192900 | G152: 5.27 | H152: -0.2015042379 | I152: -0.008976660682
A153: 2010-08-10 | B153: 5.27 | C153: 5.29 | D153: 5.05 | E153: 5.1 | F153: 356000 | G153: 5.1 | H153: -0.246794093 | I153: -0.04528985507
A154: 2010-08-11 | B154: 4.92 | C154: 5.09 | D154: 4.77 | E154: 4.99 | F154: 312600 | G154: 4.99 | H154: -0.3132077552 | I154: -0.06641366224
A155: 2010-08-12 | B155: 4.86 | C155: 4.99 | D155: 4.78 | E155: 4.96 | F155: 176100 | G155: 4.96 | H155: -0.3254028771 | I155: -0.01219512195
A156: 2010-08-13 | B156: 4.95 | C156: 4.97 | D156: 4.81 | E156: 4.96 | F156: 162600 | G156: 4.96 | H156: -0.3068843586 | I156: 0.01851851852
A157: 2010-08-16 | B157: 4.85 | C157: 5.08 | D157: 4.85 | E157: 5.05 | F157: 158400 | G157: 5.05 | H157: -0.3270863788 | I157: -0.0202020202
A158: 2010-08-17 | B158: 5.13 | C158: 5.24 | D158: 5.01 | E158: 5.02 | F158: 132400 | G158: 5.02 | H158: -0.2693544201 | I158: 0.05773195876
A159: 2010-08-18 | B159: 5 | C159: 5.18 | D159: 4.91 | E159: 5.01 | F159: 154900 | G159: 5.01 | H159: -0.2946955507 | I159: -0.0253411306
A160: 2010-08-19 | B160: 5.04 | C160: 5.09 | D160: 4.97 | E160: 5 | F160: 207600 | G160: 5 | H160: -0.2866955507 | I160: 0.008
A161: 2010-08-20 | B161: 4.94 | C161: 5.07 | D161: 4.88 | E161: 5.04 | F161: 138000 | G161: 5.04 | H161: -0.3065368205 | I161: -0.01984126984
A162: 2010-08-23 | B162: 5.08 | C162: 5.11 | D162: 4.77 | E162: 4.77 | F162: 186300 | G162: 4.77 | H162: -0.2781967395 | I162: 0.02834008097
A163: 2010-08-24 | B163: 4.74 | C163: 4.74 | D163: 4.47 | E163: 4.47 | F163: 283500 | G163: 4.47 | H163: -0.3451258734 | I163: -0.06692913386
A164: 2010-08-25 | B164: 4.47 | C164: 5.12 | D164: 4.46 | E164: 5.03 | F164: 289700 | G164: 5.03 | H164: -0.4020878987 | I164: -0.05696202532
A165: 2010-08-26 | B165: 5.04 | C165: 5.12 | D165: 4.88 | E165: 4.89 | F165: 291300 | G165: 4.89 | H165: -0.2745711202 | I165: 0.1275167785
A166: 2010-08-27 | B166: 4.98 | C166: 5.1 | D166: 4.87 | E166: 5 | F166: 197100 | G166: 5 | H166: -0.2864758821 | I166: -0.0119047619
A167: 2010-08-30 | B167: 4.99 | C167: 5.13 | D167: 4.96 | E167: 4.98 | F167: 348400 | G167: 4.98 | H167: -0.28446785 | I167: 0.002008032129
A168: 2010-08-31 | B168: 4.96 | C168: 5.1 | D168: 4.92 | E168: 5.04 | F168: 476100 | G168: 5.04 | H168: -0.290479874 | I168: -0.006012024048
A169: 2010-09-01 | B169: 5.15 | C169: 5.16 | D169: 5 | E169: 5.13 | F169: 264700 | G169: 5.13 | H169: -0.2521734224 | I169: 0.03830645161
A170: 2010-09-02 | B170: 5.19 | C170: 5.68 | D170: 5.14 | E170: 5.68 | F170: 442300 | G170: 5.68 | H170: -0.2444064321 | I170: 0.007766990291
A171: 2010-09-03 | B171: 5.75 | C171: 5.81 | D171: 5.57 | E171: 5.8 | F171: 233900 | G171: 5.8 | H171: -0.1365066248 | I171: 0.1078998073
A172: 2010-09-07 | B172: 5.78 | C172: 5.79 | D172: 5.55 | E172: 5.59 | F172: 204200 | G172: 5.59 | H172: -0.1312892335 | I172: 0.005217391304
A173: 2010-09-08 | B173: 5.59 | C173: 5.76 | D173: 5.58 | E173: 5.59 | F173: 105300 | G173: 5.59 | H173: -0.1641612058 | I173: -0.03287197232
A174: 2010-09-09 | B174: 5.74 | C174: 5.74 | D174: 5.46 | E174: 5.51 | F174: 94500 | G174: 5.51 | H174: -0.1373275743 | I174: 0.02683363148
A175: 2010-09-10 | B175: 5.55 | C175: 5.63 | D175: 5.44 | E175: 5.46 | F175: 203000 | G175: 5.46 | H175: -0.1704286196 | I175: -0.0331010453
A176: 2010-09-13 | B176: 5.49 | C176: 5.78 | D176: 5.4 | E176: 5.75 | F176: 183800 | G176: 5.75 | H176: -0.1812394304 | I176: -0.01081081081
A177: 2010-09-14 | B177: 5.74 | C177: 5.78 | D177: 5.62 | E177: 5.65 | F177: 100300 | G177: 5.65 | H177: -0.1357020898 | I177: 0.04553734062
A178: 2010-09-15 | B178: 5.61 | C178: 5.69 | D178: 5.45 | E178: 5.64 | F178: 155100 | G178: 5.64 | H178: -0.1583501734 | I178: -0.02264808362
A179: 2010-09-16 | B179: 5.64 | C179: 5.88 | D179: 5.62 | E179: 5.85 | F179: 217000 | G179: 5.85 | H179: -0.1530025798 | I179: 0.005347593583
A180: 2010-09-17 | B180: 5.89 | C180: 6.06 | D180: 5.68 | E180: 6.02 | F180: 272200 | G180: 6.02 | H180: -0.1086763387 | I180: 0.04432624113
A181: 2010-09-20 | B181: 6.09 | C181: 6.46 | D181: 6.05 | E181: 6.36 | F181: 360700 | G181: 6.36 | H181: -0.07472048133 | I181: 0.03395585739
A182: 2010-09-21 | B182: 6.41 | C182: 6.66 | D182: 6.17 | E182: 6.18 | F182: 454400 | G182: 6.18 | H182: -0.02217532533 | I182: 0.05254515599
A183: 2010-09-22 | B183: 6.25 | C183: 6.25 | D183: 5.97 | E183: 6.07 | F183: 302800 | G183: 6.07 | H183: -0.04713632377 | I183: -0.02496099844
A184: 2010-09-23 | B184: 5.97 | C184: 6.45 | D184: 5.97 | E184: 6.23 | F184: 255400 | G184: 6.23 | H184: -0.09193632377 | I184: -0.0448
A185: 2010-09-24 | B185: 6.38 | C185: 6.55 | D185: 6.38 | E185: 6.5 | F185: 201500 | G185: 6.5 | H185: -0.02325960685 | I185: 0.06867671692
A186: 2010-09-27 | B186: 6.52 | C186: 6.52 | D186: 6.31 | E186: 6.39 | F186: 102900 | G186: 6.39 | H186: -0.001316033187 | I186: 0.02194357367
A187: 2010-09-28 | B187: 6.43 | C187: 6.44 | D187: 6.15 | E187: 6.36 | F187: 129300 | G187: 6.36 | H187: -0.01511971417 | I187: -0.01380368098
A188: 2010-09-29 | B188: 6.3 | C188: 6.43 | D188: 6.19 | E188: 6.27 | F188: 87000 | G188: 6.27 | H188: -0.03533744356 | I188: -0.02021772939
A189: 2010-09-30 | B189: 6.35 | C189: 6.5 | D189: 6.16 | E189: 6.3 | F189: 235900 | G189: 6.3 | H189: -0.02740093563 | I189: 0.007936507937
A190: 2010-10-01 | B190: 6.42 | C190: 6.43 | D190: 6.22 | E190: 6.37 | F190: 142400 | G190: 6.37 | H190: -0.01637731358 | I190: 0.01102362205
A191: 2010-10-04 | B191: 6.33 | C191: 6.48 | D191: 6.17 | E191: 6.27 | F191: 167100 | G191: 6.27 | H191: -0.03039600517 | I191: -0.01401869159
A192: 2010-10-05 | B192: 6.38 | C192: 6.64 | D192: 6.29 | E192: 6.49 | F192: 201200 | G192: 6.49 | H192: -0.02249711101 | I192: 0.007898894155
A193: 2010-10-06 | B193: 6.49 | C193: 6.49 | D193: 6.3 | E193: 6.36 | F193: 115100 | G193: 6.36 | H193: -0.005255731702 | I193: 0.01724137931
A194: 2010-10-07 | B194: 6.44 | C194: 6.45 | D194: 6.3 | E194: 6.32 | F194: 172700 | G194: 6.32 | H194: -0.01295989195 | I194: -0.007704160247
A195: 2010-10-08 | B195: 6.35 | C195: 6.54 | D195: 6.23 | E195: 6.46 | F195: 183100 | G195: 6.46 | H195: -0.02693504723 | I195: -0.01397515528
A196: 2010-10-11 | B196: 6.47 | C196: 6.78 | D196: 6.38 | E196: 6.59 | F196: 198100 | G196: 6.59 | H196: -0.008037409432 | I196: =(B196-B195)/B195 -> 0.0188976378
A197: 2010-10-12 | B197: 6.54 | C197: 6.54 | D197: 6.34 | E197: 6.45 | F197: 180300 | G197: 6.45 | H197: =((B197-B196)/B196)+H196 -> 0.002781755946 | I197: 0.01081916538
A198: 2010-10-13 | B198: 6.52 | C198: 6.85 | D198: 6.52 | E198: 6.84 | F198: 202400 | G198: 6.84 | H198: -0.0002763480293 | I198: -0.003058103976
A199: 2010-10-14 | B199: 6.85 | C199: 6.85 | D199: 6.6 | E199: 6.69 | F199: 173100 | G199: 6.69 | H199: 0.0503371489 | I199: 0.05061349693
A200: 2010-10-15 | B200: 6.81 | C200: 6.89 | D200: 6.59 | E200: 6.85 | F200: 302100 | G200: 6.85 | H200: 0.04449773284 | I200: -0.005839416058
... 1196 more rows

Sheet The Priceline Group
A1: Date | B1: Open | C1: High | D1: Low | E1: Close | F1: Volume | G1: Adj Close | H1: Cumulative Return | I1: Daily Return
A2: 2010-01-04 | B2: 222.320007 | C2: 225.300003 | D2: 221.580002 | E2: 223.960007 | F2: 863200 | G2: 223.960007
A3: 2010-01-05 | B3: 224.100006 | C3: 228 | D3: 222.149994 | E3: 226.559998 | F3: 801100 | G3: 226.559998 | H3: =(B3-B2)/B2 -> 0.0080064724 | I3: =(B3-B2)/B2 -> 0.0080064724
A4: 2010-01-06 | B4: 225.119995 | C4: 226.419998 | D4: 218.149994 | E4: 219.080002 | F4: 1007800 | G4: 219.080002 | H4: =((B4-B3)/B3)+H3 -> 0.01255796268 | I4: =(B4-B3)/B3 -> 0.004551490284
A5: 2010-01-07 | B5: 219.660004 | C5: 220.5 | D5: 214.119995 | E5: 216.130005 | F5: 768700 | G5: 216.130005 | H5: =((B5-B4)/B4)+H4 -> -0.01169572922 | I5: =(B5-B4)/B4 -> -0.0242536919
A6: 2010-01-08 | B6: 213.100006 | C6: 218.429993 | D6: 212.130005 | E6: 216.210007 | F6: 756600 | G6: 216.210007 | H6: -0.04156005536 | I6: -0.02986432614
A7: 2010-01-11 | B7: 217.800003 | C7: 219.5 | D7: 212.25 | E7: 218.910004 | F7: 784500 | G7: 218.910004 | H7: -0.019504697 | I7: 0.02205535837
A8: 2010-01-12 | B8: 216.059998 | C8: 216.990005 | D8: 210.25 | E8: 213.979996 | F8: 1222300 | G8: 213.979996 | H8: -0.02749370056 | I8: -0.007989003563
A9: 2010-01-13 | B9: 214.449997 | C9: 215.919998 | D9: 207.759995 | E9: 214.300003 | F9: 841000 | G9: 214.300003 | H9: -0.03494533906 | I9: -0.007451638503
A10: 2010-01-14 | B10: 212.970001 | C10: 214.729996 | D10: 206.009995 | E10: 208.770004 | F10: 1402500 | G10: 208.770004 | H10: -0.04184669612 | I10: -0.006901357056
A11: 2010-01-15 | B11: 208.210007 | C11: 210.5 | D11: 205.550003 | E11: 208.770004 | F11: 1210900 | G11: 208.770004 | H11: -0.06419723365 | I11: -0.02235053753
A12: 2010-01-19 | B12: 208.550003 | C12: 212.449997 | D12: 207.789993 | E12: 208.699997 | F12: 625400 | G12: 208.699997 | H12: -0.0625642862 | I12: 0.00163294745
A13: 2010-01-20 | B13: 206.529999 | C13: 211.5 | D13: 203.089996 | E13: 206.309998 | F13: 673600 | G13: 206.309998 | H13: -0.07225023188 | I13: -0.009685945677
A14: 2010-01-21 | B14: 205.880005 | C14: 211.110001 | D14: 205.539993 | E14: 208.039993 | F14: 843000 | G14: 208.039993 | H14: -0.07539744537 | I14: -0.003147213495
A15: 2010-01-22 | B15: 207.860001 | C15: 209.559998 | D15: 202.809998 | E15: 204.199997 | F15: 837600 | G15: 204.199997 | H15: -0.06578021226 | I15: 0.009617233106
A16: 2010-01-25 | B16: 205.410004 | C16: 206.009995 | D16: 199.889999 | E16: 202.839996 | F16: 653100 | G16: 202.839996 | H16: -0.07756697734 | I16: -0.01178676507
A17: 2010-01-26 | B17: 202.410004 | C17: 207.210007 | D17: 200.839996 | E17: 204.440002 | F17: 767400 | G17: 204.440002 | H17: -0.09217191352 | I17: -0.01460493618
A18: 2010-01-27 | B18: 203.660004 | C18: 208.490005 | D18: 203.179993 | E18: 207.520004 | F18: 676800 | G18: 207.520004 | H18: -0.08599632943 | I18: 0.006175584088
A19: 2010-01-28 | B19: 208.119995 | C19: 209.699997 | D19: 201.389999 | E19: 201.679993 | F19: 672200 | G19: 201.679993 | H19: -0.06409713022 | I19: 0.02189919922
A20: 2010-01-29 | B20: 203.960007 | C20: 205 | D20: 193.460007 | E20: 195.350006 | F20: 1089700 | G20: 195.350006 | H20: -0.08408554123 | I20: -0.01998841101
A21: 2010-02-01 | B21: 196.520004 | C21: 204.529999 | D21: 192.720001 | E21: 204.199997 | F21: 1303000 | G21: 204.199997 | H21: -0.1205632954 | I21: -0.03647775419
A22: 2010-02-02 | B22: 205.25 | C22: 205.820007 | D22: 201.729996 | E22: 204.419998 | F22: 607800 | G22: 204.419998 | H22: -0.07614035718 | I22: 0.04442293824
A23: 2010-02-03 | B23: 201.979996 | C23: 211.520004 | D23: 201.979996 | E23: 208.529999 | F23: 1047500 | G23: 208.529999 | H23: -0.09207216717 | I23: -0.01593180999
A24: 2010-02-04 | B24: 207.300003 | C24: 208.509995 | D24: 199.710007 | E24: 200.009995 | F24: 1137400 | G24: 200.009995 | H24: -0.06573289048 | I24: 0.02633927669
A25: 2010-02-05 | B25: 201 | C25: 201.910004 | D25: 193.369995 | E25: 196.960007 | F25: 1287100 | G25: 196.960007 | H25: -0.09612364258 | I25: -0.03039075209
A26: 2010-02-08 | B26: 199.449997 | C26: 204.160004 | D26: 198.529999 | E26: 200.619995 | F26: 966200 | G26: 200.619995 | H26: -0.1038351003 | I26: -0.007711457711
A27: 2010-02-09 | B27: 203.5 | C27: 206.330002 | D27: 203.229996 | E27: 205.380005 | F27: 991900 | G27: 205.380005 | H27: -0.08352924388 | I27: 0.02030585641
A28: 2010-02-10 | B28: 205.800003 | C28: 208.440002 | D28: 203.630005 | E28: 206.399994 | F28: 733700 | G28: 206.399994 | H28: -0.07222701783 | I28: 0.01130222604
A29: 2010-02-11 | B29: 203.949997 | C29: 209.639999 | D29: 203.110001 | E29: 208.899994 | F29: 858200 | G29: 208.899994 | H29: -0.08121635687 | I29: -0.008989339033
A30: 2010-02-12 | B30: 206.5 | C30: 208.029999 | D30: 203.75 | E30: 207.779999 | F30: 830500 | G30: 207.779999 | H30: -0.0687132775 | I30: 0.01250307937
A31: 2010-02-16 | B31: 208.75 | C31: 212.25 | D31: 208.75 | E31: 211.210007 | F31: 846700 | G31: 211.210007 | H31: -0.05781739372 | I31: 0.01089588378
A32: 2010-02-17 | B32: 213.289993 | C32: 215.729996 | D32: 209.369995 | E32: 212.869995 | F32: 2011600 | G32: 212.869995 | H32: -0.03606892426 | I32: 0.02174846946
A33: 2010-02-18 | B33: 227.490005 | C33: 235.800003 | D33: 226.020004 | E33: 232.949997 | F33: 3965300 | G33: 232.949997 | H33: 0.03050715744 | I33: 0.0665760817
A34: 2010-02-19 | B34: 232.5 | C34: 233.660004 | D34: 229.669998 | E34: 230.570007 | F34: 1406100 | G34: 230.570007 | H34: 0.05253008104 | I34: 0.0220229236
A35: 2010-02-22 | B35: 232.039993 | C35: 232.229996 | D35: 226.240005 | E35: 229.070007 | F35: 880600 | G35: 229.070007 | H35: 0.05055155631 | I35: -0.001978524731
A36: 2010-02-23 | B36: 229.449997 | C36: 229.5 | D36: 223.600006 | E36: 225.089996 | F36: 1151900 | G36: 225.089996 | H36: 0.03938970457 | I36: -0.01116185174
A37: 2010-02-24 | B37: 226 | C37: 226.869995 | D37: 221.059998 | E37: 225.020004 | F37: 898500 | G37: 225.020004 | H37: 0.0243537619 | I37: -0.01503594267
A38: 2010-02-25 | B38: 222 | C38: 224.699997 | D38: 218.5 | E38: 223.869995 | F38: 1068900 | G38: 223.869995 | H38: 0.006654646858 | I38: -0.01769911504
A39: 2010-02-26 | B39: 224 | C39: 226.990005 | D39: 221.050003 | E39: 226.710007 | F39: 987600 | G39: 226.710007 | H39: 0.01566365587 | I39: 0.009009009009
A40: 2010-03-01 | B40: 228.770004 | C40: 238.990005 | D40: 227.639999 | E40: 238.539993 | F40: 1657900 | G40: 238.539993 | H40: 0.03695831658 | I40: 0.02129466071
A41: 2010-03-02 | B41: 241.039993 | C41: 245 | D41: 238.899994 | E41: 241.339996 | F41: 1836700 | G41: 241.339996 | H41: 0.09059292245 | I41: 0.05363460587
A42: 2010-03-03 | B42: 241.5 | C42: 241.5 | D42: 235 | E42: 235.820007 | F42: 963600 | G42: 235.820007 | H42: 0.0925013485 | I42: 0.001908426043
A43: 2010-03-04 | B43: 233 | C43: 237.830002 | D43: 229.509995 | E43: 233.119995 | F43: 1594700 | G43: 233.119995 | H43: 0.05730466113 | I43: -0.03519668737
A44: 2010-03-05 | B44: 236.580002 | C44: 236.990005 | D44: 231.419998 | E44: 235.339996 | F44: 2236700 | G44: 235.339996 | H44: 0.07266947658 | I44: 0.01536481545
A45: 2010-03-08 | B45: 236 | C45: 240.979996 | D45: 233.699997 | E45: 240.179993 | F45: 1268800 | G45: 240.179993 | H45: 0.07021786615 | I45: -0.002451610428
A46: 2010-03-09 | B46: 239.169998 | C46: 243.149994 | D46: 236.369995 | E46: 238.330002 | F46: 898200 | G46: 238.330002 | H46: 0.08365006106 | I46: 0.01343219492
A47: 2010-03-10 | B47: 238.149994 | C47: 243.520004 | D47: 238 | E47: 240.990005 | F47: 792800 | G47: 240.990005 | H47: 0.07938529538 | I47: -0.004264765684
A48: 2010-03-11 | B48: 240.990005 | C48: 242.410004 | D48: 237.610001 | E48: 242.210007 | F48: 624500 | G48: 242.210007 | H48: 0.09131059906 | I48: 0.01192530368
A49: 2010-03-12 | B49: 242.589996 | C49: 243.699997 | D49: 237.669998 | E49: 238.910004 | F49: 718000 | G49: 238.910004 | H49: 0.09794984122 | I49: 0.006639242154
A50: 2010-03-15 | B50: 239.339996 | C50: 240 | D50: 234.360001 | E50: 238.860001 | F50: 443600 | G50: 238.860001 | H50: 0.08455275125 | I50: -0.01339708996
A51: 2010-03-16 | B51: 239 | C51: 242.25 | D51: 237.410004 | E51: 241.809998 | F51: 617600 | G51: 241.809998 | H51: 0.0831321947 | I51: -0.001420556554
A52: 2010-03-17 | B52: 242.789993 | C52: 246.009995 | D52: 239.649994 | E52: 242.919998 | F52: 858800 | G52: 242.919998 | H52: 0.098989906 | I52: 0.0158577113
A53: 2010-03-18 | B53: 243.949997 | C53: 244.899994 | D53: 240.369995 | E53: 242.809998 | F53: 528400 | G53: 242.809998 | H53: 0.1037677141 | I53: 0.00477780812
A54: 2010-03-19 | B54: 244.610001 | C54: 244.610001 | D54: 238.470001 | E54: 239.009995 | F54: 1015900 | G54: 239.009995 | H54: 0.106473203 | I54: 0.002705488863
A55: 2010-03-22 | B55: 238.339996 | C55: 243.509995 | D55: 236.669998 | E55: 243.020004 | F55: 603300 | G55: 243.020004 | H55: 0.08084054293 | I55: -0.02563266005
A56: 2010-03-23 | B56: 244.130005 | C56: 244.800003 | D56: 238.690002 | E56: 244.410004 | F56: 793000 | G56: 244.410004 | H56: 0.1051336079 | I56: 0.02429306494
A57: 2010-03-24 | B57: 242.520004 | C57: 244.490005 | D57: 241.570007 | E57: 243.800003 | F57: 595900 | G57: 243.800003 | H57: 0.0985387569 | I57: -0.006594850969
A58: 2010-03-25 | B58: 246.600006 | C58: 262.670013 | D58: 246.509995 | E58: 255.029999 | F58: 2304600 | G58: 255.029999 | H58: 0.1153621196 | I58: 0.01682336274
A59: 2010-03-26 | B59: 254.949997 | C59: 256.23999 | D59: 250.020004 | E59: 252.110001 | F59: 783300 | G59: 252.110001 | H59: 0.1492225852 | I59: 0.03386046552
A60: 2010-03-29 | B60: 257.119995 | C60: 259.920013 | D60: 254.389999 | E60: 255.669998 | F60: 1088300 | G60: 255.669998 | H60: 0.1577340503 | I60: 0.008511465093
A61: 2010-03-30 | B61: 255.5 | C61: 258.059998 | D61: 253.100006 | E61: 255.990005 | F61: 587700 | G61: 255.990005 | H61: 0.1514335095 | I61: -0.006300540726
A62: 2010-03-31 | B62: 255.509995 | C62: 258.959991 | D62: 253.009995 | E62: 255 | F62: 861600 | G62: 255 | H62: 0.1514726289 | I62: 3.911937378e-05
A63: 2010-04-01 | B63: 257.940002 | C63: 260.279999 | D63: 253.809998 | E63: 257 | F63: 885900 | G63: 257 | H63: 0.1609830475 | I63: 0.009510418565
A64: 2010-04-05 | B64: 257.980011 | C64: 259.160004 | D64: 255.149994 | E64: 257.649994 | F64: 811400 | G64: 257.649994 | H64: 0.1611381572 | I64: 0.0001551097142
A65: 2010-04-06 | B65: 255.149994 | C65: 262.959991 | D65: 255.149994 | E65: 261.600006 | F65: 808100 | G65: 261.600006 | H65: 0.1501682491 | I65: -0.01096990805
A66: 2010-04-07 | B66: 262.980011 | C66: 267.019989 | D66: 258 | E66: 259.809998 | F66: 989500 | G66: 259.809998 | H66: 0.1808561472 | I66: 0.03068789804
A67: 2010-04-08 | B67: 259.089996 | C67: 260.859985 | D67: 256.51001 | E67: 259.309998 | F67: 859500 | G67: 259.309998 | H67: 0.1660640914 | I67: -0.01479205581
A68: 2010-04-09 | B68: 260.440002 | C68: 260.440002 | D68: 256.309998 | E68: 259.48999 | F68: 493000 | G68: 259.48999 | H68: 0.1712746592 | I68: =(B68-B67)/B67 -> 0.005210567837
A69: 2010-04-12 | B69: 260.25 | C69: 262.920013 | D69: 259.48999 | E69: 260.230011 | F69: 413300 | G69: 260.230011 | H69: =((B69-B68)/B68)+H68 -> 0.1705451169 | I69: -0.0007295423074
A70: 2010-04-13 | B70: 254.330002 | C70: 257.709991 | D70: 251.130005 | E70: 257.600006 | F70: 1158700 | G70: 257.600006 | H70: 0.1477977663 | I70: -0.02274735062
A71: 2010-04-14 | B71: 256.040009 | C71: 265.649994 | D71: 256.040009 | E71: 265.26001 | F71: 878200 | G71: 265.26001 | H71: 0.1545213419 | I71: 0.006723575617
A72: 2010-04-15 | B72: 264.059998 | C72: 266.880005 | D72: 262.549988 | E72: 264.980011 | F72: 763900 | G72: 264.980011 | H72: 0.1858445286 | I72: 0.03132318668
A73: 2010-04-16 | B73: 263.070007 | C73: 263.76001 | D73: 252.779999 | E73: 254.860001 | F73: 1148200 | G73: 254.860001 | H73: 0.1820954147 | I73: -0.003749113866
A74: 2010-04-19 | B74: 253.660004 | C74: 254.339996 | D74: 244.199997 | E74: 247.580002 | F74: 1157500 | G74: 247.580002 | H74: 0.1463254571 | I74: -0.03576995761
A75: 2010-04-20 | B75: 251.119995 | C75: 256.950012 | D75: 249.039993 | E75: 255.279999 | F75: 982000 | G75: 255.279999 | H75: 0.136312018 | I75: -0.01001343909
A76: 2010-04-21 | B76: 253.490005 | C76: 256.190002 | D76: 250.160004 | E76: 253.149994 | F76: 585900 | G76: 253.149994 | H76: 0.145749777 | I76: 0.009437759028
A77: 2010-04-22 | B77: 251.639999 | C77: 258.980011 | D77: 248.639999 | E77: 258.309998 | F77: 734000 | G77: 258.309998 | H77: 0.1384516352 | I77: -0.007298141795
A78: 2010-04-23 | B78: 259.290009 | C78: 264 | D78: 255.089996 | E78: 261.700012 | F78: 742300 | G78: 261.700012 | H78: 0.1688522473 | I78: 0.03040061211
A79: 2010-04-26 | B79: 263.519989 | C79: 273.820007 | D79: 262.799988 | E79: 270.359985 | F79: 1215000 | G79: 270.359985 | H79: 0.1851659496 | I79: 0.01631370224
A80: 2010-04-27 | B80: 268.51001 | C80: 269.950012 | D80: 262.339996 | E80: 264.299988 | F80: 999300 | G80: 264.299988 | H80: 0.2041019742 | I80: 0.01893602462
A81: 2010-04-28 | B81: 265.549988 | C81: 268.51001 | D81: 258.51001 | E81: 261.779999 | F81: 1135500 | G81: 261.779999 | H81: 0.1930780947 | I81: -0.01102387952
A82: 2010-04-29 | B82: 263.200012 | C82: 273.929993 | D82: 263.200012 | E82: 273 | F82: 902900 | G82: 273 | H82: 0.1842286271 | I82: -0.008849467544
A83: 2010-04-30 | B83: 273.839996 | C83: 273.869995 | D83: 261.51001 | E83: 262.049988 | F83: 902700 | G83: 262.049988 | H83: 0.2246540964 | I83: 0.04042546928
A84: 2010-05-03 | B84: 264.529999 | C84: 270.48999 | D84: 264.5 | E84: 269.079987 | F84: 687500 | G84: 269.079987 | H84: 0.1906561519 | I84: -0.03399794455
A85: 2010-05-04 | B85: 265 | C85: 265.630005 | D85: 256.279999 | E85: 258.369995 | F85: 1018400 | G85: 258.369995 | H85: 0.1924328917 | I85: 0.001776739885
A86: 2010-05-05 | B86: 251.490005 | C86: 256.26001 | D86: 241.020004 | E86: 246.979996 | F86: 1616300 | G86: 246.979996 | H86: 0.1414517785 | I86: -0.05098111321
A87: 2010-05-06 | B87: 243.509995 | C87: 248.210007 | D87: 202.690002 | E87: 233.100006 | F87: 2552200 | G87: 233.100006 | H87: 0.1097208555 | I87: -0.03173092306
A88: 2010-05-07 | B88: 231.970001 | C88: 236.880005 | D88: 224.399994 | E88: 225.389999 | F88: 1731700 | G88: 225.389999 | H88: 0.06233062822 | I88: -0.04739022725
A89: 2010-05-10 | B89: 241.75 | C89: 249.789993 | D89: 240.149994 | E89: 249.75 | F89: 3046500 | G89: 249.75 | H89: 0.1044912479 | I89: 0.04216061973
A90: 2010-05-11 | B90: 212.149994 | C90: 222.740005 | D90: 208.889999 | E90: 219.570007 | F90: 7077100 | G90: 219.570007 | H90: -0.01794931462 | I90: -0.1224405626
A91: 2010-05-12 | B91: 221.75 | C91: 221.75 | D91: 213.460007 | E91: 217.880005 | F91: 2309400 | G91: 217.880005 | H91: 0.02730171659 | I91: 0.04525103121
A92: 2010-05-13 | B92: 215.639999 | C92: 221.179993 | D92: 211.860001 | E92: 212.889999 | F92: 1472600 | G92: 212.889999 | H92: -0.0002518392121 | I92: -0.02755355581
A93: 2010-05-14 | B93: 208.860001 | C93: 210.190002 | D93: 204 | E93: 208.279999 | F93: 1525600 | G93: 208.279999 | H93: -0.03169312112 | I93: -0.03144128191
A94: 2010-05-17 | B94: 206.570007 | C94: 206.990005 | D94: 196.009995 | E94: 200.149994 | F94: 2250500 | G94: 200.149994 | H94: -0.04265737464 | I94: -0.01096425351
A95: 2010-05-18 | B95: 201.729996 | C95: 206.770004 | D95: 192.600006 | E95: 192.860001 | F95: 2492900 | G95: 192.860001 | H95: -0.06608774127 | I95: -0.02343036664
A96: 2010-05-19 | B96: 191.210007 | C96: 196 | D96: 184.210007 | E96: 190.110001 | F96: 2592600 | G96: 190.110001 | H96: -0.1182365997 | I96: -0.05214885842
A97: 2010-05-20 | B97: 182.610001 | C97: 188.080002 | D97: 179.100006 | E97: 181 | F97: 2694800 | G97: 181 | H97: -0.1632133566 | I97: -0.04497675689
A98: 2010-05-21 | B98: 177.130005 | C98: 191.800003 | D98: 176 | E98: 191.240005 | F98: 2887900 | G98: 191.240005 | H98: -0.193222644 | I98: -0.03000928739
A99: 2010-05-24 | B99: 193.789993 | C99: 197.5 | D99: 192.679993 | E99: 193.139999 | F99: 2300100 | G99: 193.139999 | H99: -0.09916750069 | I99: 0.09405514328
A100: 2010-05-25 | B100: 186.539993 | C100: 194.25 | D100: 185.130005 | E100: 193.440002 | F100: 1658900 | G100: 193.440002 | H100: -0.1365791332 | I100: -0.0374116325
A101: 2010-05-26 | B101: 197.020004 | C101: 200.970001 | D101: 191.770004 | E101: 192.419998 | F101: 2386800 | G101: 192.419998 | H101: -0.08039809216 | I101: 0.05618104103
A102: 2010-05-27 | B102: 197.860001 | C102: 198.679993 | D102: 191.389999 | E102: 197.589996 | F102: 1462600 | G102: 197.589996 | H102: -0.07613458093 | I102: 0.004263511232
A103: 2010-05-28 | B103: 197.669998 | C103: 197.880005 | D103: 190.5 | E103: 191.160004 | F103: 1650600 | G103: 191.160004 | H103: -0.07709487103 | I103: -0.0009602900993
A104: 2010-06-01 | B104: 191.119995 | C104: 192.860001 | D104: 184.880005 | E104: 185.009995 | F104: 1474100 | G104: 185.009995 | H104: -0.1102309213 | I104: -0.03313605032
A105: 2010-06-02 | B105: 185.600006 | C105: 189.830002 | D105: 183.860001 | E105: 189.830002 | F105: 1595100 | G105: 189.830002 | H105: -0.1391132421 | I105: -0.02888232076
A106: 2010-06-03 | B106: 189.520004 | C106: 189.820007 | D106: 182.179993 | E106: 185.110001 | F106: 1816400 | G106: 185.110001 | H106: -0.1179925639 | I106: 0.0211206782
A107: 2010-06-04 | B107: 180.360001 | C107: 188.800003 | D107: 177.639999 | E107: 178.539993 | F107: 1827400 | G107: 178.539993 | H107: -0.1663252085 | I107: -0.04833264461
A108: 2010-06-07 | B108: 179.600006 | C108: 182.679993 | D108: 176.289993 | E108: 176.389999 | F108: 1431300 | G108: 176.389999 | H108: -0.1705389754 | I108: -0.004213766887
A109: 2010-06-08 | B109: 177.649994 | C109: 180.339996 | D109: 173.320007 | E109: 176.729996 | F109: 1806000 | G109: 176.729996 | H109: -0.1813965029 | I109: -0.01085752748
A110: 2010-06-09 | B110: 178.350006 | C110: 182.240005 | D110: 174.690002 | E110: 175.190002 | F110: 1523400 | G110: 175.190002 | H110: -0.1774561031 | I110: 0.003940399795
A111: 2010-06-10 | B111: 178.899994 | C111: 181.610001 | D111: 176.559998 | E111: 181.240005 | F111: 1239000 | G111: 181.240005 | H111: -0.1743723465 | I111: 0.003083756555
A112: 2010-06-11 | B112: 178.949997 | C112: 184.440002 | D112: 178.380005 | E112: 183.910004 | F112: 921300 | G112: 183.910004 | H112: -0.174092844 | I112: 0.0002795025247
A113: 2010-06-14 | B113: 186.330002 | C113: 187.600006 | D113: 183.899994 | E113: 184.139999 | F113: 975500 | G113: 184.139999 | H113: -0.1328522454 | I113: 0.04124059862
A114: 2010-06-15 | B114: 186.490005 | C114: 187.380005 | D114: 184.160004 | E114: 185.770004 | F114: 908700 | G114: 185.770004 | H114: -0.1319935377 | I114: 0.00085870766
A115: 2010-06-16 | B115: 192.990005 | C115: 198.800003 | D115: 192.720001 | E115: 196.410004 | F115: 2239500 | G115: 196.410004 | H115: -0.09713912288 | I115: 0.03485441485
A116: 2010-06-17 | B116: 198.869995 | C116: 199.5 | D116: 193.009995 | E116: 195.259995 | F116: 1329000 | G116: 195.259995 | H116: -0.06667127559 | I116: 0.03046784729
A117: 2010-06-18 | B117: 195.5 | C117: 195.630005 | D117: 191.589996 | E117: 193.089996 | F117: 1426000 | G117: 193.089996 | H117: -0.08361699433 | I117: -0.01694571873
A118: 2010-06-21 | B118: 196.860001 | C118: 197.220001 | D118: 187.619995 | E118: 189.25 | F118: 1411600 | G118: 189.25 | H118: -0.07666046747 | I118: 0.006956526854
A119: 2010-06-22 | B119: 189.860001 | C119: 194.710007 | D119: 188.580002 | E119: 188.949997 | F119: 1200800 | G119: 188.949997 | H119: -0.112218732 | I119: -0.03555826458
A120: 2010-06-23 | B120: 189.300003 | C120: 190.410004 | D120: 185.419998 | E120: 188.25 | F120: 811500 | G120: 188.25 | H120: -0.1151682633 | I120: -0.002949531218
A121: 2010-06-24 | B121: 187.960007 | C121: 190.970001 | D121: 184.009995 | E121: 185.110001 | F121: 1209800 | G121: 185.110001 | H121: -0.1222469531 | I121: -0.007078689798
A122: 2010-06-25 | B122: 184.240005 | C122: 192.990005 | D122: 184.229996 | E122: 191.990005 | F122: 1230000 | G122: 191.990005 | H122: -0.142038408 | I122: -0.01979145489
A123: 2010-06-28 | B123: 192.259995 | C123: 193.729996 | D123: 186.669998 | E123: 187.929993 | F123: 976100 | G123: 187.929993 | H123: -0.09850828538 | I123: 0.04353012257
A124: 2010-06-29 | B124: 184.25 | C124: 185.529999 | D124: 179.190002 | E124: 180.289993 | F124: 1348200 | G124: 180.289993 | H124: -0.1401705927 | I124: -0.04166230734
A125: 2010-06-30 | B125: 179.580002 | C125: 183.949997 | D125: 175.660004 | E125: 176.539993 | F125: 1310800 | G125: 176.539993 | H125: -0.1655165792 | I125: -0.02534598643
A126: 2010-07-01 | B126: 176.660004 | C126: 182.440002 | D126: 173.75 | E126: 182.029999 | F126: 1463300 | G126: 182.029999 | H126: -0.1817767304 | I126: -0.01626015128
A127: 2010-07-02 | B127: 181.229996 | C127: 181.229996 | D127: 175.75 | E127: 176.410004 | F127: 1422900 | G127: 176.410004 | H127: -0.1559078756 | I127: 0.02586885484
A128: 2010-07-06 | B128: 179.139999 | C128: 183 | D128: 176.990005 | E128: 181.5 | F128: 1489300 | G128: 181.5 | H128: -0.1674401663 | I128: -0.01153229071
A129: 2010-07-07 | B129: 182.270004 | C129: 190.839996 | D129: 181.270004 | E129: 190.729996 | F129: 1466700 | G129: 190.729996 | H129: -0.1499677703 | I129: 0.01747239599
A130: 2010-07-08 | B130: 193.699997 | C130: 199.949997 | D130: 193 | E130: 199.279999 | F130: 1949400 | G130: 199.279999 | H130: -0.08725864238 | I130: 0.06270912794
A131: 2010-07-09 | B131: 199.75 | C131: 204.600006 | D131: 196.699997 | E131: 204.089996 | F131: 1748400 | G131: 204.089996 | H131: -0.0560247596 | I131: 0.03123388278
A132: 2010-07-12 | B132: 204.139999 | C132: 205.520004 | D132: 201 | E132: 204 | F132: 1006600 | G132: 204 | H132: -0.03404729277 | I132: =(B132-B131)/B131 -> 0.02197746683
A133: 2010-07-13 | B133: 207.100006 | C133: 218.990005 | D133: 205.910004 | E133: 216.320007 | F133: 2259900 | G133: 216.320007 | H133: =((B133-B132)/B132)+H132 -> -0.01954740537 | I133: 0.0144998874
A134: 2010-07-14 | B134: 216.5 | C134: 216.5 | D134: 211.139999 | E134: 215.350006 | F134: 1376500 | G134: 215.350006 | H134: 0.02584126546 | I134: 0.04538867082
A135: 2010-07-15 | B135: 214.339996 | C135: 223.300003 | D135: 212.350006 | E135: 222.610001 | F135: 1740900 | G135: 222.610001 | H135: 0.01586434167 | I135: -0.009976923788
A136: 2010-07-16 | B136: 223.169998 | C136: 225 | D136: 216.5 | E136: 218.210007 | F136: 1555800 | G136: 218.210007 | H136: 0.05706058206 | I136: 0.04119624039
A137: 2010-07-19 | B137: 218.820007 | C137: 222.399994 | D137: 217.550003 | E137: 220.050003 | F137: 984800 | G137: 220.050003 | H137: 0.03756875502 | I137: -0.01949182703
A138: 2010-07-20 | B138: 216.039993 | C138: 221.850006 | D138: 216.029999 | E138: 221.639999 | F138: 1048500 | G138: 221.639999 | H138: 0.02486418546 | I138: -0.01270456956
A139: 2010-07-21 | B139: 223.270004 | C139: 224.690002 | D139: 217.619995 | E139: 218.429993 | F139: 917200 | G139: 218.429993 | H139: 0.05833026228 | I139: 0.03346607681
A140: 2010-07-22 | B140: 221.559998 | C140: 228.5 | D140: 221.25 | E140: 227.919998 | F140: 1094700 | G140: 227.919998 | H140: 0.0506713472 | I140: -0.007658915078
A141: 2010-07-23 | B141: 225.5 | C141: 228.759995 | D141: 223.699997 | E141: 228.639999 | F141: 1067900 | G141: 228.639999 | H141: 0.06845434971 | I141: 0.01778300251
A142: 2010-07-26 | B142: 228.800003 | C142: 231.860001 | D142: 226.330002 | E142: 231.550003 | F142: 679100 | G142: 231.550003 | H142: 0.08308850935 | I142: 0.01463415965
A143: 2010-07-27 | B143: 232.639999 | C143: 234.449997 | D143: 223.880005 | E143: 224.029999 | F143: 1236100 | G143: 224.029999 | H143: 0.09987170843 | I143: 0.01678319908
A144: 2010-07-28 | B144: 223.949997 | C144: 227.929993 | D144: 221.589996 | E144: 224.070007 | F144: 745400 | G144: 224.070007 | H144: 0.06251784823 | I144: -0.0373538602
A145: 2010-07-29 | B145: 224 | C145: 226.490005 | D145: 217.720001 | E145: 224.190002 | F145: 921700 | G145: 224.190002 | H145: 0.06274112575 | I145: 0.0002232775203
A146: 2010-07-30 | B146: 222.770004 | C146: 227.350006 | D146: 220 | E146: 224.399994 | F146: 1096800 | G146: 224.399994 | H146: 0.05725007218 | I146: -0.005491053571
A147: 2010-08-02 | B147: 226.899994 | C147: 230 | D147: 225.339996 | E147: 227.380005 | F147: 850000 | G147: 227.380005 | H147: 0.07578932758 | I147: 0.0185392554
A148: 2010-08-03 | B148: 227.509995 | C148: 234.399994 | D148: 226.149994 | E148: 230.669998 | F148: 2660200 | G148: 230.669998 | H148: 0.07847774105 | I148: 0.002688413469
A149: 2010-08-04 | B149: 272.290009 | C149: 286.850006 | D149: 272.23999 | E149: 281.299988 | F149: 6827000 | G149: 281.299988 | H149: 0.27530432 | I149: 0.196826579
A150: 2010-08-05 | B150: 279.48999 | C150: 292.670013 | D150: 277 | E150: 292.670013 | F150: 2902500 | G150: 292.670013 | H150: 0.3017466454 | I150: 0.02644232532
A151: 2010-08-06 | B151: 289.950012 | C151: 298.98999 | D151: 288.690002 | E151: 295.25 | F151: 3189000 | G151: 295.25 | H151: 0.3391720358 | I151: 0.03742539044
A152: 2010-08-09 | B152: 296.600006 | C152: 296.700012 | D152: 290.01001 | E152: 292.730011 | F152: 1457800 | G152: 292.730011 | H152: 0.3621070029 | I152: 0.02293496715
A153: 2010-08-10 | B153: 289.25 | C153: 295.869995 | D153: 287.230011 | E153: 294.01001 | F153: 1494900 | G153: 294.01001 | H153: 0.3373261336 | I153: -0.02478086936
A154: 2010-08-11 | B154: 289.5 | C154: 291.820007 | D154: 285.350006 | E154: 289.100006 | F154: 1228800 | G154: 289.100006 | H154: 0.3381904378 | I154: 0.0008643042351
A155: 2010-08-12 | B155: 287 | C155: 300.850006 | D155: 285.690002 | E155: 299.600006 | F155: 1739000 | G155: 299.600006 | H155: 0.3295548592 | I155: -0.008635578584
A156: 2010-08-13 | B156: 299.5 | C156: 301.980011 | D156: 294.48999 | E156: 297.190002 | F156: 1157300 | G156: 297.190002 | H156: 0.3731088662 | I156: 0.04355400697
A157: 2010-08-16 | B157: 295.339996 | C157: 299.200012 | D157: 293 | E157: 294.519989 | F157: 972300 | G157: 294.519989 | H157: 0.3592190365 | I157: -0.01388982972
A158: 2010-08-17 | B158: 297.950012 | C158: 307.5 | D158: 296.059998 | E158: 303.570007 | F158: 1983900 | G158: 303.570007 | H158: 0.3680563631 | I158: 0.008837326591
A159: 2010-08-18 | B159: 302.970001 | C159: 309.459991 | D159: 296.76001 | E159: 297.630005 | F159: 1513400 | G159: 297.630005 | H159: 0.38490479 | I159: 0.01684842691
A160: 2010-08-19 | B160: 296.820007 | C160: 308.950012 | D160: 293.880005 | E160: 299.470001 | F160: 1219600 | G160: 299.470001 | H160: 0.3646057704 | I160: -0.02029901964
A161: 2010-08-20 | B161: 298.549988 | C161: 303.209991 | D161: 296.450012 | E161: 302.359985 | F161: 923000 | G161: 302.359985 | H161: 0.3704341544 | I161: 0.005828384068
A162: 2010-08-23 | B162: 304.100006 | C162: 306.73999 | D162: 299.51001 | E162: 299.820007 | F162: 908900 | G162: 299.820007 | H162: 0.3890240664 | I162: 0.01858991198
A163: 2010-08-24 | B163: 295.890015 | C163: 296.109985 | D163: 290 | E163: 291.799988 | F163: 1373600 | G163: 291.799988 | H163: 0.3620263984 | I163: -0.026997668
A164: 2010-08-25 | B164: 289.410004 | C164: 296.98999 | D164: 288.299988 | E164: 294.899994 | F164: 1085900 | G164: 294.899994 | H164: 0.3401263319 | I164: -0.02190006648
A165: 2010-08-26 | B165: 296.290009 | C165: 296.5 | D165: 285.790009 | E165: 285.790009 | F165: 992300 | G165: 285.790009 | H165: 0.3638988516 | I165: 0.02377251963
A166: 2010-08-27 | B166: 287.5 | C166: 298 | D166: 283.109985 | E166: 297.679993 | F166: 1241600 | G166: 297.679993 | H166: 0.3342319417 | I166: -0.0296669099
A167: 2010-08-30 | B167: 297.529999 | C167: 297.619995 | D167: 289.440002 | E167: 289.679993 | F167: 659800 | G167: 289.679993 | H167: 0.3691188947 | I167: 0.03488695304
A168: 2010-08-31 | B168: 288 | C168: 294.799988 | D168: 287.799988 | E168: 291.480011 | F168: 817700 | G168: 291.480011 | H168: 0.3370885145 | I168: -0.03203038024
A169: 2010-09-01 | B169: 297.570007 | C169: 306.839996 | D169: 294.019989 | E169: 306.839996 | F169: 1280800 | G169: 306.839996 | H169: 0.3703177054 | I169: 0.03322919097
A170: 2010-09-02 | B170: 306.850006 | C170: 314.630005 | D170: 306.170013 | E170: 311.279999 | F170: 936900 | G170: 311.279999 | H170: 0.4015036408 | I170: 0.03118593535
A171: 2010-09-03 | B171: 315 | C171: 318 | D171: 311.350006 | E171: 313.850006 | F171: 921000 | G171: 313.850006 | H171: 0.4280638293 | I171: 0.0265601885
A172: 2010-09-07 | B172: 313.98999 | C172: 315.470001 | D172: 311.109985 | E172: 311.549988 | F172: 733800 | G172: 311.549988 | H172: 0.4248574483 | I172: -0.003206380952
A173: 2010-09-08 | B173: 314.440002 | C173: 328.769989 | D173: 314.070007 | E173: 328.769989 | F173: 1660800 | G173: 328.769989 | H173: 0.4262906533 | I173: 0.001433204925
A174: 2010-09-09 | B174: 332.890015 | C174: 333.73999 | D174: 320.75 | E174: 323.799988 | F174: 1416600 | G174: 323.799988 | H174: 0.4849664352 | I174: 0.05867578197
A175: 2010-09-10 | B175: 324.829987 | C175: 328.869995 | D175: 322.570007 | E175: 323.149994 | F175: 756700 | G175: 323.149994 | H175: 0.46075415 | I175: -0.02421228525
A176: 2010-09-13 | B176: 326 | C176: 330.899994 | D176: 323.25 | E176: 330.299988 | F176: 870400 | G176: 330.299988 | H176: 0.4643560742 | I176: 0.003601924228
A177: 2010-09-14 | B177: 330.73999 | C177: 336.579987 | D177: 327.230011 | E177: 334.769989 | F177: 1186800 | G177: 334.769989 | H177: 0.4788959208 | I177: 0.01453984663
A178: 2010-09-15 | B178: 334.73999 | C178: 334.880005 | D178: 329.649994 | E178: 332.059998 | F178: 998100 | G178: 332.059998 | H178: 0.4909900132 | I178: 0.0120940924
A179: 2010-09-16 | B179: 331.529999 | C179: 333.880005 | D179: 327.799988 | E179: 332.380005 | F179: 626200 | G179: 332.380005 | H179: 0.4814005077 | I179: -0.009589505574
A180: 2010-09-17 | B180: 333.170013 | C180: 334.959991 | D180: 326.25 | E180: 334.950012 | F180: 1298500 | G180: 334.950012 | H180: 0.4863473119 | I180: 0.004946804226
A181: 2010-09-20 | B181: 339.609985 | C181: 349.970001 | D181: 339.609985 | E181: 347.459991 | F181: 1898700 | G181: 347.459991 | H181: 0.5056766985 | I181: 0.01932938665
A182: 2010-09-21 | B182: 347.75 | C182: 347.75 | D182: 338.559998 | E182: 341.019989 | F182: 1275800 | G182: 341.019989 | H182: 0.5296454137 | I182: 0.02396871517
A183: 2010-09-22 | B183: 343 | C183: 343.950012 | D183: 336.149994 | E183: 338.149994 | F183: 824700 | G183: 338.149994 | H183: 0.5159861757 | I183: -0.01365923796
A184: 2010-09-23 | B184: 335.600006 | C184: 343.339996 | D184: 333.549988 | E184: 337.200012 | F184: 985800 | G184: 337.200012 | H184: 0.4944118492 | I184: -0.02157432653
A185: 2010-09-24 | B185: 344.350006 | C185: 346.679993 | D185: 341 | E185: 344.269989 | F185: 931700 | G185: 344.269989 | H185: 0.5204845543 | I185: 0.02607270514
A186: 2010-09-27 | B186: 346.320007 | C186: 348.570007 | D186: 340.890015 | E186: 345.160004 | F186: 829100 | G186: 345.160004 | H186: 0.5262054806 | I186: 0.005720926283
A187: 2010-09-28 | B187: 345.179993 | C187: 350.820007 | D187: 339.380005 | E187: 349.929993 | F187: 1126300 | G187: 349.929993 | H187: 0.522913687 | I187: -0.00329179365
A188: 2010-09-29 | B188: 348.170013 | C188: 352 | D188: 345.220001 | E188: 348.130005 | F188: 576200 | G188: 348.130005 | H188: 0.5315758924 | I188: 0.008662205402
A189: 2010-09-30 | B189: 354 | C189: 358.23999 | D189: 342.73999 | E189: 348.339996 | F189: 1241700 | G189: 348.339996 | H189: 0.5483205481 | I189: 0.01674465572
A190: 2010-10-01 | B190: 351.600006 | C190: 351.609985 | D190: 334 | E190: 337.820007 | F190: 1660000 | G190: 337.820007 | H190: 0.541540904 | I190: -0.006779644068
A191: 2010-10-04 | B191: 337.209991 | C191: 340.940002 | D191: 328.109985 | E191: 331.640015 | F191: 960700 | G191: 331.640015 | H191: 0.5006136721 | I191: -0.04092723195
A192: 2010-10-05 | B192: 336.269989 | C192: 344.940002 | D192: 334.029999 | E192: 344.940002 | F192: 1206000 | G192: 344.940002 | H192: 0.4978260856 | I192: -0.002787586445
A193: 2010-10-06 | B193: 343.059998 | C193: 343.100006 | D193: 329.899994 | E193: 332.690002 | F193: 1138100 | G193: 332.690002 | H193: 0.5180182206 | I193: 0.02019213496
A194: 2010-10-07 | B194: 334.019989 | C194: 334.98999 | D194: 325 | E194: 330.859985 | F194: 1050600 | G194: 330.859985 | H194: 0.4916671186 | I194: -0.026351102
A195: 2010-10-08 | B195: 336.589996 | C195: 343.890015 | D195: 334.299988 | E195: 340.899994 | F195: 1283200 | G195: 340.899994 | H195: 0.4993612899 | I195: 0.007694171261
A196: 2010-10-11 | B196: 340.720001 | C196: 341.98999 | D196: 331.329987 | E196: 332.350006 | F196: 983800 | G196: 332.350006 | H196: 0.5116314258 | I196: =(B196-B195)/B195 -> 0.01227013592
A197: 2010-10-12 | B197: 332.630005 | C197: 336.429993 | D197: 330.070007 | E197: 336.179993 | F197: 1160800 | G197: 336.179993 | H197: =((B197-B196)/B196)+H196 -> 0.487887601 | I197: -0.02374382477
A198: 2010-10-13 | B198: 343.98999 | C198: 345.980011 | D198: 338.769989 | E198: 341.040009 | F198: 1267900 | G198: 341.040009 | H198: 0.5220396162 | I198: 0.03415201524
A199: 2010-10-14 | B199: 340.149994 | C199: 350.290009 | D199: 337.470001 | E199: 349.059998 | F199: 1378000 | G199: 349.059998 | H199: 0.5108765123 | I199: -0.0111631039
A200: 2010-10-15 | B200: 354.859985 | C200: 357.890015 | D200: 351.040009 | E200: 354.600006 | F200: 1398500 | G200: 354.600006 | H200: 0.5541221136 | I200: 0.04324560123
... 1195 more rows

Sheet Expedia
A1: Date | B1: Open | C1: High | D1: Low | E1: Close | F1: Volume | G1: Adj Close | H1: Cumulative Return | I1: Daily Return
A2: 2010-01-04 | B2: 25.709999 | C2: 25.91 | D2: 25.42 | E2: 25.82 | F2: 2186500 | G2: 35.973914
A3: 2010-01-05 | B3: 25.75 | C3: 26.030001 | D3: 25.33 | E3: 25.93 | F3: 2431800 | G3: 36.127174 | H3: =(B3-B2)/$B$2 -> 0.001555853814 | I3: =(B3-B2)/B2 -> 0.001555853814
A4: 2010-01-06 | B4: 25.73 | C4: 25.879999 | D4: 24.49 | E4: 24.6 | F4: 3880000 | G4: 34.274141 | H4: =((B4-B3)/B3)+H3 -> 0.0007791547848 | I4: =(B4-B3)/B3 -> -0.0007766990291
A5: 2010-01-07 | B5: 24.780001 | C5: 24.9 | D5: 24.120001 | E5: 24.469999 | F5: 1777300 | G5: 34.093016 | H5: =((B5-B4)/B4)+H4 -> -0.03614268742 | I5: -0.03692184221
A6: 2010-01-08 | B6: 24.6 | C6: 24.6 | D6: 23.9 | E6: 24.24 | F6: 2264300 | G6: 33.772567 | H6: =((B6-B5)/B5)+H5 -> -0.04340665 | I6: -0.00726396258
A7: 2010-01-11 | B7: 24.370001 | C7: 24.450001 | D7: 23.76 | E7: 24.030001 | F7: 2786600 | G7: 33.479984 | H7: -0.05275620285 | I7: -0.009349552846
A8: 2010-01-12 | B8: 23.84 | C8: 23.92 | D8: 23.15 | E8: 23.280001 | F8: 2158500 | G8: 32.435041 | H8: -0.07450429387 | I8: -0.02174809102
A9: 2010-01-13 | B9: 23.360001 | C9: 23.690001 | D9: 22.870001 | E9: 23.57 | F9: 2268000 | G9: 32.839084 | H9: -0.09463848011 | I9: -0.02013418624
A10: 2010-01-14 | B10: 23.4 | C10: 24.02 | D10: 23.02 | E10: 23.059999 | F10: 2316900 | G10: 32.128523 | H10: -0.09292619423 | I10: 0.001712285886
A11: 2010-01-15 | B11: 23.09 | C11: 23.32 | D11: 22.57 | E11: 22.73 | F11: 1785600 | G11: 31.668748 | H11: -0.1061740575 | I11: -0.01324786325
A12: 2010-01-19 | B12: 22.709999 | C12: 22.860001 | D12: 22.469999 | E12: 22.75 | F12: 2119700 | G12: 31.696614 | H12: -0.1226314416 | I12: -0.01645738415
A13: 2010-01-20 | B13: 22.49 | C13: 22.73 | D13: 22.01 | E13: 22.219999 | F13: 1899200 | G13: 30.958186 | H13: -0.1323187604 | I13: -0.009687318789
A14: 2010-01-21 | B14: 22.280001 | C14: 22.77 | D14: 21.549999 | E14: 22.23 | F14: 1955800 | G14: 30.972119 | H14: -0.1416561993 | I14: -0.009337438862
A15: 2010-01-22 | B15: 22.17 | C15: 22.299999 | D15: 21.6 | E15: 21.77 | F15: 2795600 | G15: 30.331222 | H15: -0.1465934073 | I15: -0.004937208037
A16: 2010-01-25 | B16: 21.82 | C16: 22.049999 | D16: 21.709999 | E16: 21.73 | F16: 1979700 | G16: 30.27549 | H16: -0.162380507 | I16: -0.01578709968
A17: 2010-01-26 | B17: 21.610001 | C17: 22.440001 | D17: 21.58 | E17: 22.17 | F17: 2118800 | G17: 30.888524 | H17: -0.1720046592 | I17: -0.009624152154
A18: 2010-01-27 | B18: 22.01 | C18: 22.33 | D18: 21.74 | E18: 22.120001 | F18: 1608100 | G18: 30.818862 | H18: -0.1534947572 | I18: 0.01850990197
A19: 2010-01-28 | B19: 22.23 | C19: 22.530001 | D19: 21.4 | E19: 21.68 | F19: 1969300 | G19: 30.205828 | H19: -0.1434993006 | I19: 0.009995456611
A20: 2010-01-29 | B20: 21.82 | C20: 22.209999 | D20: 21.299999 | E20: 21.41 | F20: 2480400 | G20: 29.829648 | H20: -0.1619428453 | I20: -0.01844354476
A21: 2010-02-01 | B21: 21.51 | C21: 22.200001 | D21: 21.379999 | E21: 22.1 | F21: 2002000 | G21: 30.790997 | H21: -0.1761499947 | I21: -0.0142071494
A22: 2010-02-02 | B22: 22.139999 | C22: 22.26 | D22: 21.66 | E22: 22.07 | F22: 1748200 | G22: 30.749198 | H22: -0.1468613383 | I22: 0.02928865644
A23: 2010-02-03 | B23: 21.93 | C23: 22.16 | D23: 21.65 | E23: 22.110001 | F23: 1382500 | G23: 30.804929 | H23: -0.1563463884 | I23: -0.009485050112
A24: 2010-02-04 | B24: 22.09 | C24: 22.110001 | D24: 21.360001 | E24: 21.4 | F24: 1807900 | G24: 29.815715 | H24: -0.1490504468 | I24: 0.007295941632
A25: 2010-02-05 | B25: 21.389999 | C25: 21.52 | D25: 20.780001 | E25: 21.26 | F25: 2468500 | G25: 29.62066 | H25: -0.1807390389 | I25: -0.03168859212
A26: 2010-02-08 | B26: 21.209999 | C26: 21.9 | D26: 21.190001 | E26: 21.42 | F26: 1393500 | G26: 29.843581 | H26: -0.1891541866 | I26: -0.008415147658
A27: 2010-02-09 | B27: 21.76 | C27: 22.049999 | D27: 21.49 | E27: 21.879999 | F27: 2003700 | G27: 30.484478 | H27: -0.1632229736 | I27: 0.02593121292
A28: 2010-02-10 | B28: 21.83 | C28: 22.5 | D28: 21.700001 | E28: 22.24 | F28: 3673900 | G28: 30.986052 | H28: -0.1600060619 | I28: 0.003216911765
A29: 2010-02-11 | B29: 21.07 | C29: 21.549999 | D29: 20.17 | E29: 21.27 | F29: 10262700 | G29: 29.634593 | H29: -0.1948205374 | I29: -0.03481447549
A30: 2010-02-12 | B30: 21.309999 | C30: 21.49 | D30: 20.530001 | E30: 21.35 | F30: 3157000 | G30: 29.746053 | H30: -0.1834299821 | I30: 0.01139055529
A31: 2010-02-16 | B31: 21.48 | C31: 22.26 | D31: 21.35 | E31: 22.18 | F31: 2750000 | G31: 30.902457 | H31: -0.1754524594 | I31: 0.007977522664
A32: 2010-02-17 | B32: 22.27 | C32: 22.389999 | D32: 21.799999 | E32: 21.879999 | F32: 3859300 | G32: 30.484478 | H32: -0.1386740609 | I32: 0.03677839851
A33: 2010-02-18 | B33: 21.870001 | C33: 22.93 | D33: 21.790001 | E33: 22.85 | F33: 3083600 | G33: 31.83594 | H33: -0.156635399 | I33: -0.01796133812
A34: 2010-02-19 | B34: 22.809999 | C34: 22.99 | D34: 22.559999 | E34: 22.59 | F34: 2253000 | G34: 31.473692 | H34: -0.1136542396 | I34: 0.04298115944
A35: 2010-02-22 | B35: 22.639999 | C35: 22.719999 | D35: 22.25 | E35: 22.379999 | F35: 2197600 | G35: 31.181107 | H35: -0.1211071115 | I35: -0.007452871874
A36: 2010-02-23 | B36: 22.290001 | C36: 22.67 | D36: 21.91 | E36: 22.42 | F36: 2376500 | G36: 31.236839 | H36: -0.1365663878 | I36: -0.0154592763
A37: 2010-02-24 | B37: 22.59 | C37: 22.879999 | D37: 22.389999 | E37: 22.629999 | F37: 1778400 | G37: 31.529421 | H37: -0.123107483 | I37: 0.01345890473
A38: 2010-02-25 | B38: 22.379999 | C38: 22.5 | D38: 22.049999 | E38: 22.4 | F38: 2322000 | G38: 31.208973 | H38: -0.132403676 | I38: -0.009296193006
A39: 2010-02-26 | B39: 22.34 | C39: 22.49 | D39: 22.040001 | E39: 22.24 | F39: 3165700 | G39: 30.986052 | H39: -0.1341909415 | I39: -0.001787265495
A40: 2010-03-01 | B40: 22.34 | C40: 23.200001 | D40: 22.17 | E40: 23.129999 | F40: 2556500 | G40: 32.22605 | H40: -0.1341909415 | I40: 0
A41: 2010-03-02 | B41: 23.110001 | C41: 23.35 | D41: 22.99 | E41: 23.110001 | F41: 2593600 | G41: 32.198187 | H41: -0.09972357358 | I41: 0.03446736795
A42: 2010-03-03 | B42: 23.15 | C42: 23.209999 | D42: 22.73 | E42: 22.870001 | F42: 2600900 | G42: 31.863806 | H42: -0.09799276448 | I42: 0.001730809099
A43: 2010-03-04 | B43: 22.82 | C43: 23.120001 | D43: 22.610001 | E43: 23.07 | F43: 1304100 | G43: 32.142456 | H43: -0.1122476241 | I43: -0.01425485961
A44: 2010-03-05 | B44: 23 | C44: 23.379999 | D44: 22.93 | E44: 23.23 | F44: 1742200 | G44: 32.365377 | H44: -0.1043598064 | I44: 0.007887817704
A45: 2010-03-08 | B45: 23.030001 | C45: 23.299999 | D45: 22.98 | E45: 23.129999 | F45: 1105700 | G45: 32.22605 | H45: -0.1030554151 | I45: 0.001304391304
A46: 2010-03-09 | B46: 22.9 | C46: 23.219999 | D46: 22.780001 | E46: 22.950001 | F46: 1325200 | G46: 32.072329 | H46: -0.1087002694 | I46: -0.005644854292
A47: 2010-03-10 | B47: 22.93 | C47: 23.27 | D47: 22.76 | E47: 23.01 | F47: 2161200 | G47: 32.156177 | H47: -0.1073902257 | I47: 0.001310043668
A48: 2010-03-11 | B48: 22.85 | C48: 22.950001 | D48: 22.379999 | E48: 22.9 | F48: 2185900 | G48: 32.002453 | H48: -0.1108791049 | I48: -0.003488879198
A49: 2010-03-12 | B49: 22.950001 | C49: 22.950001 | D49: 22.280001 | E49: 22.309999 | F49: 2466000 | G49: 31.177935 | H49: -0.1065026935 | I49: 0.004376411379
A50: 2010-03-15 | B50: 22.32 | C50: 22.690001 | D50: 22.16 | E50: 22.629999 | F50: 2054800 | G50: 31.625131 | H50: -0.1339537163 | I50: -0.02745102277
A51: 2010-03-16 | B51: 22.629999 | C51: 22.85 | D51: 22.299999 | E51: 22.76 | F51: 2783700 | G51: 31.806805 | H51: -0.1200648722 | I51: 0.01388884409
A52: 2010-03-17 | B52: 22.99 | C52: 23.120001 | D52: 22.82 | E52: 22.9 | F52: 1798400 | G52: 32.002453 | H52: -0.1041567407 | I52: 0.0159081315
A53: 2010-03-18 | B53: 22.610001 | C53: 22.98 | D53: 22.57 | E53: 22.700001 | F53: 1788200 | G53: 31.722957 | H53: -0.1206856228 | I53: -0.01652888212
A54: 2010-03-19 | B54: 22.690001 | C54: 22.889999 | D54: 22.530001 | E54: 22.690001 | F54: 3214500 | G54: 31.708982 | H54: -0.1171473656 | I54: 0.003538257252
A55: 2010-03-22 | B55: 22.66 | C55: 23.469999 | D55: 22.33 | E55: 23.450001 | F55: 3318500 | G55: 32.771072 | H55: -0.1184695779 | I55: -0.00132221237
A56: 2010-03-23 | B56: 23.26 | C56: 23.459999 | D56: 22.709999 | E56: 22.91 | F56: 3202300 | G56: 32.016428 | H56: -0.09199120195 | I56: 0.02647837599
A57: 2010-03-24 | B57: 22.799999 | C57: 23.07 | D57: 22.709999 | E57: 22.799999 | F57: 1475200 | G57: 31.862704 | H57: -0.1117676852 | I57: -0.01977648323
A58: 2010-03-25 | B58: 22.92 | C58: 23.309999 | D58: 22.83 | E58: 22.879999 | F58: 1834400 | G58: 31.974502 | H58: -0.1065044832 | I58: 0.005263201985
A59: 2010-03-26 | B59: 22.959999 | C59: 23.15 | D59: 22.639999 | E59: 22.940001 | F59: 2250500 | G59: 32.058354 | H59: -0.1047593261 | I59: 0.001745157068
A60: 2010-03-29 | B60: 22.950001 | C60: 24.870001 | D60: 22.92 | E60: 24.35 | F60: 5285000 | G60: 34.02881 | H60: -0.1051947791 | I60: -0.0004354529806
A61: 2010-03-30 | B61: 24.23 | C61: 24.719999 | D61: 24.200001 | E61: 24.360001 | F61: 2429900 | G61: 34.042785 | H61: -0.04942140464 | I61: 0.05577337448
A62: 2010-03-31 | B62: 24.309999 | C62: 25.200001 | D62: 24.16 | E62: 24.950001 | F62: 3200100 | G62: 34.867303 | H62: -0.04611975379 | I62: 0.003301650846
A63: 2010-04-01 | B63: 25.030001 | C63: 25.209999 | D63: 24.379999 | E63: 24.43 | F63: 2095900 | G63: 34.140609 | H63: -0.01650222892 | I63: 0.02961752487
A64: 2010-04-05 | B64: 24.440001 | C64: 25.09 | D64: 24.32 | E64: 25.040001 | F64: 1948700 | G64: 34.993077 | H64: -0.04007394192 | I64: -0.023571713
A65: 2010-04-06 | B65: 24.860001 | C65: 25.68 | D65: 24.75 | E65: 25.290001 | F65: 3204800 | G65: 35.342449 | H65: -0.02288899991 | I65: 0.01718494201
A66: 2010-04-07 | B66: 25.34 | C66: 25.59 | D66: 24.75 | E66: 24.940001 | F66: 2423900 | G66: 34.853328 | H66: -0.003580915408 | I66: 0.0193080845
A67: 2010-04-08 | B67: 24.940001 | C67: 25.040001 | D67: 24.440001 | E67: 24.73 | F67: 2442700 | G67: 34.559854 | H67: -0.0193661956 | I67: -0.01578528019
A68: 2010-04-09 | B68: 24.790001 | C68: 24.950001 | D68: 24.459999 | E68: 24.57 | F68: 1273000 | G68: 34.336256 | H68: -0.02538063 | I68: =(B68-B67)/B67 -> -0.006014434402
A69: 2010-04-12 | B69: 25.299999 | C69: 25.610001 | D69: 24.57 | E69: 25.18 | F69: 2697700 | G69: 35.188724 | H69: =((B69-B68)/B68)+H68 -> -0.004807899889 | I69: 0.02057273011
A70: 2010-04-13 | B70: 26 | C70: 26.09 | D70: 25.01 | E70: 25.049999 | F70: 4927200 | G70: 35.007049 | H70: 0.02286012492 | I70: 0.02766802481
A71: 2010-04-14 | B71: 25.09 | C71: 25.709999 | D71: 25.09 | E71: 25.48 | F71: 3872900 | G71: 35.607969 | H71: -0.01213987508 | I71: -0.035
A72: 2010-04-15 | B72: 25.59 | C72: 25.889999 | D72: 25.309999 | E72: 25.379999 | F72: 2977500 | G72: 35.46822 | H72: 0.00778838319 | I72: 0.01992825827
A73: 2010-04-16 | B73: 25.27 | C73: 25.549999 | D73: 24.719999 | E73: 24.85 | F73: 3282600 | G73: 34.727554 | H73: -0.004716501531 | I73: -0.01250488472
A74: 2010-04-19 | B74: 24.629999 | C74: 24.93 | D74: 24.280001 | E74: 24.709999 | F74: 2491100 | G74: 34.531904 | H74: -0.03004301518 | I74: -0.02532651365
A75: 2010-04-20 | B75: 24.889999 | C75: 25.290001 | D75: 24.76 | E75: 25.059999 | F75: 1396900 | G75: 35.021025 | H75: -0.01948678252 | I75: 0.01055623267
A76: 2010-04-21 | B76: 24.940001 | C76: 25.110001 | D76: 24.5 | E76: 24.629999 | F76: 2352000 | G76: 34.420105 | H76: -0.01747786319 | I76: 0.002008919325
A77: 2010-04-22 | B77: 24.26 | C77: 24.76 | D77: 24.09 | E77: 24.530001 | F77: 2497800 | G77: 34.280358 | H77: -0.04474333924 | I77: -0.02726547605
A78: 2010-04-23 | B78: 24.5 | C78: 24.700001 | D78: 24.08 | E78: 24.18 | F78: 2624200 | G78: 33.791237 | H78: -0.03485051154 | I78: 0.0098928277
A79: 2010-04-26 | B79: 24.17 | C79: 25.129999 | D79: 24.110001 | E79: 24.629999 | F79: 2226700 | G79: 34.420105 | H79: -0.0483198993 | I79: -0.01346938776
A80: 2010-04-27 | B80: 24.389999 | C80: 24.98 | D80: 23.530001 | E80: 23.68 | F80: 3783600 | G80: 33.092494 | H80: -0.03921774787 | I80: 0.009102151427
A81: 2010-04-28 | B81: 23.75 | C81: 23.99 | D81: 23.35 | E81: 23.5 | F81: 2125400 | G81: 32.840946 | H81: -0.06545797035 | I81: -0.02624022248
A82: 2010-04-29 | B82: 23.6 | C82: 24.9 | D82: 23.6 | E82: 24.51 | F82: 3941700 | G82: 34.252408 | H82: -0.07177375982 | I82: -0.006315789474
A83: 2010-04-30 | B83: 24.99 | C83: 24.99 | D83: 23.280001 | E83: 23.610001 | F83: 5419300 | G83: 32.99467 | H83: -0.01287545474 | I83: 0.05889830508
A84: 2010-05-03 | B84: 23.610001 | C84: 24.27 | D84: 23.610001 | E84: 24.16 | F84: 3109600 | G84: 33.763287 | H84: -0.06809750356 | I84: -0.05522204882
A85: 2010-05-04 | B85: 23.860001 | C85: 23.860001 | D85: 22.99 | E85: 23.459999 | F85: 3561400 | G85: 32.785045 | H85: -0.05750877042 | I85: 0.01058873314
A86: 2010-05-05 | B86: 23.370001 | C86: 24 | D86: 22.610001 | E86: 23.549999 | F86: 3768700 | G86: 32.910819 | H86: -0.07804523226 | I86: -0.02053646184
A87: 2010-05-06 | B87: 23.26 | C87: 23.83 | D87: 22.08 | E87: 23.059999 | F87: 4330600 | G87: 32.22605 | H87: -0.08275216402 | I87: -0.004706931763
A88: 2010-05-07 | B88: 22.65 | C88: 23.25 | D88: 21.73 | E88: 22 | F88: 4551500 | G88: 30.744715 | H88: -0.1089774435 | I88: -0.02622527945
A89: 2010-05-10 | B89: 22.67 | C89: 23.67 | D89: 22.59 | E89: 23.65 | F89: 3391100 | G89: 33.050568 | H89: -0.1080944413 | I89: 0.0008830022075
A90: 2010-05-11 | B90: 22.99 | C90: 23.49 | D90: 22 | E90: 23.18 | F90: 3896900 | G90: 32.39375 | H90: -0.09397887002 | I90: 0.01411557124
A91: 2010-05-12 | B91: 23.120001 | C91: 23.6 | D91: 22.93 | E91: 23.58 | F91: 2253800 | G91: 32.952744 | H91: -0.08832419408 | I91: 0.005654675946
A92: 2010-05-13 | B92: 23.33 | C92: 23.75 | D92: 23.32 | E92: 23.5 | F92: 2569900 | G92: 32.840946 | H92: -0.07924119274 | I92: 0.009083001337
A93: 2010-05-14 | B93: 23.32 | C93: 23.35 | D93: 22.49 | E93: 22.799999 | F93: 2490100 | G93: 31.862704 | H93: -0.0796698254 | I93: -0.0004286326618
A94: 2010-05-17 | B94: 22.969999 | C94: 23.139999 | D94: 22.389999 | E94: 23.110001 | F94: 3291700 | G94: 32.295926 | H94: -0.09467844461 | I94: -0.01500861921
A95: 2010-05-18 | B95: 23.27 | C95: 23.889999 | D95: 22.6 | E95: 22.700001 | F95: 4252000 | G95: 31.722957 | H95: -0.0816178868 | I95: 0.01306055782
A96: 2010-05-19 | B96: 22.530001 | C96: 23.030001 | D96: 22.040001 | E96: 22.639999 | F96: 3413000 | G96: 31.639106 | H96: -0.1134184455 | I96: -0.03180055866
A97: 2010-05-20 | B97: 22.040001 | C97: 22.389999 | D97: 21.41 | E97: 21.67 | F97: 3185500 | G97: 30.283544 | H97: -0.1351672239 | I97: -0.02174877844
A98: 2010-05-21 | B98: 21.450001 | C98: 22.1 | D98: 20.950001 | E98: 21.780001 | F98: 4332800 | G98: 30.437269 | H98: -0.1619367327 | I98: -0.02676950877
A99: 2010-05-24 | B99: 21.700001 | C99: 22.18 | D99: 21.5 | E99: 21.530001 | F99: 2903700 | G99: 30.087897 | H99: -0.1502817216 | I99: 0.01165501111
A100: 2010-05-25 | B100: 20.860001 | C100: 21.629999 | D100: 20.6 | E100: 21.610001 | F100: 3801900 | G100: 30.298204 | H100: -0.1889913972 | I100: -0.03870967564
A101: 2010-05-26 | B101: 21.75 | C101: 22.049999 | D101: 21.469999 | E101: 21.639999 | F101: 2641000 | G101: 30.340264 | H101: -0.1463260589 | I101: 0.04266533832
A102: 2010-05-27 | B102: 22.25 | C102: 22.25 | D102: 21.690001 | E102: 22.040001 | F102: 2508900 | G102: 30.901084 | H102: -0.1233375531 | I102: 0.02298850575
A103: 2010-05-28 | B103: 21.98 | C103: 22.209999 | D103: 21.34 | E103: 21.559999 | F103: 2464700 | G103: 30.2281 | H103: -0.1354723846 | I103: -0.01213483146
A104: 2010-06-01 | B104: 21.43 | C104: 21.93 | D104: 21 | E104: 21 | F104: 2160400 | G104: 29.442955 | H104: -0.1604951325 | I104: -0.02502274795
A105: 2010-06-02 | B105: 21.049999 | C105: 21.379999 | D105: 20.82 | E105: 21.35 | F105: 2792600 | G105: 29.933672 | H105: -0.1782273304 | I105: -0.01773219785
A106: 2010-06-03 | B106: 21.219999 | C106: 21.4 | D106: 20.799999 | E106: 21.33 | F106: 4540300 | G106: 29.90563 | H106: -0.1701513205 | I106: 0.008076009885
A107: 2010-06-04 | B107: 20.870001 | C107: 21.040001 | D107: 20.040001 | E107: 20.18 | F107: 3494400 | G107: 28.293278 | H107: -0.1866451007 | I107: -0.01649378023
A108: 2010-06-07 | B108: 20.280001 | C108: 20.719999 | D108: 19.83 | E108: 19.879999 | F108: 2366300 | G108: 27.872663 | H108: -0.2149153437 | I108: -0.02827024302
A109: 2010-06-08 | B109: 19.82 | C109: 20.08 | D109: 19.18 | E109: 19.719999 | F109: 3622800 | G109: 27.648336 | H109: -0.2375978377 | I109: -0.02268249395
A110: 2010-06-09 | B110: 19.82 | C110: 20.370001 | D110: 19.74 | E110: 19.799999 | F110: 2566300 | G110: 27.7605 | H110: -0.2375978377 | I110: 0
A111: 2010-06-10 | B111: 20.129999 | C111: 20.57 | D111: 19.940001 | E111: 20.549999 | F111: 2035700 | G111: 28.812034 | H111: -0.2219571212 | I111: 0.01564071645
A112: 2010-06-11 | B112: 20.200001 | C112: 20.559999 | D112: 20.110001 | E112: 20.549999 | F112: 1690300 | G112: 28.812034 | H112: -0.2184796248 | I112: 0.003477496447
A113: 2010-06-14 | B113: 20.719999 | C113: 21.15 | D113: 20.389999 | E113: 20.799999 | F113: 1955400 | G113: 29.162545 | H113: -0.1927371508 | I113: 0.02574247397
A114: 2010-06-15 | B114: 21.02 | C114: 21.530001 | D114: 20.700001 | E114: 21.5 | F114: 2241200 | G114: 30.143978 | H114: -0.1782583374 | I114: 0.01447881344
A115: 2010-06-16 | B115: 21.450001 | C115: 21.809999 | D115: 21.23 | E115: 21.629999 | F115: 2948400 | G115: 30.326243 | H115: -0.1578015819 | I115: 0.02045675547
A116: 2010-06-17 | B116: 21.709999 | C116: 21.709999 | D116: 20.67 | E116: 20.879999 | F116: 3013500 | G116: 29.274709 | H116: -0.1456804636 | I116: 0.01212111832
A117: 2010-06-18 | B117: 20.98 | C117: 21.190001 | D117: 20.799999 | E117: 20.969999 | F117: 3173400 | G117: 29.400893 | H117: -0.1793054767 | I117: -0.03362501306
A118: 2010-06-21 | B118: 21.219999 | C118: 21.379999 | D118: 20.27 | E118: 20.440001 | F118: 2071600 | G118: 28.657811 | H118: -0.1678660582 | I118: 0.01143941849
A119: 2010-06-22 | B119: 20.540001 | C119: 21.01 | D119: 20.370001 | E119: 20.43 | F119: 3194400 | G119: 28.64379 | H119: -0.1999112058 | I119: -0.0320451476
A120: 2010-06-23 | B120: 20.51 | C120: 20.67 | D120: 20.09 | E120: 20.209999 | F120: 2714200 | G120: 28.335338 | H120: -0.2013718191 | I120: -0.001460613366
A121: 2010-06-24 | B121: 20.049999 | C121: 20.27 | D121: 19.27 | E121: 19.379999 | F121: 3364300 | G121: 27.17164 | H121: -0.2237999518 | I121: -0.02242813262
A122: 2010-06-25 | B122: 19.41 | C122: 19.719999 | D122: 19.190001 | E122: 19.559999 | F122: 3579500 | G122: 27.424009 | H122: -0.255720103 | I122: -0.03192015122
A123: 2010-06-28 | B123: 19.690001 | C123: 19.99 | D123: 19.58 | E123: 19.700001 | F123: 2428400 | G123: 27.620297 | H123: -0.2412944976 | I123: 0.01442560536
A124: 2010-06-29 | B124: 19.360001 | C124: 19.57 | D124: 18.870001 | E124: 18.93 | F124: 4380200 | G124: 26.540722 | H124: -0.2580542733 | I124: -0.01675977569
A125: 2010-06-30 | B125: 18.85 | C125: 19.42 | D125: 18.690001 | E125: 18.780001 | F125: 2337300 | G125: 26.330415 | H125: -0.2843972988 | I125: -0.0263430255
A126: 2010-07-01 | B126: 18.74 | C126: 19.16 | D126: 18.35 | E126: 18.98 | F126: 2603700 | G126: 26.610823 | H126: -0.2902328426 | I126: -0.005835543767
A127: 2010-07-02 | B127: 18.9 | C127: 18.950001 | D127: 18.299999 | E127: 18.33 | F127: 3122000 | G127: 25.699494 | H127: -0.2816949557 | I127: 0.008537886873
A128: 2010-07-06 | B128: 18.530001 | C128: 19.190001 | D128: 18.35 | E128: 18.51 | F128: 2536500 | G128: 25.951862 | H128: -0.3012716224 | I128: -0.01957666667
A129: 2010-07-07 | B129: 18.66 | C129: 19.219999 | D129: 18.51 | E129: 19.16 | F129: 2030700 | G129: 26.863191 | H129: -0.2942560264 | I129: 0.007015595952
A130: 2010-07-08 | B130: 19.34 | C130: 19.5 | D130: 18.790001 | E130: 18.98 | F130: 2843600 | G130: 26.610823 | H130: -0.2578144401 | I130: 0.03644158628
A131: 2010-07-09 | B131: 18.700001 | C131: 18.92 | D131: 18.6 | E131: 18.879999 | F131: 3321500 | G131: 26.470618 | H131: -0.2909064257 | I131: -0.03309198552
A132: 2010-07-12 | B132: 18.799999 | C132: 18.959999 | D132: 18.540001 | E132: 18.82 | F132: 3105800 | G132: 26.386496 | H132: -0.2855589393 | I132: =(B132-B131)/B131 -> 0.005347486345
A133: 2010-07-13 | B133: 19.1 | C133: 19.85 | D133: 19.030001 | E133: 19.700001 | F133: 4107900 | G133: 27.620297 | H133: =((B133-B132)/B132)+H132 -> -0.2696014385 | I133: 0.01595750085
A134: 2010-07-14 | B134: 19.790001 | C134: 20.5 | D134: 19.5 | E134: 20.26 | F134: 3310600 | G134: 28.405442 | H134: -0.2334757316 | I134: 0.03612570681
A135: 2010-07-15 | B135: 20.309999 | C135: 20.709999 | D135: 19.99 | E135: 20.65 | F135: 2957800 | G135: 28.952239 | H135: -0.2071999371 | I135: 0.02627579453
A136: 2010-07-16 | B136: 20.620001 | C136: 20.809999 | D136: 19.98 | E136: 20.040001 | F136: 2601800 | G136: 28.096993 | H136: -0.1919364209 | I136: 0.01526351626
A137: 2010-07-19 | B137: 20.129999 | C137: 20.440001 | D137: 19.91 | E137: 20.34 | F137: 2062400 | G137: 28.517605 | H137: -0.2156998533 | I137: -0.02376343241
A138: 2010-07-20 | B138: 19.92 | C138: 20.780001 | D138: 19.809999 | E138: 20.76 | F138: 2384100 | G138: 29.106465 | H138: -0.2261319949 | I138: -0.0104321416
A139: 2010-07-21 | B139: 20.799999 | C139: 21.030001 | D139: 20.370001 | E139: 20.610001 | F139: 2754100 | G139: 28.896158 | H139: -0.1819553382 | I139: 0.04417665663
A140: 2010-07-22 | B140: 20.83 | C140: 21.49 | D140: 20.700001 | E140: 21.190001 | F140: 2002800 | G140: 29.709345 | H140: -0.1805129824 | I140: 0.001442355839
A141: 2010-07-23 | B141: 21.16 | C141: 21.99 | D141: 20.98 | E141: 21.959999 | F141: 2940800 | G141: 30.788918 | H141: -0.1646704476 | I141: 0.01584253481
A142: 2010-07-26 | B142: 21.91 | C142: 21.99 | D142: 21.41 | E142: 21.6 | F142: 2738200 | G142: 30.284183 | H142: -0.1292262132 | I142: 0.0354442344
A143: 2010-07-27 | B143: 21.690001 | C143: 21.889999 | D143: 21.440001 | E143: 21.610001 | F143: 3213200 | G143: 30.298204 | H143: -0.1392672447 | I143: -0.01004103149
A144: 2010-07-28 | B144: 21.6 | C144: 21.959999 | D144: 20.959999 | E144: 21.299999 | F144: 2657300 | G144: 29.863568 | H144: -0.1434166682 | I144: -0.004149423506
A145: 2010-07-29 | B145: 21.41 | C145: 21.809999 | D145: 20.790001 | E145: 21.07 | F145: 3540800 | G145: 29.541098 | H145: -0.1522129645 | I145: -0.008796296296
A146: 2010-07-30 | B146: 21.5 | C146: 23.08 | D146: 21.16 | E146: 22.68 | F146: 7689500 | G146: 31.798392 | H146: -0.1480093213 | I146: 0.004203643157
A147: 2010-08-02 | B147: 22.93 | C147: 23.25 | D147: 22.610001 | E147: 22.77 | F147: 3350000 | G147: 31.924576 | H147: -0.08149769342 | I147: 0.06651162791
A148: 2010-08-03 | B148: 22.620001 | C148: 23.02 | D148: 22.59 | E148: 22.860001 | F148: 2877500 | G148: 32.050761 | H148: -0.0950170567 | I148: -0.01351936328
A149: 2010-08-04 | B149: 23.58 | C149: 24.469999 | D149: 23.23 | E149: 24.32 | F149: 5637000 | G149: 34.097746 | H149: -0.05257678449 | I149: 0.04244027222
A150: 2010-08-05 | B150: 23.98 | C150: 24.370001 | D150: 23.73 | E150: 24.27 | F150: 2465700 | G150: 34.027645 | H150: -0.03561325607 | I150: 0.01696352841
A151: 2010-08-06 | B151: 23.65 | C151: 24.620001 | D151: 23.65 | E151: 24.610001 | F151: 2913900 | G151: 34.50434 | H151: -0.04937472396 | I151: -0.01376146789
A152: 2010-08-09 | B152: 24.75 | C152: 24.969999 | D152: 24.25 | E152: 24.530001 | F152: 3174300 | G152: 34.392177 | H152: -0.002863096055 | I152: 0.04651162791
A153: 2010-08-10 | B153: 24.23 | C153: 24.83 | D153: 23.969999 | E153: 24.68 | F153: 2354200 | G153: 34.602483 | H153: -0.02387319707 | I153: -0.02101010101
A154: 2010-08-11 | B154: 23.889999 | C154: 24.02 | D154: 23.4 | E154: 23.57 | F154: 3056400 | G154: 33.046212 | H154: -0.03790542983 | I154: -0.01403223277
A155: 2010-08-12 | B155: 23.26 | C155: 23.83 | D155: 23.25 | E155: 23.77 | F155: 3141600 | G155: 33.326622 | H155: -0.06427625555 | I155: -0.02637082572
A156: 2010-08-13 | B156: 23.610001 | C156: 24.030001 | D156: 23.57 | E156: 23.68 | F156: 2011800 | G156: 33.200438 | H156: -0.04922892107 | I156: 0.01504733448
A157: 2010-08-16 | B157: 23.48 | C157: 23.889999 | D157: 23.34 | E157: 23.82 | F157: 2738000 | G157: 33.396723 | H157: -0.05473510466 | I157: -0.005506183587
A158: 2010-08-17 | B158: 24 | C158: 24.6 | D158: 23.91 | E158: 24.32 | F158: 1739100 | G158: 34.097746 | H158: -0.03258859699 | I158: 0.02214650767
A159: 2010-08-18 | B159: 24.18 | C159: 24.309999 | D159: 23.719999 | E159: 23.74 | F159: 4532000 | G159: 33.28456 | H159: -0.02508859699 | I159: 0.0075
A160: 2010-08-19 | B160: 23.559999 | C160: 23.790001 | D160: 23 | E160: 23.5 | F160: 2514300 | G160: 32.948069 | H160: -0.05072966399 | I160: -0.025641067
A161: 2010-08-20 | B161: 23.48 | C161: 23.709999 | D161: 23.23 | E161: 23.639999 | F161: 1705600 | G161: 33.144354 | H161: -0.05412520743 | I161: -0.003395543438
A162: 2010-08-23 | B162: 23.809999 | C162: 24.040001 | D162: 23.51 | E162: 23.540001 | F162: 2615700 | G162: 33.004152 | H162: -0.04007073554 | I162: 0.01405447189
A163: 2010-08-24 | B163: 23.09 | C163: 23.24 | D163: 22.58 | E163: 22.610001 | F163: 3288000 | G163: 31.794796 | H163: -0.07031009002 | I163: -0.03023935448
A164: 2010-08-25 | B164: 22.360001 | C164: 23.120001 | D164: 22.309999 | E164: 23.02 | F164: 2679900 | G164: 32.371349 | H164: -0.1019254646 | I164: -0.03161537462
A165: 2010-08-26 | B165: 23.209999 | C165: 23.4 | D165: 22.93 | E165: 23.07 | F165: 2173000 | G165: 32.441659 | H165: -0.06391124452 | I165: 0.03801422012
A166: 2010-08-27 | B166: 23.219999 | C166: 23.5 | D166: 22.790001 | E166: 23.41 | F166: 2324800 | G166: 32.919776 | H166: -0.06348039573 | I166: 0.0004308487906
A167: 2010-08-30 | B167: 23.299999 | C167: 23.389999 | D167: 22.74 | E167: 22.74 | F167: 1420100 | G167: 31.977604 | H167: -0.06003508981 | I167: 0.003445305919
A168: 2010-08-31 | B168: 22.530001 | C168: 23.09 | D168: 22.299999 | E168: 22.860001 | F168: 2201300 | G168: 32.146353 | H168: -0.09308221569 | I168: -0.03304712588
A169: 2010-09-01 | B169: 23.469999 | C169: 24.51 | D169: 23.299999 | E169: 24.49 | F169: 2902500 | G169: 34.438502 | H169: -0.05136015806 | I169: 0.04172205762
A170: 2010-09-02 | B170: 24.43 | C170: 25.48 | D170: 24.43 | E170: 25.379999 | F170: 2526100 | G170: 35.690043 | H170: -0.01045683293 | I170: 0.04090332513
A171: 2010-09-03 | B171: 25.73 | C171: 25.98 | D171: 25.1 | E171: 25.41 | F171: 1506800 | G171: 35.732231 | H171: 0.04275642945 | I171: 0.05321326238
A172: 2010-09-07 | B172: 25.290001 | C172: 25.4 | D172: 24.610001 | E172: 24.639999 | F172: 1654500 | G172: 34.649435 | H172: 0.02565580761 | I172: -0.01710062184
A173: 2010-09-08 | B173: 24.780001 | C173: 25.32 | D173: 24.780001 | E173: 25.190001 | F173: 2431600 | G173: 35.422862 | H173: 0.005489734861 | I173: -0.02016607275
A174: 2010-09-09 | B174: 25.440001 | C174: 25.790001 | D174: 25.09 | E174: 25.540001 | F174: 2104600 | G174: 35.915042 | H174: 0.03212411635 | I174: 0.02663438149
A175: 2010-09-10 | B175: 25.65 | C175: 26.35 | D175: 25.41 | E175: 25.860001 | F175: 1884100 | G175: 36.365034 | H175: 0.0403787937 | I175: 0.008254677348
A176: 2010-09-13 | B176: 26.16 | C176: 26.549999 | D176: 26.059999 | E176: 26.5 | F176: 1970900 | G176: 37.265018 | H176: 0.06026183464 | I176: 0.01988304094
A177: 2010-09-14 | B177: 26.32 | C177: 26.940001 | D177: 26.18 | E177: 26.84 | F177: 2095600 | G177: 37.743136 | H177: 0.06637804259 | I177: 0.006116207951
A178: 2010-09-15 | B178: 26.629999 | C178: 26.9 | D178: 26.26 | E178: 26.66 | F178: 1779600 | G178: 37.490015 | H178: 0.0781561201 | I178: 0.01177807751
A179: 2010-09-16 | B179: 26.639999 | C179: 27.709999 | D179: 26.530001 | E179: 27.690001 | F179: 3015900 | G179: 38.938429 | H179: 0.07853163644 | I179: 0.0003755163491
A180: 2010-09-17 | B180: 27.950001 | C180: 28.9 | D180: 27.91 | E180: 28.76 | F180: 5324500 | G180: 40.443092 | H180: 0.1277058875 | I180: 0.0491742511
A181: 2010-09-20 | B181: 28.16 | C181: 28.959999 | D181: 28.030001 | E181: 28.85 | F181: 4042000 | G181: 40.569653 | H181: 0.1352192683 | I181: 0.007513380769
A182: 2010-09-21 | B182: 28.870001 | C182: 28.93 | D182: 28.42 | E182: 28.65 | F182: 3237000 | G182: 40.288406 | H182: 0.160432372 | I182: 0.02521310369
A183: 2010-09-22 | B183: 28.299999 | C183: 28.98 | D183: 28.24 | E183: 28.4 | F183: 2278600 | G183: 39.936849 | H183: 0.1406886249 | I183: -0.01974374715
A184: 2010-09-23 | B184: 28.24 | C184: 28.73 | D184: 28.040001 | E184: 28.309999 | F184: 2107400 | G184: 39.810289 | H184: 0.1385685188 | I184: -0.002120106082
A185: 2010-09-24 | B185: 28.620001 | C185: 29.85 | D185: 28.610001 | E185: 29.639999 | F185: 2873500 | G185: 41.680571 | H185: 0.1520246448 | I185: 0.01345612606
A186: 2010-09-27 | B186: 29.27 | C186: 29.57 | D186: 28.799999 | E186: 29.290001 | F186: 2294500 | G186: 41.188393 | H186: 0.1747359997 | I186: 0.0227113549
A187: 2010-09-28 | B187: 29.559999 | C187: 29.75 | D187: 28.690001 | E187: 29.01 | F187: 3027100 | G187: 40.794649 | H187: 0.1846437209 | I187: 0.009907721216
A188: 2010-09-29 | B188: 28.85 | C188: 29.299999 | D188: 28.309999 | E188: 28.41 | F188: 3037700 | G188: 39.950912 | H188: 0.1606248094 | I188: -0.0240189115
A189: 2010-09-30 | B189: 28.809999 | C189: 29.08 | D189: 27.93 | E189: 28.23 | F189: 2668700 | G189: 39.697791 | H189: 0.159238293 | I189: -0.001386516464
A190: 2010-10-01 | B190: 28.65 | C190: 28.65 | D190: 27.389999 | E190: 27.709999 | F190: 3653300 | G190: 38.966552 | H190: 0.1536847003 | I190: -0.005553592695
A191: 2010-10-04 | B191: 27.799999 | C191: 27.799999 | D191: 26.98 | E191: 27.17 | F191: 2241300 | G191: 38.207191 | H191: 0.1240162535 | I191: -0.02966844677
A192: 2010-10-05 | B192: 27.559999 | C192: 28.43 | D192: 27.49 | E192: 28.299999 | F192: 1989500 | G192: 39.796226 | H192: 0.1153831597 | I192: -0.008633093836
A193: 2010-10-06 | B193: 28.219999 | C193: 28.32 | D193: 27.360001 | E193: 27.700001 | F193: 1656500 | G193: 38.952492 | H193: 0.1393309109 | I193: 0.02394775123
A194: 2010-10-07 | B194: 27.99 | C194: 28.370001 | D194: 27.65 | E194: 28.26 | F194: 2279600 | G194: 39.739979 | H194: 0.131180698 | I194: -0.008150212904
A195: 2010-10-08 | B195: 27.58 | C195: 28.35 | D195: 27.549999 | E195: 28.290001 | F195: 2254300 | G195: 39.782166 | H195: 0.1165326094 | I195: -0.0146480886
A196: 2010-10-11 | B196: 28.32 | C196: 29.049999 | D196: 28.32 | E196: 28.5 | F196: 1891400 | G196: 40.077473 | H196: 0.1433636464 | I196: =(B196-B195)/B195 -> 0.02683103698
A197: 2010-10-12 | B197: 28.459999 | C197: 28.459999 | D197: 27.26 | E197: 27.91 | F197: 3309100 | G197: 39.247798 | H197: =((B197-B196)/B196)+H196 -> 0.1483071139 | I197: 0.004943467514
A198: 2010-10-13 | B198: 28.09 | C198: 28.549999 | D198: 27.950001 | E198: 28.290001 | F198: 1537600 | G198: 39.782166 | H198: 0.1353064458 | I198: -0.01300066806
A199: 2010-10-14 | B199: 28.290001 | C199: 28.34 | D199: 27.4 | E199: 27.700001 | F199: 1777000 | G199: 38.952492 | H199: 0.142426453 | I199: 0.00712000712
A200: 2010-10-15 | B200: 27.92 | C200: 28.280001 | D200: 27.5 | E200: 27.82 | F200: 2819800 | G200: 39.121238 | H200: 0.1293475916 | I200: -0.01307886133
... 1196 more rows

Sheet Societe Generale
A1: Date | B1: Open | C1: High | D1: Low | E1: Close | F1: Volume | G1: Adj Close | H1: Cumulative Return | I1: Daily Return
A2: 2010-01-04 | B2: 49.45 | C2: 50.24 | D2: 49.21 | E2: 50.24 | F2: 1825300 | G2: 44.7951
A3: 2010-01-05 | B3: 50.05 | C3: 50.78 | D3: 49.5 | E3: 49.915 | F3: 2649500 | G3: 44.5053 | H3: =(B3-B2)/B2 -> 0.01213346815 | I3: =(B3-B2)/B2 -> 0.01213346815
A4: 2010-01-06 | B4: 50.3 | C4: 50.38 | D4: 49.585 | E4: 49.92 | F4: 3437600 | G4: 44.5098 | H4: =((B4-B3)/B3)+H3 -> 0.01712847314 | I4: =(B4-B3)/B3 -> 0.004995004995
A5: 2010-01-07 | B5: 49.6 | C5: 51.37 | D5: 49.5 | E5: 51.31 | F5: 2757100 | G5: 45.7491 | H5: =((B5-B4)/B4)+H4 -> 0.003211972151 | I5: -0.01391650099
A6: 2010-01-08 | B6: 51.55 | C6: 52.51 | D6: 51.27 | E6: 52.08 | F6: 3663500 | G6: 46.4357 | H6: 0.04252648828 | I6: 0.03931451613
A7: 2010-01-11 | B7: 52.64 | C7: 53.12 | D7: 51.96 | E7: 52.2 | F7: 1902900 | G7: 46.5427 | H7: 0.06367100816 | I7: 0.02114451988
A8: 2010-01-12 | B8: 52.34 | C8: 52.46 | D8: 51.37 | E8: 51.67 | F8: 2160000 | G8: 46.0701 | H8: 0.05797192002 | I8: -0.005699088146
A9: 2010-01-13 | B9: 49 | C9: 50.2 | D9: 48.6 | E9: 50.19 | F9: 6562000 | G9: 44.7505 | H9: -0.005841606922 | I9: -0.06381352694
A10: 2010-01-14 | B10: 50.68 | C10: 50.77 | D10: 49.66 | E10: 50.4 | F10: 2302200 | G10: 44.9378 | H10: 0.02844410736 | I10: 0.03428571429
A11: 2010-01-15 | B11: 50.39 | C11: 50.63 | D11: 48.66 | E11: 49.025 | F11: 4518300 | G11: 43.7118 | H11: 0.02272192899 | I11: -0.005722178374
A12: 2010-01-18 | B12: 48.955 | C12: 49.26 | D12: 48.5 | E12: 48.505 | F12: 2085600 | G12: 43.2481 | H12: -0.005755943604 | I12: -0.02847787259
A13: 2010-01-19 | B13: 48.255 | C13: 48.5 | D13: 46.76 | E13: 48.12 | F13: 3466000 | G13: 42.9049 | H13: -0.02005478948 | I13: -0.01429884588
A14: 2010-01-20 | B14: 47.635 | C14: 48.08 | D14: 46.64 | E14: 47 | F14: 3077800 | G14: 41.9063 | H14: -0.03290319897 | I14: -0.01284840949
A15: 2010-01-21 | B15: 47.505 | C15: 47.675 | D15: 44.685 | E15: 44.77 | F15: 5039700 | G15: 39.9179 | H15: -0.03563228473 | I15: -0.002729085756
A16: 2010-01-22 | B16: 43.83 | C16: 44.875 | D16: 41.54 | E16: 42.44 | F16: 11315300 | G16: 37.8405 | H16: -0.1129925626 | I16: -0.07736027787
A17: 2010-01-25 | B17: 42.49 | C17: 43.76 | D17: 42.46 | E17: 43.03 | F17: 8192800 | G17: 38.3665 | H17: -0.1435652297 | I17: -0.03057266712
A18: 2010-01-26 | B18: 42.6 | C18: 43.75 | D18: 42.31 | E18: 43.515 | F18: 4372600 | G18: 38.7989 | H18: -0.1409763853 | I18: 0.002588844434
A19: 2010-01-27 | B19: 42.85 | C19: 43.615 | D19: 42.265 | E19: 42.845 | F19: 4476100 | G19: 38.2016 | H19: -0.1351078407 | I19: 0.005868544601
A20: 2010-01-28 | B20: 43.95 | C20: 44.13 | D20: 41.81 | E20: 41.81 | F20: 5290400 | G20: 37.2787 | H20: -0.1094368955 | I20: 0.02567094516
A21: 2010-01-29 | B21: 42.74 | C21: 42.9 | D21: 41.965 | E21: 42.205 | F21: 5202700 | G21: 37.6309 | H21: -0.1369681811 | I21: -0.02753128555
A22: 2010-02-01 | B22: 41.72 | C22: 42.7 | D22: 41.45 | E22: 42.52 | F22: 4145400 | G22: 37.9118 | H22: -0.1608334127 | I22: -0.02386523163
A23: 2010-02-02 | B23: 42.21 | C23: 43.855 | D23: 42.065 | E23: 43.55 | F23: 4807900 | G23: 38.8302 | H23: -0.1490884463 | I23: 0.01174496644
A24: 2010-02-03 | B24: 43.97 | C24: 44.195 | D24: 42.1 | E24: 42.52 | F24: 4144100 | G24: 37.9118 | H24: -0.1073921658 | I24: 0.0416962805
A25: 2010-02-04 | B25: 42.5 | C25: 42.94 | D25: 39.42 | E25: 40.06 | F25: 8297800 | G25: 35.7184 | H25: -0.1408240511 | I25: -0.03343188538
A26: 2010-02-05 | B26: 39.4 | C26: 40.165 | D26: 38.38 | E26: 38.38 | F26: 8179800 | G26: 34.2205 | H26: -0.2137652276 | I26: -0.07294117647
A27: 2010-02-08 | B27: 38.65 | C27: 39.35 | D27: 37.225 | E27: 38.8 | F27: 5676300 | G27: 34.5949 | H27: -0.2328007606 | I27: -0.01903553299
A28: 2010-02-09 | B28: 38.6 | C28: 40.295 | D28: 38.24 | E28: 39.56 | F28: 5254500 | G28: 35.2726 | H28: -0.2340944217 | I28: -0.001293661061
A29: 2010-02-10 | B29: 40.49 | C29: 41.49 | D29: 40.31 | E29: 41.245 | F29: 6534200 | G29: 36.775 | H29: -0.1851306911 | I29: 0.04896373057
A30: 2010-02-11 | B30: 41.5 | C30: 41.8 | D30: 39.67 | E30: 40.26 | F30: 5222200 | G30: 35.8967 | H30: -0.1601862604 | I30: 0.02494443072
A31: 2010-02-12 | B31: 40.45 | C31: 40.87 | D31: 38.56 | E31: 39 | F31: 4433700 | G31: 34.7733 | H31: -0.1854874652 | I31: -0.02530120482
A32: 2010-02-15 | B32: 39.325 | C32: 39.72 | D32: 38.92 | E32: 39.22 | F32: 1809700 | G32: 34.9694 | H32: -0.2132995789 | I32: -0.02781211372
A33: 2010-02-16 | B33: 39.88 | C33: 41.045 | D33: 39.83 | E33: 41 | F33: 3930800 | G33: 36.5565 | H33: -0.1991864193 | I33: 0.01411315957
A34: 2010-02-17 | B34: 41.605 | C34: 42.66 | D34: 41.25 | E34: 42 | F34: 4239300 | G34: 37.4481 | H34: -0.1559316551 | I34: 0.04325476429
A35: 2010-02-18 | B35: 40.5 | C35: 40.87 | D35: 38.88 | E35: 38.975 | F35: 11879500 | G35: 34.751 | H35: -0.1824909628 | I35: -0.02655930778
A36: 2010-02-19 | B36: 38.5 | C36: 39.99 | D36: 38.2 | E36: 39.7 | F36: 6547500 | G36: 35.3974 | H36: -0.2318736789 | I36: -0.04938271605
A37: 2010-02-22 | B37: 40 | C37: 40.85 | D37: 39.85 | E37: 40.52 | F37: 4085000 | G37: 36.1285 | H37: -0.1929126399 | I37: 0.03896103896
A38: 2010-02-23 | B38: 40.84 | C38: 41.025 | D38: 39.385 | E38: 39.555 | F38: 4286200 | G38: 35.2681 | H38: -0.1719126399 | I38: 0.021
A39: 2010-02-24 | B39: 39.7 | C39: 40.44 | D39: 39.465 | E39: 40.24 | F39: 3527900 | G39: 35.8789 | H39: -0.1998264499 | I39: -0.02791380999
A40: 2010-02-25 | B40: 39.85 | C40: 41.18 | D40: 39.66 | E40: 39.79 | F40: 5004900 | G40: 35.4777 | H40: -0.1960481124 | I40: 0.003778337531
A41: 2010-02-26 | B41: 40.31 | C41: 40.71 | D41: 39.445 | E41: 40.4 | F41: 4295300 | G41: 36.0215 | H41: -0.184504825 | I41: 0.01154328733
A42: 2010-03-01 | B42: 40.79 | C42: 41.39 | D42: 40.475 | E42: 41.275 | F42: 3308800 | G42: 36.8017 | H42: -0.1725971098 | I42: 0.01190771521
A43: 2010-03-02 | B43: 40.925 | C43: 42.15 | D43: 40.87 | E43: 42.02 | F43: 3242300 | G43: 37.466 | H43: -0.1692874751 | I43: 0.003309634714
A44: 2010-03-03 | B44: 42.09 | C44: 42.95 | D44: 41.58 | E44: 42.86 | F44: 3880400 | G44: 38.2149 | H44: -0.1408207677 | I44: 0.02846670739
A45: 2010-03-04 | B45: 42.23 | C45: 43.885 | D45: 42.16 | E45: 42.88 | F45: 4946600 | G45: 38.2328 | H45: -0.137494562 | I45: 0.00332620575
A46: 2010-03-05 | B46: 43.15 | C46: 44.95 | D46: 43.15 | E46: 44.95 | F46: 5431300 | G46: 40.0784 | H46: -0.1157091014 | I46: 0.02178546057
A47: 2010-03-08 | B47: 45.275 | C47: 45.61 | D47: 44.17 | E47: 44.305 | F47: 4284300 | G47: 39.5033 | H47: -0.06646228797 | I47: 0.04924681344
A48: 2010-03-09 | B48: 44.08 | C48: 44.345 | D48: 42.735 | E48: 43.645 | F48: 4003800 | G48: 38.9149 | H48: -0.09285654529 | I48: -0.02639425732
A49: 2010-03-10 | B49: 43.26 | C49: 44.8 | D49: 43.2 | E49: 44.8 | F49: 3468500 | G49: 39.9447 | H49: -0.1114590861 | I49: -0.01860254083
A50: 2010-03-11 | B50: 44.23 | C50: 44.605 | D50: 43.61 | E50: 44 | F50: 3450500 | G50: 39.2314 | H50: -0.08903652487 | I50: 0.02242256126
A51: 2010-03-12 | B51: 44.05 | C51: 45.02 | D51: 43.94 | E51: 44.28 | F51: 3939100 | G51: 39.481 | H51: -0.09310616086 | I51: -0.004069635994
A52: 2010-03-15 | B52: 44 | C52: 44.11 | D52: 42.915 | E52: 43.155 | F52: 3634900 | G52: 38.478 | H52: -0.09424123464 | I52: -0.00113507378
A53: 2010-03-16 | B53: 43.6 | C53: 44.24 | D53: 43.345 | E53: 44.05 | F53: 3656300 | G53: 39.276 | H53: -0.1033321437 | I53: -0.009090909091
A54: 2010-03-17 | B54: 44.49 | C54: 45.175 | D54: 44.2 | E54: 45 | F54: 4004600 | G54: 40.123 | H54: -0.08291929969 | I54: 0.02041284404
A55: 2010-03-18 | B55: 44.31 | C55: 45.2 | D55: 44.26 | E55: 44.655 | F55: 3604800 | G55: 39.8154 | H55: -0.08696515269 | I55: -0.004045853001
A56: 2010-03-19 | B56: 44.995 | C56: 45.75 | D56: 44.74 | E56: 45 | F56: 6353300 | G56: 40.123 | H56: -0.07150588842 | I56: 0.01545926427
A57: 2010-03-22 | B57: 44.84 | C57: 45.665 | D57: 44.34 | E57: 45.665 | F57: 4835600 | G57: 40.7159 | H57: -0.07495071562 | I57: -0.003444827203
A58: 2010-03-23 | B58: 45.665 | C58: 46.935 | D58: 45.655 | E58: 46.16 | F58: 4064300 | G58: 41.1573 | H58: -0.05655196451 | I58: 0.01839875112
A59: 2010-03-24 | B59: 46.72 | C59: 46.75 | D59: 45.61 | E59: 46.5 | F59: 3395500 | G59: 41.4604 | H59: -0.03344893155 | I59: 0.02310303296
A60: 2010-03-25 | B60: 46.3 | C60: 47.385 | D60: 46.155 | E60: 47.07 | F60: 4088100 | G60: 41.9687 | H60: -0.04243865758 | I60: -0.008989726027
A61: 2010-03-26 | B61: 46.97 | C61: 47.395 | D61: 46.64 | E61: 47.145 | F61: 2718000 | G61: 42.0355 | H61: -0.02796781525 | I61: 0.01447084233
A62: 2010-03-29 | B62: 47.43 | C62: 47.885 | D62: 46.7 | E62: 47.255 | F62: 2246000 | G62: 42.1336 | H62: -0.01817433004 | I62: 0.009793485203
A63: 2010-03-30 | B63: 47.58 | C63: 47.9 | D63: 46.56 | E63: 46.71 | F63: 2497500 | G63: 41.6477 | H63: -0.0150117747 | I63: 0.003162555345
A64: 2010-03-31 | B64: 46.45 | C64: 46.97 | D64: 45.615 | E64: 46.565 | F64: 3640700 | G64: 41.5184 | H64: -0.03876124927 | I64: -0.02374947457
A65: 2010-04-01 | B65: 46.55 | C65: 47.47 | D65: 46.52 | E65: 47.345 | F65: 2906400 | G65: 42.2139 | H65: -0.03660839674 | I65: 0.00215285253
A66: 2010-04-02 | B66: 47.345 | C66: 47.345 | D66: 47.345 | E66: 47.345 | F66: 0 | G66: 42.2139 | H66: -0.01952998643 | I66: 0.01707841031
A67: 2010-04-05 | B67: 47.345 | C67: 47.345 | D67: 47.345 | E67: 47.345 | F67: 0 | G67: 42.2139 | H67: -0.01952998643 | I67: 0
A68: 2010-04-06 | B68: 47.2 | C68: 47.49 | D68: 46.365 | E68: 46.93 | F68: 2530400 | G68: 41.8438 | H68: -0.02259261183 | I68: =(B68-B67)/B67 -> -0.003062625409
A69: 2010-04-07 | B69: 46.63 | C69: 46.755 | D69: 45.77 | E69: 46.305 | F69: 3701400 | G69: 41.2866 | H69: =((B69-B68)/B68)+H68 -> -0.03466888302 | I69: -0.01207627119
A70: 2010-04-08 | B70: 46.15 | C70: 46.18 | D70: 44.16 | E70: 44.85 | F70: 5733700 | G70: 39.9893 | H70: -0.04496268529 | I70: -0.01029380227
A71: 2010-04-09 | B71: 45.58 | C71: 45.89 | D71: 45.13 | E71: 45.89 | F71: 3354100 | G71: 40.9166 | H71: -0.05731371455 | I71: -0.01235102925
A72: 2010-04-12 | B72: 46.6 | C72: 46.765 | D72: 46.03 | E72: 46.5 | F72: 3364900 | G72: 41.4604 | H72: -0.03493547848 | I72: 0.02237823607
A73: 2010-04-13 | B73: 46.015 | C73: 46.66 | D73: 45.95 | E73: 46.145 | F73: 2374900 | G73: 41.1439 | H73: -0.04748912655 | I73: -0.01255364807
A74: 2010-04-14 | B74: 46.245 | C74: 46.805 | D74: 45.54 | E74: 45.965 | F74: 4115800 | G74: 40.9834 | H74: -0.04249075645 | I74: 0.004998370097
A75: 2010-04-15 | B75: 45.825 | C75: 46.915 | D75: 45.56 | E75: 46.5 | F75: 4666500 | G75: 41.4604 | H75: -0.05157281938 | I75: -0.009082062926
A76: 2010-04-16 | B76: 46.02 | C76: 47.4 | D76: 45.05 | E76: 45.205 | F76: 8785100 | G76: 40.3058 | H76: -0.04731750023 | I76: 0.004255319149
A77: 2010-04-19 | B77: 44.48 | C77: 45.165 | D77: 43.8 | E77: 44.7 | F77: 5154600 | G77: 39.8555 | H77: -0.08078121166 | I77: -0.03346371143
A78: 2010-04-20 | B78: 45.035 | C78: 45.745 | D78: 44.41 | E78: 45.41 | F78: 3816400 | G78: 40.4886 | H78: -0.06830369367 | I78: 0.01247751799
A79: 2010-04-21 | B79: 45.42 | C79: 45.56 | D79: 44.005 | E79: 44.285 | F79: 3698200 | G79: 39.4855 | H79: -0.05975478727 | I79: 0.008548906406
A80: 2010-04-22 | B80: 44.1 | C80: 44.605 | D80: 42.455 | E80: 43.375 | F80: 6596900 | G80: 38.6741 | H80: -0.08881687445 | I80: -0.02906208719
A81: 2010-04-23 | B81: 42.87 | C81: 43.76 | D81: 42.52 | E81: 43.1 | F81: 4262300 | G81: 38.4289 | H81: -0.1167080309 | I81: -0.02789115646
A82: 2010-04-26 | B82: 43.85 | C82: 44.33 | D82: 43.16 | E82: 43.675 | F82: 4144000 | G82: 38.9416 | H82: -0.09384822219 | I82: 0.02285980872
A83: 2010-04-27 | B83: 43.105 | C83: 43.445 | D83: 41.045 | E83: 41.045 | F83: 5890500 | G83: 36.5966 | H83: -0.1108379599 | I83: -0.01698973774
A84: 2010-04-28 | B84: 40 | C84: 41.85 | D84: 38.76 | E84: 40.91 | F84: 11905600 | G84: 36.4763 | H84: -0.1828713667 | I84: -0.0720334068
A85: 2010-04-29 | B85: 40.81 | C85: 41.47 | D85: 40.34 | E85: 41.055 | F85: 5959800 | G85: 36.6056 | H85: -0.1626213667 | I85: 0.02025
A86: 2010-04-30 | B86: 41.005 | C86: 42.175 | D86: 40.02 | E86: 40.4 | F86: 6330600 | G86: 36.0215 | H86: -0.1578431261 | I86: 0.004778240627
A87: 2010-05-03 | B87: 40.6 | C87: 41.685 | D87: 40.105 | E87: 40.975 | F87: 3368700 | G87: 36.5342 | H87: -0.1677199704 | I87: -0.009876844287
A88: 2010-05-04 | B88: 41.585 | C88: 41.675 | D88: 38.51 | E88: 38.62 | F88: 6905200 | G88: 34.4345 | H88: -0.1434588866 | I88: 0.02426108374
A89: 2010-05-05 | B89: 39.5 | C89: 40.12 | D89: 37.35 | E89: 38.295 | F89: 9341500 | G89: 34.1447 | H89: -0.1935971577 | I89: -0.05013827101
A90: 2010-05-06 | B90: 37.81 | C90: 39.36 | D90: 34.53 | E90: 35.62 | F90: 12212400 | G90: 31.7596 | H90: -0.2363819678 | I90: -0.04278481013
A91: 2010-05-07 | B91: 33.61 | C91: 35.735 | D91: 32.12 | E91: 35.62 | F91: 16930400 | G91: 31.7596 | H91: -0.3474636922 | I91: -0.1110817244
A92: 2010-05-10 | B92: 37.775 | C92: 41 | D92: 36.46 | E92: 40.6 | F92: 21014400 | G92: 36.1999 | H92: -0.2235422402 | I92: 0.1239214519
A93: 2010-05-11 | B93: 39.285 | C93: 40.26 | D93: 38.65 | E93: 39.795 | F93: 6728600 | G93: 35.4821 | H93: -0.1835687128 | I93: 0.03997352747
A94: 2010-05-12 | B94: 39.46 | C94: 40.83 | D94: 38.865 | E94: 39.19 | F94: 8264300 | G94: 34.9427 | H94: -0.1791140863 | I94: 0.004454626448
A95: 2010-05-13 | B95: 39.72 | C95: 39.72 | D95: 38.145 | E95: 38.58 | F95: 3794300 | G95: 34.3988 | H95: -0.1725251355 | I95: 0.006588950836
A96: 2010-05-14 | B96: 38.14 | C96: 38.33 | D96: 34.7 | E96: 35.25 | F96: 10717200 | G96: 31.4297 | H96: -0.2123035846 | I96: -0.03977844914
A97: 2010-05-17 | B97: 34.89 | C97: 36.5 | D97: 34.53 | E97: 35.45 | F97: 6604500 | G97: 31.608 | H97: -0.2975159601 | I97: -0.08521237546
A98: 2010-05-18 | B98: 36.5 | C98: 37.82 | D98: 36.3 | E98: 37.13 | F98: 6212800 | G98: 33.1059 | H98: -0.2513709329 | I98: 0.04614502723
A99: 2010-05-19 | B99: 36.19 | C99: 36.62 | D99: 35.23 | E99: 35.565 | F99: 7831100 | G99: 31.7106 | H99: -0.2598640836 | I99: -0.008493150685
A100: 2010-05-20 | B100: 36.08 | C100: 36.82 | D100: 33.51 | E100: 34.63 | F100: 6819900 | G100: 30.8769 | H100: -0.2629035972 | I100: -0.003039513678
A101: 2010-05-21 | B101: 34.65 | C101: 35.59 | D101: 33.5 | E101: 35.235 | F101: 7503500 | G101: 31.4163 | H101: -0.3025377436 | I101: -0.03963414634
A102: 2010-05-24 | B102: 36.08 | C102: 36.23 | D102: 34.84 | E102: 35.225 | F102: 4573800 | G102: 31.4074 | H102: -0.2612679023 | I102: 0.04126984127
A103: 2010-05-25 | B103: 33.495 | C103: 33.84 | D103: 32.4 | E103: 33.01 | F103: 8399600 | G103: 29.4325 | H103: -0.3329142438 | I103: -0.07164634146
A104: 2010-05-26 | B104: 33.8 | C104: 34.435 | D104: 33.45 | E104: 33.45 | F104: 6769000 | G104: 29.8248 | H104: -0.3238084071 | I104: 0.009105836692
A105: 2010-05-27 | B105: 34.01 | C105: 36 | D105: 33.65 | E105: 35.93 | F105: 7314600 | G105: 32.036 | H105: -0.3175953893 | I105: 0.006213017751
A106: 2010-05-28 | B106: 36.26 | C106: 36.77 | D106: 35.36 | E106: 35.55 | F106: 4560700 | G106: 31.6972 | H106: -0.2514383767 | I106: 0.06615701264
A107: 2010-05-31 | B107: 35.28 | C107: 35.785 | D107: 35 | E107: 35.05 | F107: 1920600 | G107: 31.2514 | H107: -0.2784654037 | I107: -0.02702702703
A108: 2010-06-01 | B108: 34.355 | C108: 34.65 | D108: 33 | E108: 34.185 | F108: 6601000 | G108: 30.6991 | H108: -0.3046842246 | I108: -0.02621882086
A109: 2010-06-02 | B109: 33.72 | C109: 34.07 | D109: 33.25 | E109: 33.85 | F109: 4220200 | G109: 30.3982 | H109: -0.3231677059 | I109: -0.0184834813
A110: 2010-06-03 | B110: 35.03 | C110: 35.25 | D110: 34.055 | E110: 34.175 | F110: 4721100 | G110: 30.6901 | H110: -0.2843183583 | I110: 0.03884934757
A111: 2010-06-04 | B111: 34.13 | C111: 34.72 | D111: 31.06 | E111: 31.585 | F111: 12103200 | G111: 28.3642 | H111: -0.3100106221 | I111: -0.02569226377
A112: 2010-06-07 | B112: 31 | C112: 32.025 | D112: 30.72 | E112: 31 | F112: 6589100 | G112: 27.8389 | H112: -0.4017187967 | I112: -0.09170817463
A113: 2010-06-08 | B113: 31.37 | C113: 31.45 | D113: 29.705 | E113: 30.33 | F113: 7096400 | G113: 27.2372 | H113: -0.3897833128 | I113: 0.01193548387
A114: 2010-06-09 | B114: 30.96 | C114: 31.75 | D114: 30.41 | E114: 31.745 | F114: 7762800 | G114: 28.5079 | H114: -0.4028531248 | I114: -0.01306981192
A115: 2010-06-10 | B115: 31.5 | C115: 33.035 | D115: 30.85 | E115: 32.66 | F115: 6543000 | G115: 29.3296 | H115: -0.3854112643 | I115: 0.01744186047
A116: 2010-06-11 | B116: 33.235 | C116: 34.56 | D116: 33.07 | E116: 33.725 | F116: 6972700 | G116: 30.286 | H116: -0.3303318992 | I116: 0.05507936508
A117: 2010-06-14 | B117: 34.75 | C117: 35.4 | D117: 34.47 | E117: 35.045 | F117: 5553000 | G117: 31.4714 | H117: -0.284747425 | I117: 0.0455844742
A118: 2010-06-15 | B118: 34.805 | C118: 36.76 | D118: 34.52 | E118: 36.4 | F118: 6877100 | G118: 32.6882 | H118: -0.2831646912 | I118: 0.001582733813
A119: 2010-06-16 | B119: 37 | C119: 37.3 | D119: 35.52 | E119: 36.16 | F119: 5847000 | G119: 32.4727 | H119: -0.2200990397 | I119: 0.06306565149
A120: 2010-06-17 | B120: 36.03 | C120: 37.55 | D120: 35.9 | E120: 37.135 | F120: 6481700 | G120: 33.3483 | H120: -0.2463152559 | I120: -0.02621621622
A121: 2010-06-18 | B121: 37.23 | C121: 38.64 | D121: 37.22 | E121: 38.23 | F121: 8116900 | G121: 34.3316 | H121: -0.2130096772 | I121: 0.03330557868
A122: 2010-06-21 | B122: 39.005 | C122: 39.4 | D122: 38.625 | E122: 38.89 | F122: 3708500 | G122: 34.9243 | H122: -0.1653330724 | I122: 0.04767660489
A123: 2010-06-22 | B123: 37.75 | C123: 37.975 | D123: 36.02 | E123: 37.35 | F123: 6251500 | G123: 33.5413 | H123: -0.1975084345 | I123: -0.03217536213
A124: 2010-06-23 | B124: 36.965 | C124: 37.6 | D124: 36.2 | E124: 36.82 | F124: 5305200 | G124: 33.0654 | H124: -0.2183031365 | I124: -0.02079470199
A125: 2010-06-24 | B125: 37.29 | C125: 37.39 | D125: 34.93 | E125: 35.155 | F125: 5487100 | G125: 31.5702 | H125: -0.2095110358 | I125: 0.008792100636
A126: 2010-06-25 | B126: 35.49 | C126: 36.48 | D126: 35.115 | E126: 35.78 | F126: 4570300 | G126: 32.1314 | H126: -0.2577813496 | I126: -0.04827031376
A127: 2010-06-28 | B127: 36.145 | C127: 36.4 | D127: 35.24 | E127: 36.13 | F127: 3871500 | G127: 32.4457 | H127: -0.2393254465 | I127: 0.01845590307
A128: 2010-06-29 | B128: 35.49 | C128: 35.68 | D128: 33.485 | E128: 33.8 | F128: 5057800 | G128: 30.3533 | H128: -0.2574469018 | I128: -0.01812145525
A129: 2010-06-30 | B129: 34.11 | C129: 35.39 | D129: 33.555 | E129: 34.3 | F129: 4796600 | G129: 30.8024 | H129: -0.2963310945 | I129: -0.03888419273
A130: 2010-07-01 | B130: 33.605 | C130: 33.96 | D130: 32.5 | E130: 32.86 | F130: 5318700 | G130: 29.5092 | H130: -0.311136137 | I130: -0.01480504251
A131: 2010-07-02 | B131: 33.55 | C131: 33.61 | D131: 32.5 | E131: 32.9 | F131: 4128700 | G131: 29.5451 | H131: -0.3127727982 | I131: -0.001636661211
A132: 2010-07-05 | B132: 33.185 | C132: 33.23 | D132: 32.535 | E132: 33.03 | F132: 2217000 | G132: 29.6619 | H132: -0.3236520829 | I132: =(B132-B131)/B131 -> -0.01087928465
A133: 2010-07-06 | B133: 33.195 | C133: 35.41 | D133: 33.13 | E133: 35.1 | F133: 5492100 | G133: 31.5208 | H133: =((B133-B132)/B132)+H132 -> -0.3233507419 | I133: 0.0003013409673
A134: 2010-07-07 | B134: 34.505 | C134: 37.675 | D134: 34.35 | E134: 37.575 | F134: 8949400 | G134: 33.7434 | H134: -0.2838869672 | I134: 0.03946377466
A135: 2010-07-08 | B135: 38.64 | C135: 38.95 | D135: 38.17 | E135: 38.775 | F135: 8191500 | G135: 34.821 | H135: -0.1640492626 | I135: 0.1198377047
A136: 2010-07-09 | B136: 39.1 | C136: 39.36 | D136: 37.65 | E136: 38.395 | F136: 5118500 | G136: 34.4798 | H136: -0.1521445007 | I136: 0.0119047619
A137: 2010-07-12 | B137: 38.18 | C137: 38.865 | D137: 37.65 | E137: 38.26 | F137: 3021500 | G137: 34.3585 | H137: -0.1756739124 | I137: -0.02352941176
A138: 2010-07-13 | B138: 37.995 | C138: 39.5 | D138: 37.95 | E138: 39.5 | F138: 4015100 | G138: 35.4721 | H138: -0.1805193813 | I138: -0.004845468832
A139: 2010-07-14 | B139: 39.71 | C139: 39.75 | D139: 38.17 | E139: 38.64 | F139: 3978700 | G139: 34.6998 | H139: -0.1353818632 | I139: 0.04513751809
A140: 2010-07-15 | B140: 38.03 | C140: 38.835 | D140: 37.555 | E140: 37.84 | F140: 4637500 | G140: 33.9814 | H140: -0.1776885869 | I140: -0.04230672375
A141: 2010-07-16 | B141: 37.905 | C141: 38.35 | D141: 35.91 | E141: 36.3 | F141: 5604800 | G141: 32.5984 | H141: -0.1809754657 | I141: -0.00328687878
A142: 2010-07-19 | B142: 35.795 | C142: 36.95 | D142: 35.305 | E142: 36.05 | F142: 3738100 | G142: 32.3739 | H142: -0.2366409452 | I142: -0.05566547949
A143: 2010-07-20 | B143: 36.435 | C143: 36.525 | D143: 34.565 | E143: 35.795 | F143: 4995100 | G143: 32.1449 | H143: -0.2187613531 | I143: 0.01787959212
A144: 2010-07-21 | B144: 36.33 | C144: 37.045 | D144: 36.005 | E144: 36.135 | F144: 4119500 | G144: 32.4502 | H144: -0.2216431974 | I144: -0.00288184438
A145: 2010-07-22 | B145: 35.775 | C145: 38.19 | D145: 35.54 | E145: 37.97 | F145: 5309400 | G145: 34.0981 | H145: -0.2369198283 | I145: -0.01527663088
A146: 2010-07-23 | B146: 38.06 | C146: 38.6 | D146: 37.03 | E146: 38 | F146: 3405300 | G146: 34.1251 | H146: -0.1730484097 | I146: 0.06387141859
A147: 2010-07-26 | B147: 39 | C147: 40.28 | D147: 38.58 | E147: 39.99 | F147: 7397900 | G147: 35.9121 | H147: -0.1483505642 | I147: 0.02469784551
A148: 2010-07-27 | B148: 41.78 | C148: 44.68 | D148: 41.5 | E148: 44.225 | F148: 13676200 | G148: 39.7153 | H148: -0.07706851294 | I148: 0.07128205128
A149: 2010-07-28 | B149: 44.4 | C149: 46 | D149: 44.4 | E149: 45.03 | F149: 8401700 | G149: 40.4382 | H149: -0.01435908259 | I149: 0.06270943035
A150: 2010-07-29 | B150: 45 | C150: 45.7 | D150: 44.71 | E150: 44.71 | F150: 4953900 | G150: 40.1508 | H150: -0.0008455690745 | I150: 0.01351351351
A151: 2010-07-30 | B151: 44.32 | C151: 44.84 | D151: 43.795 | E151: 44.235 | F151: 4685300 | G151: 39.7243 | H151: -0.01595668019 | I151: -0.01511111111
A152: 2010-08-02 | B152: 44.465 | C152: 46.3 | D152: 44.465 | E152: 46.3 | F152: 4422900 | G152: 41.5787 | H152: -0.01268501954 | I152: 0.00327166065
A153: 2010-08-03 | B153: 46.35 | C153: 46.365 | D153: 44.75 | E153: 45.395 | F153: 4381500 | G153: 40.766 | H153: 0.02970787375 | I153: 0.04239289329
A154: 2010-08-04 | B154: 46.995 | C154: 46.995 | D154: 45.555 | E154: 45.705 | F154: 6390200 | G154: 41.0444 | H154: 0.04362373136 | I154: 0.01391585761
A155: 2010-08-05 | B155: 45.85 | C155: 46.9 | D155: 44.92 | E155: 45.225 | F155: 4523100 | G155: 40.6133 | H155: 0.01925943728 | I155: -0.02436429407
A156: 2010-08-06 | B156: 45.52 | C156: 46.75 | D156: 45.1 | E156: 45.52 | F156: 5027100 | G156: 40.8782 | H156: 0.01206205451 | I156: -0.00719738277
A157: 2010-08-09 | B157: 46.25 | C157: 46.7 | D157: 45.92 | E157: 46.36 | F157: 2756900 | G157: 41.6326 | H157: 0.02809896137 | I157: 0.01603690685
A158: 2010-08-10 | B158: 46.005 | C158: 46.175 | D158: 44.85 | E158: 45.07 | F158: 3370900 | G158: 40.4741 | H158: 0.02280166407 | I158: -0.005297297297
A159: 2010-08-11 | B159: 44.825 | C159: 44.84 | D159: 43.07 | E159: 43.18 | F159: 4435800 | G159: 38.7768 | H159: -0.002847721867 | I159: -0.02564938594
A160: 2010-08-12 | B160: 42.78 | C160: 43.37 | D160: 41.485 | E160: 42.65 | F160: 5189000 | G160: 38.3009 | H160: -0.04846958467 | I160: -0.0456218628
A161: 2010-08-13 | B161: 43.35 | C161: 43.88 | D161: 42.465 | E161: 43.37 | F161: 3905100 | G161: 38.9475 | H161: -0.0351456015 | I161: 0.01332398317
A162: 2010-08-16 | B162: 43.375 | C162: 43.6 | D162: 42.295 | E162: 42.9 | F162: 2232500 | G162: 38.5254 | H162: -0.03456890023 | I162: 0.0005767012687
A163: 2010-08-17 | B163: 43.365 | C163: 43.95 | D163: 43.03 | E163: 43.925 | F163: 2619700 | G163: 39.4459 | H163: -0.03479944778 | I163: -0.0002305475504
A164: 2010-08-18 | B164: 43.595 | C164: 43.86 | D164: 42.8 | E164: 43.175 | F164: 2582800 | G164: 38.7723 | H164: -0.02949563134 | I164: 0.005303816442
A165: 2010-08-19 | B165: 43.48 | C165: 43.565 | D165: 41.48 | E165: 41.685 | F165: 4080500 | G165: 37.4343 | H165: -0.03213354853 | I165: -0.002637917192
A166: 2010-08-20 | B166: 41.52 | C166: 42.09 | D166: 41 | E166: 41.095 | F166: 3612800 | G166: 36.9045 | H166: -0.0772117454 | I166: -0.04507819687
A167: 2010-08-23 | B167: 41.115 | C167: 42.035 | D167: 40.89 | E167: 41.285 | F167: 2548500 | G167: 37.0751 | H167: -0.08696608066 | I167: -0.00975433526
A168: 2010-08-24 | B168: 40.85 | C168: 40.97 | D168: 39.86 | E168: 40.7 | F168: 3216300 | G168: 36.5497 | H168: -0.09341141691 | I168: -0.006445336252
A169: 2010-08-25 | B169: 40.5 | C169: 40.93 | D169: 39.13 | E169: 39.93 | F169: 3587900 | G169: 35.8582 | H169: -0.1019793484 | I169: -0.008567931457
A170: 2010-08-26 | B170: 40.89 | C170: 41 | D170: 39.51 | E170: 40.12 | F170: 2972900 | G170: 36.0289 | H170: -0.09234971874 | I170: 0.00962962963
A171: 2010-08-27 | B171: 40 | C171: 40.625 | D171: 39.335 | E171: 40.45 | F171: 2189000 | G171: 36.3252 | H171: -0.1141154316 | I171: -0.02176571289
A172: 2010-08-30 | B172: 40.86 | C172: 40.95 | D172: 40.01 | E172: 40.185 | F172: 1116700 | G172: 36.0872 | H172: -0.09261543163 | I172: 0.0215
A173: 2010-08-31 | B173: 39.445 | C173: 40.18 | D173: 39.125 | E173: 40.18 | F173: 2861800 | G173: 36.0828 | H173: -0.1272458771 | I173: -0.03463044542
A174: 2010-09-01 | B174: 40.43 | C174: 43.015 | D174: 39.375 | E174: 42.465 | F174: 6337800 | G174: 38.1347 | H174: -0.1022743978 | I174: 0.02497147927
A175: 2010-09-02 | B175: 42.34 | C175: 43.1 | D175: 42 | E175: 42.785 | F175: 2921400 | G175: 38.4221 | H175: -0.05503225086 | I175: 0.04724214692
A176: 2010-09-03 | B176: 43 | C176: 45.17 | D176: 42.61 | E176: 44.375 | F176: 5322600 | G176: 39.85 | H176: -0.03944415449 | I176: 0.01558809636
A177: 2010-09-06 | B177: 44.815 | C177: 44.9 | D177: 44.31 | E177: 44.315 | F177: 1757100 | G177: 39.7961 | H177: 0.002765147832 | I177: 0.04220930233
A178: 2010-09-07 | B178: 43.765 | C178: 43.885 | D178: 42.31 | E178: 42.61 | F178: 4665400 | G178: 38.265 | H178: -0.02066450742 | I178: -0.02342965525
A179: 2010-09-08 | B179: 42.145 | C179: 42.315 | D179: 41.1 | E179: 42.145 | F179: 5695100 | G179: 37.8474 | H179: -0.05768038769 | I179: -0.03701588027
A180: 2010-09-09 | B180: 42.095 | C180: 44.155 | D180: 41.745 | E180: 43.585 | F180: 5437200 | G180: 39.1405 | H180: -0.05886676804 | I180: -0.001186380354
A181: 2010-09-10 | B181: 42.75 | C181: 44.07 | D181: 42.5 | E181: 43.91 | F181: 3592900 | G181: 39.4324 | H181: -0.04330672528 | I181: 0.01556004276
A182: 2010-09-13 | B182: 45.06 | C182: 46.36 | D182: 45 | E182: 45.8 | F182: 5838000 | G182: 41.1297 | H182: 0.01072836244 | I182: 0.05403508772
A183: 2010-09-14 | B183: 45.65 | C183: 46.43 | D183: 45.305 | E183: 46.11 | F183: 3568800 | G183: 41.4081 | H183: 0.02382201535 | I183: 0.01309365291
A184: 2010-09-15 | B184: 46.155 | C184: 46.7 | D184: 45.4 | E184: 45.925 | F184: 3034100 | G184: 41.2419 | H184: 0.03488444689 | I184: 0.01106243154
A185: 2010-09-16 | B185: 46.055 | C185: 46.4 | D185: 45.12 | E185: 45.33 | F185: 3070400 | G185: 40.7076 | H185: 0.03271783439 | I185: -0.002166612501
A186: 2010-09-17 | B186: 46.075 | C186: 46.3 | D186: 43.7 | E186: 44 | F186: 9321700 | G186: 39.5132 | H186: 0.03315209777 | I186: 0.0004342633807
A187: 2010-09-20 | B187: 44.26 | C187: 44.495 | D187: 43.41 | E187: 44.425 | F187: 3552800 | G187: 39.8949 | H187: -0.006240197401 | I187: -0.03939229517
A188: 2010-09-21 | B188: 44.49 | C188: 46.085 | D188: 44.315 | E188: 45.02 | F188: 4303300 | G188: 40.4292 | H188: -0.001043631653 | I188: 0.005196565748
A189: 2010-09-22 | B189: 45.32 | C189: 45.325 | D189: 44.09 | E189: 44.265 | F189: 3278300 | G189: 39.7512 | H189: 0.01761224607 | I189: 0.01865587773
A190: 2010-09-23 | B190: 44.735 | C190: 45.125 | D190: 42.65 | E190: 43.51 | F190: 4162500 | G190: 39.0732 | H190: 0.004704037776 | I190: -0.0129082083
A191: 2010-09-24 | B191: 43.05 | C191: 45.21 | D191: 42.9 | E191: 45.21 | F191: 4155500 | G191: 40.5998 | H191: -0.03296221907 | I191: -0.03766625685
A192: 2010-09-27 | B192: 45.5 | C192: 45.99 | D192: 44.945 | E192: 45.045 | F192: 2388700 | G192: 40.4517 | H192: 0.02394835004 | I192: 0.05691056911
A193: 2010-09-28 | B193: 44.785 | C193: 45.28 | D193: 43.75 | E193: 44.75 | F193: 4373500 | G193: 40.1867 | H193: 0.008234064321 | I193: -0.01571428571
A194: 2010-09-29 | B194: 44.96 | C194: 45.235 | D194: 42.61 | E194: 43.23 | F194: 5770900 | G194: 38.8217 | H194: 0.01214162266 | I194: 0.003907558334
A195: 2010-09-30 | B195: 42.455 | C195: 43.59 | D195: 41.57 | E195: 42.25 | F195: 6612800 | G195: 37.9417 | H195: -0.04357456952 | I195: -0.05571619217
A196: 2010-10-01 | B196: 42.665 | C196: 43.005 | D196: 41.15 | E196: 41.4 | F196: 4452300 | G196: 37.1784 | H196: -0.03862815567 | I196: =(B196-B195)/B195 -> 0.00494641385
A197: 2010-10-04 | B197: 41.35 | C197: 41.48 | D197: 40.25 | E197: 40.85 | F197: 3895900 | G197: 36.6844 | H197: =((B197-B196)/B196)+H196 -> -0.06944967213 | I197: -0.03082151647
A198: 2010-10-05 | B198: 40.565 | C198: 42.395 | D198: 40.13 | E198: 42.325 | F198: 5283400 | G198: 38.009 | H198: -0.08843395266 | I198: -0.01898428053
A199: 2010-10-06 | B199: 42.74 | C199: 43.66 | D199: 42.65 | E199: 43.165 | F199: 4688500 | G199: 38.7634 | H199: -0.03481630198 | I199: 0.05361765068
A200: 2010-10-07 | B200: 43.165 | C200: 44.35 | D200: 42.49 | E200: 43.775 | F200: 3161600 | G200: 39.3112 | H200: -0.02487245546 | I200: 0.009943846514
... 1245 more rows

Sheet JPMorgan Chase & Co.
A1: Date | B1: Open | C1: High | D1: Low | E1: Close | F1: Volume | G1: Adj Close | H1: Cumulative Return | I1: Daily Return
A2: 2010-01-04 | B2: 41.790001 | C2: 42.990002 | D2: 41.669998 | E2: 42.849998 | F2: 35460500 | G2: 37.690444
A3: 2010-01-05 | B3: 42.790001 | C3: 43.84 | D3: 42.779999 | E3: 43.68 | F3: 41208300 | G3: 38.420506 | H3: =(B3-B2)/B2 -> 0.02392916909 | I3: =(B3-B2)/B2 -> 0.02392916909
A4: 2010-01-06 | B4: 43.450001 | C4: 44.09 | D4: 43.310001 | E4: 43.919998 | F4: 27729000 | G4: 38.631606 | H4: =((B4-B3)/B3)+H3 -> 0.03935333325 | I4: =(B4-B3)/B3 -> 0.01542416416
A5: 2010-01-07 | B5: 43.790001 | C5: 45.119999 | D5: 43.610001 | E5: 44.790001 | F5: 44864700 | G5: 39.396852 | H5: =((B5-B4)/B4)+H4 -> 0.04717841938 | I5: 0.007825086126
A6: 2010-01-08 | B6: 44.369999 | C6: 44.700001 | D6: 44.080002 | E6: 44.68 | F6: 33110100 | G6: 39.300096 | H6: 0.06042340651 | I6: 0.01324498714
A7: 2010-01-11 | B7: 45.119999 | C7: 45.189999 | D7: 44.310001 | E7: 44.529999 | F7: 31878700 | G7: 39.168156 | H7: 0.07732671994 | I7: 0.01690331343
A8: 2010-01-12 | B8: 43.990002 | C8: 44.150002 | D8: 42.939999 | E8: 43.490002 | F8: 47109600 | G8: 38.253385 | H8: 0.05228245964 | I8: -0.02504426031
A9: 2010-01-13 | B9: 43.549999 | C9: 44.529999 | D9: 42.869999 | E9: 44.25 | F9: 39622000 | G9: 38.921872 | H9: 0.04228011865 | I9: -0.01000234099
A10: 2010-01-14 | B10: 44.200001 | C10: 44.790001 | D10: 44.099998 | E10: 44.689999 | F10: 37938300 | G10: 39.308891 | H10: 0.05720553805 | I10: 0.0149254194
A11: 2010-01-15 | B11: 44.299999 | C11: 44.43 | D11: 43.34 | E11: 43.68 | F11: 69738500 | G11: 38.420506 | H11: 0.05946793619 | I11: 0.002262398139
A12: 2010-01-19 | B12: 43.400002 | C12: 43.75 | D12: 42.900002 | E12: 43.279999 | F12: 41731500 | G12: 38.068669 | H12: 0.03915197636 | I12: -0.02031595983
A13: 2010-01-20 | B13: 43.009998 | C13: 43.68 | D13: 42.709999 | E13: 43.400002 | F13: 39934400 | G13: 38.174222 | H13: 0.0301657095 | I13: -0.008986266867
A14: 2010-01-21 | B14: 43.040001 | C14: 43.150002 | D14: 40.32 | E14: 40.540001 | F14: 137547700 | G14: 35.658593 | H14: 0.03086329149 | I14: 0.0006975819901
A15: 2010-01-22 | B15: 40.650002 | C15: 41.200001 | D15: 38.82 | E15: 39.16 | F15: 106634900 | G15: 34.444757 | H15: -0.02466642377 | I15: -0.05552971525
A16: 2010-01-25 | B16: 39.759998 | C16: 39.889999 | D16: 38.84 | E16: 39.209999 | F16: 56572200 | G16: 34.488736 | H16: -0.04656074003 | I16: -0.02189431627
A17: 2010-01-26 | B17: 39 | C17: 39.84 | D17: 38.279999 | E17: 38.439999 | F17: 52975300 | G17: 33.811451 | H17: -0.06567537882 | I17: -0.01911463879
A18: 2010-01-27 | B18: 38.349998 | C18: 39.490002 | D18: 38.07 | E18: 39.330002 | F18: 66314300 | G18: 34.594289 | H18: -0.08234209677 | I18: -0.01666671795
A19: 2010-01-28 | B19: 39.68 | C19: 40.040001 | D19: 38.720001 | E19: 39.48 | F19: 65047400 | G19: 34.726226 | H19: -0.04766146915 | I19: 0.03468062762
A20: 2010-01-29 | B20: 39.650002 | C20: 39.849998 | D20: 38.799999 | E20: 38.939999 | F20: 53649000 | G20: 34.251246 | H20: -0.04841746713 | I20: -0.0007559979839
A21: 2010-02-01 | B21: 39.099998 | C21: 39.93 | D21: 38.950001 | E21: 39.630001 | F21: 37408200 | G21: 34.858166 | H21: -0.06228894184 | I21: -0.01387147471
A22: 2010-02-02 | B22: 39.799999 | C22: 40.68 | D22: 39.700001 | E22: 40.549999 | F22: 45968500 | G22: 35.667387 | H22: -0.04438610205 | I22: 0.01790283979
A23: 2010-02-03 | B23: 40.580002 | C23: 41.099998 | D23: 40.169998 | E23: 40.290001 | F23: 37373300 | G23: 35.438695 | H23: -0.02478803623 | I23: 0.01959806582
A24: 2010-02-04 | B24: 39.790001 | C24: 39.919998 | D24: 38.349998 | E24: 38.349998 | F24: 57211800 | G24: 33.732288 | H24: -0.044255778 | I24: -0.01946774177
A25: 2010-02-05 | B25: 38.639999 | C25: 38.880001 | D25: 37.029999 | E25: 38.299999 | F25: 75224100 | G25: 33.688309 | H25: -0.07315756164 | I25: -0.02890178364
A26: 2010-02-08 | B26: 38.290001 | C26: 38.290001 | D26: 37.32 | E26: 37.700001 | F26: 58321000 | G26: 33.160556 | H26: -0.08221548113 | I26: -0.009057919489
A27: 2010-02-09 | B27: 38.189999 | C27: 38.700001 | D27: 37.84 | E27: 38.389999 | F27: 45173500 | G27: 33.767472 | H27: -0.08482718125 | I27: -0.002611700115
A28: 2010-02-10 | B28: 38.639999 | C28: 39.5 | D28: 38.52 | E28: 38.869999 | F28: 39331800 | G28: 34.189675 | H28: -0.07304399162 | I28: 0.01178318963
A29: 2010-02-11 | B29: 38.84 | C29: 39.369999 | D29: 38.360001 | E29: 39.02 | F29: 33830600 | G29: 34.321615 | H29: -0.06786798217 | I29: 0.005176009451
A30: 2010-02-12 | B30: 38.669998 | C30: 39.18 | D30: 38.360001 | E30: 38.950001 | F30: 38051100 | G30: 34.260044 | H30: -0.07224496466 | I30: -0.004376982492
A31: 2010-02-16 | B31: 39.330002 | C31: 40.139999 | D31: 38.75 | E31: 40.07 | F31: 46425300 | G31: 35.245184 | H31: -0.05517736616 | I31: 0.0170675985
A32: 2010-02-17 | B32: 40.259998 | C32: 40.450001 | D32: 39.759998 | E32: 40.040001 | F32: 34644100 | G32: 35.218798 | H32: -0.03153139736 | I32: 0.0236459688
A33: 2010-02-18 | B33: 39.939999 | C33: 40.509998 | D33: 39.77 | E33: 40.41 | F33: 31809500 | G33: 35.544245 | H33: -0.03947970874 | I33: -0.007948311373
A34: 2010-02-19 | B34: 40.110001 | C34: 40.700001 | D34: 39.900002 | E34: 40.029999 | F34: 40290200 | G34: 35.21 | H34: -0.03522327398 | I34: 0.004256434759
A35: 2010-02-22 | B35: 40.400002 | C35: 41.299999 | D35: 40.25 | E35: 40.849998 | F35: 43898900 | G35: 35.931264 | H35: -0.02799313205 | I35: 0.007230141929
A36: 2010-02-23 | B36: 40.900002 | C36: 41.25 | D36: 39.759998 | E36: 39.880001 | F36: 52233100 | G36: 35.078063 | H36: -0.01561689504 | I36: 0.01237623701
A37: 2010-02-24 | B37: 40.049999 | C37: 40.970001 | D37: 40 | E37: 40.849998 | F37: 44645000 | G37: 35.931264 | H37: -0.03639936346 | I37: -0.02078246842
A38: 2010-02-25 | B38: 40.16 | C38: 40.689999 | D38: 39.700001 | E38: 40.639999 | F38: 46718100 | G38: 35.746551 | H38: -0.03365277163 | I38: 0.002746591829
A39: 2010-02-26 | B39: 40.689999 | C39: 42.310001 | D39: 40.599998 | E39: 41.970001 | F39: 67699100 | G39: 36.916407 | H39: -0.02045558538 | I39: 0.01319718625
A40: 2010-03-01 | B40: 42.029999 | C40: 42.18 | D40: 41.41 | E40: 41.830002 | F40: 34606800 | G40: 36.793265 | H40: 0.01247633974 | I40: 0.03293192512
A41: 2010-03-02 | B41: 41.98 | C41: 42.400002 | D41: 41.360001 | E41: 41.619999 | F41: 33891600 | G41: 36.608549 | H41: 0.01128673705 | I41: -0.001189602693
A42: 2010-03-03 | B42: 41.650002 | C42: 42.060001 | D42: 41.34 | E42: 41.529999 | F42: 27562500 | G42: 36.529385 | H42: 0.003425898551 | I42: -0.007860838495
A43: 2010-03-04 | B43: 41.91 | C43: 42.080002 | D43: 41.66 | E43: 41.919998 | F43: 25450700 | G43: 36.872425 | H43: 0.009668347231 | I43: 0.00624244868
A44: 2010-03-05 | B44: 42.32 | C44: 42.869999 | D44: 42.189999 | E44: 42.810001 | F44: 34790800 | G44: 37.655263 | H44: 0.01945121528 | I44: 0.009782868051
A45: 2010-03-08 | B45: 42.849998 | C45: 43.029999 | D45: 42.470001 | E45: 42.59 | F45: 28524900 | G45: 37.461752 | H45: 0.03197479751 | I45: 0.01252358223
A46: 2010-03-09 | B46: 42.389999 | C46: 42.82 | D46: 42.049999 | E46: 42.419998 | F46: 37107100 | G46: 37.31222 | H46: 0.02123969783 | I46: -0.01073509968
A47: 2010-03-10 | B47: 42.869999 | C47: 43.490002 | D47: 42.810001 | E47: 42.93 | F47: 40903700 | G47: 37.760813 | H47: 0.03256312343 | I47: 0.0113234256
A48: 2010-03-11 | B48: 42.91 | C48: 43.200001 | D48: 42.799999 | E48: 43.18 | F48: 30119600 | G48: 37.980711 | H48: 0.0334962002 | I48: 0.0009330767654
A49: 2010-03-12 | B49: 43.34 | C49: 43.540001 | D49: 42.849998 | E49: 43.150002 | F49: 31367300 | G49: 37.954324 | H49: 0.04351717433 | I49: 0.01002097413
A50: 2010-03-15 | B50: 42.919998 | C50: 43.209999 | D50: 42.599998 | E50: 43.07 | F50: 29142000 | G50: 37.883955 | H50: 0.03382631138 | I50: -0.009690862944
A51: 2010-03-16 | B51: 43.349998 | C51: 43.380001 | D51: 42.689999 | E51: 43.240002 | F51: 28553800 | G51: 38.033487 | H51: 0.04384495118 | I51: 0.0100186398
A52: 2010-03-17 | B52: 43.310001 | C52: 44.110001 | D52: 43.27 | E52: 43.790001 | F52: 32918800 | G52: 38.517261 | H52: 0.04292229831 | I52: -0.0009226528684
A53: 2010-03-18 | B53: 43.75 | C53: 43.790001 | D53: 43.150002 | E53: 43.639999 | F53: 26012000 | G53: 38.385322 | H53: 0.05308159154 | I53: 0.01015929323
A54: 2010-03-19 | B54: 43.450001 | C54: 43.889999 | D54: 43.130001 | E54: 43.450001 | F54: 37014400 | G54: 38.218201 | H54: 0.04622447154 | I54: -0.00685712
A55: 2010-03-22 | B55: 43.07 | C55: 43.790001 | D55: 43.040001 | E55: 43.740002 | F55: 23257200 | G55: 38.473283 | H55: 0.03747876403 | I55: -0.008745707509
A56: 2010-03-23 | B56: 43.849998 | C56: 44.740002 | D56: 43.779999 | E56: 44.580002 | F56: 33735700 | G56: 39.212139 | H56: 0.055588771 | I56: 0.01811000697
A57: 2010-03-24 | B57: 44.439999 | C57: 44.970001 | D57: 44.200001 | E57: 44.939999 | F57: 35849200 | G57: 39.528788 | H57: 0.06904375451 | I57: 0.01345498351
A58: 2010-03-25 | B58: 44.98 | C58: 46.049999 | D58: 44.889999 | E58: 44.939999 | F58: 45019400 | G58: 39.528788 | H58: 0.08119499241 | I58: 0.0121512379
A59: 2010-03-26 | B59: 45.040001 | C59: 45.889999 | D59: 44.790001 | E59: 45.02 | F59: 39727000 | G59: 39.599157 | H59: 0.08252894083 | I59: 0.001333948422
A60: 2010-03-29 | B60: 45.25 | C60: 45.380001 | D60: 44.459999 | E60: 44.860001 | F60: 30628400 | G60: 39.458423 | H60: 0.08719144072 | I60: 0.004662499896
A61: 2010-03-30 | B61: 44.900002 | C61: 45.049999 | D61: 44.360001 | E61: 44.580002 | F61: 30296300 | G61: 39.212139 | H61: 0.07945667829 | I61: -0.007734762431
A62: 2010-03-31 | B62: 44.310001 | C62: 45 | D62: 44.25 | E62: 44.75 | F62: 39043000 | G62: 39.361667 | H62: 0.0663163448 | I62: -0.01314033349
A63: 2010-04-01 | B63: 45.029999 | C63: 45.310001 | D63: 44.990002 | E63: 45.18 | F63: 23894600 | G63: 39.784344 | H63: 0.08256545299 | I63: 0.01624910819
A64: 2010-04-05 | B64: 45.279999 | C64: 45.400002 | D64: 44.790001 | E64: 45.34 | F64: 21342400 | G64: 39.925236 | H64: 0.08811730743 | I64: 0.005551854443
A65: 2010-04-06 | B65: 45.23 | C65: 45.939999 | D65: 45.150002 | E65: 45.84 | F65: 28192100 | G65: 40.365523 | H65: 0.08701308921 | I65: -0.001104218222
A66: 2010-04-07 | B66: 45.830002 | C66: 46.049999 | D66: 45.02 | E66: 45.32 | F66: 28890100 | G66: 39.907624 | H66: 0.1002786652 | I66: 0.01326557595
A67: 2010-04-08 | B67: 45.16 | C67: 45.970001 | D67: 44.810001 | E67: 45.759998 | F67: 28869900 | G67: 40.295075 | H67: 0.08565937712 | I67: -0.01461928804
A68: 2010-04-09 | B68: 45.880001 | C68: 46.220001 | D68: 45.450001 | E68: 45.98 | F68: 22881200 | G68: 40.488803 | H68: 0.1016027119 | I68: =(B68-B67)/B67 -> 0.01594333481
A69: 2010-04-12 | B69: 46.029999 | C69: 46.470001 | D69: 45.900002 | E69: 46.139999 | F69: 24645900 | G69: 40.629694 | H69: =((B69-B68)/B68)+H68 -> 0.1048720667 | I69: 0.003269354767
A70: 2010-04-13 | B70: 46.040001 | C70: 46.380001 | D70: 45.849998 | E70: 45.869999 | F70: 27988900 | G70: 40.391939 | H70: 0.1050893598 | I70: 0.0002172930745
A71: 2010-04-14 | B71: 47.400002 | C71: 47.93 | D71: 46.779999 | E71: 47.73 | F71: 72533100 | G71: 42.029807 | H71: 0.1346289117 | I71: 0.02953955192
A72: 2010-04-15 | B72: 47.650002 | C72: 48.200001 | D72: 47.490002 | E72: 47.810001 | F72: 45412100 | G72: 42.100255 | H72: 0.1399031731 | I72: 0.005274261381
A73: 2010-04-16 | B73: 47.669998 | C73: 47.75 | D73: 45.139999 | E73: 45.549999 | F73: 121203900 | G73: 40.110155 | H73: 0.1403228163 | I73: 0.0004196432143
A74: 2010-04-19 | B74: 45.23 | C74: 45.700001 | D74: 44.59 | E74: 45.389999 | F74: 72136600 | G74: 39.969264 | H74: 0.08913762429 | I74: -0.05118519199
A75: 2010-04-20 | B75: 45.77 | C75: 46.150002 | D75: 45.560001 | E75: 45.880001 | F75: 39310700 | G75: 40.400746 | H75: 0.1010766028 | I75: 0.01193897855
A76: 2010-04-21 | B76: 46.040001 | C76: 46.389999 | D76: 45 | E76: 45.349998 | F76: 46320600 | G76: 39.93404 | H76: 0.1069756852 | I76: 0.005899082368
A77: 2010-04-22 | B77: 44.91 | C77: 45.119999 | D77: 44.029999 | E77: 44.740002 | F77: 63176900 | G77: 39.396892 | H77: 0.08243178914 | I77: -0.02454389608
A78: 2010-04-23 | B78: 44.73 | C78: 45.07 | D78: 44.25 | E78: 44.939999 | F78: 32483800 | G78: 39.573005 | H78: 0.0784237731 | I78: -0.004008016032
A79: 2010-04-26 | B79: 44.779999 | C79: 44.810001 | D79: 43.73 | E79: 43.889999 | F79: 42889300 | G79: 38.648402 | H79: 0.07954156877 | I79: 0.001117795663
A80: 2010-04-27 | B80: 43.48 | C80: 44.369999 | D80: 42.299999 | E80: 42.41 | F80: 66296100 | G80: 37.345153 | H80: 0.05051077312 | I80: -0.02903079565
A81: 2010-04-28 | B81: 42.84 | C81: 43.709999 | D81: 42.779999 | E81: 43.459999 | F81: 48578900 | G81: 38.269755 | H81: 0.0357913619 | I81: -0.01471941122
A82: 2010-04-29 | B82: 43.889999 | C82: 44.330002 | D82: 43.599998 | E82: 44 | F82: 36520300 | G82: 38.745266 | H82: 0.06030114248 | I82: 0.02450978058
A83: 2010-04-30 | B83: 44.02 | C83: 44.049999 | D83: 42.23 | E83: 42.580002 | F83: 54121100 | G83: 37.494852 | H83: 0.06326311566 | I83: 0.002961973182
A84: 2010-05-03 | B84: 42.970001 | C84: 43.73 | D84: 42.889999 | E84: 43.529999 | F84: 31230900 | G84: 38.331395 | H84: 0.03941034419 | I84: -0.02385277147
A85: 2010-05-04 | B85: 42.970001 | C85: 43.360001 | D85: 42.25 | E85: 42.470001 | F85: 48982200 | G85: 37.397988 | H85: 0.03941034419 | I85: 0
A86: 2010-05-05 | B86: 42.110001 | C86: 43.369999 | D86: 41.619999 | E86: 42.630001 | F86: 43062100 | G86: 37.53888 | H86: 0.01939638143 | I86: -0.02001396276
A87: 2010-05-06 | B87: 42.630001 | C87: 42.779999 | D87: 39.290001 | E87: 40.810001 | F87: 78226200 | G87: 35.936235 | H87: 0.03174499191 | I87: 0.01234861049
A88: 2010-05-07 | B88: 41.029999 | C88: 41.84 | D88: 39.779999 | E88: 40.759998 | F88: 72976300 | G88: 35.892204 | H88: -0.005787308402 | I88: -0.03753230032
A89: 2010-05-10 | B89: 42.32 | C89: 43.299999 | D89: 41.419998 | E89: 41.950001 | F89: 66578300 | G89: 36.940089 | H89: 0.02565312619 | I89: 0.0314404346
A90: 2010-05-11 | B90: 41.459999 | C90: 42.549999 | D90: 41.150002 | E90: 41.549999 | F90: 50771200 | G90: 36.587858 | H90: 0.005331741505 | I90: -0.02032138469
A91: 2010-05-12 | B91: 41.740002 | C91: 41.790001 | D91: 40.810001 | E91: 41.689999 | F91: 47700000 | G91: 36.711138 | H91: 0.01208531137 | I91: 0.006753569869
A92: 2010-05-13 | B92: 41.439999 | C92: 41.599998 | D92: 40.779999 | E92: 40.810001 | F92: 35320800 | G92: 35.936235 | H92: 0.004897889581 | I92: -0.007187421793
A93: 2010-05-14 | B93: 40.099998 | C93: 40.099998 | D93: 39.209999 | E93: 39.889999 | F93: 60719400 | G93: 35.126105 | H93: -0.02743804267 | I93: -0.03233593225
A94: 2010-05-17 | B94: 39.93 | C94: 40.040001 | D94: 38.77 | E94: 39.84 | F94: 56506200 | G94: 35.082077 | H94: -0.0316773945 | I94: -0.004239351832
A95: 2010-05-18 | B95: 40.619999 | C95: 40.619999 | D95: 38.549999 | E95: 39.02 | F95: 61735000 | G95: 34.360007 | H95: -0.01439717912 | I95: 0.01728021538
A96: 2010-05-19 | B96: 38.540001 | C96: 39.66 | D96: 38.52 | E96: 39.380001 | F96: 64600500 | G96: 34.677014 | H96: -0.06560343346 | I96: -0.05120625434
A97: 2010-05-20 | B97: 38.549999 | C97: 39.25 | D97: 37.310001 | E97: 37.830002 | F97: 76564100 | G97: 33.312125 | H97: -0.06534401468 | I97: 0.0002594187789
A98: 2010-05-21 | B98: 37.02 | C98: 40.16 | D98: 37.02 | E98: 40.049999 | F98: 89588800 | G98: 35.266997 | H98: -0.1050327057 | I98: -0.03968869104
A99: 2010-05-24 | B99: 40.16 | C99: 40.25 | D99: 38.5 | E99: 38.619999 | F99: 49141600 | G99: 34.007776 | H99: -0.02021368898 | I99: 0.08481901675
A100: 2010-05-25 | B100: 37.669998 | C100: 39.009998 | D100: 37.349998 | E100: 38.939999 | F100: 66813700 | G100: 34.289559 | H100: -0.08221573081 | I100: -0.06200204183
A101: 2010-05-26 | B101: 39.189999 | C101: 39.5 | D101: 38.470001 | E101: 38.779999 | F101: 50719600 | G101: 34.148667 | H101: -0.04186529065 | I101: 0.04035044016
A102: 2010-05-27 | B102: 39.580002 | C102: 40.490002 | D102: 39.400002 | E102: 40.419998 | F102: 44843000 | G102: 35.592809 | H102: -0.0319136956 | I102: 0.009951595049
A103: 2010-05-28 | B103: 40.330002 | C103: 40.349998 | D103: 39.360001 | E103: 39.580002 | F103: 41252400 | G103: 34.853129 | H103: -0.01296473244 | I103: 0.01894896317
A104: 2010-06-01 | B104: 39.32 | C104: 39.959999 | D104: 38.5 | E104: 38.540001 | F104: 37848600 | G104: 33.937331 | H104: -0.0380081728 | I104: -0.02504344036
A105: 2010-06-02 | B105: 39.169998 | C105: 39.619999 | D105: 38.669998 | E105: 39.549999 | F105: 39618500 | G105: 34.82671 | H105: -0.04182307616 | I105: -0.003814903357
A106: 2010-06-03 | B106: 39.860001 | C106: 39.939999 | D106: 38.619999 | E106: 39.099998 | F106: 30950400 | G106: 34.430451 | H106: -0.02420747659 | I106: 0.01761559957
A107: 2010-06-04 | B107: 38.490002 | C107: 38.700001 | D107: 37.5 | E107: 37.619999 | F107: 52868900 | G107: 33.127201 | H107: -0.05857774667 | I107: -0.03437027009
A108: 2010-06-07 | B108: 37.790001 | C108: 38.130001 | D108: 36.66 | E108: 36.720001 | F108: 44528300 | G108: 32.334687 | H108: -0.07676431367 | I108: -0.01818656699
A109: 2010-06-08 | B109: 36.860001 | C109: 37.799999 | D109: 36.549999 | E109: 37.779999 | F109: 51017900 | G109: 33.268093 | H109: -0.1013739981 | I109: -0.02460968445
A110: 2010-06-09 | B110: 38.150002 | C110: 38.16 | D110: 37.009998 | E110: 37.119999 | F110: 42586000 | G110: 32.686914 | H110: -0.06637668491 | I110: 0.03499731321
A111: 2010-06-10 | B111: 37.68 | C111: 38.369999 | D111: 37.41 | E111: 38.290001 | F111: 44302600 | G111: 33.717188 | H111: -0.07869652699 | I111: -0.01231984208
A112: 2010-06-11 | B112: 37.790001 | C112: 38.169998 | D112: 37.52 | E112: 38.09 | F112: 31147600 | G112: 33.541072 | H112: -0.07577717985 | I112: 0.002919347134
A113: 2010-06-14 | B113: 37.970001 | C113: 38.27 | D113: 37.23 | E113: 37.330002 | F113: 48662200 | G113: 32.871837 | H113: -0.07101401512 | I113: 0.004763164732
A114: 2010-06-15 | B114: 37.549999 | C114: 38.279999 | D114: 37.259998 | E114: 38.25 | F114: 45355600 | G114: 33.681964 | H114: -0.08207543174 | I114: -0.01106141662
A115: 2010-06-16 | B115: 38.02 | C115: 38.880001 | D115: 37.990002 | E115: 38.52 | F115: 37217100 | G115: 33.91972 | H115: -0.0695587603 | I115: 0.01251667144
A116: 2010-06-17 | B116: 38.599998 | C116: 38.900002 | D116: 37.919998 | E116: 38.439999 | F116: 34755100 | G116: 33.849272 | H116: -0.05430368402 | I116: 0.01525507628
A117: 2010-06-18 | B117: 38.599998 | C117: 39.27 | D117: 38.380001 | E117: 39.18 | F117: 37270800 | G117: 34.500898 | H117: -0.05430368402 | I117: 0
A118: 2010-06-21 | B118: 39.549999 | C118: 39.779999 | D118: 38.66 | E118: 38.869999 | F118: 33665100 | G118: 34.227919 | H118: -0.02969225788 | I118: 0.02461142615
A119: 2010-06-22 | B119: 38.93 | C119: 39.580002 | D119: 38.220001 | E119: 38.330002 | F119: 42245700 | G119: 33.752412 | H119: -0.04536859203 | I119: -0.01567633415
A120: 2010-06-23 | B120: 38.290001 | C120: 39.110001 | D120: 38.02 | E120: 38.889999 | F120: 45046000 | G120: 34.245531 | H120: -0.06180833002 | I120: -0.01643973799
A121: 2010-06-24 | B121: 38.549999 | C121: 38.700001 | D121: 37.419998 | E121: 38.029999 | F121: 73843400 | G121: 33.488237 | H121: -0.05501809776 | I121: 0.006790232259
A122: 2010-06-25 | B122: 38.779999 | C122: 39.599998 | D122: 38.279999 | E122: 39.439999 | F122: 70734200 | G122: 34.729846 | H122: -0.04905182004 | I122: 0.005966277716
A123: 2010-06-28 | B123: 39.549999 | C123: 39.639999 | D123: 38.470001 | E123: 38.540001 | F123: 39962900 | G123: 33.937331 | H123: -0.02919622386 | I123: 0.01985559618
A124: 2010-06-29 | B124: 37.91 | C124: 37.91 | D124: 36.880001 | E124: 37.060001 | F124: 56694200 | G124: 32.634082 | H124: -0.07066269773 | I124: -0.04146647387
A125: 2010-06-30 | B125: 37.02 | C125: 37.490002 | D125: 36.509998 | E125: 36.610001 | F125: 35332500 | G125: 32.237823 | H125: -0.09413935297 | I125: -0.02347665524
A126: 2010-07-01 | B126: 36.540001 | C126: 36.689999 | D126: 35.16 | E126: 36.080002 | F126: 56642900 | G126: 31.814571 | H126: -0.1071052903 | I126: -0.01296593733
A127: 2010-07-02 | B127: 36.310001 | C127: 36.689999 | D127: 35.34 | E127: 35.830002 | F127: 36796000 | G127: 31.594127 | H127: -0.1133997619 | I127: -0.006294471639
A128: 2010-07-06 | B128: 36.689999 | C128: 36.880001 | D128: 35.860001 | E128: 36.330002 | F128: 35953600 | G128: 32.035016 | H128: -0.1029343808 | I128: 0.01046538115
A129: 2010-07-07 | B129: 36.639999 | C129: 38.240002 | D129: 36.41 | E129: 38.150002 | F129: 44602900 | G129: 33.639853 | H129: -0.10429715 | I129: -0.001362769184
A130: 2010-07-08 | B130: 38.779999 | C130: 38.82 | D130: 37.150002 | E130: 38.16 | F130: 41498200 | G130: 33.648669 | H130: -0.04589103484 | I130: 0.05840611513
A131: 2010-07-09 | B131: 37.75 | C131: 38.889999 | D131: 37.68 | E131: 38.849998 | F131: 30422300 | G131: 34.257095 | H131: -0.07245109226 | I131: -0.02656005742
A132: 2010-07-12 | B132: 38.860001 | C132: 39.34 | D132: 38.599998 | E132: 39.189999 | F132: 24998900 | G132: 34.5569 | H132: -0.04304709226 | I132: =(B132-B131)/B131 -> 0.029404
A133: 2010-07-13 | B133: 39.810001 | C133: 40.689999 | D133: 39.740002 | E133: 40.48 | F133: 48564800 | G133: 35.694395 | H133: =((B133-B132)/B132)+H132 -> -0.01860036103 | I133: 0.02444673123
A134: 2010-07-14 | B134: 40.150002 | C134: 40.380001 | D134: 39.84 | E134: 40.349998 | F134: 37320600 | G134: 35.579763 | H134: -0.01005976843 | I134: 0.008540592601
A135: 2010-07-15 | B135: 40.720001 | C135: 40.84 | D135: 39.310001 | E135: 40.459999 | F135: 81876200 | G135: 35.676759 | H135: 0.004136968101 | I135: 0.01419673653
A136: 2010-07-16 | B136: 40.279999 | C136: 40.349998 | D136: 38.860001 | E136: 39 | F136: 58507400 | G136: 34.389363 | H136: -0.006668581732 | I136: -0.01080554983
A137: 2010-07-19 | B137: 39.029999 | C137: 39.360001 | D137: 38.119999 | E137: 39.040001 | F137: 35404900 | G137: 34.424635 | H137: -0.03770135311 | I137: -0.03103277138
A138: 2010-07-20 | B138: 38.32 | C138: 39.639999 | D138: 38.279999 | E138: 39.630001 | F138: 43538200 | G138: 34.944884 | H138: -0.05589246298 | I138: -0.01819110987
A139: 2010-07-21 | B139: 40.25 | C139: 40.25 | D139: 38.34 | E139: 38.419998 | F139: 41115600 | G139: 33.87793 | H139: -0.00552711851 | I139: 0.05036534447
A140: 2010-07-22 | B140: 38.959999 | C140: 39.599998 | D140: 38.73 | E140: 39.349998 | F140: 35494400 | G140: 34.697984 | H140: -0.0375768328 | I140: -0.03204971429
A141: 2010-07-23 | B141: 39.169998 | C141: 39.959999 | D141: 38.970001 | E141: 39.830002 | F141: 28241000 | G141: 35.121241 | H141: -0.03218671459 | I141: 0.005390118208
A142: 2010-07-26 | B142: 39.799999 | C142: 40.360001 | D142: 39.5 | E142: 40.330002 | F142: 27209400 | G142: 35.56213 | H142: -0.01610295068 | I142: 0.01608376391
A143: 2010-07-27 | B143: 40.740002 | C143: 41.240002 | D143: 40.610001 | E143: 40.689999 | F143: 44872200 | G143: 35.879568 | H143: 0.00751521574 | I143: 0.02361816642
A144: 2010-07-28 | B144: 40.439999 | C144: 40.900002 | D144: 40.150002 | E144: 40.32 | F144: 23945400 | G144: 35.55331 | H144: 0.0001513722137 | I144: -0.007363843527
A145: 2010-07-29 | B145: 40.709999 | C145: 40.830002 | D145: 39.91 | E145: 40.209999 | F145: 28994300 | G145: 35.456314 | H145: 0.006827930242 | I145: 0.006676558029
A146: 2010-07-30 | B146: 39.720001 | C146: 40.689999 | D146: 39.720001 | E146: 40.279999 | F146: 26406500 | G146: 35.518038 | H146: -0.01749037053 | I146: -0.02431830077
A147: 2010-08-02 | B147: 40.98 | C147: 41.700001 | D147: 40.73 | E147: 41.639999 | F147: 35566700 | G147: 36.717258 | H147: 0.01423165788 | I147: 0.03172202841
A148: 2010-08-03 | B148: 41.5 | C148: 41.650002 | D148: 40.869999 | E148: 41.080002 | F148: 29967900 | G148: 36.223464 | H148: 0.02692077452 | I148: 0.01268911664
A149: 2010-08-04 | B149: 41.220001 | C149: 41.400002 | D149: 40.860001 | E149: 41.290001 | F149: 23078100 | G149: 36.408637 | H149: 0.02017381067 | I149: -0.006746963855
A150: 2010-08-05 | B150: 40.970001 | C150: 41.43 | D150: 40.939999 | E150: 41.27 | F150: 19830500 | G150: 36.391001 | H150: 0.01410879383 | I150: -0.006065016835
A151: 2010-08-06 | B151: 40.740002 | C151: 40.950001 | D151: 39.970001 | E151: 40.439999 | F151: 34906600 | G151: 35.659123 | H151: 0.008494954573 | I151: -0.005613839258
A152: 2010-08-09 | B152: 40.549999 | C152: 40.560001 | D152: 39.66 | E152: 39.82 | F152: 37790900 | G152: 35.112421 | H152: 0.003831160006 | I152: -0.004663794567
A153: 2010-08-10 | B153: 39.669998 | C153: 39.73 | D153: 39.16 | E153: 39.169998 | F153: 34166500 | G153: 34.539264 | H153: -0.01787046815 | I153: -0.02170162816
A154: 2010-08-11 | B154: 38.650002 | C154: 38.779999 | D154: 37.75 | E154: 37.77 | F154: 46201600 | G154: 33.304776 | H154: -0.04358249365 | I154: -0.0257120255
A155: 2010-08-12 | B155: 37.360001 | C155: 37.990002 | D155: 37.220001 | E155: 37.810001 | F155: 35387300 | G155: 33.340048 | H155: -0.07695897316 | I155: -0.03337647951
A156: 2010-08-13 | B156: 37.799999 | C156: 38.040001 | D156: 37.5 | E156: 37.5 | F156: 24564100 | G156: 33.066695 | H156: -0.06518172508 | I156: 0.01177724808
A157: 2010-08-16 | B157: 37.32 | C157: 37.82 | D157: 37.279999 | E157: 37.689999 | F157: 28334100 | G157: 33.234232 | H157: -0.07788011166 | I157: -0.01269838658
A158: 2010-08-17 | B158: 37.970001 | C158: 38.07 | D158: 37.400002 | E158: 37.48 | F158: 33883800 | G158: 33.049059 | H158: -0.06046315025 | I158: 0.01741696141
A159: 2010-08-18 | B159: 37.389999 | C159: 38.189999 | D159: 37.389999 | E159: 37.889999 | F159: 27041700 | G159: 33.410588 | H159: -0.07573841979 | I159: -0.01527526955
A160: 2010-08-19 | B160: 37.66 | C160: 37.970001 | D160: 37 | E160: 37.07 | F160: 35384700 | G160: 32.68753 | H160: -0.06851721072 | I160: 0.007221209073
A161: 2010-08-20 | B161: 37.110001 | C161: 37.360001 | D161: 36.810001 | E161: 37.139999 | F161: 30862000 | G161: 32.749254 | H161: -0.08312153892 | I161: -0.0146043282
A162: 2010-08-23 | B162: 37.209999 | C162: 37.41 | D162: 36.84 | E162: 36.880001 | F162: 29282800 | G162: 32.519993 | H162: -0.08042690143 | I162: 0.002694637491
A163: 2010-08-24 | B163: 36.59 | C163: 36.700001 | D163: 35.919998 | E163: 36.209999 | F163: 48709200 | G163: 31.9292 | H163: -0.09708906259 | I163: -0.01666216116
A164: 2010-08-25 | B164: 35.950001 | C164: 36.439999 | D164: 35.669998 | E164: 36.23 | F164: 36058000 | G164: 31.946836 | H164: -0.114580153 | I164: -0.01749109046
A165: 2010-08-26 | B165: 36.360001 | C165: 36.619999 | D165: 35.619999 | E165: 35.630001 | F165: 31873200 | G165: 31.41777 | H165: -0.1031754246 | I165: 0.01140472847
A166: 2010-08-27 | B166: 35.869999 | C166: 36.689999 | D166: 35.549999 | E166: 36.599998 | F166: 38448800 | G166: 32.273093 | H166: -0.1166518268 | I166: -0.01347640227
A167: 2010-08-30 | B167: 36.400002 | C167: 36.599998 | D167: 35.830002 | E167: 35.849998 | F167: 27306500 | G167: 31.611759 | H167: -0.1018761643 | I167: 0.01477566253
A168: 2010-08-31 | B168: 35.939999 | C168: 36.639999 | D168: 35.73 | E168: 36.360001 | F168: 34784400 | G168: 32.061468 | H168: -0.1145136087 | I168: -0.01263744436
A169: 2010-09-01 | B169: 36.740002 | C169: 37.799999 | D169: 36.66 | E169: 37.740002 | F169: 36770500 | G169: 33.278324 | H169: -0.0922542035 | I169: 0.02225940518
A170: 2010-09-02 | B170: 37.84 | C170: 38.200001 | D170: 37.490002 | E170: 38.16 | F170: 31282900 | G170: 33.648669 | H170: -0.0623141398 | I170: 0.02994006369
A171: 2010-09-03 | B171: 38.470001 | C171: 39.169998 | D171: 38.470001 | E171: 39.169998 | F171: 34135600 | G171: 34.539264 | H171: -0.04566506475 | I171: 0.01664907505
A172: 2010-09-07 | B172: 38.73 | C172: 38.84 | D172: 38.220001 | E172: 38.279999 | F172: 31885500 | G172: 33.754481 | H172: -0.03890657779 | I172: 0.006758486957
A173: 2010-09-08 | B173: 38.34 | C173: 39.43 | D173: 38.34 | E173: 39.119999 | F173: 30781000 | G173: 34.495175 | H173: -0.04897629119 | I173: -0.0100697134
A174: 2010-09-09 | B174: 39.93 | C174: 40.32 | D174: 39.119999 | E174: 40.099998 | F174: 33438800 | G174: 35.359318 | H174: -0.007505242682 | I174: 0.04147104851
A175: 2010-09-10 | B175: 39.919998 | C175: 40.25 | D175: 39.669998 | E175: 39.759998 | F175: 21928600 | G175: 35.059513 | H175: -0.007755731036 | I175: -0.0002504883546
A176: 2010-09-13 | B176: 40.639999 | C176: 41.470001 | D176: 40.639999 | E176: 41.119999 | F176: 41643200 | G176: 36.258733 | H176: 0.01028036706 | I176: 0.0180360981
A177: 2010-09-14 | B177: 40.970001 | C177: 41.23 | D177: 40.459999 | E177: 40.720001 | F177: 42754100 | G177: 35.906023 | H177: 0.01840049521 | I177: 0.008120128153
A178: 2010-09-15 | B178: 40.509998 | C178: 41.139999 | D178: 40.34 | E178: 40.98 | F178: 25399500 | G178: 36.135284 | H178: 0.007172694658 | I178: -0.01122780056
A179: 2010-09-16 | B179: 40.720001 | C179: 41.099998 | D179: 40.549999 | E179: 40.990002 | F179: 25207500 | G179: 36.144104 | H179: 0.01235667418 | I179: 0.00518397952
A180: 2010-09-17 | B180: 41.029999 | C180: 41.080002 | D180: 39.990002 | E180: 40.060001 | F180: 45938300 | G180: 35.324049 | H180: 0.01996959148 | I180: 0.007612917298
A181: 2010-09-20 | B181: 40.240002 | C181: 41.310001 | D181: 40.029999 | E181: 41.189999 | F181: 33337500 | G181: 36.320457 | H181: 0.0007154598842 | I181: -0.01925413159
A182: 2010-09-21 | B182: 41.310001 | C182: 41.5 | D182: 40.470001 | E182: 40.59 | F182: 33548900 | G182: 35.791391 | H182: 0.02730589097 | I182: 0.02659043108
A183: 2010-09-22 | B183: 40.43 | C183: 40.84 | D183: 39.75 | E183: 39.939999 | F183: 34546000 | G183: 35.218234 | H183: 0.006003519177 | I183: -0.02130237179
A184: 2010-09-23 | B184: 39.630001 | C184: 39.700001 | D184: 38.990002 | E184: 39.099998 | F184: 33471100 | G184: 34.477539 | H184: -0.01378374276 | I184: -0.01978726193
A185: 2010-09-24 | B185: 39.509998 | C185: 39.799999 | D185: 39.299999 | E185: 39.75 | F185: 28855100 | G185: 35.050697 | H185: -0.01681182747 | I185: -0.003028084708
A186: 2010-09-27 | B186: 39.540001 | C186: 39.669998 | D186: 39.009998 | E186: 39.080002 | F186: 25684900 | G186: 34.459907 | H186: -0.01605245005 | I186: 0.0007593774113
A187: 2010-09-28 | B187: 39.360001 | C187: 39.400002 | D187: 38.610001 | E187: 38.950001 | F187: 31442600 | G187: 34.345275 | H187: -0.02060480199 | I187: -0.004552351933
A188: 2010-09-29 | B188: 38.790001 | C188: 38.880001 | D188: 38.060001 | E188: 38.41 | F188: 40207000 | G188: 33.869114 | H188: -0.03508650894 | I188: -0.01448170695
A189: 2010-09-30 | B189: 38.490002 | C189: 38.950001 | D189: 37.959999 | E189: 38.060001 | F189: 54885200 | G189: 33.560492 | H189: -0.04282043501 | I189: -0.00773392607
A190: 2010-10-01 | B190: 38.34 | C190: 39.09 | D190: 38.290001 | E190: 38.810001 | F190: 38973800 | G190: 34.221826 | H190: -0.0467176029 | I190: -0.003897167893
A191: 2010-10-04 | B191: 38.98 | C191: 39.540001 | D191: 38.709999 | E191: 38.950001 | F191: 38886100 | G191: 34.389578 | H191: -0.03002485381 | I191: 0.01669274909
A192: 2010-10-05 | B192: 39.360001 | C192: 39.82 | D192: 39.07 | E192: 39.639999 | F192: 42379500 | G192: 34.998789 | H192: -0.02027623914 | I192: 0.009748614674
A193: 2010-10-06 | B193: 39.560001 | C193: 40.07 | D193: 39.419998 | E193: 39.900002 | F193: 31559900 | G193: 35.228349 | H193: -0.01519493845 | I193: 0.005081300684
A194: 2010-10-07 | B194: 40.110001 | C194: 40.32 | D194: 39.200001 | E194: 39.52 | F194: 26923900 | G194: 34.89284 | H194: -0.001292006551 | I194: 0.0139029319
A195: 2010-10-08 | B195: 39.669998 | C195: 39.779999 | D195: 39.130001 | E195: 39.310001 | F195: 28178500 | G195: 34.707428 | H195: -0.01226191403 | I195: -0.01096990748
A196: 2010-10-11 | B196: 39.52 | C196: 39.91 | D196: 39.400002 | E196: 39.73 | F196: 24601000 | G196: 35.078251 | H196: -0.01604305866 | I196: =(B196-B195)/B195 -> -0.003781144632
A197: 2010-10-12 | B197: 39.470001 | C197: 40.490002 | D197: 39.470001 | E197: 40.400002 | F197: 38798100 | G197: 35.669807 | H197: =((B197-B196)/B196)+H196 -> -0.01730821555 | I197: -0.001265156883
A198: 2010-10-13 | B198: 40.66 | C198: 40.720001 | D198: 39.580002 | E198: 39.84 | F198: 69607700 | G198: 35.175373 | H198: 0.01284123897 | I198: 0.03014945452
A199: 2010-10-14 | B199: 39.25 | C199: 39.380001 | D199: 38.099998 | E199: 38.720001 | F199: 76504900 | G199: 34.186508 | H199: -0.02183657706 | I199: -0.03467781604
A200: 2010-10-15 | B200: 38.869999 | C200: 38.939999 | D200: 36.540001 | E200: 37.150002 | F200: 142280400 | G200: 32.80033 | H200: -0.0315181312 | I200: -0.00968155414
... 1196 more rows

Sheet The Goldman Sachs Group, Inc.
A1: Date | B1: Open | C1: High | D1: Low | E1: Close | F1: Volume | G1: Adj Close | H1: Cumulative Return | I1: Daily Return
A2: 2010-01-04 | B2: 170.050003 | C2: 174.25 | D2: 169.509995 | E2: 173.080002 | F2: 9135000 | G2: 161.406903
A3: 2010-01-05 | B3: 173 | C3: 176.259995 | D3: 172.570007 | E3: 176.139999 | F3: 11659400 | G3: 164.260524 | H3: =(B3-B2)/B2 -> 0.01734782092 | I3: =(B3-B2)/B2 -> 0.01734782092
A4: 2010-01-06 | B4: 175.380005 | C4: 175.380005 | D4: 173.759995 | E4: 174.259995 | F4: 7381100 | G4: 162.507313 | H4: =((B4-B3)/B3)+H3 -> 0.03110507526 | I4: =(B4-B3)/B3 -> 0.01375725434
A5: 2010-01-07 | B5: 174.320007 | C5: 178.75 | D5: 173.949997 | E5: 177.669998 | F5: 8727400 | G5: 165.687335 | H5: =((B5-B4)/B4)+H4 -> 0.02506106813 | I5: -0.006044007126
A6: 2010-01-08 | B6: 176.330002 | C6: 177.429993 | D6: 173.949997 | E6: 174.309998 | F6: 7268100 | G6: 162.553944 | H6: 0.03659155757 | I6: 0.01153048944
A7: 2010-01-11 | B7: 175.059998 | C7: 175.059998 | D7: 170.520004 | E7: 171.559998 | F7: 7704900 | G7: 159.989413 | H7: 0.02938913039 | I7: -0.007202427185
A8: 2010-01-12 | B8: 170.009995 | C8: 170.479996 | D8: 167.029999 | E8: 167.820007 | F8: 10360100 | G8: 156.50166 | H8: 0.0005418605502 | I8: -0.02884726984
A9: 2010-01-13 | B9: 168.009995 | C9: 169.669998 | D9: 166.119995 | E9: 169.070007 | F9: 11269500 | G9: 157.667356 | H9: -0.01122215368 | I9: -0.01176401423
A10: 2010-01-14 | B10: 168 | C10: 170.720001 | D10: 167.210007 | E10: 168.529999 | F10: 10521400 | G10: 157.163768 | H10: -0.01128164419 | I10: -5.949050829e-05
A11: 2010-01-15 | B11: 167.600006 | C11: 167.800003 | D11: 164.580002 | E11: 165.210007 | F11: 10896300 | G11: 154.067687 | H11: -0.01366256085 | I11: -0.002380916667
A12: 2010-01-19 | B12: 165.009995 | C12: 167.399994 | D12: 163.899994 | E12: 166.860001 | F12: 7705300 | G12: 155.6064 | H12: -0.02911608655 | I12: -0.0154535257
A13: 2010-01-20 | B13: 165.800003 | C13: 168.179993 | D13: 164.320007 | E13: 167.789993 | F13: 8893900 | G13: 156.473671 | H13: -0.02432844929 | I13: 0.004787637258
A14: 2010-01-21 | B14: 169.289993 | C14: 171 | D14: 156.770004 | E14: 160.869995 | F14: 51738300 | G14: 150.02038 | H14: -0.003279052811 | I14: 0.02104939648
A15: 2010-01-22 | B15: 158.690002 | C15: 159.75 | D15: 152.25 | E15: 154.119995 | F15: 30175600 | G15: 143.725623 | H15: -0.06589345082 | I15: -0.06261439801
A16: 2010-01-25 | B16: 156.130005 | C16: 158.300003 | D16: 154.5 | E16: 154.979996 | F16: 17877000 | G16: 144.527622 | H16: -0.08202551312 | I16: -0.01613206231
A17: 2010-01-26 | B17: 154.910004 | C17: 156.5 | D17: 150.699997 | E17: 150.880005 | F17: 15985900 | G17: 140.704149 | H17: -0.08983952043 | I17: -0.007814007308
A18: 2010-01-27 | B18: 150.75 | C18: 152.929993 | D18: 148.270004 | E18: 151.5 | F18: 19899000 | G18: 141.282329 | H18: -0.1166938481 | I18: -0.02685432763
A19: 2010-01-28 | B19: 154.229996 | C19: 155.199997 | D19: 149.949997 | E19: 153.289993 | F19: 16160700 | G19: 142.951599 | H19: -0.09360929748 | I19: 0.02308455058
A20: 2010-01-29 | B20: 154.440002 | C20: 154.880005 | D20: 147.809998 | E20: 148.720001 | F20: 18502800 | G20: 138.689823 | H20: -0.09224765574 | I20: 0.001361641739
A21: 2010-02-01 | B21: 149.820007 | C21: 155.25 | D21: 149.210007 | E21: 153.130005 | F21: 12980800 | G21: 142.802401 | H21: -0.1221621529 | I21: -0.02991449715
A22: 2010-02-02 | B22: 153.649994 | C22: 157.5 | D22: 153.649994 | E22: 156.940002 | F22: 17246600 | G22: 146.35544 | H22: -0.09659823071 | I22: 0.02556392218
A23: 2010-02-03 | B23: 157.919998 | C23: 159.940002 | D23: 157.110001 | E23: 157.229996 | F23: 16785200 | G23: 146.625875 | H23: -0.06880777079 | I23: 0.02779045992
A24: 2010-02-04 | B24: 155.270004 | C24: 156.059998 | D24: 150.449997 | E24: 150.679993 | F24: 18895000 | G24: 140.517626 | H24: -0.08558838144 | I24: -0.01678061065
A25: 2010-02-05 | B25: 150.820007 | C25: 154.460007 | D25: 148.869995 | E25: 154.160004 | F25: 18759200 | G25: 143.762933 | H25: -0.1142481154 | I25: -0.02865973392
A26: 2010-02-08 | B26: 154.270004 | C26: 154.600006 | D26: 150.820007 | E26: 151.100006 | F26: 10257300 | G26: 140.909312 | H26: -0.09137318604 | I26: 0.02287492932
A27: 2010-02-09 | B27: 152.699997 | C27: 153.529999 | D27: 149.649994 | E27: 152.490005 | F27: 14017300 | G27: 142.205566 | H27: -0.1015501936 | I27: -0.01017700758
A28: 2010-02-10 | B28: 152.770004 | C28: 155.350006 | D28: 151.759995 | E28: 153.630005 | F28: 10555300 | G28: 143.268679 | H28: -0.1010917326 | I28: 0.0004584610437
A29: 2010-02-11 | B29: 154.399994 | C29: 155.320007 | D29: 152.25 | E29: 154.050003 | F29: 11163400 | G29: 143.660352 | H29: -0.09042216422 | I29: 0.01066956835
A30: 2010-02-12 | B30: 152.369995 | C30: 154.5 | D30: 151.139999 | E30: 153.929993 | F30: 10293200 | G30: 143.548435 | H30: -0.1035698266 | I30: -0.01314766243
A31: 2010-02-16 | B31: 155.300003 | C31: 157.740005 | D31: 154.600006 | E31: 157.399994 | F31: 11497100 | G31: 146.784408 | H31: -0.08434026639 | I31: 0.01922956026
A32: 2010-02-17 | B32: 158 | C32: 158.190002 | D32: 155.809998 | E32: 157.259995 | F32: 10070000 | G32: 146.65385 | H32: -0.06695458096 | I32: 0.01738568543
A33: 2010-02-18 | B33: 155.610001 | C33: 156.589996 | D33: 154.880005 | E33: 155.729996 | F33: 10991100 | G33: 145.22704 | H33: -0.08208115691 | I33: -0.01512657595
A34: 2010-02-19 | B34: 154.509995 | C34: 157 | D34: 154.490005 | E34: 156.179993 | F34: 8693000 | G34: 145.646688 | H34: -0.08915014986 | I34: -0.00706899295
A35: 2010-02-22 | B35: 157.199997 | C35: 157.970001 | D35: 156.029999 | E35: 156.710007 | F35: 7375500 | G35: 146.140956 | H35: -0.07174025997 | I35: 0.01740988989
A36: 2010-02-23 | B36: 156.809998 | C36: 160.210007 | D36: 155.910004 | E36: 156.699997 | F36: 15696000 | G36: 146.131621 | H36: -0.07422116968 | I36: -0.002480909717
A37: 2010-02-24 | B37: 157.339996 | C37: 159.25 | D37: 156.869995 | E37: 158.330002 | F37: 8361500 | G37: 147.651693 | H37: -0.07084129591 | I37: 0.003379873776
A38: 2010-02-25 | B38: 156.229996 | C38: 156.440002 | D38: 154.320007 | E38: 156.440002 | F38: 10519900 | G38: 145.889161 | H38: -0.0778960819 | I38: -0.007054785994
A39: 2010-02-26 | B39: 156.259995 | C39: 156.990005 | D39: 155.259995 | E39: 156.350006 | F39: 7812700 | G39: 146.13217 | H39: -0.07770406372 | I39: 0.0001920181832
A40: 2010-03-01 | B40: 156.509995 | C40: 158.289993 | D40: 156.169998 | E40: 156.539993 | F40: 6522800 | G40: 146.309741 | H40: -0.07610416606 | I40: 0.001599897658
A41: 2010-03-02 | B41: 157.179993 | C41: 159.75 | D41: 156.910004 | E41: 158.75 | F41: 11986400 | G41: 148.375319 | H41: -0.07182330208 | I41: 0.004280863979
A42: 2010-03-03 | B42: 159.039993 | C42: 159.449997 | D42: 157.229996 | E42: 157.720001 | F42: 10006000 | G42: 147.412633 | H42: -0.05998973494 | I42: 0.01183356714
A43: 2010-03-04 | B43: 158.25 | C43: 163.850006 | D43: 158.110001 | E43: 163.610001 | F43: 15439500 | G43: 152.917707 | H43: -0.06495699497 | I43: -0.004967260027
A44: 2010-03-05 | B44: 165.110001 | C44: 168.25 | D44: 165 | E44: 167.179993 | F44: 12226700 | G44: 156.254392 | H44: -0.02160785753 | I44: 0.04334913744
A45: 2010-03-08 | B45: 167.880005 | C45: 170.690002 | D45: 167.460007 | E45: 169.839996 | F45: 9344500 | G45: 158.740558 | H45: -0.00483113908 | I45: 0.01677671845
A46: 2010-03-09 | B46: 169.220001 | C46: 172.199997 | D46: 168 | E46: 168.850006 | F46: 12958700 | G46: 157.815266 | H46: 0.003150728684 | I46: 0.007981867763
A47: 2010-03-10 | B47: 170.259995 | C47: 172.339996 | D47: 168.869995 | E47: 171.940002 | F47: 13107200 | G47: 160.703324 | H47: 0.009296538835 | I47: 0.006145810152
A48: 2010-03-11 | B48: 171.399994 | C48: 173.570007 | D48: 171.100006 | E48: 173.509995 | F48: 8910600 | G48: 162.170714 | H48: 0.01599217512 | I48: 0.006695636283
A49: 2010-03-12 | B49: 175.009995 | C49: 176.339996 | D49: 174 | E49: 174.960007 | F49: 10216900 | G49: 163.525964 | H49: 0.03705402533 | I49: 0.02106185021
A50: 2010-03-15 | B50: 173.949997 | C50: 175.199997 | D50: 170.380005 | E50: 173.529999 | F50: 13958600 | G50: 162.189411 | H50: 0.03099723983 | I50: -0.0060567855
A51: 2010-03-16 | B51: 174.330002 | C51: 176.419998 | D51: 173.559998 | E51: 176.190002 | F51: 11687700 | G51: 164.675577 | H51: 0.0331818044 | I51: 0.002184564568
A52: 2010-03-17 | B52: 176.860001 | C52: 177.880005 | D52: 175.570007 | E52: 176.639999 | F52: 10138600 | G52: 165.096166 | H52: 0.04769450428 | I52: 0.01451269989
A53: 2010-03-18 | B53: 176.199997 | C53: 177.75 | D53: 175.660004 | E53: 177.449997 | F53: 6883500 | G53: 165.853228 | H53: 0.04396271645 | I53: -0.003731787834
A54: 2010-03-19 | B54: 177.899994 | C54: 178.210007 | D54: 175.949997 | E54: 177.899994 | F54: 10896600 | G54: 166.273816 | H54: 0.05361082672 | I54: 0.009648110266
A55: 2010-03-22 | B55: 176.210007 | C55: 176.949997 | D55: 175.229996 | E55: 176.160004 | F55: 7320400 | G55: 164.647539 | H55: 0.04411118053 | I55: -0.009499646189
A56: 2010-03-23 | B56: 176.25 | C56: 176.809998 | D56: 173.289993 | E56: 174.830002 | F56: 10804800 | G56: 163.404455 | H56: 0.04433814267 | I56: 0.0002269621384
A57: 2010-03-24 | B57: 173.639999 | C57: 175.960007 | D57: 173.639999 | E57: 174.410004 | F57: 8396100 | G57: 163.011905 | H57: 0.02952962635 | I57: -0.01480851631
A58: 2010-03-25 | B58: 175.240005 | C58: 178.729996 | D58: 174.779999 | E58: 174.899994 | F58: 9534300 | G58: 163.469873 | H58: 0.03874412767 | I58: 0.00921450132
A59: 2010-03-26 | B59: 175.380005 | C59: 175.479996 | D59: 171.910004 | E59: 172.869995 | F59: 11811500 | G59: 161.57254 | H59: 0.03954303201 | I59: 0.0007989043369
A60: 2010-03-29 | B60: 173.869995 | C60: 174.429993 | D60: 171.639999 | E60: 174.050003 | F60: 11785600 | G60: 162.675431 | H60: 0.03093309954 | I60: -0.008609932472
A61: 2010-03-30 | B61: 174.259995 | C61: 174.779999 | D61: 170.699997 | E61: 171.380005 | F61: 8184600 | G61: 160.179924 | H61: 0.03317615476 | I61: 0.002243055221
A62: 2010-03-31 | B62: 170 | C62: 171.660004 | D62: 169.850006 | E62: 170.630005 | F62: 8243200 | G62: 159.478938 | H62: 0.008729952979 | I62: -0.02444620178
A63: 2010-04-01 | B63: 171.720001 | C63: 172 | D63: 169.5 | E63: 170.220001 | F63: 6480600 | G63: 159.095729 | H63: 0.01884760592 | I63: 0.01011765294
A64: 2010-04-05 | B64: 170.679993 | C64: 173.369995 | D64: 169.770004 | E64: 173.160004 | F64: 6135000 | G64: 161.843596 | H64: 0.01279118853 | I64: -0.006056417388
A65: 2010-04-06 | B65: 172.610001 | C65: 173.889999 | D65: 172.149994 | E65: 172.899994 | F65: 7743600 | G65: 161.600578 | H65: 0.0240989462 | I65: 0.01130775767
A66: 2010-04-07 | B66: 172.889999 | C66: 177.899994 | D66: 172.809998 | E66: 176.360001 | F66: 13887200 | G66: 164.834465 | H66: 0.02572108859 | I66: 0.001622142393
A67: 2010-04-08 | B67: 176.100006 | C67: 180.800003 | D67: 175.279999 | E67: 179.5 | F67: 10668800 | G67: 167.769258 | H67: 0.04428784791 | I67: 0.01856675932
A68: 2010-04-09 | B68: 180.279999 | C68: 181 | D68: 177.5 | E68: 179.119995 | F68: 8462000 | G68: 167.414088 | H68: 0.0680243207 | I68: =(B68-B67)/B67 -> 0.02373647279
A69: 2010-04-12 | B69: 179.360001 | C69: 180.380005 | D69: 177.839996 | E69: 177.839996 | F69: 6040800 | G69: 166.21774 | H69: =((B69-B68)/B68)+H68 -> 0.06292115892 | I69: -0.005103161777
A70: 2010-04-13 | B70: 177.559998 | C70: 180 | D70: 177.110001 | E70: 179.25 | F70: 6466400 | G70: 167.535597 | H70: 0.05288545983 | I70: -0.0100356991
A71: 2010-04-14 | B71: 183.910004 | C71: 185.940002 | D71: 183.070007 | E71: 184.919998 | F71: 12556400 | G71: 172.835047 | H71: 0.08864805315 | I71: 0.03576259333
A72: 2010-04-15 | B72: 185.539993 | C72: 185.600006 | D72: 183.660004 | E72: 184.270004 | F72: 7838700 | G72: 172.227532 | H72: 0.09751102398 | I72: 0.008862970826
A73: 2010-04-16 | B73: 183.619995 | C73: 186.410004 | D73: 155.550003 | E73: 160.699997 | F73: 102043700 | G73: 150.197879 | H73: 0.08716286147 | I73: -0.01034816251
A74: 2010-04-19 | B74: 155.600006 | C74: 163.729996 | D74: 155 | E74: 163.320007 | F74: 54299200 | G74: 152.646666 | H74: -0.06543483902 | I74: -0.1525977005
A75: 2010-04-20 | B75: 166.440002 | C75: 166.710007 | D75: 158 | E75: 159.979996 | F75: 42196600 | G75: 149.524932 | H75: 0.004230942359 | I75: 0.06966578138
A76: 2010-04-21 | B76: 161.669998 | C76: 163.139999 | D76: 157 | E76: 158.929993 | F76: 30371000 | G76: 148.543549 | H76: -0.02442805754 | I76: -0.0286589999
A77: 2010-04-22 | B77: 157.929993 | C77: 162 | D77: 156.289993 | E77: 159.050003 | F77: 24823000 | G77: 148.655716 | H77: -0.04756163239 | I77: -0.02313357485
A78: 2010-04-23 | B78: 160.190002 | C78: 160.720001 | D78: 157 | E78: 157.399994 | F78: 14916000 | G78: 147.113539 | H78: -0.03325143736 | I78: 0.01431019502
A79: 2010-04-26 | B79: 156.720001 | C79: 156.990005 | D79: 151.520004 | E79: 152.029999 | F79: 30940700 | G79: 142.094486 | H79: -0.05491321998 | I79: -0.02166178261
A80: 2010-04-27 | B80: 150.25 | C80: 156.190002 | D80: 150.149994 | E80: 153.039993 | F80: 34516800 | G80: 143.038475 | H80: -0.09619704437 | I80: -0.04128382439
A81: 2010-04-28 | B81: 156.660004 | C81: 157.649994 | D81: 154.690002 | E81: 157.009995 | F81: 21226100 | G81: 146.749027 | H81: -0.05353478813 | I81: 0.04266225624
A82: 2010-04-29 | B82: 159.550003 | C82: 161.050003 | D82: 158.339996 | E82: 160.240005 | F82: 18464300 | G82: 149.767949 | H82: -0.03508720147 | I82: 0.01844758666
A83: 2010-04-30 | B83: 151.899994 | C83: 152.5 | D83: 143.300003 | E83: 145.199997 | F83: 73187900 | G83: 135.71084 | H83: -0.0830346089 | I83: -0.04794740743
A84: 2010-05-03 | B84: 147.839996 | C84: 150.649994 | D84: 146.539993 | E84: 149.5 | F84: 28282700 | G84: 139.729828 | H84: -0.1097627074 | I84: -0.02672809849
A85: 2010-05-04 | B85: 149.029999 | C85: 152.350006 | D85: 147.830002 | E85: 149.449997 | F85: 30313400 | G85: 139.683093 | H85: -0.1017134445 | I85: 0.008049262934
A86: 2010-05-05 | B86: 148.100006 | C86: 151.220001 | D86: 147.199997 | E86: 148.190002 | F86: 18355200 | G86: 138.505442 | H86: -0.1079537518 | I86: -0.006240307363
A87: 2010-05-06 | B87: 147.479996 | C87: 148.630005 | D87: 139.059998 | E87: 142.320007 | F87: 22984700 | G87: 133.019065 | H87: -0.1121401797 | I87: -0.00418642792
A88: 2010-05-07 | B88: 145.380005 | C88: 146.550003 | D88: 141.5 | E88: 142.990005 | F88: 21268500 | G88: 133.645277 | H88: -0.126379338 | I88: -0.01423915824
A89: 2010-05-10 | B89: 149.089996 | C89: 149.899994 | D89: 141.199997 | E89: 143.830002 | F89: 23098200 | G89: 134.430377 | H89: -0.1008600721 | I89: 0.02551926587
A90: 2010-05-11 | B90: 142.399994 | C90: 145.5 | D90: 141.550003 | E90: 141.970001 | F90: 15497900 | G90: 132.691932 | H90: -0.1457323116 | I90: -0.04487223945
A91: 2010-05-12 | B91: 144.240005 | C91: 147.649994 | D91: 142.279999 | E91: 147.199997 | F91: 15457000 | G91: 137.580136 | H91: -0.1328108854 | I91: 0.01292142611
A92: 2010-05-13 | B92: 148.360001 | C92: 148.449997 | D92: 144.419998 | E92: 144.649994 | F92: 11517900 | G92: 135.196781 | H92: -0.1042474089 | I92: 0.02856347655
A93: 2010-05-14 | B93: 143.410004 | C93: 144.149994 | D93: 141.899994 | E93: 143.229996 | F93: 10977400 | G93: 133.869583 | H93: -0.1376121768 | I93: -0.03336476791
A94: 2010-05-17 | B94: 143.470001 | C94: 144.300003 | D94: 138.529999 | E94: 142.639999 | F94: 16330100 | G94: 133.318144 | H94: -0.1371938169 | I94: 0.0004183599353
A95: 2010-05-18 | B95: 143.690002 | C95: 143.75 | D95: 136.600006 | E95: 137.360001 | F95: 18025300 | G95: 128.383206 | H95: -0.1356603883 | I95: 0.001533428581
A96: 2010-05-19 | B96: 137.949997 | C96: 140.130005 | D96: 136.100006 | E96: 140.100006 | F96: 18079900 | G96: 130.944146 | H96: -0.1756075309 | I96: -0.0399471426
A97: 2010-05-20 | B97: 138.199997 | C97: 139.490005 | D97: 135.75 | E97: 136.100006 | F97: 16279200 | G97: 127.205555 | H97: -0.17379528 | I97: 0.001812250855
A98: 2010-05-21 | B98: 137.080002 | C98: 143.449997 | D98: 136.25 | E98: 140.619995 | F98: 25553400 | G98: 131.430152 | H98: -0.1818994408 | I98: -0.008104160813
A99: 2010-05-24 | B99: 142 | C99: 142.949997 | D99: 136.509995 | E99: 136.690002 | F99: 16556800 | G99: 127.756994 | H99: -0.1460080057 | I99: 0.03589143513
A100: 2010-05-25 | B100: 134.729996 | C100: 143.190002 | D100: 134.199997 | E100: 142.559998 | F100: 21490900 | G100: 133.243371 | H100: -0.197205217 | I100: -0.05119721127
A101: 2010-05-26 | B101: 144.289993 | C101: 145.800003 | D101: 139.690002 | E101: 140.300003 | F101: 17073900 | G101: 131.131072 | H101: -0.1262485089 | I101: 0.07095670811
A102: 2010-05-27 | B102: 142.929993 | C102: 145.050003 | D102: 141.039993 | E102: 144.949997 | F102: 12910200 | G102: 135.815992 | H102: -0.1356739719 | I102: -0.009425463067
A103: 2010-05-28 | B103: 144.419998 | C103: 145.800003 | D103: 143.100006 | E103: 144.259995 | F103: 10683700 | G103: 135.16947 | H103: -0.125249253 | I103: 0.0104247189
A104: 2010-06-01 | B104: 144.259995 | C104: 146.399994 | D104: 141.699997 | E104: 141.860001 | F104: 9455200 | G104: 132.920712 | H104: -0.1263571536 | I104: -0.001107900583
A105: 2010-06-02 | B105: 142 | C105: 145 | D105: 141.139999 | E105: 144.830002 | F105: 7668400 | G105: 135.703559 | H105: -0.1420232778 | I105: -0.01566612421
A106: 2010-06-03 | B106: 144.910004 | C106: 145.25 | D106: 142.5 | E106: 144.039993 | F106: 7454900 | G106: 134.963333 | H106: -0.1215302919 | I106: 0.02049298592
A107: 2010-06-04 | B107: 142.169998 | C107: 145.869995 | D107: 141.710007 | E107: 142.25 | F107: 14900400 | G107: 133.286135 | H107: -0.1404386207 | I107: -0.01890832879
A108: 2010-06-07 | B108: 142.279999 | C108: 143.270004 | D108: 137.850006 | E108: 138.679993 | F108: 12238600 | G108: 129.941092 | H108: -0.1396648921 | I108: 0.0007737286456
A109: 2010-06-08 | B109: 139.139999 | C109: 139.679993 | D109: 135.050003 | E109: 137.779999 | F109: 14587000 | G109: 129.097811 | H109: -0.1617340516 | I109: -0.02206915956
A110: 2010-06-09 | B110: 138.589996 | C110: 139.419998 | D110: 136.220001 | E110: 136.800003 | F110: 8950600 | G110: 128.179569 | H110: -0.1656869264 | I110: -0.003952874831
A111: 2010-06-10 | B111: 137.600006 | C111: 137.770004 | D111: 131.300003 | E111: 133.770004 | F111: 21931000 | G111: 125.340506 | H111: -0.172830227 | I111: -0.007143300589
A112: 2010-06-11 | B112: 133.330002 | C112: 136.050003 | D112: 133 | E112: 135.639999 | F112: 9241800 | G112: 127.092663 | H112: -0.2038622315 | I112: -0.03103200446
A113: 2010-06-14 | B113: 137.110001 | C113: 137.110001 | D113: 133.399994 | E113: 133.440002 | F113: 10951400 | G113: 125.031299 | H113: -0.1755115306 | I113: 0.02835070084
A114: 2010-06-15 | B114: 134.630005 | C114: 137.399994 | D114: 133.300003 | E114: 136.899994 | F114: 10649300 | G114: 128.273259 | H114: -0.1935991682 | I114: -0.01808763753
A115: 2010-06-16 | B115: 136.059998 | C115: 138.259995 | D115: 135.710007 | E115: 137.059998 | F115: 7077700 | G115: 128.42318 | H115: -0.1829775166 | I115: 0.01062165154
A116: 2010-06-17 | B116: 136.949997 | C116: 138.380005 | D116: 135.220001 | E116: 137.320007 | F116: 8104300 | G116: 128.666806 | H116: -0.1764362921 | I116: 0.006541224556
A117: 2010-06-18 | B117: 137.820007 | C117: 139.720001 | D117: 137.520004 | E117: 138.179993 | F117: 10154900 | G117: 129.472599 | H117: -0.1700835355 | I117: 0.00635275662
A118: 2010-06-21 | B118: 139.649994 | C118: 140.149994 | D118: 137.309998 | E118: 137.740005 | F118: 8691000 | G118: 129.060338 | H118: -0.1568054415 | I118: 0.01327809394
A119: 2010-06-22 | B119: 137.539993 | C119: 137.75 | D119: 134.589996 | E119: 134.789993 | F119: 9002200 | G119: 126.29622 | H119: -0.1719146509 | I119: -0.01510920939
A120: 2010-06-23 | B120: 133.899994 | C120: 136.380005 | D120: 132.729996 | E120: 135.070007 | F120: 8232200 | G120: 126.558589 | H120: -0.1983796733 | I120: -0.02646502243
A121: 2010-06-24 | B121: 134.139999 | C121: 135.979996 | D121: 133.110001 | E121: 134.979996 | F121: 9967900 | G121: 126.47425 | H121: -0.1965872535 | I121: 0.001792419797
A122: 2010-06-25 | B122: 136.990005 | C122: 140.899994 | D122: 135.429993 | E122: 139.660004 | F122: 14332300 | G122: 130.859347 | H122: -0.1753407497 | I122: 0.02124650381
A123: 2010-06-28 | B123: 140.380005 | C123: 140.380005 | D123: 136.529999 | E123: 136.660004 | F123: 9908100 | G123: 128.048392 | H123: -0.1505944188 | I123: 0.02474633095
A124: 2010-06-29 | B124: 134.979996 | C124: 135.850006 | D124: 133.169998 | E124: 133.759995 | F124: 10338100 | G124: 125.331127 | H124: -0.1890614996 | I124: -0.03846708084
A125: 2010-06-30 | B125: 133.679993 | C125: 134.300003 | D125: 131.020004 | E125: 131.270004 | F125: 9139800 | G125: 122.998043 | H125: -0.1986925786 | I125: -0.009631078964
A126: 2010-07-01 | B126: 131.690002 | C126: 133.75 | D126: 129.5 | E126: 131.139999 | F126: 11645300 | G126: 122.87623 | H126: -0.2135788077 | I126: -0.01488622909
A127: 2010-07-02 | B127: 132.110001 | C127: 132.380005 | D127: 129.690002 | E127: 131.080002 | F127: 6566400 | G127: 122.820013 | H127: -0.2103895071 | I127: 0.003189300582
A128: 2010-07-06 | B128: 133.740005 | C128: 134.389999 | D128: 131.070007 | E128: 132.259995 | F128: 7820100 | G128: 123.925649 | H128: -0.1980512739 | I128: 0.0123382332
A129: 2010-07-07 | B129: 132.440002 | C129: 136.130005 | D129: 132.070007 | E129: 135.830002 | F129: 9300400 | G129: 127.270693 | H129: -0.2077716489 | I129: -0.009720374992
A130: 2010-07-08 | B130: 136.919998 | C130: 137.169998 | D130: 133.559998 | E130: 135.460007 | F130: 9895700 | G130: 126.924013 | H130: -0.1739450411 | I130: 0.03382660776
A131: 2010-07-09 | B131: 135.360001 | C131: 138.5 | D131: 134.589996 | E131: 138.059998 | F131: 6919900 | G131: 129.360165 | H131: -0.1853385338 | I131: -0.01139349272
A132: 2010-07-12 | B132: 137.610001 | C132: 138.309998 | D132: 136.029999 | E132: 137.25 | F132: 4728900 | G132: 128.60121 | H132: -0.1687161935 | I132: =(B132-B131)/B131 -> 0.0166223403
A133: 2010-07-13 | B133: 138.5 | C133: 141.199997 | D133: 138.110001 | E133: 140.25 | F133: 8983900 | G133: 131.412165 | H133: =((B133-B132)/B132)+H132 -> -0.1622486476 | I133: 0.006467545916
A134: 2010-07-14 | B134: 139.289993 | C134: 139.589996 | D134: 137.649994 | E134: 139.059998 | F134: 6068500 | G134: 130.297151 | H134: -0.156544727 | I134: 0.005703920578
A135: 2010-07-15 | B135: 140.020004 | C135: 146.25 | D135: 137.820007 | E135: 145.220001 | F135: 21621900 | G135: 136.068982 | H135: -0.1513037834 | I135: 0.005240943619
A136: 2010-07-16 | B136: 151.470001 | C136: 152 | D136: 146.050003 | E136: 146.169998 | F136: 29604600 | G136: 136.959115 | H136: -0.0695297749 | I136: 0.08177400852
A137: 2010-07-19 | B137: 147.669998 | C137: 147.699997 | D137: 144.100006 | E137: 145.679993 | F137: 10875900 | G137: 136.499988 | H137: -0.09461727061 | I137: -0.02508749571
A138: 2010-07-20 | B138: 142.179993 | C138: 149.729996 | D138: 141.550003 | E138: 148.910004 | F138: 20571400 | G138: 139.52646 | H138: -0.1317947953 | I138: -0.03717752471
A139: 2010-07-21 | B139: 150.050003 | C139: 150.970001 | D139: 146.860001 | E139: 146.990005 | F139: 11337000 | G139: 137.72745 | H139: -0.07644235203 | I139: 0.05535244329
A140: 2010-07-22 | B140: 148.880005 | C140: 149.880005 | D140: 144.160004 | E140: 146.550003 | F140: 13307300 | G140: 137.315174 | H140: -0.08423973941 | I140: -0.007797387382
A141: 2010-07-23 | B141: 146.649994 | C141: 148.410004 | D141: 144.570007 | E141: 147.380005 | F141: 7306900 | G141: 138.092874 | H141: -0.09921831897 | I141: -0.01497857956
A142: 2010-07-26 | B142: 147.389999 | C142: 149 | D142: 145.210007 | E142: 148.199997 | F142: 6089000 | G142: 138.861194 | H142: -0.09417225671 | I142: 0.005046062259
A143: 2010-07-27 | B143: 149.089996 | C143: 149.660004 | D143: 147 | E143: 147.229996 | F143: 7151200 | G143: 137.952317 | H143: -0.08263825161 | I143: 0.0115340051
A144: 2010-07-28 | B144: 147 | C144: 148.649994 | D144: 146.779999 | E144: 147.199997 | F144: 4845600 | G144: 137.924209 | H144: -0.09665660332 | I144: -0.01401835171
A145: 2010-07-29 | B145: 148.270004 | C145: 153.149994 | D145: 147.630005 | E145: 152.580002 | F145: 15657700 | G145: 142.965194 | H145: -0.08801712033 | I145: 0.008639482993
A146: 2010-07-30 | B146: 151.350006 | C146: 153.410004 | D146: 150.800003 | E146: 150.820007 | F146: 8792400 | G146: 141.316105 | H146: -0.06724419312 | I146: 0.02077292721
A147: 2010-08-02 | B147: 152.820007 | C147: 153.639999 | D147: 151.610001 | E147: 152.740005 | F147: 6523100 | G147: 143.115115 | H147: -0.05753160018 | I147: 0.009712592942
A148: 2010-08-03 | B148: 152.119995 | C148: 153.960007 | D148: 151.410004 | E148: 153.190002 | F148: 5648500 | G148: 143.536755 | H148: -0.06211223078 | I148: -0.004580630598
A149: 2010-08-04 | B149: 153.619995 | C149: 157.25 | D149: 153 | E149: 156.410004 | F149: 12283700 | G149: 146.553848 | H149: -0.05225159411 | I149: 0.009860636664
A150: 2010-08-05 | B150: 155.630005 | C150: 156.220001 | D150: 154.399994 | E150: 155.919998 | F150: 5680200 | G150: 146.094721 | H150: -0.03916729477 | I150: 0.01308429935
A151: 2010-08-06 | B151: 154.539993 | C151: 156.059998 | D151: 153.770004 | E151: 155.179993 | F151: 8082600 | G151: 145.401346 | H151: -0.04617116269 | I151: -0.007003867924
A152: 2010-08-09 | B152: 155.929993 | C152: 156.199997 | D152: 154.589996 | E152: 155.399994 | F152: 4209800 | G152: 145.607484 | H152: -0.03717672719 | I152: 0.008994435505
A153: 2010-08-10 | B153: 154.020004 | C153: 154.770004 | D153: 153.179993 | E153: 153.899994 | F153: 5861700 | G153: 144.202007 | H153: -0.04942574332 | I153: -0.01224901613
A154: 2010-08-11 | B154: 151.720001 | C154: 152 | D154: 148.910004 | E154: 149.25 | F154: 7734400 | G154: 139.845031 | H154: -0.06435888798 | I154: -0.01493314466
A155: 2010-08-12 | B155: 147.809998 | C155: 150.589996 | D155: 147.809998 | E155: 149.419998 | F155: 4949300 | G155: 140.004317 | H155: -0.09013006498 | I155: -0.025771177
A156: 2010-08-13 | B156: 149.380005 | C156: 150.449997 | D156: 148.080002 | E156: 148.080002 | F156: 4218700 | G156: 138.748761 | H156: -0.07950827334 | I156: 0.01062179163
A157: 2010-08-16 | B157: 147.580002 | C157: 149.179993 | D157: 147 | E157: 147.759995 | F157: 3760100 | G157: 138.448918 | H157: -0.09155809889 | I157: -0.01204982554
A158: 2010-08-17 | B158: 148.679993 | C158: 149.789993 | D158: 148.139999 | E158: 148.589996 | F158: 4391600 | G158: 139.226618 | H158: -0.08410457548 | I158: 0.007453523412
A159: 2010-08-18 | B159: 148.539993 | C159: 149.940002 | D159: 147.729996 | E159: 149.199997 | F159: 4460600 | G159: 139.798179 | H159: -0.08504619511 | I159: -0.00094161963
A160: 2010-08-19 | B160: 148.669998 | C160: 149.660004 | D160: 146.279999 | E160: 147.050003 | F160: 5290900 | G160: 137.783667 | H160: -0.08417097627 | I160: 0.0008752188375
A161: 2010-08-20 | B161: 147.440002 | C161: 148.970001 | D161: 147.25 | E161: 148.240005 | F161: 5276800 | G161: 138.898682 | H161: -0.09244430657 | I161: -0.008273330306
A162: 2010-08-23 | B162: 148.119995 | C162: 148.5 | D162: 146.600006 | E162: 146.740005 | F162: 3729200 | G162: 137.493204 | H162: -0.08783230854 | I162: 0.004611998038
A163: 2010-08-24 | B163: 144.800003 | C163: 145.490005 | D163: 143.820007 | E163: 143.949997 | F163: 6372300 | G163: 134.879007 | H163: -0.110246514 | I163: -0.02241420546
A164: 2010-08-25 | B164: 142.809998 | C164: 145.330002 | D164: 142.75 | E164: 144.679993 | F164: 5638400 | G164: 135.563002 | H164: -0.1239896422 | I164: -0.01374312817
A165: 2010-08-26 | B165: 144.940002 | C165: 145.160004 | D165: 141.660004 | E165: 141.809998 | F165: 6818100 | G165: 132.87386 | H165: -0.109074692 | I165: 0.01491495014
A166: 2010-08-27 | B166: 141.130005 | C166: 141.740005 | D166: 138.25 | E166: 139.75 | F166: 11252000 | G166: 130.943673 | H166: -0.1353614103 | I166: -0.02628671828
A167: 2010-08-30 | B167: 138.830002 | C167: 140.110001 | D167: 136.649994 | E167: 136.660004 | F167: 6205800 | G167: 128.36989 | H167: -0.1516584621 | I167: -0.01629705179
A168: 2010-08-31 | B168: 136.25 | C168: 138.009995 | D168: 135.789993 | E168: 136.929993 | F168: 7064100 | G168: 128.6235 | H168: -0.1702423558 | I168: -0.0185838937
A169: 2010-09-01 | B169: 139.009995 | C169: 140.339996 | D169: 137.800003 | E169: 139.740005 | F169: 6897700 | G169: 131.263051 | H169: -0.1499855117 | I169: 0.02025684404
A170: 2010-09-02 | B170: 139.929993 | C170: 140.149994 | D170: 138.449997 | E170: 139.779999 | F170: 4992000 | G170: 131.300618 | H170: -0.143367297 | I170: 0.006618214755
A171: 2010-09-03 | B171: 141.619995 | C171: 147.990005 | D171: 141.330002 | E171: 147.289993 | F171: 13588500 | G171: 138.355039 | H171: -0.1312898148 | I171: 0.0120774822
A172: 2010-09-07 | B172: 146.149994 | C172: 146.240005 | D172: 144.149994 | E172: 145.210007 | F172: 6211300 | G172: 136.401229 | H172: -0.09930281324 | I172: 0.03198700155
A173: 2010-09-08 | B173: 145.380005 | C173: 149.660004 | D173: 145.360001 | E173: 147.539993 | F173: 8310300 | G173: 138.589874 | H173: -0.1045712979 | I173: -0.00526848465
A174: 2010-09-09 | B174: 149.789993 | C174: 150.679993 | D174: 148.5 | E174: 149.139999 | F174: 6729800 | G174: 140.09282 | H174: -0.07423708515 | I174: 0.03033421274
A175: 2010-09-10 | B175: 149.460007 | C175: 150.75 | D175: 148.809998 | E175: 150.389999 | F175: 4417200 | G175: 141.266992 | H175: -0.0764400761 | I175: -0.002202990957
A176: 2010-09-13 | B176: 152.320007 | C176: 154.699997 | D176: 152.300003 | E176: 154.369995 | F176: 7653600 | G176: 145.005552 | H176: -0.05730452234 | I176: 0.01913555377
A177: 2010-09-14 | B177: 153.539993 | C177: 153.75 | D177: 152.229996 | E177: 152.529999 | F177: 5688200 | G177: 143.277174 | H177: -0.04929516084 | I177: 0.008009361502
A178: 2010-09-15 | B178: 151.669998 | C178: 152.800003 | D178: 150.669998 | E178: 152.559998 | F178: 5698200 | G178: 143.305353 | H178: -0.06147436551 | I178: -0.01217920467
A179: 2010-09-16 | B179: 152.279999 | C179: 152.479996 | D179: 151.160004 | E179: 152.229996 | F179: 4388600 | G179: 142.99537 | H179: -0.05745246923 | I179: 0.004021896275
A180: 2010-09-17 | B180: 152.110001 | C180: 152.470001 | D180: 150.559998 | E180: 150.979996 | F180: 4835600 | G180: 141.821198 | H180: -0.0585688207 | I180: -0.001116351465
A181: 2010-09-20 | B181: 150.979996 | C181: 152.399994 | D181: 149.889999 | E181: 151.899994 | F181: 5640500 | G181: 142.685386 | H181: -0.06599768792 | I181: -0.007428867218
A182: 2010-09-21 | B182: 152.110001 | C182: 154.570007 | D182: 151.089996 | E182: 151.399994 | F182: 6876000 | G182: 142.215718 | H182: -0.05851321958 | I182: 0.00748446834
A183: 2010-09-22 | B183: 149.949997 | C183: 150.550003 | D183: 147.690002 | E183: 148.070007 | F183: 8986100 | G183: 139.087736 | H183: -0.0727134956 | I183: -0.01420027602
A184: 2010-09-23 | B184: 146.360001 | C184: 146.869995 | D184: 143.979996 | E184: 144.910004 | F184: 9152400 | G184: 136.119425 | H184: -0.09665478317 | I184: -0.02394128757
A185: 2010-09-24 | B185: 146.25 | C185: 147.600006 | D185: 145.820007 | E185: 147.279999 | F185: 5623700 | G185: 138.345651 | H185: -0.09740636147 | I185: -0.0007515782949
A186: 2010-09-27 | B186: 147.009995 | C186: 148.410004 | D186: 145.779999 | E186: 146 | F186: 5205900 | G186: 137.1433 | H186: -0.09220981446 | I186: 0.005196547009
A187: 2010-09-28 | B187: 146.509995 | C187: 146.690002 | D187: 144.059998 | E187: 145.009995 | F187: 5504800 | G187: 136.21335 | H187: -0.09561094375 | I187: -0.003401129291
A188: 2010-09-29 | B188: 145.020004 | C188: 145.020004 | D188: 142.539993 | E188: 144.419998 | F188: 6944900 | G188: 135.659145 | H188: -0.1057808369 | I188: -0.01016989319
A189: 2010-09-30 | B189: 145.25 | C189: 146.979996 | D189: 144.300003 | E189: 144.580002 | F189: 6854400 | G189: 135.809442 | H189: -0.1041948764 | I189: 0.001585960513
A190: 2010-10-01 | B190: 145.199997 | C190: 148.5 | D190: 144.820007 | E190: 147.699997 | F190: 7439800 | G190: 138.740171 | H190: -0.1045391312 | I190: -0.0003442547332
A191: 2010-10-04 | B191: 147.699997 | C191: 148.470001 | D191: 144.699997 | E191: 146.570007 | F191: 5866700 | G191: 137.678729 | H191: -0.08732149995 | I191: 0.01721763121
A192: 2010-10-05 | B192: 147.559998 | C192: 150.279999 | D192: 146.070007 | E192: 149.570007 | F192: 8724700 | G192: 140.496742 | H192: -0.08826936049 | I192: -0.0009478605473
A193: 2010-10-06 | B193: 149.75 | C193: 152.330002 | D193: 149.130005 | E193: 150.839996 | F193: 6330600 | G193: 141.689691 | H193: -0.0734279263 | I193: 0.01484143419
A194: 2010-10-07 | B194: 152.110001 | C194: 152.360001 | D194: 150.029999 | E194: 151.110001 | F194: 4471500 | G194: 141.943316 | H194: -0.05766832029 | I194: 0.01575960601
A195: 2010-10-08 | B195: 151.149994 | C195: 153.399994 | D195: 150.619995 | E195: 152.660004 | F195: 5225100 | G195: 143.399292 | H195: -0.06397958841 | I195: -0.00631126812
A196: 2010-10-11 | B196: 152.669998 | C196: 153.089996 | D196: 151.270004 | E196: 152.199997 | F196: 4454400 | G196: 142.967191 | H196: -0.05392332602 | I196: =(B196-B195)/B195 -> 0.01005626239
A197: 2010-10-12 | B197: 151.300003 | C197: 155.449997 | D197: 151.009995 | E197: 155.210007 | F197: 6378000 | G197: 145.794606 | H197: =((B197-B196)/B196)+H196 -> -0.06289689658 | I197: -0.008973570564
A198: 2010-10-13 | B198: 156.300003 | C198: 156.690002 | D198: 154.389999 | E198: 154.729996 | F198: 5626200 | G198: 145.343714 | H198: -0.0298499706 | I198: 0.03304692598
A199: 2010-10-14 | B199: 154.229996 | C199: 154.289993 | D199: 150.550003 | E199: 151.589996 | F199: 6891100 | G199: 142.394194 | H199: -0.04309377713 | I199: -0.01324380653
A200: 2010-10-15 | B200: 152.690002 | C200: 152.690002 | D200: 150.660004 | E200: 150.690002 | F200: 6901500 | G200: 141.548796 | H200: -0.05307882569 | I200: -0.009985048563
... 1196 more rows

Sheet Deutsche Bank AG
A1: Date | B1: Open | C1: High | D1: Low | E1: Close | F1: Volume | G1: Adj Close | H1: Cumulative Return | I1: Daily Return
A2: 2010-01-04 | B2: 72.419995 | C2: 73.529993 | D2: 72.199996 | E2: 73.230006 | F2: 469500 | G2: 61.392277
A3: 2010-01-05 | B3: 74.839993 | C3: 75.139996 | D3: 73.999999 | E3: 74.629996 | F3: 503400 | G3: 62.565957 | H3: =(B3-B2)/B2 -> 0.03341615807 | I3: =(B3-B2)/B2 -> 0.03341615807
A4: 2010-01-06 | B4: 73.199998 | C4: 73.929997 | D4: 72.830002 | E4: 73.339993 | F4: 495100 | G4: 61.484485 | H4: =((B4-B3)/B3)+H3 -> 0.01150280754 | I4: =(B4-B3)/B3 -> -0.02191335053
A5: 2010-01-07 | B5: 73.500002 | C5: 74.300002 | D5: 73.159996 | E5: 74.170001 | F5: 700200 | G5: 62.180321 | H5: =((B5-B4)/B4)+H4 -> 0.01560122295 | I5: 0.004098415413
A6: 2010-01-08 | B6: 76.389997 | C6: 76.939999 | D6: 75.989993 | E6: 76.849992 | F6: 764000 | G6: 64.427088 | H6: 0.05492088175 | I6: 0.03931965879
A7: 2010-01-11 | B7: 77.699997 | C7: 77.760004 | D7: 75.910005 | E7: 76.420005 | F7: 621800 | G7: 64.066608 | H7: 0.07206972389 | I7: 0.01714884214
A8: 2010-01-12 | B8: 74.690003 | C8: 75.000001 | D8: 73.609997 | E8: 74.1 | F8: 470100 | G8: 62.121635 | H8: 0.03333106088 | I8: -0.03873866301
A9: 2010-01-13 | B9: 73.500002 | C9: 73.959997 | D9: 72.399998 | E9: 73.699988 | F9: 514800 | G9: 61.786286 | H9: 0.01739852704 | I9: -0.01593253384
A10: 2010-01-14 | B10: 73.069998 | C10: 73.560001 | D10: 72.709996 | E10: 73.299999 | F10: 309200 | G10: 61.450956 | H10: 0.01154813264 | I10: -0.005850394399
A11: 2010-01-15 | B11: 70.949995 | C11: 71.120006 | D11: 69.389997 | E11: 69.730002 | F11: 1470900 | G11: 58.458053 | H11: -0.01746518415 | I11: -0.02901331679
A12: 2010-01-19 | B12: 69.519989 | C12: 70.809992 | D12: 69.489998 | E12: 70.720002 | F12: 1080000 | G12: 59.288018 | H12: -0.0376203089 | I12: -0.02015512475
A13: 2010-01-20 | B13: 69.309993 | C13: 69.360005 | D13: 67.71 | E13: 68.679995 | F13: 834700 | G13: 57.577781 | H13: -0.0406409653 | I13: -0.003020656404
A14: 2010-01-21 | B14: 68.279999 | C14: 68.67 | D14: 65.309995 | E14: 65.6 | F14: 1868600 | G14: 54.995672 | H14: -0.05550165069 | I14: -0.01486068538
A15: 2010-01-22 | B15: 63.410003 | C15: 64.019992 | D15: 61.869998 | E15: 62.139997 | F15: 1905900 | G15: 52.094983 | H15: -0.1268255533 | I15: -0.07132390263
A16: 2010-01-25 | B16: 64.629993 | C16: 64.939998 | D16: 63.329999 | E16: 63.880001 | F16: 862600 | G16: 53.553713 | H16: -0.1075858444 | I16: 0.01923970891
A17: 2010-01-26 | B17: 61.989996 | C17: 63.179998 | D17: 61.660001 | E17: 61.789994 | F17: 733400 | G17: 51.801558 | H17: -0.1484337059 | I17: -0.04084786146
A18: 2010-01-27 | B18: 61.210001 | C18: 62.660004 | D18: 60.819999 | E18: 62.610003 | F18: 894400 | G18: 52.489012 | H18: -0.1610163006 | I18: -0.01258259478
A19: 2010-01-28 | B19: 62.900004 | C19: 62.929999 | D19: 60.800002 | E19: 61.490007 | F19: 900000 | G19: 51.550064 | H19: -0.1334063844 | I19: 0.02760991623
A20: 2010-01-29 | B20: 62.389996 | C20: 63.03 | D20: 60.619997 | E20: 60.969996 | F20: 925400 | G20: 51.114115 | H20: -0.1415146192 | I20: -0.008108234778
A21: 2010-02-01 | B21: 63.070002 | C21: 63.919991 | D21: 62.920001 | E21: 63.449997 | F21: 1031400 | G21: 53.19322 | H21: -0.1306153398 | I21: 0.01089927943
A22: 2010-02-02 | B22: 65.160006 | C22: 65.870007 | D22: 64.699998 | E22: 65.399998 | F22: 981200 | G22: 54.828 | H22: -0.09747749397 | I22: 0.03313784579
A23: 2010-02-03 | B23: 64.559995 | C23: 65.220005 | D23: 63.530001 | E23: 64.079999 | F23: 779900 | G23: 53.721381 | H23: -0.1066857651 | I23: -0.009208271098
A24: 2010-02-04 | B24: 62.700006 | C24: 62.749994 | D24: 59.34 | E24: 59.600001 | F24: 1757200 | G24: 49.965581 | H24: -0.1354960058 | I24: -0.02881024077
A25: 2010-02-05 | B25: 60.990005 | C25: 61.429996 | D25: 57.780002 | E25: 59.540002 | F25: 1711000 | G25: 49.915281 | H25: -0.1627687464 | I25: -0.02727274061
A26: 2010-02-08 | B26: 59.209996 | C26: 59.830003 | D26: 57.899996 | E26: 57.899996 | F26: 979400 | G26: 48.540384 | H26: -0.1919540039 | I26: -0.02918525749
A27: 2010-02-09 | B27: 61.650003 | C27: 62.860002 | D27: 60.330004 | E27: 62.220001 | F27: 2603300 | G27: 52.162055 | H27: -0.1507446277 | I27: 0.0412093762
A28: 2010-02-10 | B28: 62.620002 | C28: 63.249995 | D28: 61.969999 | E28: 62.739996 | F28: 964800 | G28: 52.597991 | H28: -0.1350106626 | I28: 0.01573396517
A29: 2010-02-11 | B29: 60.779997 | C29: 61.96 | D29: 59.96 | E29: 61.799992 | F29: 1193400 | G29: 51.80994 | H29: -0.164394325 | I29: -0.02938366243
A30: 2010-02-12 | B30: 59.479991 | C30: 60.679996 | D30: 59.180004 | E30: 60.569996 | F30: 950100 | G30: 50.778775 | H30: -0.1857830394 | I30: -0.02138871445
A31: 2010-02-16 | B31: 62.210003 | C31: 63.860004 | D31: 61.799992 | E31: 63.78 | F31: 1035800 | G31: 53.469877 | H31: -0.13988505 | I31: 0.04589798946
A32: 2010-02-17 | B32: 64.889998 | C32: 64.919993 | D32: 63.009991 | E32: 63.439999 | F32: 1672200 | G32: 53.184838 | H32: -0.09680524173 | I32: 0.04307980824
A33: 2010-02-18 | B33: 64.079999 | C33: 65.180003 | D33: 63.880001 | E33: 64.780002 | F33: 1390600 | G33: 54.308228 | H33: -0.1092878897 | I33: -0.01248264794
A34: 2010-02-19 | B34: 64.199997 | C34: 65.059996 | D34: 63.919991 | E34: 64.93 | F34: 1224100 | G34: 54.433978 | H34: -0.1074152617 | I34: 0.001872627994
A35: 2010-02-22 | B35: 65.349997 | C35: 65.379993 | D35: 64.69 | E35: 64.899996 | F35: 779300 | G35: 54.408825 | H35: -0.08950248826 | I35: 0.01791277342
A36: 2010-02-23 | B36: 63.060004 | C36: 63.489999 | D36: 61.839994 | E36: 62.010001 | F36: 1213300 | G36: 51.986001 | H36: -0.1245444639 | I36: -0.03504197559
A37: 2010-02-24 | B37: 62.660004 | C37: 63.759995 | D37: 62.31 | E37: 63.080001 | F37: 1142100 | G37: 52.883034 | H37: -0.1308876287 | I37: -0.006343164837
A38: 2010-02-25 | B38: 61.469998 | C38: 62.660004 | D38: 61.050001 | E38: 62.660004 | F38: 950600 | G38: 52.53093 | H38: -0.1498791053 | I38: -0.0189914766
A39: 2010-02-26 | B39: 62.759993 | C39: 63.980002 | D39: 62.12 | E39: 63.499994 | F39: 718400 | G39: 53.235135 | H39: -0.1288933392 | I39: 0.0209857661
A40: 2010-03-01 | B40: 63.999995 | C40: 64.410006 | D40: 63.570003 | E40: 64.309993 | F40: 1104200 | G40: 53.914196 | H40: -0.1091354976 | I40: 0.01975784159
A41: 2010-03-02 | B41: 65.330004 | C41: 65.470003 | D41: 64.629993 | E41: 64.840001 | F41: 1075700 | G41: 54.358528 | H41: -0.08835410536 | I41: 0.02078139225
A42: 2010-03-03 | B42: 66.249998 | C42: 67.190006 | D42: 65.870007 | E42: 66.56 | F42: 1528900 | G42: 55.800487 | H42: -0.07427184692 | I42: 0.01408225844
A43: 2010-03-04 | B43: 68.070002 | C43: 68.520003 | D43: 66.969999 | E43: 67.500003 | F43: 1766100 | G43: 56.588537 | H43: -0.0468000876 | I43: 0.02747175932
A44: 2010-03-05 | B44: 68.409999 | C44: 69.479995 | D44: 68.190008 | E44: 69.410002 | F44: 1149700 | G44: 58.189782 | H44: -0.04180527359 | I44: 0.004994814015
A45: 2010-03-08 | B45: 69.739996 | C45: 69.999997 | D45: 69.289995 | E45: 69.389997 | F45: 861200 | G45: 58.17301 | H45: -0.02236371505 | I45: 0.01944155854
A46: 2010-03-09 | B46: 68.550002 | C46: 70.320005 | D46: 68.440007 | E46: 69.999997 | F46: 1024700 | G46: 58.684404 | H46: -0.03942700826 | I46: -0.01706329321
A47: 2010-03-10 | B47: 70.17 | C47: 71.220007 | D47: 70.099998 | E47: 70.669989 | F47: 1155400 | G47: 59.24609 | H47: -0.015794653 | I47: 0.02363235526
A48: 2010-03-11 | B48: 71.160008 | C48: 71.64 | D48: 70.789995 | E48: 71.559996 | F48: 931000 | G48: 59.992226 | H48: -0.001685945578 | I48: 0.01410870742
A49: 2010-03-12 | B49: 73.679999 | C49: 73.679999 | D49: 71.879996 | E49: 72.44 | F49: 1307700 | G49: 60.729977 | H49: 0.03372707742 | I49: 0.035413023
A50: 2010-03-15 | B50: 72.419995 | C50: 72.739987 | D50: 71.519994 | E50: 72.179999 | F50: 1748000 | G50: 60.512005 | H50: 0.0166260457 | I50: -0.01710103172
A51: 2010-03-16 | B51: 73.440002 | C51: 74.71 | D51: 73.08 | E51: 74.599989 | F51: 1503600 | G51: 62.5408 | H51: 0.03071065038 | I51: 0.01408460467
A52: 2010-03-17 | B52: 75.160001 | C52: 75.599991 | D52: 74.93 | E52: 75.320001 | F52: 1411400 | G52: 63.144422 | H52: 0.05413111542 | I52: 0.02342046505
A53: 2010-03-18 | B53: 74.55 | C53: 74.679993 | D53: 73.299999 | E53: 74.1 | F53: 1032200 | G53: 62.121635 | H53: 0.04601508307 | I53: -0.008116032356
A54: 2010-03-19 | B54: 73.359998 | C54: 74.42 | D54: 72.649997 | E54: 73.359998 | F54: 1088500 | G54: 61.501256 | H54: 0.03005261493 | I54: -0.01596246814
A55: 2010-03-22 | B55: 71.140003 | C55: 73.449989 | D55: 71.140003 | E55: 73.409995 | F55: 886800 | G55: 61.543171 | H55: -0.0002090407524 | I55: -0.03026165568
A56: 2010-03-23 | B56: 73.250003 | C56: 74.129999 | D56: 72.76 | E56: 74.07 | F56: 805400 | G56: 62.096485 | H56: 0.02945078369 | I56: 0.02965982445
A57: 2010-03-24 | B57: 73.669996 | C57: 74.150004 | D57: 73.119994 | E57: 73.699988 | F57: 1018900 | G57: 61.786286 | H57: 0.03518447629 | I57: 0.005733692598
A58: 2010-03-25 | B58: 75.279999 | C58: 76.849992 | D58: 74.839993 | E58: 74.889998 | F58: 1932100 | G58: 62.783929 | H58: 0.05703873294 | I58: 0.02185425665
A59: 2010-03-26 | B59: 76.919994 | C59: 78.049997 | D59: 76.670003 | E59: 77.479998 | F59: 1774700 | G59: 64.955252 | H59: 0.07882400156 | I59: 0.02178526862
A60: 2010-03-29 | B60: 77.510005 | C60: 78.62999 | D60: 76.889994 | E60: 78.62999 | F60: 1229900 | G60: 65.919346 | H60: 0.08649445198 | I60: 0.007670450416
A61: 2010-03-30 | B61: 78.439998 | C61: 78.8 | D61: 77.419991 | E61: 78.019997 | F61: 992200 | G61: 65.40796 | H61: 0.09849281271 | I61: 0.01199836073
A62: 2010-03-31 | B62: 76.24 | C62: 77.590001 | D62: 76.029995 | E62: 76.870005 | F62: 1125800 | G62: 64.443866 | H62: 0.07044592265 | I62: -0.02804689006
A63: 2010-04-01 | B63: 78.049997 | C63: 78.680002 | D63: 77.889997 | E63: 78.450001 | F63: 717300 | G63: 65.768453 | H63: 0.09418670177 | I63: 0.02374077912
A64: 2010-04-05 | B64: 78.759998 | C64: 79.739996 | D64: 78.680002 | E64: 79.269998 | F64: 473700 | G64: 66.455896 | H64: 0.1032834478 | I64: 0.009096746025
A65: 2010-04-06 | B65: 76.800004 | C65: 78.51 | D65: 76.559992 | E65: 78.309998 | F65: 975800 | G65: 65.651081 | H65: 0.07839779455 | I65: -0.02488565325
A66: 2010-04-07 | B66: 76.349995 | C66: 76.939999 | D66: 75.86 | E66: 76.360006 | F66: 1194200 | G66: 64.016308 | H66: 0.07253830266 | I66: -0.005859491882
A67: 2010-04-08 | B67: 74.379998 | C67: 76.229997 | D67: 74.159999 | E67: 76.050008 | F67: 1329300 | G67: 63.756422 | H67: 0.04673611368 | I67: -0.02580218899
A68: 2010-04-09 | B68: 76.499993 | C68: 78.419993 | D68: 76.429999 | E68: 78.249999 | F68: 922800 | G68: 65.600781 | H68: 0.07523833278 | I68: =(B68-B67)/B67 -> 0.0285022191
A69: 2010-04-12 | B69: 79.410001 | C69: 79.640003 | D69: 78.649995 | E69: 78.83 | F69: 815300 | G69: 66.087025 | H69: =((B69-B68)/B68)+H68 -> 0.1132776565 | I69: 0.03803932374
A70: 2010-04-13 | B70: 79.080007 | C70: 79.120009 | D70: 77.949996 | E70: 78.669992 | F70: 671600 | G70: 65.952882 | H70: 0.1091220842 | I70: -0.004155572294
A71: 2010-04-14 | B71: 81.019996 | C71: 81.650002 | D71: 80.44999 | E71: 81.58 | F71: 1171900 | G71: 68.392484 | H71: 0.1336540623 | I71: 0.0245319781
A72: 2010-04-15 | B72: 81.239995 | C72: 82.169996 | D72: 81.110003 | E72: 81.719995 | F72: 808000 | G72: 68.509848 | H72: 0.136369429 | I72: 0.00271536671
A73: 2010-04-16 | B73: 80.359999 | C73: 80.730004 | D73: 73.199998 | E73: 74.170001 | F73: 9396600 | G73: 62.180321 | H73: 0.1255373752 | I73: -0.01083205384
A74: 2010-04-19 | B74: 73.879993 | C74: 74.639991 | D74: 71.949997 | E74: 73.569995 | F74: 5719500 | G74: 61.677306 | H74: 0.04490016663 | I74: -0.08063720857
A75: 2010-04-20 | B75: 75.369998 | C75: 75.619996 | D75: 74.119997 | E75: 74.759997 | F75: 2709400 | G75: 62.674943 | H75: 0.06506807596 | I75: 0.02016790933
A76: 2010-04-21 | B76: 74.369995 | C76: 74.93 | D76: 73.099997 | E76: 74.079995 | F76: 1426500 | G76: 62.104864 | H76: 0.05180015734 | I76: -0.01326791862
A77: 2010-04-22 | B77: 71.919998 | C77: 72.669994 | D77: 71.160008 | E77: 72.629992 | F77: 2536900 | G77: 60.889256 | H77: 0.01885680431 | I77: -0.03294335303
A78: 2010-04-23 | B78: 71.349999 | C78: 72.199996 | D78: 70.919996 | E78: 72.099995 | F78: 1289000 | G78: 60.444934 | H78: 0.01093134525 | I78: -0.007925459064
A79: 2010-04-26 | B79: 73.540004 | C79: 74.129999 | D79: 72.830002 | E79: 73.159996 | F79: 1987000 | G79: 61.333585 | H79: 0.04162517889 | I79: 0.03069383365
A80: 2010-04-27 | B80: 71.269995 | C80: 72.299997 | D80: 68.449993 | E80: 68.699992 | F80: 2705400 | G80: 57.594546 | H80: 0.01075750312 | I80: -0.03086767578
A81: 2010-04-28 | B81: 69.889994 | C81: 70.269993 | D81: 67.669998 | E81: 69.69 | F81: 2744100 | G81: 58.424518 | H81: -0.008605498102 | I81: -0.01936300122
A82: 2010-04-29 | B82: 70.339994 | C82: 72.000002 | D82: 69.860002 | E82: 71.330002 | F82: 1994600 | G82: 59.799412 | H82: -0.00216680818 | I82: 0.006438689922
A83: 2010-04-30 | B83: 69.66 | C83: 70.089996 | D83: 67.829998 | E83: 68.679995 | F83: 2334500 | G83: 57.577781 | H83: -0.01183405382 | I83: -0.009667245636
A84: 2010-05-03 | B84: 69.15 | C84: 69.739996 | D84: 68.690005 | E84: 69.329998 | F84: 952400 | G84: 58.12271 | H84: -0.01915532858 | I84: -0.007321274763
A85: 2010-05-04 | B85: 66.4 | C85: 66.56 | D85: 65.449998 | E85: 66.05 | F85: 2219900 | G85: 55.372929 | H85: -0.05892394752 | I85: -0.03976861894
A86: 2010-05-05 | B86: 62.36 | C86: 65.120003 | D86: 62.170001 | E86: 64.010006 | F86: 3172900 | G86: 53.662702 | H86: -0.119767321 | I86: -0.06084337349
A87: 2010-05-06 | B87: 61.679998 | C87: 62.400003 | D87: 55.63 | E87: 59.080003 | F87: 4229000 | G87: 49.529641 | H87: -0.130671779 | I87: -0.01090445799
A88: 2010-05-07 | B88: 59.559999 | C88: 60.540005 | D88: 56.83 | E88: 59.150001 | F88: 5379300 | G88: 49.588324 | H88: -0.1650427107 | I88: -0.03437093172
A89: 2010-05-10 | B89: 66.659997 | C89: 66.900001 | D89: 64.299998 | E89: 65.549999 | F89: 4281900 | G89: 54.953754 | H89: -0.04583522048 | I89: 0.1192074902
A90: 2010-05-11 | B90: 63.399997 | C90: 65.540001 | D90: 63.239997 | E90: 64.249998 | F90: 2008100 | G90: 53.863899 | H90: -0.09474011317 | I90: -0.04890489269
A91: 2010-05-12 | B91: 64.899996 | C91: 65.980003 | D91: 64.019992 | E91: 65.030001 | F91: 2863800 | G91: 54.517814 | H91: -0.07108082183 | I91: 0.02365929134
A92: 2010-05-13 | B92: 64.099996 | C92: 64.209996 | D92: 62.63 | E92: 62.889997 | F92: 2169500 | G92: 52.723745 | H92: -0.08340747898 | I92: -0.01232665715
A93: 2010-05-14 | B93: 61.700003 | C93: 61.849993 | D93: 59.529992 | E93: 60.869999 | F93: 3032700 | G93: 51.030282 | H93: -0.1208488698 | I93: -0.03744139079
A94: 2010-05-17 | B94: 61.979997 | C94: 62.210003 | D94: 59.419996 | E94: 61.240004 | F94: 2863900 | G94: 51.340475 | H94: -0.1163108797 | I94: 0.004537990055
A95: 2010-05-18 | B95: 62.479999 | C95: 62.549992 | D95: 58.970004 | E95: 59.140002 | F95: 6933400 | G95: 49.579941 | H95: -0.1082437286 | I95: 0.008067151084
A96: 2010-05-19 | B96: 60.000002 | C96: 60.889992 | D96: 58.999999 | E96: 60.460001 | F96: 3107800 | G96: 50.68656 | H96: -0.1479363829 | I96: -0.03969265428
A97: 2010-05-20 | B97: 58.209997 | C97: 60.540005 | D97: 57.169993 | E97: 58.499998 | F97: 2715900 | G97: 49.043395 | H97: -0.1777697986 | I97: -0.02983341567
A98: 2010-05-21 | B98: 57.959995 | C98: 60.769998 | D98: 57.820004 | E98: 60.189993 | F98: 2755600 | G98: 50.4602 | H98: -0.1820646279 | I98: -0.004294829289
A99: 2010-05-24 | B99: 59.159995 | C99: 59.299998 | D99: 57.869992 | E99: 57.989998 | F99: 1686200 | G99: 48.615837 | H99: -0.1613606923 | I99: 0.02070393553
A100: 2010-05-25 | B100: 55.92 | C100: 58.980002 | D100: 55.650005 | E100: 58.789999 | F100: 2224300 | G100: 49.286516 | H100: -0.2161273467 | I100: -0.05476665439
A101: 2010-05-26 | B101: 57.649997 | C101: 58.7 | D101: 56.619999 | E101: 57.199997 | F101: 2176700 | G101: 47.95354 | H101: -0.1851903475 | I101: 0.03093699928
A102: 2010-05-27 | B102: 59.540002 | C102: 62.299993 | D102: 58.980002 | E102: 62.029998 | F102: 2373500 | G102: 52.002765 | H102: -0.1524062174 | I102: 0.03278413007
A103: 2010-05-28 | B103: 59.990003 | C103: 60.700001 | D103: 58.769994 | E103: 59.569994 | F103: 1550300 | G103: 50.551641 | H103: -0.1448482566 | I103: 0.007557960781
A104: 2010-06-01 | B104: 57.58 | C104: 59.819997 | D104: 57.499996 | E104: 57.79 | F104: 1285400 | G104: 49.041122 | H104: -0.1850216668 | I104: -0.04017341023
A105: 2010-06-02 | B105: 58.039999 | C105: 59.519997 | D105: 57.620002 | E105: 59.469997 | F105: 1360200 | G105: 50.466782 | H105: -0.1770327992 | I105: 0.007988867662
A106: 2010-06-03 | B106: 60.119996 | C106: 60.279996 | D106: 58.430001 | E106: 59.109999 | F106: 1359700 | G106: 50.161285 | H106: -0.1411954967 | I106: 0.03583730248
A107: 2010-06-04 | B107: 56.619999 | C107: 56.930001 | D107: 55.000002 | E107: 55.329996 | F107: 2957500 | G107: 46.95354 | H107: -0.1994123502 | I107: -0.05821685351
A108: 2010-06-07 | B108: 55.819999 | C108: 56.089995 | D108: 54.139995 | E108: 54.290004 | F108: 2187700 | G108: 46.070993 | H108: -0.2135416334 | I108: -0.01412928319
A109: 2010-06-08 | B109: 54.800004 | C109: 55.929999 | D109: 54.21 | E109: 55.729997 | F109: 2669000 | G109: 47.292984 | H109: -0.2318145646 | I109: -0.01827293118
A110: 2010-06-09 | B110: 56.349996 | C110: 57.199997 | D110: 55.000002 | E110: 55.479998 | F110: 1964600 | G110: 47.080833 | H110: -0.2035300411 | I110: 0.02828452348
A111: 2010-06-10 | B111: 56.949994 | C111: 57.929999 | D111: 56.610005 | E111: 57.689999 | F111: 1725800 | G111: 48.95626 | H111: -0.1928823385 | I111: 0.01064770262
A112: 2010-06-11 | B112: 57.459994 | C112: 58.830005 | D112: 57.39 | E112: 58.590001 | F112: 1334500 | G112: 49.720009 | H112: -0.1839271136 | I112: 0.008955224824
A113: 2010-06-14 | B113: 59.749999 | C113: 59.979993 | D113: 58.299996 | E113: 58.38 | F113: 993200 | G113: 49.541801 | H113: -0.1440732111 | I113: 0.03985390253
A114: 2010-06-15 | B114: 60.700001 | C114: 61.849993 | D114: 60.350001 | E114: 61.829996 | F114: 1480100 | G114: 52.469499 | H114: -0.1281735958 | I114: 0.01589961533
A115: 2010-06-16 | B115: 60.990005 | C115: 61.939995 | D115: 60.769998 | E115: 61.629998 | F115: 1213200 | G115: 52.299779 | H115: -0.1233959352 | I115: 0.004777660547
A116: 2010-06-17 | B116: 62.489997 | C116: 62.50999 | D116: 61.450005 | E116: 62.269998 | F116: 1097000 | G116: 52.842889 | H116: -0.09880187265 | I116: 0.02459406258
A117: 2010-06-18 | B117: 62.220001 | C117: 62.620002 | D117: 61.889995 | E117: 61.979997 | F117: 1026900 | G117: 52.596792 | H117: -0.1031225002 | I117: -0.004320627508
A118: 2010-06-21 | B118: 62.769999 | C118: 62.799995 | D118: 61 | E118: 61.419997 | F118: 1062300 | G118: 52.12157 | H118: -0.09428293103 | I118: 0.008839569128
A119: 2010-06-22 | B119: 60.740003 | C119: 61.439994 | D119: 59.729994 | E119: 59.950001 | F119: 1067500 | G119: 50.874118 | H119: -0.1266231578 | I119: -0.03234022674
A120: 2010-06-23 | B120: 60.109997 | C120: 60.700001 | D120: 59.109999 | E120: 60.029993 | F120: 783500 | G120: 50.942 | H120: -0.1369953337 | I120: -0.01037217598
A121: 2010-06-24 | B121: 59.209996 | C121: 59.600001 | D121: 58.309995 | E121: 58.449998 | F121: 954500 | G121: 49.601202 | H121: -0.1519679015 | I121: -0.01497256771
A122: 2010-06-25 | B122: 58.470003 | C122: 59.190003 | D122: 57.549996 | E122: 58.990001 | F122: 1224700 | G122: 50.059453 | H122: -0.1644656729 | I122: -0.01249777149
A123: 2010-06-28 | B123: 59.190003 | C123: 59.590003 | D123: 58.319993 | E123: 59.009998 | F123: 967200 | G123: 50.076423 | H123: -0.1521516664 | I123: 0.01231400655
A124: 2010-06-29 | B124: 56.949994 | C124: 56.949994 | D124: 55.479998 | E124: 55.960002 | F124: 1567000 | G124: 47.488169 | H124: -0.189996047 | I124: -0.03784438058
A125: 2010-06-30 | B125: 56.779999 | C125: 57.919993 | D125: 55.860001 | E125: 56.160004 | F125: 1189200 | G125: 47.657892 | H125: -0.1929810341 | I125: -0.002984987145
A126: 2010-07-01 | B126: 56.870002 | C126: 57.380002 | D126: 55.549992 | E126: 57.220002 | F126: 1313400 | G126: 48.557416 | H126: -0.1913959161 | I126: 0.001585118027
A127: 2010-07-02 | B127: 57.539998 | C127: 57.830002 | D127: 55.999992 | E127: 56.499993 | F127: 880300 | G127: 47.94641 | H127: -0.1796147313 | I127: 0.01178118474
A128: 2010-07-06 | B128: 58.230003 | C128: 58.499998 | D128: 56.689997 | E128: 57.360005 | F128: 1264900 | G128: 48.676224 | H128: -0.1676229861 | I128: 0.01199174529
A129: 2010-07-07 | B129: 58.449998 | C129: 61.059999 | D129: 58.349997 | E129: 61.019997 | F129: 1578900 | G129: 51.782127 | H129: -0.1638449509 | I129: 0.003778035182
A130: 2010-07-08 | B130: 62.429998 | C130: 62.960003 | D130: 61.789994 | E130: 62.779998 | F130: 1415000 | G130: 53.275679 | H130: -0.09575256189 | I130: 0.06809238899
A131: 2010-07-09 | B131: 61.660001 | C131: 62.970001 | D131: 61.500001 | E131: 62.970001 | F131: 705700 | G131: 53.436918 | H131: -0.1080863281 | I131: -0.01233376621
A132: 2010-07-12 | B132: 61.760002 | C132: 62.47 | D132: 61.469998 | E132: 62.239994 | F132: 659800 | G132: 52.817428 | H132: -0.106464515 | I132: =(B132-B131)/B131 -> 0.001621813143
A133: 2010-07-13 | B133: 63.129997 | C133: 64.29 | D133: 63.110004 | E133: 63.909993 | F133: 749700 | G133: 54.234603 | H133: =((B133-B132)/B132)+H132 -> -0.08428195415 | I133: 0.02218256081
A134: 2010-07-14 | B134: 63.459992 | C134: 64.419992 | D134: 63.239997 | E134: 64.109995 | F134: 944100 | G134: 54.404327 | H134: -0.07905472437 | I134: 0.005227229775
A135: 2010-07-15 | B135: 64.189999 | C135: 64.199997 | D135: 62.860002 | E135: 63.89 | F135: 1072100 | G135: 54.217637 | H135: -0.06755130345 | I135: 0.01150342093
A136: 2010-07-16 | B136: 62.42 | C136: 62.460002 | D136: 61.019997 | E136: 61.229998 | F136: 1506900 | G136: 51.960335 | H136: -0.09512567683 | I136: -0.02757437338
A137: 2010-07-19 | B137: 61.869998 | C137: 62.049995 | D137: 60.779997 | E137: 61.419997 | F137: 827200 | G137: 52.12157 | H137: -0.1039369873 | I137: -0.008811310477
A138: 2010-07-20 | B138: 59.96 | C138: 62.189994 | D138: 59.859999 | E138: 61.889995 | F138: 1961500 | G138: 52.520415 | H138: -0.1348081375 | I138: -0.03087115018
A139: 2010-07-21 | B139: 61.729999 | C139: 61.799992 | D139: 60.050002 | E139: 60.419999 | F139: 1099000 | G139: 51.272963 | H139: -0.1052884744 | I139: 0.02951966311
A140: 2010-07-22 | B140: 62.460002 | C140: 64.570002 | D140: 62.439997 | E140: 64.269991 | F140: 1766400 | G140: 54.540101 | H140: -0.09346273306 | I140: 0.01182574132
A141: 2010-07-23 | B141: 63.099994 | C141: 64.999997 | D141: 62.58 | E141: 64.539998 | F141: 2020800 | G141: 54.769232 | H141: -0.08321630367 | I141: 0.01024642939
A142: 2010-07-26 | B142: 63.860004 | C142: 66.199998 | D142: 63.749996 | E142: 66.180005 | F142: 1410500 | G142: 56.160956 | H142: -0.07117177004 | I142: 0.01204453363
A143: 2010-07-27 | B143: 69.169997 | C143: 69.239999 | D143: 67.679992 | E143: 68.06 | F143: 2321900 | G143: 57.756337 | H143: 0.01197875717 | I143: 0.08315052721
A144: 2010-07-28 | B144: 68.900002 | C144: 69.499992 | D144: 68.400005 | E144: 68.86 | F144: 1396300 | G144: 58.435225 | H144: 0.008075402942 | I144: -0.003903354225
A145: 2010-07-29 | B145: 70.699997 | C145: 71.199994 | D145: 69.039997 | E145: 70.019994 | F145: 1530300 | G145: 59.419606 | H145: 0.03420014819 | I145: 0.02612474525
A146: 2010-07-30 | B146: 69.280001 | C146: 70.430001 | D146: 68.960001 | E146: 70.240001 | F146: 938200 | G146: 59.606306 | H146: 0.01411533829 | I146: -0.0200848099
A147: 2010-08-02 | B147: 71.780003 | C147: 72.959994 | D147: 71.550001 | E147: 72.749998 | F147: 1226400 | G147: 61.736312 | H147: 0.05020081698 | I147: 0.03608547869
A148: 2010-08-03 | B148: 73.480005 | C148: 74.199993 | D148: 72.940005 | E148: 73.91 | F148: 1076100 | G148: 62.720701 | H148: 0.07388432115 | I148: 0.02368350416
A149: 2010-08-04 | B149: 73.350004 | C149: 74.119997 | D149: 72.87999 | E149: 73.669996 | F149: 1446600 | G149: 62.517031 | H149: 0.07211511876 | I149: -0.001769202384
A150: 2010-08-05 | B150: 73.660002 | C150: 74.369995 | D150: 73.099997 | E150: 74.190006 | F150: 771300 | G150: 62.958317 | H150: 0.07634140347 | I150: 0.004226284705
A151: 2010-08-06 | B151: 73.419997 | C151: 74.500004 | D151: 73.409995 | E151: 74.489993 | F151: 1096400 | G151: 63.212888 | H151: 0.07308312226 | I151: -0.003258281204
A152: 2010-08-09 | B152: 74.469996 | C152: 74.599989 | D152: 74.079995 | E152: 74.210003 | F152: 665300 | G152: 62.975286 | H152: 0.08738438953 | I152: 0.01430126727
A153: 2010-08-10 | B153: 72.450003 | C153: 73.330007 | D153: 71.729998 | E153: 73.019993 | F153: 1481200 | G153: 61.965433 | H153: 0.06025946529 | I153: -0.02712492424
A154: 2010-08-11 | B154: 69.719999 | C154: 69.959995 | D154: 68.770001 | E154: 68.800001 | F154: 1624900 | G154: 58.384309 | H154: 0.02257825222 | I154: -0.03768121307
A155: 2010-08-12 | B155: 67.329993 | C155: 68.429996 | D155: 66.980005 | E155: 67.989998 | F155: 1504300 | G155: 57.696933 | H155: -0.01170181138 | I155: -0.0342800636
A156: 2010-08-13 | B156: 67.829998 | C156: 68.409999 | D156: 67.129999 | E156: 67.129999 | F156: 936100 | G156: 56.96713 | H156: -0.004275626147 | I156: 0.007426185237
A157: 2010-08-16 | B157: 66.459999 | C157: 67.219997 | D157: 66.279994 | E157: 66.839994 | F157: 586900 | G157: 56.721029 | H157: -0.02447316471 | I157: -0.02019753856
A158: 2010-08-17 | B158: 67.929999 | C158: 68.469998 | D158: 67.55 | E158: 67.799998 | F158: 621300 | G158: 57.535698 | H158: -0.002354596813 | I158: 0.02211856789
A159: 2010-08-18 | B159: 67.899999 | C159: 68.000001 | D159: 67.099999 | E159: 67.609999 | F159: 858500 | G159: 57.374462 | H159: -0.00279622791 | I159: -0.0004416310973
A160: 2010-08-19 | B160: 67.269994 | C160: 67.63999 | D160: 65.149999 | E160: 65.680004 | F160: 1002600 | G160: 55.736651 | H160: -0.0120746522 | I160: -0.00927842429
A161: 2010-08-20 | B161: 64.959995 | C161: 65.149999 | D161: 64.280001 | E161: 64.939998 | F161: 830300 | G161: 55.108676 | H161: -0.04641387037 | I161: -0.03433921817
A162: 2010-08-23 | B162: 65.309995 | C162: 65.879994 | D162: 64.510007 | E162: 64.519993 | F162: 737300 | G162: 54.752255 | H162: -0.04102593892 | I162: 0.005387931449
A163: 2010-08-24 | B163: 63.679999 | C163: 64.239999 | D163: 62.739996 | E163: 63.549994 | F163: 781300 | G163: 53.929105 | H163: -0.06598377271 | I163: -0.02495783379
A164: 2010-08-25 | B164: 62.739996 | C164: 63.860004 | D164: 62.160002 | E164: 63.699996 | F164: 902900 | G164: 54.056398 | H164: -0.08074512658 | I164: -0.01476135388
A165: 2010-08-26 | B165: 63.610005 | C165: 64.260004 | D165: 62.739996 | E165: 62.799995 | F165: 831500 | G165: 53.292649 | H165: -0.06687823057 | I165: 0.01386689601
A166: 2010-08-27 | B166: 63.570003 | C166: 64.120001 | D166: 62.229996 | E166: 64.120001 | F166: 1156800 | G166: 54.412818 | H166: -0.06750709391 | I166: -0.0006288633368
A167: 2010-08-30 | B167: 63.560005 | C167: 63.799997 | D167: 62.50999 | E167: 62.520001 | F167: 966400 | G167: 53.055043 | H167: -0.06766436935 | I167: -0.000157275437
A168: 2010-08-31 | B168: 62.439997 | C168: 63.449997 | D168: 61.91 | E168: 62.679997 | F168: 1825800 | G168: 53.190817 | H168: -0.0852856392 | I168: -0.01762126985
A169: 2010-09-01 | B169: 64.249998 | C169: 65.499999 | D169: 64.239999 | E169: 64.889998 | F169: 1058600 | G169: 55.066245 | H169: -0.05629779348 | I169: 0.02898784572
A170: 2010-09-02 | B170: 63.449997 | C170: 63.629998 | D170: 62.889997 | E170: 63.560005 | F170: 1447200 | G170: 53.9376 | H170: -0.0687491713 | I170: -0.01245137782
A171: 2010-09-03 | B171: 64.099996 | C171: 64.849996 | D171: 63.870003 | E171: 64.609996 | F171: 1705000 | G171: 54.828632 | H171: -0.05850489973 | I171: 0.01024427156
A172: 2010-09-07 | B172: 62.910002 | C172: 63.110004 | D172: 62.389996 | E172: 62.520001 | F172: 1159200 | G172: 53.055043 | H172: -0.07706954988 | I172: -0.01856465014
A173: 2010-09-08 | B173: 62.139997 | C173: 62.749994 | D173: 61.96 | E173: 61.96 | F173: 1068300 | G173: 52.579822 | H173: -0.08930933649 | I173: -0.01223978661
A174: 2010-09-09 | B174: 63.970004 | C174: 64.089998 | D174: 59.359997 | E174: 59.990003 | F174: 6156800 | G174: 50.908064 | H174: -0.05985959255 | I174: 0.02944974394
A175: 2010-09-10 | B175: 60.529994 | C175: 60.860001 | D175: 60.36 | E175: 60.500003 | F175: 2701200 | G175: 51.340855 | H175: -0.1136349526 | I175: -0.05377536009
A176: 2010-09-13 | B176: 62.329997 | C176: 62.679997 | D176: 62.000002 | E176: 62.319998 | F176: 1862900 | G176: 52.88532 | H176: -0.08389757979 | I176: 0.02973737285
A177: 2010-09-14 | B177: 62.98 | C177: 64.29 | D177: 62.560003 | E177: 63.539996 | F177: 1977200 | G177: 53.920621 | H177: -0.073469166 | I177: 0.01042841379
A178: 2010-09-15 | B178: 62.789996 | C178: 63.279999 | D178: 62.47 | E178: 63.120003 | F178: 1002400 | G178: 53.564211 | H178: -0.07648606026 | I178: -0.003016894252
A179: 2010-09-16 | B179: 61.929997 | C179: 61.979997 | D179: 61.009999 | E179: 61.579997 | F179: 1694800 | G179: 52.257348 | H179: -0.09018249368 | I179: -0.01369643343
A180: 2010-09-17 | B180: 61.219999 | C180: 61.379995 | D180: 60.000002 | E180: 60.240002 | F180: 1632700 | G180: 51.120215 | H180: -0.1016470187 | I180: -0.01146452502
A181: 2010-09-20 | B181: 59.8 | C181: 61.589996 | D181: 59.779995 | E181: 61.459999 | F181: 2351000 | G181: 52.155516 | H181: -0.124842037 | I181: -0.02319501835
A182: 2010-09-21 | B182: 61.819997 | C182: 61.950002 | D182: 58.759995 | E182: 59.790001 | F182: 5536000 | G182: 50.738341 | H182: -0.091062823 | I182: 0.03377921405
A183: 2010-09-22 | B183: 55.460001 | C183: 55.579999 | D183: 54.849992 | E183: 55.339995 | F183: 3196400 | G183: 46.962025 | H183: -0.1939420904 | I183: -0.1028792674
A184: 2010-09-23 | B184: 54.569998 | C184: 54.909999 | D184: 54.119998 | E184: 54.300003 | F184: 2332200 | G184: 46.079478 | H184: -0.209989746 | I184: -0.01604765568
A185: 2010-09-24 | B185: 54.500001 | C185: 55.710004 | D185: 54.409998 | E185: 55.710004 | F185: 2350800 | G185: 47.276018 | H185: -0.2112724472 | I185: -0.001282701165
A186: 2010-09-27 | B186: 55.549992 | C186: 55.810001 | D186: 54.900005 | E186: 54.919998 | F186: 1446600 | G186: 46.605612 | H186: -0.1920065577 | I186: 0.01926588955
A187: 2010-09-28 | B187: 54.45 | C187: 54.790005 | D187: 53.81 | E187: 54.579997 | F187: 1622500 | G187: 46.317083 | H187: -0.2118083967 | I187: -0.01980183904
A188: 2010-09-29 | B188: 53.479993 | C188: 53.910001 | D188: 53.080005 | E188: 53.269997 | F188: 2909100 | G188: 45.205406 | H188: -0.229623034 | I188: -0.01781463728
A189: 2010-09-30 | B189: 55.460001 | C189: 55.670002 | D189: 54.500001 | E189: 54.929996 | F189: 3127400 | G189: 46.614096 | H189: -0.1925996933 | I189: 0.03702334067
A190: 2010-10-01 | B190: 55.110001 | C190: 55.400002 | D190: 54.500001 | E190: 55.12 | F190: 2010700 | G190: 46.775335 | H190: -0.1989105479 | I190: -0.006310854556
A191: 2010-10-04 | B191: 54.710001 | C191: 55.129998 | D191: 53.879993 | E191: 54.240004 | F191: 1245700 | G191: 46.028562 | H191: -0.2061687586 | I191: -0.007258210719
A192: 2010-10-05 | B192: 55.429997 | C192: 57.039997 | D192: 55.329996 | E192: 56.539995 | F192: 2270900 | G192: 47.980356 | H192: -0.1930085322 | I192: 0.01316022641
A193: 2010-10-06 | B193: 57.349998 | C193: 57.609995 | D193: 57.009993 | E193: 57.23 | F193: 1887400 | G193: 48.565901 | H193: -0.1583702297 | I193: 0.03463830243
A194: 2010-10-07 | B194: 57.810005 | C194: 57.810005 | D194: 56.299995 | E194: 56.629998 | F194: 1191100 | G194: 48.056733 | H194: -0.1503491832 | I194: 0.008021046487
A195: 2010-10-08 | B195: 56.560004 | C195: 56.749996 | D195: 56.299995 | E195: 56.459991 | F195: 882000 | G195: 47.912464 | H195: -0.1719717553 | I195: -0.02162257208
A196: 2010-10-11 | B196: 56.410003 | C196: 56.599994 | D196: 56.060003 | E196: 56.160004 | F196: 793900 | G196: 47.657892 | H196: -0.1746238237 | I196: =(B196-B195)/B195 -> -0.002652068412
A197: 2010-10-12 | B197: 55.539997 | C197: 56.210005 | D197: 54.979997 | E197: 55.900003 | F197: 1404600 | G197: 47.437253 | H197: =((B197-B196)/B196)+H196 -> -0.1900467267 | I197: -0.01542290292
A198: 2010-10-13 | B198: 57.720003 | C198: 58.499998 | D198: 57.409993 | E198: 57.709996 | F198: 1400300 | G198: 48.97323 | H198: -0.1507956262 | I198: 0.03925110043
A199: 2010-10-14 | B199: 58.599999 | C199: 58.720005 | D199: 56.909992 | E199: 57.489997 | F199: 2583400 | G199: 48.786537 | H199: -0.1355496811 | I199: 0.01524594515
A200: 2010-10-15 | B200: 57.820004 | C200: 57.840001 | D200: 56.049993 | E200: 56.67 | F200: 1485200 | G200: 48.090679 | H200: -0.1488601762 | I200: -0.01331049511
... 1196 more rows

Sheet Groupon, Inc.
A1: Date | B1: Open | C1: High | D1: Low | E1: Close | F1: Volume | G1: Adj Close | H1: Cumulative Return | I1: Daily Return
A2: 2011-11-04 | B2: 28 | C2: 31.139999 | D2: 25.9 | E2: 26.110001 | F2: 49813000 | G2: 26.110001
A3: 2011-11-07 | B3: 27.440001 | C3: 27.780001 | D3: 24.59 | E3: 25.969999 | F3: 9516000 | G3: 25.969999 | H3: =(B3-B2)/B2 -> -0.01999996429 | I3: =(B3-B2)/B2 -> -0.01999996429
A4: 2011-11-08 | B4: 26.200001 | C4: 26.209999 | D4: 24.75 | E4: 24.9 | F4: 4266800 | G4: 24.9 | H4: =((B4-B3)/B3)+H3 -> -0.06518946701 | I4: =(B4-B3)/B3 -> -0.04518950273
A5: 2011-11-09 | B5: 23.51 | C5: 24.559999 | D5: 22.76 | E5: 24.02 | F5: 4544100 | G5: 24.02 | H5: =((B5-B4)/B4)+H4 -> -0.167861257 | I5: -0.10267179
A6: 2011-11-10 | B6: 24.129999 | C6: 24.959999 | D6: 23.200001 | E6: 24.41 | F6: 2344000 | G6: 24.41 | H6: -0.1414895428 | I6: 0.02637171416
A7: 2011-11-11 | B7: 24.959999 | C7: 25 | D7: 23.610001 | E7: 24.25 | F7: 1316100 | G7: 24.25 | H7: -0.1070925252 | I7: 0.03439701759
A8: 2011-11-14 | B8: 23.42 | C8: 24.16 | D8: 23.4 | E8: 24.07 | F8: 1577800 | G8: 24.07 | H8: -0.1687912056 | I8: -0.06169868036
A9: 2011-11-15 | B9: 24 | C9: 24.74 | D9: 23.68 | E9: 24.07 | F9: 1209800 | G9: 24.07 | H9: -0.1440260476 | I9: 0.02476515798
A10: 2011-11-16 | B10: 24.02 | C10: 24.299999 | D10: 23.75 | E10: 24.030001 | F10: 754500 | G10: 24.030001 | H10: -0.1431927143 | I10: 0.0008333333333
A11: 2011-11-17 | B11: 23.6 | C11: 24.950001 | D11: 23.6 | E11: 24.77 | F11: 1622600 | G11: 24.77 | H11: -0.1606781431 | I11: -0.01748542881
A12: 2011-11-18 | B12: 24.629999 | C12: 26.25 | D12: 24.200001 | E12: 26.190001 | F12: 2504200 | G12: 26.190001 | H12: -0.1170341177 | I12: 0.04364402542
A13: 2011-11-21 | B13: 26.75 | C13: 26.9 | D13: 23.280001 | E13: 23.58 | F13: 2590100 | G13: 23.58 | H13: -0.03096017994 | I13: 0.08607393772
A14: 2011-11-22 | B14: 24.75 | C14: 24.75 | D14: 20.030001 | E14: 20.07 | F14: 5227800 | G14: 20.07 | H14: -0.1057265351 | I14: -0.07476635514
A15: 2011-11-23 | B15: 20 | C15: 20 | D15: 16.709999 | E15: 16.959999 | F15: 7886900 | G15: 16.959999 | H15: -0.297645727 | I15: -0.1919191919
A16: 2011-11-25 | B16: 17 | C16: 17.639999 | D16: 16.200001 | E16: 16.75 | F16: 2125100 | G16: 16.75 | H16: -0.447645727 | I16: -0.15
A17: 2011-11-28 | B17: 17.440001 | C17: 17.75 | D17: 14.85 | E17: 15.24 | F17: 6018900 | G17: 15.24 | H17: -0.4217633152 | I17: 0.02588241176
A18: 2011-11-29 | B18: 15.28 | C18: 16.440001 | D18: 15.11 | E18: 16.01 | F18: 3372500 | G18: 16.01 | H18: -0.5456165765 | I18: -0.1238532612
A19: 2011-11-30 | B19: 16.690001 | C19: 17.74 | D19: 16.209999 | E19: 17.5 | F19: 2409400 | G19: 17.5 | H19: -0.4533390241 | I19: 0.09227755236
A20: 2011-12-01 | B20: 17.77 | C20: 18.99 | D20: 17.360001 | E20: 18.950001 | F20: 2153600 | G20: 18.950001 | H20: -0.3886296811 | I20: 0.06470934304
A21: 2011-12-02 | B21: 19.5 | C21: 20.82 | D21: 17.9 | E21: 18.950001 | F21: 3659300 | G21: 18.950001 | H21: -0.2912745882 | I21: 0.09735509285
A22: 2011-12-05 | B22: 19.42 | C22: 19.48 | D22: 18.4 | E22: 19.040001 | F22: 1793900 | G22: 19.040001 | H22: -0.2953771523 | I22: -0.004102564103
A23: 2011-12-06 | B23: 18.799999 | C23: 19.51 | D23: 18.799999 | E23: 19.24 | F23: 1670500 | G23: 19.24 | H23: -0.3273030535 | I23: -0.03192590113
A24: 2011-12-07 | B24: 19.48 | C24: 21.67 | D24: 19.200001 | E24: 21.15 | F24: 3512000 | G24: 21.15 | H24: -0.2911327856 | I24: 0.03617026788
A25: 2011-12-08 | B25: 20.76 | C25: 22.9 | D25: 20.25 | E25: 22.27 | F25: 3115200 | G25: 22.27 | H25: -0.2254243667 | I25: 0.06570841889
A26: 2011-12-09 | B26: 22.73 | C26: 23.49 | D26: 22 | E26: 23.48 | F26: 2728500 | G26: 23.48 | H26: -0.1305303397 | I26: 0.09489402697
A27: 2011-12-12 | B27: 23.34 | C27: 23.34 | D27: 21.27 | E27: 22.25 | F27: 2276900 | G27: 22.25 | H27: -0.1036935601 | I27: 0.02683677959
A28: 2011-12-13 | B28: 22.950001 | C28: 24.5 | D28: 22.299999 | E28: 23.32 | F28: 2334900 | G28: 23.32 | H28: -0.1204030289 | I28: -0.01670946872
A29: 2011-12-14 | B29: 23 | C29: 23.200001 | D29: 21.1 | E29: 22.549999 | F29: 2341200 | G29: 22.549999 | H29: -0.1182244233 | I29: 0.00217860557
A30: 2011-12-15 | B30: 23.5 | C30: 23.5 | D30: 22.629999 | E30: 23.08 | F30: 1136200 | G30: 23.08 | H30: -0.09648529285 | I30: 0.02173913043
A31: 2011-12-16 | B31: 23.440001 | C31: 25.15 | D31: 21.5 | E31: 23.040001 | F31: 4532000 | G31: 23.040001 | H31: -0.09903844179 | I31: -0.002553148936
A32: 2011-12-19 | B32: 23.01 | C32: 23.370001 | D32: 21.68 | E32: 22 | F32: 1129500 | G32: 22 | H32: -0.1173831936 | I32: -0.01834475178
A33: 2011-12-20 | B33: 22.5 | C33: 22.9 | D33: 22.1 | E33: 22.75 | F33: 1104300 | G33: 22.75 | H33: -0.13954747 | I33: -0.0221642764
A34: 2011-12-21 | B34: 22.75 | C34: 23.25 | D34: 22.110001 | E34: 22.959999 | F34: 1028400 | G34: 22.959999 | H34: -0.1284363589 | I34: 0.01111111111
A35: 2011-12-22 | B35: 23.049999 | C35: 23.049999 | D35: 21.68 | E35: 22.1 | F35: 1296500 | G35: 22.1 | H35: -0.1152495896 | I35: 0.01318676923
A36: 2011-12-23 | B36: 22.190001 | C36: 22.98 | D36: 21.9 | E36: 22.84 | F36: 1227700 | G36: 22.84 | H36: -0.1525596997 | I36: -0.03731011008
A37: 2011-12-27 | B37: 22.860001 | C37: 23.59 | D37: 22.58 | E37: 23.049999 | F37: 771200 | G37: 23.049999 | H37: -0.1223659201 | I37: 0.03019377962
A38: 2011-12-28 | B38: 23.1 | C38: 23.450001 | D38: 22.299999 | E38: 22.620001 | F38: 731600 | G38: 22.620001 | H38: -0.1118672766 | I38: 0.01049864346
A39: 2011-12-29 | B39: 22.9 | C39: 22.91 | D39: 21.16 | E39: 21.379999 | F39: 875200 | G39: 21.379999 | H39: -0.1205252853 | I39: -0.008658008658
A40: 2011-12-30 | B40: 21.549999 | C40: 21.66 | D40: 20.01 | E40: 20.629999 | F40: 1239800 | G40: 20.629999 | H40: -0.179477294 | I40: -0.05895200873
A41: 2012-01-03 | B41: 20.950001 | C41: 21 | D41: 18.799999 | E41: 19.27 | F41: 2516100 | G41: 19.27 | H41: -0.2073194299 | I41: -0.02784213586
A42: 2012-01-04 | B42: 19.190001 | C42: 19.23 | D42: 18.52 | E42: 18.790001 | F42: 1454600 | G42: 18.790001 | H42: -0.2913289724 | I42: -0.08400954253
A43: 2012-01-05 | B43: 18.559999 | C43: 18.66 | D43: 17.209999 | E43: 17.879999 | F43: 2736000 | G43: 17.879999 | H43: -0.3241586737 | I43: -0.03282970126
A44: 2012-01-06 | B44: 17.9 | C44: 17.969999 | D44: 17.5 | E44: 17.809999 | F44: 1461400 | G44: 17.809999 | H44: -0.3597189665 | I44: -0.03556029286
A45: 2012-01-09 | B45: 17.469999 | C45: 18.6 | D45: 17.24 | E45: 18.299999 | F45: 1770600 | G45: 18.299999 | H45: -0.3837413688 | I45: -0.02402240223
A46: 2012-01-10 | B46: 18.99 | C46: 19.389999 | D46: 18.780001 | E46: 19.15 | F46: 1524900 | G46: 19.15 | H46: -0.29673501 | I46: 0.08700635873
A47: 2012-01-11 | B47: 18.92 | C47: 19.76 | D47: 18.34 | E47: 19 | F47: 1684300 | G47: 19 | H47: -0.3004211606 | I47: -0.003686150606
A48: 2012-01-12 | B48: 18.65 | C48: 19.66 | D48: 18.59 | E48: 19.26 | F48: 1342700 | G48: 19.26 | H48: -0.3146917737 | I48: -0.01427061311
A49: 2012-01-13 | B49: 19.07 | C49: 19.33 | D49: 18.9 | E49: 19.15 | F49: 856900 | G49: 19.15 | H49: -0.2921716665 | I49: 0.02252010724
A50: 2012-01-17 | B50: 19.120001 | C50: 19.879999 | D50: 18.700001 | E50: 19.51 | F50: 1721200 | G50: 19.51 | H50: -0.2895496948 | I50: 0.002621971683
A51: 2012-01-18 | B51: 19.530001 | C51: 21 | D51: 19.26 | E51: 20.57 | F51: 1851700 | G51: 20.57 | H51: -0.2681061813 | I51: 0.02144351352
A52: 2012-01-19 | B52: 20.59 | C52: 21.99 | D52: 20.110001 | E52: 21.190001 | F52: 1602300 | G52: 21.190001 | H52: -0.2138307617 | I52: 0.05427541965
A53: 2012-01-20 | B53: 20.809999 | C53: 21.209999 | D53: 20.190001 | E53: 20.85 | F53: 925100 | G53: 20.85 | H53: -0.2031460118 | I53: 0.01068474988
A54: 2012-01-23 | B54: 20.6 | C54: 21.360001 | D54: 20.4 | E54: 20.76 | F54: 1125200 | G54: 20.76 | H54: -0.2132372665 | I54: -0.01009125469
A55: 2012-01-24 | B55: 20.469999 | C55: 20.91 | D55: 20.27 | E55: 20.6 | F55: 1076400 | G55: 20.6 | H55: -0.2195479946 | I55: -0.006310728155
A56: 2012-01-25 | B56: 20.35 | C56: 20.57 | D56: 19.700001 | E56: 20.08 | F56: 1762900 | G56: 20.08 | H56: -0.2254101835 | I56: -0.005862188855
A57: 2012-01-26 | B57: 20.040001 | C57: 20.26 | D57: 19.450001 | E57: 19.530001 | F57: 1118800 | G57: 19.530001 | H57: -0.2406435496 | I57: -0.01523336609
A58: 2012-01-27 | B58: 19.4 | C58: 20.24 | D58: 19.379999 | E58: 20.040001 | F58: 1241200 | G58: 20.040001 | H58: -0.2725797256 | I58: -0.03193617605
A59: 2012-01-30 | B59: 19.92 | C59: 20.440001 | D59: 19.5 | E59: 19.629999 | F59: 2407400 | G59: 19.629999 | H59: -0.2457756019 | I59: 0.02680412371
A60: 2012-01-31 | B60: 19.700001 | C60: 20.42 | D60: 19.57 | E60: 20.389999 | F60: 1543200 | G60: 20.389999 | H60: -0.2568197284 | I60: -0.01104412651
A61: 2012-02-01 | B61: 20.5 | C61: 21.66 | D61: 20 | E61: 21.49 | F61: 2290300 | G61: 21.49 | H61: -0.2162106442 | I61: 0.04060908423
A62: 2012-02-02 | B62: 21.690001 | C62: 24.219999 | D62: 21.200001 | E62: 23.08 | F62: 5157200 | G62: 23.08 | H62: -0.1581618149 | I62: 0.05804882927
A63: 2012-02-03 | B63: 23.49 | C63: 24.75 | D63: 23.15 | E63: 24.43 | F63: 3046900 | G63: 24.43 | H63: -0.07517431298 | I63: 0.08298750194
A64: 2012-02-06 | B64: 24.15 | C64: 24.9 | D64: 23.370001 | E64: 23.51 | F64: 2493600 | G64: 23.51 | H64: -0.0470772504 | I64: 0.02809706258
A65: 2012-02-07 | B65: 23.33 | C65: 24.35 | D65: 22.120001 | E65: 24.190001 | F65: 2633200 | G65: 24.190001 | H65: -0.08103170174 | I65: -0.03395445135
A66: 2012-02-08 | B66: 24.639999 | C66: 25.84 | D66: 23.65 | E66: 24.58 | F66: 8745000 | G66: 24.58 | H66: -0.02488086591 | I66: 0.05615083583
A67: 2012-02-09 | B67: 21.83 | C67: 22.469999 | D67: 20.1 | E67: 21.17 | F67: 11126700 | G67: 21.17 | H67: -0.1389230377 | I67: -0.1140421718
A68: 2012-02-10 | B68: 21.139999 | C68: 21.389999 | D68: 20.540001 | E68: 21.030001 | F68: 2038600 | G68: 21.030001 | H68: -0.1705309626 | I68: =(B68-B67)/B67 -> -0.03160792487
A69: 2012-02-13 | B69: 21 | C69: 21.07 | D69: 18.93 | E69: 19.450001 | F69: 5470300 | G69: 19.450001 | H69: =((B69-B68)/B68)+H68 -> -0.1771534322 | I69: -0.006622469566
A70: 2012-02-14 | B70: 19.02 | C70: 19.860001 | D70: 18.9 | E70: 19.35 | F70: 2283700 | G70: 19.35 | H70: -0.2714391465 | I70: -0.09428571429
A71: 2012-02-15 | B71: 19.4 | C71: 19.83 | D71: 19.25 | E71: 19.51 | F71: 1380700 | G71: 19.51 | H71: -0.251460177 | I71: 0.01997896951
A72: 2012-02-16 | B72: 19.809999 | C72: 20.469999 | D72: 19.33 | E72: 20.299999 | F72: 2561100 | G72: 20.299999 | H72: -0.2303262079 | I72: 0.02113396907
A73: 2012-02-17 | B73: 20.309999 | C73: 20.51 | D73: 20.1 | E73: 20.26 | F73: 2491100 | G73: 20.26 | H73: -0.2050864287 | I73: 0.02523977916
A74: 2012-02-21 | B74: 20.530001 | C74: 20.629999 | D74: 19.690001 | E74: 19.84 | F74: 1481600 | G74: 19.84 | H74: -0.1942542273 | I74: 0.01083220142
A75: 2012-02-22 | B75: 19.610001 | C75: 19.870001 | D75: 19.35 | E75: 19.41 | F75: 1192100 | G75: 19.41 | H75: -0.2390666947 | I75: -0.04481246737
A76: 2012-02-23 | B76: 19.6 | C76: 19.700001 | D76: 18.799999 | E76: 19.389999 | F76: 1516300 | G76: 19.389999 | H76: -0.2395766896 | I76: -0.0005099948746
A77: 2012-02-24 | B77: 19.370001 | C77: 19.799999 | D77: 19.25 | E77: 19.5 | F77: 1354900 | G77: 19.5 | H77: -0.2513113324 | I77: -0.01173464286
A78: 2012-02-27 | B78: 19.24 | C78: 19.73 | D78: 19.209999 | E78: 19.49 | F78: 1203600 | G78: 19.49 | H78: -0.2580227931 | I78: -0.006711460676
A79: 2012-02-28 | B79: 19.6 | C79: 20.5 | D79: 19.49 | E79: 19.870001 | F79: 2474300 | G79: 19.870001 | H79: -0.2393117744 | I79: 0.01871101871
A80: 2012-02-29 | B80: 19.950001 | C80: 20.18 | D80: 19.59 | E80: 19.719999 | F80: 1370900 | G80: 19.719999 | H80: -0.2214545805 | I80: 0.01785719388
A81: 2012-03-01 | B81: 19.75 | C81: 19.889999 | D81: 19.290001 | E81: 19.51 | F81: 1251700 | G81: 19.51 | H81: -0.2314796928 | I81: -0.01002511228
A82: 2012-03-02 | B82: 19.57 | C82: 19.879999 | D82: 19.120001 | E82: 19.200001 | F82: 1353200 | G82: 19.200001 | H82: -0.2405936168 | I82: -0.009113924051
A83: 2012-03-05 | B83: 19.120001 | C83: 19.209999 | D83: 18 | E83: 18.129999 | F83: 3026500 | G83: 18.129999 | H83: -0.2635879449 | I83: -0.02299432805
A84: 2012-03-06 | B84: 17.84 | C84: 18.540001 | D84: 17.5 | E84: 18.33 | F84: 1629600 | G84: 18.33 | H84: -0.3305336004 | I84: -0.06694565549
A85: 2012-03-07 | B85: 18.379999 | C85: 18.58 | D85: 17.299999 | E85: 17.32 | F85: 2313200 | G85: 17.32 | H85: -0.3002645981 | I85: 0.03026900224
A86: 2012-03-08 | B86: 17.549999 | C86: 17.6 | D86: 16.25 | E86: 16.98 | F86: 4497300 | G86: 16.98 | H86: -0.3454223808 | I86: -0.04515778265
A87: 2012-03-09 | B87: 17.030001 | C87: 17.58 | D87: 16.77 | E87: 17.059999 | F87: 1942300 | G87: 17.059999 | H87: -0.3750518981 | I87: -0.02962951736
A88: 2012-03-12 | B88: 17.129999 | C88: 17.440001 | D88: 16.690001 | E88: 16.74 | F88: 1291700 | G88: 16.74 | H88: -0.3691800253 | I88: 0.00587187282
A89: 2012-03-13 | B89: 16.73 | C89: 17.23 | D89: 16.4 | E89: 17.059999 | F89: 1912400 | G89: 17.059999 | H89: -0.3925308148 | I89: -0.02335078945
A90: 2012-03-14 | B90: 17.120001 | C90: 17.370001 | D90: 16.66 | E90: 16.879999 | F90: 1336100 | G90: 16.879999 | H90: -0.3692193384 | I90: 0.02331147639
A91: 2012-03-15 | B91: 17.01 | C91: 18.32 | D91: 16.709999 | E91: 17.84 | F91: 3595300 | G91: 17.84 | H91: -0.3756446301 | I91: -0.006425291681
A92: 2012-03-16 | B92: 17.84 | C92: 18.08 | D92: 17.59 | E92: 18.02 | F92: 2024700 | G92: 18.02 | H92: -0.3268498035 | I92: 0.04879482657
A93: 2012-03-19 | B93: 17.879999 | C93: 18.32 | D93: 17.66 | E93: 17.82 | F93: 961800 | G93: 17.82 | H93: -0.3246077071 | I93: 0.002242096413
A94: 2012-03-20 | B94: 17.969999 | C94: 18.16 | D94: 17.530001 | E94: 17.719999 | F94: 1607900 | G94: 17.719999 | H94: -0.3195741498 | I94: 0.005033557328
A95: 2012-03-21 | B95: 17.92 | C95: 17.92 | D95: 16.93 | E95: 17.299999 | F95: 2360500 | G95: 17.299999 | H95: -0.3223565094 | I95: -0.002782359643
A96: 2012-03-22 | B96: 17.17 | C96: 17.27 | D96: 16.73 | E96: 16.889999 | F96: 2210600 | G96: 16.889999 | H96: -0.364209188 | I96: -0.04185267857
A97: 2012-03-23 | B97: 16.879999 | C97: 17.08 | D97: 16.639999 | E97: 16.889999 | F97: 2081400 | G97: 16.889999 | H97: -0.3810991705 | I97: -0.01688998253
A98: 2012-03-26 | B98: 17.049999 | C98: 17.49 | D98: 16.700001 | E98: 17.379999 | F98: 2232600 | G98: 17.379999 | H98: -0.3710280799 | I98: 0.01007109064
A99: 2012-03-27 | B99: 17.5 | C99: 18.5 | D99: 17.32 | E99: 18.280001 | F99: 2168800 | G99: 18.280001 | H99: -0.3446350578 | I99: 0.02639302208
A100: 2012-03-28 | B100: 18.18 | C100: 18.76 | D100: 17.6 | E100: 17.799999 | F100: 2564000 | G100: 17.799999 | H100: -0.3057779149 | I100: 0.03885714286
A101: 2012-03-29 | B101: 17.76 | C101: 18.23 | D101: 17.549999 | E101: 17.700001 | F101: 1126800 | G101: 17.700001 | H101: -0.3288802252 | I101: -0.02310231023
A102: 2012-03-30 | B102: 17.799999 | C102: 18.98 | D102: 17.790001 | E102: 18.379999 | F102: 2592700 | G102: 18.379999 | H102: -0.3266280292 | I102: 0.002252195946
A103: 2012-04-02 | B103: 16.51 | C103: 16.57 | D103: 15.25 | E103: 15.28 | F103: 10090300 | G103: 15.28 | H103: -0.3990998872 | I103: -0.072471858
A104: 2012-04-03 | B104: 15.28 | C104: 15.48 | D104: 14.9 | E104: 15.02 | F104: 3501000 | G104: 15.02 | H104: -0.4736001901 | I104: -0.07450030285
A105: 2012-04-04 | B105: 14.75 | C105: 15.23 | D105: 14.51 | E105: 14.54 | F105: 3569600 | G105: 14.54 | H105: -0.5082860539 | I105: -0.03468586387
A106: 2012-04-05 | B106: 14.41 | C106: 14.75 | D106: 14.01 | E106: 14.18 | F106: 4370800 | G106: 14.18 | H106: -0.5313369014 | I106: -0.02305084746
A107: 2012-04-09 | B107: 14 | C107: 14.23 | D107: 13.5 | E107: 13.89 | F107: 3238200 | G107: 13.89 | H107: -0.559789365 | I107: -0.02845246357
A108: 2012-04-10 | B108: 13.86 | C108: 13.95 | D108: 13.3 | E108: 13.55 | F108: 3462000 | G108: 13.55 | H108: -0.569789365 | I108: -0.01
A109: 2012-04-11 | B109: 14.12 | C109: 14.12 | D109: 12.95 | E109: 13.08 | F109: 2422500 | G109: 13.08 | H109: -0.5510303462 | I109: 0.01875901876
A110: 2012-04-12 | B110: 14.29 | C110: 14.3 | D110: 13.27 | E110: 13.56 | F110: 2819400 | G110: 13.56 | H110: -0.5389906861 | I110: 0.01203966006
A111: 2012-04-13 | B111: 13.52 | C111: 13.55 | D111: 12.85 | E111: 13.12 | F111: 1953700 | G111: 13.12 | H111: -0.592874521 | I111: -0.05388383485
A112: 2012-04-16 | B112: 13.15 | C112: 13.26 | D112: 12.55 | E112: 12.67 | F112: 1671900 | G112: 12.67 | H112: -0.6202413849 | I112: -0.02736686391
A113: 2012-04-17 | B113: 12.65 | C113: 12.93 | D113: 12.25 | E113: 12.58 | F113: 1851700 | G113: 12.58 | H113: -0.6582641986 | I113: -0.03802281369
A114: 2012-04-18 | B114: 12.39 | C114: 12.55 | D114: 11.83 | E114: 12.04 | F114: 2451200 | G114: 12.04 | H114: -0.6788175583 | I114: -0.02055335968
A115: 2012-04-19 | B115: 11.95 | C115: 12.27 | D115: 11.68 | E115: 11.76 | F115: 1995200 | G115: 11.76 | H115: -0.7143300684 | I115: -0.03551251009
A116: 2012-04-20 | B116: 11.81 | C116: 11.86 | D116: 11.02 | E116: 11.13 | F116: 2392100 | G116: 11.13 | H116: -0.7260455495 | I116: -0.01171548117
A117: 2012-04-23 | B117: 11.45 | C117: 11.93 | D117: 11.1 | E117: 11.85 | F117: 5088300 | G117: 11.85 | H117: -0.7565281914 | I117: -0.03048264183
A118: 2012-04-24 | B118: 11.82 | C118: 12.07 | D118: 11.6 | E118: 11.96 | F118: 2951900 | G118: 11.96 | H118: -0.7242137809 | I118: 0.03231441048
A119: 2012-04-25 | B119: 12.04 | C119: 12.32 | D119: 11.98 | E119: 12.27 | F119: 921300 | G119: 12.27 | H119: -0.7056012597 | I119: 0.01861252115
A120: 2012-04-26 | B120: 12.1 | C120: 12.15 | D120: 11.85 | E120: 11.92 | F120: 1002200 | G120: 11.92 | H120: -0.700617871 | I120: 0.004983388704
A121: 2012-04-27 | B121: 12.06 | C121: 12.26 | D121: 11.61 | E121: 11.98 | F121: 1495900 | G121: 11.98 | H121: -0.7039236561 | I121: -0.003305785124
A122: 2012-04-30 | B122: 11.97 | C122: 11.99 | D122: 10.64 | E122: 10.71 | F122: 2796000 | G122: 10.71 | H122: -0.7113863427 | I122: -0.007462686567
A123: 2012-05-01 | B123: 11 | C123: 11.4 | D123: 10.56 | E123: 10.87 | F123: 5178600 | G123: 10.87 | H123: -0.7924222659 | I123: -0.08103592314
A124: 2012-05-02 | B124: 10.8 | C124: 11 | D124: 10.5 | E124: 10.58 | F124: 3453100 | G124: 10.58 | H124: -0.810604084 | I124: -0.01818181818
A125: 2012-05-03 | B125: 10.58 | C125: 10.78 | D125: 9.93 | E125: 10.31 | F125: 4023400 | G125: 10.31 | H125: -0.8309744544 | I125: -0.02037037037
A126: 2012-05-04 | B126: 10.31 | C126: 10.5 | D126: 9.82 | E126: 9.97 | F126: 2540200 | G126: 9.97 | H126: -0.8564943032 | I126: -0.02551984877
A127: 2012-05-07 | B127: 10.1 | C127: 10.8 | D127: 10.04 | E127: 10.46 | F127: 2578100 | G127: 10.46 | H127: -0.8768628774 | I127: -0.0203685742
A128: 2012-05-08 | B128: 10.47 | C128: 10.5 | D128: 10.1 | E128: 10.33 | F128: 1562400 | G128: 10.33 | H128: -0.840229214 | I128: 0.03663366337
A129: 2012-05-09 | B129: 10.22 | C129: 10.44 | D129: 10 | E129: 10.07 | F129: 1211900 | G129: 10.07 | H129: -0.86410696 | I129: -0.02387774594
A130: 2012-05-10 | B130: 10.28 | C130: 10.29 | D130: 9.86 | E130: 9.87 | F130: 1400000 | G130: 9.87 | H130: -0.8582361185 | I130: 0.005870841487
A131: 2012-05-11 | B131: 9.81 | C131: 10.16 | D131: 9.63 | E131: 9.9 | F131: 1492000 | G131: 9.9 | H131: -0.9039559628 | I131: -0.04571984436
A132: 2012-05-14 | B132: 10.22 | C132: 12.18 | D132: 10.08 | E132: 11.74 | F132: 16455500 | G132: 11.74 | H132: -0.8621618752 | I132: =(B132-B131)/B131 -> 0.04179408767
A133: 2012-05-15 | B133: 14.89 | C133: 14.93 | D133: 12 | E133: 12.17 | F133: 24684200 | G133: 12.17 | H133: =((B133-B132)/B132)+H132 -> -0.4052147127 | I133: 0.4569471624
A134: 2012-05-16 | B134: 12.17 | C134: 13.2 | D134: 12.16 | E134: 13.05 | F134: 7084000 | G134: 13.05 | H134: -0.5878876476 | I134: -0.1826729349
A135: 2012-05-17 | B135: 12.66 | C135: 12.9 | D135: 12.16 | E135: 12.41 | F135: 6664100 | G135: 12.41 | H135: -0.5476247059 | I135: 0.04026294166
A136: 2012-05-18 | B136: 12.49 | C136: 12.5 | D136: 11.33 | E136: 11.58 | F136: 5978200 | G136: 11.58 | H136: -0.561052826 | I136: -0.01342812006
A137: 2012-05-21 | B137: 11.61 | C137: 12.74 | D137: 10.9 | E137: 12.39 | F137: 7361000 | G137: 12.39 | H137: -0.6315091911 | I137: -0.07045636509
A138: 2012-05-22 | B138: 12.38 | C138: 12.43 | D138: 11.76 | E138: 11.95 | F138: 3009700 | G138: 11.95 | H138: -0.565187055 | I138: 0.06632213609
A139: 2012-05-23 | B139: 11.69 | C139: 12.4 | D139: 11.6 | E139: 12.03 | F139: 3557600 | G139: 12.03 | H139: -0.6209221115 | I139: -0.05573505654
A140: 2012-05-24 | B140: 11.98 | C140: 12.18 | D140: 11.75 | E140: 11.89 | F140: 2117400 | G140: 11.89 | H140: -0.5961145837 | I140: 0.0248075278
A141: 2012-05-25 | B141: 12 | C141: 12.2 | D141: 11.9 | E141: 12.05 | F141: 2256500 | G141: 12.05 | H141: -0.5944451347 | I141: 0.001669449082
A142: 2012-05-29 | B142: 12.02 | C142: 12.15 | D142: 11.55 | E142: 11.79 | F142: 3110600 | G142: 11.79 | H142: -0.592778468 | I142: 0.001666666667
A143: 2012-05-30 | B143: 11.54 | C143: 11.6 | D143: 10.91 | E143: 11.1 | F143: 3511600 | G143: 11.1 | H143: -0.6327119122 | I143: -0.03993344426
A144: 2012-05-31 | B144: 10.95 | C144: 10.95 | D144: 10.2 | E144: 10.64 | F144: 5984100 | G144: 10.64 | H144: -0.6838384287 | I144: -0.05112651646
A145: 2012-06-01 | B145: 9.72 | C145: 10.1 | D145: 9.53 | E145: 9.69 | F145: 23369700 | G145: 9.69 | H145: -0.7961671958 | I145: -0.1123287671
A146: 2012-06-04 | B146: 9.7 | C146: 9.79 | D146: 8.8 | E146: 8.95 | F146: 12555200 | G146: 8.95 | H146: -0.798224809 | I146: -0.002057613169
A147: 2012-06-05 | B147: 9 | C147: 9.8 | D147: 8.95 | E147: 9.79 | F147: 10736600 | G147: 9.79 | H147: -0.8703897575 | I147: -0.07216494845
A148: 2012-06-06 | B148: 10 | C148: 10.74 | D148: 9.98 | E148: 10.63 | F148: 13373600 | G148: 10.63 | H148: -0.7592786463 | I148: 0.1111111111
A149: 2012-06-07 | B149: 11 | C149: 11.05 | D149: 10.35 | E149: 10.62 | F149: 8617600 | G149: 10.62 | H149: -0.6592786463 | I149: 0.1
A150: 2012-06-08 | B150: 10.42 | C150: 10.77 | D150: 10.23 | E150: 10.76 | F150: 6372400 | G150: 10.76 | H150: -0.7120059191 | I150: -0.05272727273
A151: 2012-06-11 | B151: 10.84 | C151: 10.88 | D151: 10.26 | E151: 10.34 | F151: 5755900 | G151: 10.34 | H151: -0.6716988173 | I151: 0.04030710173
A152: 2012-06-12 | B152: 10.54 | C152: 10.55 | D152: 9.82 | E152: 9.95 | F152: 9700600 | G152: 9.95 | H152: -0.6993740941 | I152: -0.02767527675
A153: 2012-06-13 | B153: 9.68 | C153: 9.98 | D153: 9.51 | E153: 9.6 | F153: 10268000 | G153: 9.6 | H153: -0.780968022 | I153: -0.08159392789
A154: 2012-06-14 | B154: 9.24 | C154: 9.46 | D154: 9.13 | E154: 9.43 | F154: 7599400 | G154: 9.43 | H154: -0.8264225674 | I154: -0.04545454545
A155: 2012-06-15 | B155: 9.22 | C155: 10.14 | D155: 9.1 | E155: 10.06 | F155: 17865200 | G155: 10.06 | H155: -0.8285870696 | I155: -0.002164502165
A156: 2012-06-18 | B156: 10.42 | C156: 11.39 | D156: 10.33 | E156: 11.15 | F156: 13654700 | G156: 11.15 | H156: -0.6984352258 | I156: 0.1301518438
A157: 2012-06-19 | B157: 11.01 | C157: 11.15 | D157: 10.51 | E157: 10.93 | F157: 12575500 | G157: 10.93 | H157: -0.6418133448 | I157: 0.056621881
A158: 2012-06-20 | B158: 11 | C158: 11.18 | D158: 10.6 | E158: 10.67 | F158: 5677300 | G158: 10.67 | H158: -0.64272161 | I158: -0.0009082652134
A159: 2012-06-21 | B159: 10.76 | C159: 10.78 | D159: 10.36 | E159: 10.5 | F159: 4396900 | G159: 10.5 | H159: -0.6645397918 | I159: -0.02181818182
A160: 2012-06-22 | B160: 10.54 | C160: 10.62 | D160: 10.37 | E160: 10.4 | F160: 3711300 | G160: 10.4 | H160: -0.6849858885 | I160: -0.02044609665
A161: 2012-06-25 | B161: 10.26 | C161: 10.34 | D161: 9.74 | E161: 9.89 | F161: 4846600 | G161: 9.89 | H161: -0.7115513534 | I161: -0.0265654649
A162: 2012-06-26 | B162: 10 | C162: 10.33 | D162: 9.91 | E162: 10.25 | F162: 4365300 | G162: 10.25 | H162: -0.736892484 | I162: -0.0253411306
A163: 2012-06-27 | B163: 10.17 | C163: 10.37 | D163: 9.91 | E163: 10.13 | F163: 5028300 | G163: 10.13 | H163: -0.719892484 | I163: 0.017
A164: 2012-06-28 | B164: 10.07 | C164: 10.08 | D164: 9.59 | E164: 9.85 | F164: 6117600 | G164: 9.85 | H164: -0.7297253257 | I164: -0.009832841691
A165: 2012-06-29 | B165: 10.15 | C165: 10.67 | D165: 10 | E165: 10.63 | F165: 6679600 | G165: 10.63 | H165: -0.7217809364 | I165: 0.007944389275
A166: 2012-07-02 | B166: 10.43 | C166: 10.5 | D166: 9.48 | E166: 9.51 | F166: 12714500 | G166: 9.51 | H166: -0.6941947295 | I166: 0.0275862069
A167: 2012-07-03 | B167: 9.59 | C167: 9.59 | D167: 8.72 | E167: 8.79 | F167: 12198600 | G167: 8.79 | H167: -0.7747316423 | I167: -0.08053691275
A168: 2012-07-05 | B168: 8.78 | C168: 9 | D168: 8.51 | E168: 8.82 | F168: 5855700 | G168: 8.82 | H168: -0.8591946245 | I168: -0.08446298227
A169: 2012-07-06 | B169: 8.76 | C169: 8.82 | D169: 8.25 | E169: 8.44 | F169: 7326900 | G169: 8.44 | H169: -0.8614725289 | I169: -0.002277904328
A170: 2012-07-09 | B170: 8.4 | C170: 8.83 | D170: 8.28 | E170: 8.79 | F170: 5689000 | G170: 8.79 | H170: -0.9025684193 | I170: -0.04109589041
A171: 2012-07-10 | B171: 8.82 | C171: 8.92 | D171: 8.25 | E171: 8.31 | F171: 7576200 | G171: 8.31 | H171: -0.8525684193 | I171: 0.05
A172: 2012-07-11 | B172: 8.31 | C172: 8.31 | D172: 7.72 | E172: 7.77 | F172: 12943300 | G172: 7.77 | H172: -0.9103915485 | I172: -0.05782312925
A173: 2012-07-12 | B173: 7.65 | C173: 8.01 | D173: 7.25 | E173: 7.98 | F173: 15792900 | G173: 7.98 | H173: -0.9898139312 | I173: -0.07942238267
A174: 2012-07-13 | B174: 7.98 | C174: 8.1 | D174: 7.77 | E174: 7.79 | F174: 7319000 | G174: 7.79 | H174: -0.9466766763 | I174: 0.0431372549
A175: 2012-07-16 | B175: 7.91 | C175: 8.16 | D175: 7.61 | E175: 7.67 | F175: 7761600 | G175: 7.67 | H175: -0.9554486061 | I175: -0.008771929825
A176: 2012-07-17 | B176: 7.69 | C176: 7.74 | D176: 7.17 | E176: 7.21 | F176: 10829100 | G176: 7.21 | H176: -0.9832615012 | I176: -0.02781289507
A177: 2012-07-18 | B177: 7.18 | C177: 7.3 | D177: 7.02 | E177: 7.07 | F177: 11355100 | G177: 7.07 | H177: -1.049581397 | I177: -0.06631989597
A178: 2012-07-19 | B178: 7.3 | C178: 7.61 | D178: 7.16 | E178: 7.4 | F178: 7039800 | G178: 7.4 | H178: -1.032868305 | I178: 0.01671309192
A179: 2012-07-20 | B179: 7.35 | C179: 7.58 | D179: 7.3 | E179: 7.4 | F179: 6389900 | G179: 7.4 | H179: -1.02601899 | I179: 0.006849315068
A180: 2012-07-23 | B180: 7.14 | C180: 7.42 | D180: 7.06 | E180: 7.38 | F180: 3275600 | G180: 7.38 | H180: -1.054590419 | I180: -0.02857142857
A181: 2012-07-24 | B181: 7.32 | C181: 7.49 | D181: 7.16 | E181: 7.24 | F181: 3070900 | G181: 7.24 | H181: -1.029380335 | I181: 0.02521008403
A182: 2012-07-25 | B182: 7.3 | C182: 7.35 | D182: 7.12 | E182: 7.24 | F182: 2651900 | G182: 7.24 | H182: -1.032112575 | I182: -0.002732240437
A183: 2012-07-26 | B183: 6.88 | C183: 7.07 | D183: 6.55 | E183: 6.61 | F183: 13653500 | G183: 6.61 | H183: -1.089646822 | I183: -0.05753424658
A184: 2012-07-27 | B184: 6.51 | C184: 8.05 | D184: 6.5 | E184: 7.59 | F184: 20330700 | G184: 7.59 | H184: -1.143425891 | I184: -0.05377906977
A185: 2012-07-30 | B185: 7.58 | C185: 7.8 | D185: 6.81 | E185: 6.9 | F185: 9708900 | G185: 6.9 | H185: -0.9790633723 | I185: 0.1643625192
A186: 2012-07-31 | B186: 7.03 | C186: 7.05 | D186: 6.62 | E186: 6.66 | F186: 5311200 | G186: 6.66 | H186: -1.051622739 | I186: -0.07255936675
A187: 2012-08-01 | B187: 6.69 | C187: 6.72 | D187: 6.38 | E187: 6.48 | F187: 8664900 | G187: 6.48 | H187: -1.099986893 | I187: -0.04836415363
A188: 2012-08-02 | B188: 6.4 | C188: 6.6 | D188: 6.35 | E188: 6.38 | F188: 5157300 | G188: 6.38 | H188: -1.143335174 | I188: -0.04334828102
A189: 2012-08-03 | B189: 6.6 | C189: 6.73 | D189: 6.43 | E189: 6.59 | F189: 3068200 | G189: 6.59 | H189: -1.112085174 | I189: 0.03125
A190: 2012-08-06 | B190: 6.65 | C190: 7.29 | D190: 6.62 | E190: 7.25 | F190: 8465000 | G190: 7.25 | H190: -1.104509416 | I190: 0.007575757576
A191: 2012-08-07 | B191: 7.24 | C191: 7.36 | D191: 6.89 | E191: 7.28 | F191: 5757000 | G191: 7.28 | H191: -1.015787612 | I191: 0.08872180451
A192: 2012-08-08 | B192: 7.1 | C192: 7.5 | D192: 6.92 | E192: 6.93 | F192: 5079400 | G192: 6.93 | H192: -1.035124628 | I192: -0.01933701657
A193: 2012-08-09 | B193: 6.92 | C193: 6.99 | D193: 6.59 | E193: 6.65 | F193: 5975500 | G193: 6.65 | H193: -1.060476741 | I193: -0.02535211268
A194: 2012-08-10 | B194: 6.67 | C194: 7.62 | D194: 6.66 | E194: 7.44 | F194: 10510000 | G194: 7.44 | H194: -1.096603908 | I194: -0.03612716763
A195: 2012-08-13 | B195: 7.75 | C195: 8.05 | D195: 7.25 | E195: 7.55 | F195: 30853300 | G195: 7.55 | H195: -0.934684868 | I195: 0.1619190405
A196: 2012-08-14 | B196: 5.82 | C196: 6 | D196: 5.46 | E196: 5.51 | F196: 62342900 | G196: 5.51 | H196: -1.183717126 | I196: =(B196-B195)/B195 -> -0.2490322581
A197: 2012-08-15 | B197: 5.55 | C197: 5.63 | D197: 5.28 | E197: 5.32 | F197: 21253300 | G197: 5.32 | H197: =((B197-B196)/B196)+H196 -> -1.230108879 | I197: -0.04639175258
A198: 2012-08-16 | B198: 5.18 | C198: 5.2 | D198: 4.97 | E198: 5 | F198: 33092900 | G198: 5 | H198: -1.296775545 | I198: -0.06666666667
A199: 2012-08-17 | B199: 4.83 | C199: 4.86 | D199: 4.51 | E199: 4.75 | F199: 39538200 | G199: 4.75 | H199: -1.364343113 | I199: -0.06756756757
A200: 2012-08-20 | B200: 4.68 | C200: 4.88 | D200: 4.5 | E200: 4.65 | F200: 17293300 | G200: 4.65 | H200: -1.395399013 | I200: -0.03105590062
... 731 more rows

Sheet Apple, Inc.
A1: Date | B1: Open | C1: High | D1: Low | E1: Close | F1: Volume | G1: Adj Close | H1: Cumulative Return | I1: Daily Return
